Workbook

Sheet Yhteenveto
B1: PESÄPALLON MESTARUUSKILPAILUJEN, SUURSARJAN, MESTARUUSSARJAN, SUPERPESIKSEN JUOKSUT 1922 – 2025 | P1: MIESTEN RUNKOSARJA 1931-2025
P2: Vuosi | Q2: Sarjanimike | R2: Joukkueet | S2: Ottelut | T2: Kierrokset
B3: CUP-JÄRJESTELMÄ | P3: 1931 | Q3: Suursarja | R3: 7 | S3: 21 | T3: 6
B4: VUOSI | C4: JOUK | D4: OTT | E4: JUOKSUJA | F4: KA / OTT | P4: 1932-1933 | Q4: Suursarja | R4: 8 | S4: 24 | T4: 6
B5: 1922 | C5: 7 | D5: 6 | E5: 119 | F5: =PRODUCT(E5/D5) -> 19.8 | P5: 1934-1939 | Q5: Suursarja | R5: 12 | S5: 60 | T5: 10
B6: 1923 | C6: 8 | D6: 6 | E6: 91 | F6: =PRODUCT(E6/D6) -> 15.2 | P6: 1940 | Q6: Suursarja | R6: 9 | S6: 36 | T6: 8
B7: 1924 | C7: 9 | D7: 7 | E7: 84 | F7: =PRODUCT(E7/D7) -> 12.0 | P7: 1941 | Q7: Sarja jäi kesken sodan takia
B8: 1925 | C8: 10 | D8: 9 | E8: 119 | F8: =PRODUCT(E8/D8) -> 13.2 | P8: 1942 | Q8: Sotasarja | R8: 7 | S8: 21 | T8: 6
B9: 1926 | C9: 11 | D9: 10 | E9: 137 | F9: =PRODUCT(E9/D9) -> 13.7 | P9: 1943 | Q9: Sotasarja | R9: 9 | S9: 36 | T9: 8
B10: 1927 | C10: 14 | D10: 13 | E10: 199 | F10: =PRODUCT(E10/D10) -> 15.3 | P10: 1944 | Q10: Sarja jäi kesken sodan takia
B11: 1928 | C11: 11 | D11: 10 | E11: 160 | F11: =PRODUCT(E11/D11) -> 16.0 | P11: 1945-1955 | Q11: Mestaruussarja | R11: 13 | S11: 78 | T11: 12
B12: 1929 | C12: 12 | D12: 11 | E12: 156 | F12: =PRODUCT(E12/D12) -> 14.2 | P12: 1956-1963 | Q12: Mestaruussarja | R12: 15 | S12: 105 | T12: 14
B13: 1930 | C13: 25 | D13: 78 | E13: 1661 | F13: =PRODUCT(E13/D13) -> 21.3 | P13: 1964-1989 | Q13: Mestaruussarja | R13: 12 | S13: 132 | T13: 22
B14: KAIKKI | C14: =SUM(C5:C13) -> 107 | D14: =SUM(D5:D13) -> 150 | E14: =SUM(E5:E13) -> 2726 | F14: =PRODUCT(E14/D14) -> 18.2 | P14: 1990-1992 | Q14: Superpesis | R14: 14 | S14: 182 | T14: 26
P15: 1993 | Q15: Superpesis | R15: 14 | S15: 196 | T15: 28
P16: 1994 | Q16: Superpesis | R16: 14 | S16: 202 | T16: 34
B17: RUNKOSARJA | P17: 1995-1996 | Q17: Superpesis | R17: 14 | S17: 203 | T17: 29
B18: VUOSI | C18: JOUK | D18: OTT | E18: JUOKSUJA | F18: KA / OTT | G18: YLEISÖÄ | H18: KA / OTT | J18: KIERROKSIA | P18: 1997-1998 | Q18: Superpesis | R18: 15 | S18: 210 | T18: 28
B19: 1931 | C19: 7 | D19: 21 | E19: 257 | F19: =PRODUCT(E19/D19) -> 12.2 | H19: =PRODUCT(G19/D19) -> 0 | J19: 6 | P19: 1999 | Q19: Superpesis | R19: 13 | S19: 182 | T19: 28
B20: 1932 | C20: 8 | D20: 24 | E20: 297 | F20: =PRODUCT(E20/D20) -> 12.4 | H20: =PRODUCT(G20/D20) -> 0 | J20: 6 | P20: 2000-2001 | Q20: Superpesis | R20: 14 | S20: 196 | T20: 28
B21: 1933 | C21: 8 | D21: 24 | E21: 199 | F21: =PRODUCT(E21/D21) -> 8.3 | H21: =PRODUCT(G21/D21) -> 0 | J21: 6 | P21: 2002 | Q21: Superpesis | R21: 12 | S21: 174 | T21: 29
B22: 1934 | C22: 12 | D22: 60 | E22: 376 | F22: =PRODUCT(E22/D22) -> 6.3 | H22: =PRODUCT(G22/D22) -> 0 | J22: 10 | P22: 2003 | Q22: Superpesis | R22: 12 | S22: 156 | T22: 26
B23: 1935 | C23: 12 | D23: 60 | E23: 402 | F23: =PRODUCT(E23/D23) -> 6.7 | H23: =PRODUCT(G23/D23) -> 0 | J23: 10 | P23: 2004 | Q23: Superpesis | R23: 12 | S23: 168 | T23: 28
B24: 1936 | C24: 12 | D24: 60 | E24: 446 | F24: =PRODUCT(E24/D24) -> 7.4 | H24: =PRODUCT(G24/D24) -> 0 | J24: 10 | P24: 2005 | Q24: Superpesis | R24: 12 | S24: 150 | T24: 25
B25: 1937 | C25: 12 | D25: 60 | E25: 619 | F25: =PRODUCT(E25/D25) -> 10.3 | H25: =PRODUCT(G25/D25) -> 0 | J25: 10 | P25: 2006 | Q25: Superpesis | R25: 12 | S25: 162 | T25: 27
B26: 1938 | C26: 12 | D26: 60 | E26: 635 | F26: =PRODUCT(E26/D26) -> 10.6 | H26: =PRODUCT(G26/D26) -> 0 | J26: 10 | P26: 2007 | Q26: Superpesis | R26: 13 | S26: 169 | T26: 26
B27: 1939 | C27: 12 | D27: 60 | E27: 755 | F27: =PRODUCT(E27/D27) -> 12.6 | H27: =PRODUCT(G27/D27) -> 0 | J27: 10 | P27: 2008 | Q27: Superpesis | R27: 12 | S27: 144 | T27: 24
B28: 1940 | C28: 9 | D28: 36 | E28: 447 | F28: =PRODUCT(E28/D28) -> 12.4 | G28: 11030 | H28: 405 | J28: 8 | K28: YLEISÖ; 8 OTTELUA PUUTTUU | P28: 2009 | Q28: Superpesis | R28: 11 | S28: 132 | T28: 24
B29: 1941 | C29: 11 | D29: 24 | E29: 243 | F29: =PRODUCT(E29/D29) -> 10.1 | H29: =PRODUCT(G29/D29) -> 0 | J29: kesken | P29: 2010 | Q29: Superpesis | R29: 12 | S29: 156 | T29: 26
B30: 1942 | C30: 7 | D30: 21 | E30: 171 | F30: =PRODUCT(E30/D30) -> 8.1 | H30: =PRODUCT(G30/D30) -> 0 | J30: 6 | P30: 2011 | Q30: Superpesis | R30: 11 | S30: 132 | T30: 26
B31: 1943 | C31: 9 | D31: 36 | E31: 406 | F31: =PRODUCT(E31/D31) -> 11.3 | H31: =PRODUCT(G31/D31) -> 0 | J31: 8 | P31: 2012-2013 | Q31: Superpesis | R31: 12 | S31: 156 | T31: 26
B32: 1944 | C32: 11 | D32: 5 | E32: 33 | F32: =PRODUCT(E32/D32) -> 6.6 | H32: =PRODUCT(G32/D32) -> 0 | J32: kesken | P32: 2014-2015 | Q32: Superpesis | R32: 12 | S32: 180 | T32: 30
B33: 1945 | C33: 13 | D33: 78 | E33: 868 | F33: =PRODUCT(E33/D33) -> 11.1 | G33: 15647 | H33: 401 | J33: 12 | K33: YLEISÖ; 39 OTTELUA PUUTTUU | P33: 2016 | Q33: Superpesis | R33: 14 | S33: 196 | T33: 28
B34: 1946 | C34: 13 | D34: 78 | E34: 755 | F34: =PRODUCT(E34/D34) -> 9.7 | G34: 30468 | H34: 508 | J34: 12 | K34: YLEISÖ; 18 OTTELUA PUUTTUU | P34: 2017-2018 | Q34: Superpesis | R34: 14 | S34: 224 | T34: 32
B35: 1947 | C35: 13 | D35: 78 | E35: 914 | F35: =PRODUCT(E35/D35) -> 11.7 | G35: 41951 | H35: 699 | J35: 12 | K35: YLEISÖ; 18 OTTELUA PUUTTUU | P35: 2019 | Q35: Superpesis | R35: 14 | S35: 224 | T35: 30
B36: 1948 | C36: 13 | D36: 78 | E36: 1222 | F36: =PRODUCT(E36/D36) -> 15.7 | G36: 34742 | H36: 724 | J36: 12 | K36: YLEISÖ; 30 OTTELUA PUUTTUU | P36: 2020 | Q36: Superpesis | R36: 14 | S36: 188 | T36: 24
B37: 1949 | C37: 13 | D37: 78 | E37: 1044 | F37: =PRODUCT(E37/D37) -> 13.4 | G37: 47527 | H37: 669 | J37: 12 | K37: YLEISÖ; 7 OTTELUA PUUTTUU | P37: 2021 | Q37: Superpesis | R37: 15 | S37: 199 | T37: 28
B38: 1950 | C38: 13 | D38: 78 | E38: 944 | F38: =PRODUCT(E38/D38) -> 12.1 | G38: 43871 | H38: 562 | J38: 12 | P38: 2022 | Q38: Superpesis | R38: 13 | S38: 195 | T38: 30
B39: 1951 | C39: 13 | D39: 78 | E39: 1139 | F39: =PRODUCT(E39/D39) -> 14.6 | G39: 53500 | H39: 775 | J39: 12 | K39: YLEISÖ; 9 OTTELUA PUUTTUU | P39: 2023 | Q39: Superpesis | R39: 13 | S39: 182 | T39: 28
B40: 1952 | C40: 13 | D40: 78 | E40: 953 | F40: =PRODUCT(E40/D40) -> 12.2 | G40: 64188 | H40: =PRODUCT(G40/D40) -> 823 | J40: 12 | P40: 2024 | Q40: Superpesis | R40: 13 | S40: 192 | T40: 29-30
B41: 1953 | C41: 13 | D41: 78 | E41: 886 | F41: =PRODUCT(E41/D41) -> 11.4 | G41: 68628 | H41: =PRODUCT(G41/D41) -> 880 | J41: 12 | P41: 2025 | Q41: Superpesis | R41: 12 | S41: 198 | T41: 33
B42: 1954 | C42: 13 | D42: 78 | E42: 732 | F42: =PRODUCT(E42/D42) -> 9.4 | G42: 79246 | H42: 1043 | J42: 12 | K42: YLEISÖ; 2 OTTELUA PUUTTUU
B43: 1955 | C43: 13 | D43: 78 | E43: 838 | F43: =PRODUCT(E43/D43) -> 10.7 | G43: 78740 | H43: 1023 | J43: 12 | K43: YLEISÖ; 1 OTTELU PUUTTUU
B44: 1956 | C44: 15 | D44: 105 | E44: 1119 | F44: =PRODUCT(E44/D44) -> 10.7 | G44: 96770 | H44: 949 | J44: 14 | K44: YLEISÖ; 3 OTTELUA PUUTTUU
B45: 1957 | C45: 15 | D45: 105 | E45: 1347 | F45: =PRODUCT(E45/D45) -> 12.8 | G45: 113194 | H45: 1078 | J45: 14
B46: 1958 | C46: 15 | D46: 105 | E46: 1390 | F46: =PRODUCT(E46/D46) -> 13.2 | G46: 90165 | H46: =PRODUCT(G46/D46) -> 859 | J46: 14
B47: 1959 | C47: 15 | D47: 105 | E47: 1387 | F47: =PRODUCT(E47/D47) -> 13.2 | G47: 113299 | H47: =PRODUCT(G47/D47) -> 1079 | J47: 14
B48: 1960 | C48: 15 | D48: 105 | E48: 1366 | F48: =PRODUCT(E48/D48) -> 13.0 | G48: 97064 | H48: =PRODUCT(G48/D48) -> 924 | J48: 14
B49: 1961 | C49: 15 | D49: 105 | E49: 1226 | F49: =PRODUCT(E49/D49) -> 11.7 | G49: 102892 | H49: 1016 | J49: 14
B50: 1962 | C50: 15 | D50: 105 | E50: 1269 | F50: =PRODUCT(E50/D50) -> 12.1 | G50: 107543 | H50: 1024 | J50: 14
B51: 1963 | C51: 15 | D51: 105 | E51: 1419 | F51: =PRODUCT(E51/D51) -> 13.5 | G51: 118312 | H51: =PRODUCT(G51/D51) -> 1127 | J51: 14
B52: 1964 | C52: 12 | D52: 132 | E52: 1892 | F52: =PRODUCT(E52/D52) -> 14.3 | G52: 198122 | H52: =PRODUCT(G52/D52) -> 1501 | J52: 22
B53: 1965 | C53: 12 | D53: 132 | E53: 1994 | F53: =PRODUCT(E53/D53) -> 15.1 | G53: 174324 | H53: =PRODUCT(G53/D53) -> 1321 | J53: 22
B54: 1966 | C54: 12 | D54: 132 | E54: 2086 | F54: =PRODUCT(E54/D54) -> 15.8 | G54: 192012 | H54: =PRODUCT(G54/D54) -> 1455 | J54: 22
B55: 1967 | C55: 12 | D55: 132 | E55: 2126 | F55: =PRODUCT(E55/D55) -> 16.1 | G55: 211555 | H55: =PRODUCT(G55/D55) -> 1603 | J55: 22
B56: 1968 | C56: 12 | D56: 132 | E56: 1974 | F56: =PRODUCT(E56/D56) -> 15.0 | G56: 231878 | H56: =PRODUCT(G56/D56) -> 1757 | J56: 22
B57: 1969 | C57: 12 | D57: 132 | E57: 1954 | F57: =PRODUCT(E57/D57) -> 14.8 | G57: 223286 | H57: =PRODUCT(G57/D57) -> 1692 | J57: 22
B58: 1970 | C58: 12 | D58: 132 | E58: 1948 | F58: =PRODUCT(E58/D58) -> 14.8 | G58: 204357 | H58: =PRODUCT(G58/D58) -> 1548 | J58: 22
B59: 1971 | C59: 12 | D59: 132 | E59: 1749 | F59: =PRODUCT(E59/D59) -> 13.3 | G59: 210363 | H59: 1604 | J59: 22 | K59: YLEISÖ; 1 OTTELU PUUTTUU
B60: 1972 | C60: 12 | D60: 132 | E60: 1749 | F60: =PRODUCT(E60/D60) -> 13.3 | G60: 223068 | H60: 1690 | J60: 22
B61: 1973 | C61: 12 | D61: 132 | E61: 1707 | F61: =PRODUCT(E61/D61) -> 12.9 | G61: 287240 | H61: =PRODUCT(G61/D61) -> 2176 | J61: 22
B62: 1974 | C62: 12 | D62: 132 | E62: 1562 | F62: =PRODUCT(E62/D62) -> 11.8 | G62: 246631 | H62: =PRODUCT(G62/D62) -> 1868 | J62: 22
B63: 1975 | C63: 12 | D63: 132 | E63: 1537 | F63: =PRODUCT(E63/D63) -> 11.6 | G63: 206504 | H63: =PRODUCT(G63/D63) -> 1564 | J63: 22
B64: 1976 | C64: 12 | D64: 132 | E64: 1573 | F64: =PRODUCT(E64/D64) -> 11.9 | G64: 221894 | H64: =PRODUCT(G64/D64) -> 1681 | J64: 22
B65: 1977 | C65: 12 | D65: 132 | E65: 1558 | F65: =PRODUCT(E65/D65) -> 11.8 | G65: 227732 | H65: =PRODUCT(G65/D65) -> 1725 | J65: 22
B66: 1978 | C66: 12 | D66: 132 | E66: 1566 | F66: =PRODUCT(E66/D66) -> 11.9 | G66: 206231 | H66: =PRODUCT(G66/D66) -> 1562 | J66: 22
B67: 1979 | C67: 12 | D67: 132 | E67: 1719 | F67: =PRODUCT(E67/D67) -> 13.0 | G67: 239690 | H67: =PRODUCT(G67/D67) -> 1816 | J67: 22
B68: 1980 | C68: 12 | D68: 132 | E68: 1792 | F68: =PRODUCT(E68/D68) -> 13.6 | G68: 241381 | H68: =PRODUCT(G68/D68) -> 1829 | J68: 22
B69: 1981 | C69: 12 | D69: 132 | E69: 1975 | F69: =PRODUCT(E69/D69) -> 15.0 | G69: 266491 | H69: =PRODUCT(G69/D69) -> 2019 | J69: 22
B70: 1982 | C70: 12 | D70: 132 | E70: 1663 | F70: =PRODUCT(E70/D70) -> 12.6 | G70: 225657 | H70: =PRODUCT(G70/D70) -> 1710 | J70: 22
B71: 1983 | C71: 12 | D71: 132 | E71: 1749 | F71: =PRODUCT(E71/D71) -> 13.3 | G71: 216780 | H71: =PRODUCT(G71/D71) -> 1642 | J71: 22
B72: 1984 | C72: 12 | D72: 132 | E72: 1784 | F72: =PRODUCT(E72/D72) -> 13.5 | G72: 254064 | H72: =PRODUCT(G72/D72) -> 1925 | J72: 22
B73: 1985 | C73: 12 | D73: 132 | E73: 1772 | F73: =PRODUCT(E73/D73) -> 13.4 | G73: 221356 | H73: =PRODUCT(G73/D73) -> 1677 | J73: 22
B74: 1986 | C74: 12 | D74: 132 | E74: 1889 | F74: =PRODUCT(E74/D74) -> 14.3 | G74: 253377 | H74: =PRODUCT(G74/D74) -> 1920 | J74: 22
B75: 1987 | C75: 12 | D75: 132 | E75: 1654 | F75: =PRODUCT(E75/D75) -> 12.5 | G75: 229552 | H75: =PRODUCT(G75/D75) -> 1739 | J75: 22
B76: 1988 | C76: 12 | D76: 132 | E76: 1716 | F76: =PRODUCT(E76/D76) -> 13.0 | G76: 246546 | H76: =PRODUCT(G76/D76) -> 1868 | J76: 22
B77: 1989 | C77: 12 | D77: 132 | E77: 1545 | F77: =PRODUCT(E77/D77) -> 11.7 | G77: 279237 | H77: =PRODUCT(G77/D77) -> 2115 | J77: 22
B78: 1990 | C78: 14 | D78: 182 | E78: 2273 | F78: =PRODUCT(E78/D78) -> 12.5 | G78: 370436 | H78: =PRODUCT(G78/D78) -> 2035 | J78: 26
B79: 1991 | C79: 14 | D79: 182 | E79: 2331 | F79: =PRODUCT(E79/D79) -> 12.8 | G79: 364210 | H79: =PRODUCT(G79/D79) -> 2001 | J79: 26
B80: 1992 | C80: 14 | D80: 182 | E80: 2671 | F80: =PRODUCT(E80/D80) -> 14.7 | G80: 352229 | H80: =PRODUCT(G80/D80) -> 1935 | J80: 26
B81: 1993 | C81: 14 | D81: 196 | E81: 2950 | F81: =PRODUCT(E81/D81) -> 15.1 | G81: 366309 | H81: =PRODUCT(G81/D81) -> 1869 | J81: 28
B82: 1994 | C82: 14 | D82: 202 | E82: 2462 | F82: =PRODUCT(E82/D82) -> 12.2 | G82: 356921 | H82: =PRODUCT(G82/D82) -> 1767 | J82: 34
B83: 1995 | C83: 14 | D83: 203 | E83: 2410 | F83: =PRODUCT(E83/D83) -> 11.9 | G83: 335697 | H83: =PRODUCT(G83/D83) -> 1654 | J83: 29
B84: 1996 | C84: 14 | D84: 203 | E84: 2353 | F84: =PRODUCT(E84/D84) -> 11.6 | G84: 341300 | H84: =PRODUCT(G84/D84) -> 1681 | J84: 29
B85: 1997 | C85: 15 | D85: 210 | E85: 2495 | F85: =PRODUCT(E85/D85) -> 11.9 | G85: 391987 | H85: =PRODUCT(G85/D85) -> 1867 | J85: 28
B86: 1998 | C86: 15 | D86: 210 | E86: 2676 | F86: =PRODUCT(E86/D86) -> 12.7 | G86: 335177 | H86: =PRODUCT(G86/D86) -> 1596 | J86: 28
B87: 1999 | C87: 13 | D87: 182 | E87: 2399 | F87: =PRODUCT(E87/D87) -> 13.2 | G87: 242003 | H87: =PRODUCT(G87/D87) -> 1330 | J87: 28
B88: 2000 | C88: 14 | D88: 196 | E88: 2605 | F88: =PRODUCT(E88/D88) -> 13.3 | G88: 211225 | H88: =PRODUCT(G88/D88) -> 1078 | J88: 28
B89: 2001 | C89: 14 | D89: 196 | E89: 2954 | F89: =PRODUCT(E89/D89) -> 15.1 | G89: 232228 | H89: =PRODUCT(G89/D89) -> 1185 | J89: 28
B90: 2002 | C90: 12 | D90: 174 | E90: 2127 | F90: =PRODUCT(E90/D90) -> 12.2 | G90: 197533 | H90: =PRODUCT(G90/D90) -> 1135 | J90: 29
B91: 2003 | C91: 12 | D91: 156 | E91: 1859 | F91: =PRODUCT(E91/D91) -> 11.9 | G91: 191792 | H91: =PRODUCT(G91/D91) -> 1229 | J91: 26
B92: 2004 | C92: 12 | D92: 168 | E92: 2146 | F92: =PRODUCT(E92/D92) -> 12.8 | G92: 195146 | H92: =PRODUCT(G92/D92) -> 1162 | J92: 28
B93: 2005 | C93: 12 | D93: 150 | E93: 1874 | F93: =PRODUCT(E93/D93) -> 12.5 | G93: 198425 | H93: =PRODUCT(G93/D93) -> 1323 | J93: 25
B94: 2006 | C94: 12 | D94: 162 | E94: 2035 | F94: =PRODUCT(E94/D94) -> 12.6 | G94: 210687 | H94: =PRODUCT(G94/D94) -> 1301 | J94: 27
B95: 2007 | C95: 13 | D95: 169 | E95: 2119 | F95: =PRODUCT(E95/D95) -> 12.5 | G95: 235598 | H95: =PRODUCT(G95/D95) -> 1394 | J95: 26
B96: 2008 | C96: 12 | D96: 144 | E96: 1631 | F96: =PRODUCT(E96/D96) -> 11.3 | G96: 206441 | H96: =PRODUCT(G96/D96) -> 1434 | J96: 24
B97: 2009 | C97: 11 | D97: 132 | E97: 1549 | F97: =PRODUCT(E97/D97) -> 11.7 | G97: 242738 | H97: =PRODUCT(G97/D97) -> 1839 | J97: 24
B98: 2010 | C98: 12 | D98: 156 | E98: 2110 | F98: =PRODUCT(E98/D98) -> 13.5 | G98: 254425 | H98: =PRODUCT(G98/D98) -> 1631 | J98: 26
B99: 2011 | C99: 11 | D99: 143 | E99: 2178 | F99: =PRODUCT(E99/D99) -> 15.2 | G99: 219547 | H99: =PRODUCT(G99/D99) -> 1535 | J99: 26
B100: 2012 | C100: 12 | D100: 156 | E100: 2019 | F100: =PRODUCT(E100/D100) -> 12.9 | G100: 231940 | H100: =PRODUCT(G100/D100) -> 1487 | J100: 26
B101: 2013 | C101: 12 | D101: 156 | E101: 2253 | F101: 14.4 | G101: 247830 | H101: 1589 | J101: 26
B102: 2014 | C102: 12 | D102: 180 | E102: 2513 | F102: 14.0 | G102: 259444 | H102: 1441 | J102: 30
B103: 2015 | C103: 12 | D103: 180 | E103: 2426 | F103: 13.5 | G103: 250098 | H103: 1389 | J103: 30
B104: 2016 | C104: 14 | D104: 196 | E104: 3044 | F104: 15.5 | G104: 254566 | H104: 1299 | J104: 28
B105: 2017 | C105: 14 | D105: 224 | E105: 3329 | F105: 14.9 | G105: 287967 | H105: 1286 | J105: 32
B106: 2018 | C106: 14 | D106: 224 | E106: 3831 | F106: 17.1 | G106: 311429 | H106: 1390 | J106: 32
B107: 2019 | C107: 14 | D107: 210 | E107: 3218 | F107: 15.3 | G107: 277982 | H107: 1324 | J107: 30
B108: 2020 | C108: 14 | D108: 168 | E108: 2445 | F108: 14.6 | G108: 155327 | H108: 925 | J108: 24
B109: 2021 | C109: 15 | D109: 199 | E109: 2892 | F109: 14.5 | G109: 201807 | H109: 1014 | J109: 28
B110: 2022 | C110: 13 | D110: 195 | E110: 2624 | F110: 13.5 | G110: 227070 | H110: 1164 | J110: 30
B111: 2023 | C111: 13 | D111: 182 | E111: 2604 | F111: 14.3 | G111: 251156 | H111: 1380 | J111: 28
B112: 2024 | C112: 13 | D112: 192 | E112: 2611 | F112: =PRODUCT(E112/D112) -> 13.6 | G112: 264047 | H112: =PRODUCT(G112/D112) -> 1375 | J112: 29-30
B113: 2025 | C113: 12 | D113: 198 | E113: 2305 | F113: =PRODUCT(E113/D113) -> 11.6 | G113: 276750 | H113: =PRODUCT(G113/D113) -> 1398 | J113: 33
B114: KAIKKI | C114: =SUM(C19:C113) -> 1189 | D114: =SUM(D19:D113) -> 12239 | E114: =SUM(E19:E113) -> 160658 | F114: =PRODUCT(E114/D114) -> 13.1 | G114: =SUM(G19:G113) -> 16897572
B117: FINAALIT, MESTARUUSUUSINNAT, MITALISARJA, PLAY OFF
B118: VUOSI | C118: JOUK | D118: OTT | E118: JUOKSUJA | F118: KA / OTT | G118: YLEISÖÄ | H118: KA / OTT
B119: 1932 | C119: 2 | D119: 2 | E119: 16 | F119: 8.0 | H119: =PRODUCT(G119/D119) -> 0
B120: 1933 | C120: 2 | D120: 3 | E120: 7 | F120: 2.3 | G120: 5000 | H120: 2500 | J120: YLEISÖ; 1 OTTELU PUUTTUU
B121: 1934 | C121: 2 | D121: 2 | E121: 1 | F121: 0.5 | H121: =PRODUCT(G121/D121) -> 0
B122: 1935 | C122: 2 | D122: 3 | E122: 7 | F122: 2.3 | H122: =PRODUCT(G122/D122) -> 0
B123: 1936 | C123: 2 | D123: 2 | E123: 11 | F123: 5.5 | G123: 1000 | H123: 1000 | J123: YLEISÖ; 1 OTTELU PUUTTUU
B124: 1937 | C124: 2 | D124: 2 | E124: 18 | F124: =PRODUCT(E124/D124) -> 9.0 | G124: 960 | H124: 960 | J124: YLEISÖ; 1 OTTELU PUUTTUU
B125: 1938 | C125: 2 | D125: 2 | E125: 19 | F125: =PRODUCT(E125/D125) -> 9.5 | H125: =PRODUCT(G125/D125) -> 0
B126: 1939 | C126: 2 | D126: 2 | E126: 43 | F126: =PRODUCT(E126/D126) -> 21.5 | G126: 1000 | H126: 1000 | J126: YLEISÖ; 1 OTTELU PUUTTUU
B127: 1945 | C127: 2 | D127: 1 | E127: 7 | F127: 7.0 | G127: 2000 | H127: =PRODUCT(G127/D127) -> 2000 | J127: UUSINTAOTTELU
B128: 1948 | C128: 2 | D128: 2 | E128: 22 | F128: =PRODUCT(E128/D128) -> 11.0 | G128: 3660 | H128: =PRODUCT(G128/D128) -> 1830 | J128: UUSINTAOTTELU
B129: 1950 | C129: 2 | D129: 1 | E129: 13 | F129: 13.0 | G129: 4100 | H129: =PRODUCT(G129/D129) -> 4100 | J129: UUSINTAOTTELU
B130: 1966 | C130: 2 | D130: 1 | E130: 18 | F130: 18.0 | G130: 5585 | H130: =PRODUCT(G130/D130) -> 5585 | J130: UUSINTAOTTELU
B131: 1973 | C131: 2 | D131: 1 | E131: 14 | F131: 14.0 | G131: 2526 | H131: =PRODUCT(G131/D131) -> 2526 | J131: UUSINTAOTTELU
B132: 1979 | C132: 4 | D132: 13 | E132: 163 | F132: =PRODUCT(E132/D132) -> 12.5 | G132: 42306 | H132: =PRODUCT(G132/D132) -> 3254 | J132: MITALISARJA 1-4, UUSINTAOTTELU
B133: 1980 | C133: 4 | D133: 12 | E133: 149 | F133: =PRODUCT(E133/D133) -> 12.4 | G133: 31522 | H133: =PRODUCT(G133/D133) -> 2627 | J133: MITALISARJA 1-4
B134: 1981 | C134: 4 | D134: 12 | E134: 132 | F134: =PRODUCT(E134/D134) -> 11.0 | G134: 32548 | H134: =PRODUCT(G134/D134) -> 2712 | J134: MITALISARJA 1-4
B135: 1982 | C135: 4 | D135: 12 | E135: 149 | F135: =PRODUCT(E135/D135) -> 12.4 | G135: 31412 | H135: =PRODUCT(G135/D135) -> 2618 | J135: MITALISARJA 1-4
B136: 1983 | C136: 4 | D136: 12 | E136: 157 | F136: =PRODUCT(E136/D136) -> 13.1 | G136: 25291 | H136: =PRODUCT(G136/D136) -> 2108 | J136: MITALISARJA 1-4
B137: 1984 | C137: 4 | D137: 12 | E137: 178 | F137: =PRODUCT(E137/D137) -> 14.8 | G137: 23143 | H137: =PRODUCT(G137/D137) -> 1929 | J137: MITALISARJA 1-4
B138: 1985 | C138: 4 | D138: 12 | E138: 171 | F138: =PRODUCT(E138/D138) -> 14.3 | G138: 32084 | H138: =PRODUCT(G138/D138) -> 2674 | J138: MITALISARJA 1-4
B139: 1986 | C139: 6 | D139: 17 | E139: 213 | F139: =PRODUCT(E139/D139) -> 12.5 | G139: 32445 | H139: =PRODUCT(G139/D139) -> 1909 | J139: YLEMPI LOPPUSARJA 1-6, FINAALIT
B140: 1987 | C140: 8 | D140: 15 | E140: 138 | F140: =PRODUCT(E140/D140) -> 9.2 | G140: 48815 | H140: =PRODUCT(G140/D140) -> 3254 | J140: PLAY OFF 1 - 8
B141: 1988 | C141: 8 | D141: 18 | E141: 191 | F141: =PRODUCT(E141/D141) -> 10.6 | G141: 54538 | H141: =PRODUCT(G141/D141) -> 3030 | J141: PLAY OFF 1 - 8
B142: 1989 | C142: 8 | D142: 17 | E142: 220 | F142: =PRODUCT(E142/D142) -> 12.9 | G142: 46753 | H142: =PRODUCT(G142/D142) -> 2750 | J142: PLAY OFF 1 - 8
B143: 1990 | C143: 8 | D143: 20 | E143: 268 | F143: =PRODUCT(E143/D143) -> 13.4 | G143: 63912 | H143: =PRODUCT(G143/D143) -> 3196 | J143: PLAY OFF 1 - 8
B144: 1991 | C144: 8 | D144: 18 | E144: 255 | F144: =PRODUCT(E144/D144) -> 14.2 | G144: 60352 | H144: =PRODUCT(G144/D144) -> 3353 | J144: PLAY OFF 1 - 8
B145: 1992 | C145: 8 | D145: 18 | E145: 208 | F145: =PRODUCT(E145/D145) -> 11.6 | G145: 53871 | H145: =PRODUCT(G145/D145) -> 2993 | J145: PLAY OFF 1 - 8
B146: 1993 | C146: 8 | D146: 24 | E146: 305 | F146: =PRODUCT(E146/D146) -> 12.7 | G146: 59796 | H146: =PRODUCT(G146/D146) -> 2492 | J146: PLAY OFF 1 - 8
B147: 1994 | C147: 4 | D147: 8 | E147: 116 | F147: =PRODUCT(E147/D147) -> 14.5 | G147: 26228 | H147: =PRODUCT(G147/D147) -> 3279 | J147: PLAY OFF 1 - 4
B148: 1995 | C148: 8 | D148: 27 | E148: 261 | F148: =PRODUCT(E148/D148) -> 9.7 | G148: 70858 | H148: =PRODUCT(G148/D148) -> 2624 | J148: PLAY OFF 1 - 8
B149: 1996 | C149: 8 | D149: 27 | E149: 337 | F149: =PRODUCT(E149/D149) -> 12.5 | G149: 64867 | H149: =PRODUCT(G149/D149) -> 2402 | J149: PLAY OFF 1 - 8
B150: 1997 | C150: 8 | D150: 29 | E150: 304 | F150: =PRODUCT(E150/D150) -> 10.5 | G150: 89819 | H150: =PRODUCT(G150/D150) -> 3097 | J150: PLAY OFF 1 - 8
B151: 1998 | C151: 8 | D151: 26 | E151: 294 | F151: =PRODUCT(E151/D151) -> 11.3 | G151: 72487 | H151: =PRODUCT(G151/D151) -> 2788 | J151: PLAY OFF 1 - 8
B152: 1999 | C152: 8 | D152: 28 | E152: 316 | F152: =PRODUCT(E152/D152) -> 11.3 | G152: 58458 | H152: =PRODUCT(G152/D152) -> 2088 | J152: PLAY OFF 1 - 8
B153: 2000 | C153: 8 | D153: 30 | E153: 361 | F153: =PRODUCT(E153/D153) -> 12.0 | G153: 74410 | H153: =PRODUCT(G153/D153) -> 2480 | J153: PLAY OFF 1 - 8
B154: 2001 | C154: 8 | D154: 26 | E154: 412 | F154: =PRODUCT(E154/D154) -> 15.8 | G154: 56892 | H154: =PRODUCT(G154/D154) -> 2188 | J154: PLAY OFF 1 - 8
B155: 2002 | C155: 8 | D155: 26 | E155: 354 | F155: =PRODUCT(E155/D155) -> 13.6 | G155: 50347 | H155: =PRODUCT(G155/D155) -> 1936 | J155: PLAY OFF 1 - 8
B156: 2003 | C156: 8 | D156: 36 | E156: 475 | F156: =PRODUCT(E156/D156) -> 13.2 | G156: 56920 | H156: =PRODUCT(G156/D156) -> 1581 | J156: PLAY OFF 1 - 8
B157: 2004 | C157: 8 | D157: 42 | E157: 527 | F157: =PRODUCT(E157/D157) -> 12.5 | G157: 59821 | H157: =PRODUCT(G157/D157) -> 1424 | J157: JATKOSARJA, PLAY OFF 1 - 4
B158: 2005 | C158: 8 | D158: 43 | E158: 477 | F158: =PRODUCT(E158/D158) -> 11.1 | G158: 74248 | H158: =PRODUCT(G158/D158) -> 1727 | J158: JATKOSARJA, PLAY OFF 1 - 4
B159: 2006 | C159: 8 | D159: 42 | E159: 520 | F159: =PRODUCT(E159/D159) -> 12.4 | G159: 68778 | H159: =PRODUCT(G159/D159) -> 1638 | J159: JATKOSARJA, PLAY OFF 1 - 4
B160: 2007 | C160: 10 | D160: 47 | E160: 595 | F160: =PRODUCT(E160/D160) -> 12.7 | G160: 86695 | H160: =PRODUCT(G160/D160) -> 1845 | J160: JATKOSARJAKARSINTA, JATKOSARJA, PLAY OFF 1 - 4
B161: 2008 | C161: 8 | D161: 43 | E161: 433 | F161: =PRODUCT(E161/D161) -> 10.1 | G161: 77503 | H161: =PRODUCT(G161/D161) -> 1802 | J161: JATKOSARJA, PLAY OFF 1 - 4
B162: 2009 | C162: 8 | D162: 34 | E162: 410 | F162: =PRODUCT(E162/D162) -> 12.1 | G162: 90979 | H162: =PRODUCT(G162/D162) -> 2676 | J162: PLAY OFF 1 - 8
B163: 2010 | C163: 8 | D163: 26 | E163: 272 | F163: =PRODUCT(E163/D163) -> 10.5 | G163: 80707 | H163: =PRODUCT(G163/D163) -> 3104 | J163: PLAY OFF 1 - 8
B164: 2011 | C164: 8 | D164: 34 | E164: 441 | F164: =PRODUCT(E164/D164) -> 13.0 | G164: 87067 | H164: =PRODUCT(G164/D164) -> 2561 | J164: PLAY OFF 1 - 8
B165: 2012 | C165: 8 | D165: 33 | E165: 395 | F165: 11.8 | G165: 61165 | H165: 1853 | J165: PLAY OFF 1 - 8
B166: 2013 | C166: 8 | D166: 27 | E166: 385 | F166: 14.3 | G166: 64807 | H166: 2400 | J166: PLAY OFF 1 - 8
B167: 2014 | C167: 8 | D167: 26 | E167: 314 | F167: 12.1 | G167: 51825 | H167: 1993 | J167: PLAY OFF 1 - 8
B168: 2015 | C168: 8 | D168: 26 | E168: 329 | F168: 12.7 | G168: 64916 | H168: 2497 | J168: PLAY OFF 1 - 8
B169: 2016 | C169: 8 | D169: 32 | E169: 445 | F169: 13.9 | G169: 53898 | H169: 1684 | J169: MINIPUDOTUSPELIT 7 - 10, PLAY OFF 1 - 8
B170: 2017 | C170: 8 | D170: 29 | E170: 392 | F170: 13.5 | G170: 58502 | H170: 2017 | J170: PLAY OFF 1 - 8
B171: 2018 | C171: 8 | D171: 26 | E171: 388 | F171: 14.9 | G171: 58750 | H171: 2260 | J171: PLAY OFF 1 - 8
B172: 2019 | C172: 8 | D172: 26 | E172: 370 | F172: 14.2 | G172: 60119 | H172: 2312 | J172: PLAY OFF 1 - 8
B173: 2020 | C173: 8 | D173: 20 | E173: 260 | F173: 13.0 | G173: 28461 | H173: 1423 | J173: PLAY OFF 1 - 8
B174: 2021 | C174: 8 | D174: 30 | E174: 392 | F174: 13.1 | G174: 53086 | H174: 1770 | J174: PLAY OFF 1 - 8
B175: 2022 | C175: 8 | D175: 27 | E175: 350 | F175: 13.0 | G175: 53799 | H175: 1993 | J175: PLAY OFF 1 - 8
B176: 2023 | C176: 10 | D176: 42 | E176: 520 | F176: =PRODUCT(E176/D176) -> 12.4 | G176: 80469 | H176: =PRODUCT(G176/D176) -> 1916 | J176: PUOLIVÄLIERÄKARSINTA 7 - 10, PLAY OFF 1 - 8
B177: 2024 | C177: 10 | D177: 31 | E177: 382 | F177: =PRODUCT(E177/D177) -> 12.3 | G177: 57932 | H177: =PRODUCT(G177/D177) -> 1869 | J177: PUOLIVÄLIERÄKARSINTA 7 - 10, PLAY OFF 1 - 8
B178: 2025 | C178: 8 | D178: 30 | E178: 302 | F178: =PRODUCT(E178/D178) -> 10.1 | G178: 57837 | H178: =PRODUCT(G178/D178) -> 1928 | J178: PLAY OFF 1 - 8
B179: KAIKKI | C179: =SUM(C119:C178) -> 374 | D179: =SUM(D119:D178) -> 1235 | E179: =SUM(E119:E178) -> 15222 | F179: =PRODUCT(E179/D179) -> 12.3 | G179: =SUM(G119:G178) -> 2717269 | H179: =PRODUCT(G179/D179-11) -> 2189
B182: UUSINNAT PUTOAMISESTA, PUTOAMISSARJA, PLAY OFF
B183: VUOSI | C183: JOUK | D183: OTT | E183: JUOKSUJA | F183: KA / OTT | G183: YLEISÖÄ | H183: KA / OTT
B184: 1962 | C184: 2 | D184: 1 | E184: 9 | F184: 9.0 | H184: =PRODUCT(G184/D184) -> 0 | J184: UUSINTA PUTOAMISESTA
B185: 1968 | C185: 2 | D185: 1 | E185: 25 | F185: 25.0 | G185: 600 | H185: =PRODUCT(G185/D185) -> 600 | J185: UUSINTA PUTOAMISESTA
B186: 1972 | C186: 2 | D186: 1 | E186: 7 | F186: 3.5 | H186: =PRODUCT(G186/D186) -> 0 | J186: UUSINTA PUTOAMISESTA
B187: 1979 | C187: 4 | D187: 12 | E187: 131 | F187: =PRODUCT(E187/D187) -> 10.9 | G187: 9931 | H187: =PRODUCT(G187/D187) -> 828 | J187: PUTOAMISSARJA 8-11
B188: 1980 | C188: 4 | D188: 12 | E188: 128 | F188: =PRODUCT(E188/D188) -> 10.7 | G188: 10409 | H188: =PRODUCT(G188/D188) -> 867 | J188: PUTOAMISSARJA 8-11
B189: 1981 | C189: 4 | D189: 12 | E189: 156 | F189: =PRODUCT(E189/D189) -> 13.0 | G189: 12844 | H189: =PRODUCT(G189/D189) -> 1070 | J189: PUTOAMISSARJA 8-11
B190: 1982 | C190: 4 | D190: 12 | E190: 130 | F190: =PRODUCT(E190/D190) -> 10.8 | G190: 7291 | H190: =PRODUCT(G190/D190) -> 608 | J190: PUTOAMISSARJA 8-11
B191: 1983 | C191: 4 | D191: 12 | E191: 149 | F191: =PRODUCT(E191/D191) -> 12.4 | G191: 6287 | H191: =PRODUCT(G191/D191) -> 524 | J191: PUTOAMISSARJA 8-11
B192: 1984 | C192: 4 | D192: 12 | E192: 162 | F192: =PRODUCT(E192/D192) -> 13.5 | G192: 11616 | H192: =PRODUCT(G192/D192) -> 968 | J192: PUTOAMISSARJA 8-11
B193: 1985 | C193: 4 | D193: 12 | E193: 162 | F193: =PRODUCT(E193/D193) -> 13.5 | G193: 10020 | H193: =PRODUCT(G193/D193) -> 835 | J193: PUTOAMISSARJA 8-11
B194: 1986 | C194: 6 | D194: 15 | E194: 160 | F194: =PRODUCT(E194/D194) -> 10.7 | G194: 9599 | H194: =PRODUCT(G194/D194) -> 640 | J194: ALEMPI LOPPUSARJA
B195: 1987 | C195: 4 | D195: 12 | E195: 173 | F195: =PRODUCT(E195/D195) -> 14.4 | G195: 8868 | H195: =PRODUCT(G195/D195) -> 739 | J195: ALEMPI LOPPUSARJA
B196: 1988 | C196: 4 | D196: 12 | E196: 146 | F196: =PRODUCT(E196/D196) -> 12.2 | G196: 8430 | H196: =PRODUCT(G196/D196) -> 703 | J196: ALEMPI LOPPUSARJA
B197: 1989 | C197: 4 | D197: 12 | E197: 101 | F197: =PRODUCT(E197/D197) -> 8.4 | G197: 12372 | H197: =PRODUCT(G197/D197) -> 1031 | J197: ALEMPI LOPPUSARJA
B198: 1990 | C198: 4 | D198: 5 | E198: 53 | F198: =PRODUCT(E198/D198) -> 10.6 | G198: 4789 | H198: =PRODUCT(G198/D198) -> 958 | J198: PLAY OFF PUTOAMISESTA
B199: 1991 | C199: 4 | D199: 5 | E199: 68 | F199: =PRODUCT(E199/D199) -> 13.6 | G199: 5181 | H199: =PRODUCT(G199/D199) -> 1036 | J199: PLAY OFF PUTOAMISESTA
B200: 1992 | C200: 4 | D200: 6 | E200: 54 | F200: =PRODUCT(E200/D200) -> 9.0 | G200: 6727 | H200: =PRODUCT(G200/D200) -> 1121 | J200: PLAY OFF PUTOAMISESTA
B201: 1993 | C201: 4 | D201: 6 | E201: 77 | F201: =PRODUCT(E201/D201) -> 12.8 | G201: 3249 | H201: =PRODUCT(G201/D201) -> 542 | J201: PLAY OFF PUTOAMISESTA
B202: 1995 | C202: 4 | D202: 7 | E202: 99 | F202: =PRODUCT(E202/D202) -> 14.1 | G202: 5807 | H202: =PRODUCT(G202/D202) -> 830 | J202: PUTOAMISKARSINTA
B203: 1996 | C203: 4 | D203: 9 | E203: 84 | F203: =PRODUCT(E203/D203) -> 9.3 | G203: 11962 | H203: =PRODUCT(G203/D203) -> 1329 | J203: PUTOAMISKARSINTA
B204: 1997 | C204: 4 | D204: 7 | E204: 72 | F204: =PRODUCT(E204/D204) -> 10.3 | G204: 4997 | H204: =PRODUCT(G204/D204) -> 714 | J204: PUTOAMISKARSINTA
... 169 more rows

Sheet 1922-1993
B1: MIEHET 1922 – 1993
B2: Vinolla merkityt putosivat suomensarjaan 1930 - 1980
B3: Vinolla merkityt putosivat ykkössarjaan 1981 - 1991
B4: Vinolla merkityt putosivat Ykköspesikseen 1992 – 2025
B6: VUOSILUKU = RUNKOSARJA
B7: L = LOPPUOTTELU, YLEMPI LOPPUSARJA | X7: 0 | Y7: = aloitti sisällä
B8: MESTARUUDEN UUSINTA
B9: P = PUTOAMISSARJA, UUSINTA PUTOAMISESTA
B10: K = KARSINTASARJA, KARSINTAOTTELU
B13: SUOMEN PESÄPALLOMESTARUUSKILPAILUT 1922 | O13: OTTELUT 1922 | V13: Pelipaikka
O14: ALKUERÄT
B15: SIJOITUKSET | K15: Su | L15: 6 | M15: 8 | N15: 1922 | O15: Hämeenlinnan Ilves | P15: - | Q15: Helsingin Pallonlyöjät | R15: 4 | S15: - | T15: 9 | V15: Lahti | X15: 0 | Y15: 0 | Z15: 1 | AA15: 0 | AB15: 0 | AC15: 1 | AD15: 2 | AP15: 1 | AQ15: 2 | AR15: 1 | AS15: 0 | AT15: 0 | AU15: 4 | AV15: 1
A16: 1 | B16: Helsingin Pallonlyöjät | K16: Su | L16: 6 | M16: 8 | N16: 1922 | O16: Kauhajoen Karhu | P16: - | Q16: Helsingin Radiourheilijat | R16: 9 | S16: - | T16: 7
A17: 2 | B17: Toijalan suojeluskunta | K17: Su | L17: 6 | M17: 8 | N17: 1922 | O17: Vaasan Vasama | P17: - | Q17: Toijalan suojeluskunta | R17: 3 | S17: - | T17: 10
A18: 3 | B18: Ikaalisten suojeluskunta
B19: Kauhajoen Karhu | O19: VÄLIERÄT
A20: 5 | B20: Helsingin Radiourheilijat | K20: Ma | L20: 28 | M20: 8 | N20: 1922 | O20: Helsingin Pallonlyöjät | P20: - | Q20: Ikaalisten suojeluskunta | R20: 9 | S20: - | T20: 5
B21: Hämeenlinnan Ilves | K21: Ma | L21: 28 | M21: 8 | N21: 1922 | O21: Toijalan suojeluskunta | P21: - | Q21: Kauhajoen Karhu | R21: 29 | S21: - | T21: 7 | V21: Tampere
B22: Vaasan Vasama
O23: LOPPUOTTELU
K24: Su | L24: 17 | M24: 9 | N24: 1922 | O24: Helsingin Pallonlyöjät | P24: - | Q24: Toijalan suojeluskunta | R24: 18 | S24: - | T24: 9 | X24: 7 | Y24: 2 | Z24: 7 | AA24: 0 | AB24: 2 | AC24: 0 | AD24: 0 | AP24: 0 | AQ24: 3 | AR24: 3 | AS24: 0 | AT24: 1 | AU24: 0 | AV24: 2
B27: SUOMEN PESÄPALLOMESTARUUSKILPAILUT 1923 | O27: OTTELUT 1923 | V27: Pelipaikka
O28: ALKUERÄT
B29: SIJOITUKSET | K29: Su | L29: 12 | M29: 8 | N29: 1923 | O29: Lahden suojeluskunta | P29: - | Q29: Loviisan Tor | R29: 4 | S29: - | T29: 0
A30: 1 | B30: Helsingin Pallonlyöjät | K30: Su | L30: 12 | M30: 8 | N30: 1923 | O30: Etelä-Pohjanmaan Palloveikot | P30: - | Q30: Toijalan Vauhti | R30: 27 | S30: - | T30: 10 | V30: Ilmajoki
A31: 2 | B31: Etelä-Pohjanmaan Palloveikot | K31: Su | L31: 12 | M31: 8 | N31: 1923 | O31: Hämeenlinnan Ilves | P31: - | Q31: Helsingin Pallonlyöjät | R31: luovutus
A32: 3 | B32: Lahden suojeluskunta | K32: Su | L32: 12 | M32: 8 | N32: 1923 | O32: Helsingin Toverit | P32: - | Q32: Helsingin Pallo-Toverit | R32: 11 | S32: - | T32: 1
B33: Helsingin Toverit
A34: 5 | B34: Loviisan Tor | O34: SEMIFINAALIT
B35: Helsingin Pallo-Toverit | K35: Su | L35: 19 | M35: 8 | N35: 1923 | O35: Helsingin Toverit | P35: - | Q35: Etelä-Pohjanmaan Palloveikot | R35: 4 | S35: - | T35: 8 | V35: Toijala
B36: Toijalan Vauhti | K36: Su | L36: 19 | M36: 8 | N36: 1923 | O36: Helsingin Pallonlyöjät | P36: - | Q36: Lahden suojeluskunta | R36: 11 | S36: - | T36: 3
B37: Hämeenlinnan Ilves
B38: ilmoittautui, mutta ei pelannut | O38: LOPPUOTTELU
K39: Su | L39: 2 | M39: 9 | N39: 1923 | O39: Helsingin Pallonlyöjät | P39: - | Q39: Etelä-Pohjanmaan Palloveikot | R39: 10 | S39: - | T39: 2 | V39: Kaisaniemi
B42: SUOMEN PESÄPALLOMESTARUUSKILPAILUT 1924 | O42: OTTELUT 1924 | V42: Pelipaikka
O43: ALKUERÄT
B44: SIJOITUKSET | K44: Su | L44: 21 | M44: 9 | N44: 1924 | O44: Helsingin Pallonlyöjät | P44: - | Q44: Helsingin Toverit | R44: 8 | S44: - | T44: 2 | V44: Kaisaniemi
A45: 1 | B45: Helsingin Pallonlyöjät | K45: Su | L45: 21 | M45: 9 | N45: 1924 | O45: Helsingin Pallo-Toverit | P45: - | Q45: Riihimäen Pallonlyöjät | R45: 6 | S45: - | T45: 4 | V45: Kaisaniemi
A46: 2 | B46: Pohjois-Hämeen sk-piiri | K46: Su | L46: 21 | M46: 9 | N46: 1924 | O46: Helsingin Pallonlyöjät | P46: - | Q46: Helsingin Pallo-Toverit | R46: 6 | S46: - | T46: 0 | V46: Kaisaniemi
A47: 3 | B47: Lahden suojeluskunta
A48: 4 | B48: Kuopion Urheilu-Veikot | K48: Ti | L48: 23 | M48: 9 | N48: 1924 | O48: Kuopion Urheilu-Veikot | P48: - | Q48: Savon Sisu | R48: 18 | S48: - | T48: 3
B49: Helsingin Pallo-Toverit | K49: Su | L49: 28 | M49: 9 | N49: 1924 | O49: Lahden suojeluskunta | P49: - | Q49: Jyväskylän sk:n Palloilijat | R49: 8 | S49: - | T49: 1
A50: 6 | B50: Riihimäen Pallonlyöjät | O50: Lahden suojeluskunta | P50: - | Q50: Kuopion Urheilu-Veikot | T50: luovutus
B51: Helsingin Toverit
B52: Jyväskylän sk:n Palloilijat | O52: SEMIFINAALI
B53: Savon Sisu | K53: Su | L53: 5 | M53: 10 | N53: 1924 | O53: Lahden suojeluskunta | P53: - | Q53: Helsingin Pallonlyöjät | R53: 8 | S53: - | T53: 10
O55: LOPPUOTTELU
K56: Su | L56: 12 | M56: 10 | N56: 1924 | O56: Helsingin Pallonlyöjät | P56: - | Q56: Pohjois-Hämeen sk-piiri | R56: 5 | S56: - | T56: 4 | V56: Kaisaniemi | X56: 1 | Y56: 0 | Z56: 2 | AA56: 1 | AB56: 0 | AC56: 1 | AD56: 0 | AP56: 1 | AQ56: 0 | AR56: 1 | AS56: 2 | AT56: 0 | AU56: 0 | AV56: 0
O57: Pohjois-Hämeen sk-piiri suoraan loppuotteluun sk-mestarina | R57: =SUM(R44:R56) -> 59 | S57: - | T57: =SUM(T44:T56) -> 24
B60: SUOMEN PESÄPALLOMESTARUUSKILPAILUT 1925 | O60: OTTELUT 1925 | V60: Pelipaikka
O61: ALKUERÄT
B62: SIJOITUKSET | K62: Ti | L62: 7 | M62: 7 | N62: 1925 | O62: Lahden suojeluskunta | P62: - | Q62: Loviisan Tor | R62: 7 | S62: - | T62: 6
A63: 1 | B63: Lahden suojeluskunta | K63: Su | L63: 12 | M63: 7 | N63: 1925 | O63: Helsingin Pallo-Toverit | P63: - | Q63: Salon Viesti | R63: 11 | S63: - | T63: 2
A64: 2 | B64: Tampereen Pyrintö | K64: Ma | L64: 13 | M64: 7 | N64: 1925 | O64: Helsingin Pallonlyöjät | P64: - | Q64: Helsingin Toverit | R64: 14 | S64: - | T64: 3
A65: 3 | B65: Toijalan Vauhti | K65: Su | L65: 19 | M65: 7 | N65: 1925 | O65: Tampereen Pyrintö | P65: - | Q65: Riihimäen Pallonlyöjät | R65: 8 | S65: - | T65: 1
B66: Helsingin Pallonlyöjät | K66: Su | L66: 19 | M66: 7 | N66: 1925 | O66: Toijalan Vauhti | P66: - | Q66: Kauhajoen Karhu | R66: 12 | S66: - | T66: 2
A67: 5 | B67: Helsingin Pallo-Toverit
A68: 6 | B68: Loviisan Tor | O68: VÄLIERÄT
B69: Riihimäen Pallonlyöjät | K69: Su | L69: 26 | M69: 7 | N69: 1925 | O69: Helsingin Pallo-Toverit | P69: - | Q69: Lahden suojeluskunta | R69: 0 | S69: - | T69: 4
B70: Salon Viesti | O70: HPL, TP ja Vauhti suoraan jatkoon
B71: Kauhajoen Karhu
B72: Helsingin Toverit | O72: SEMIFINAALIT
K73: La | L73: 1 | M73: 8 | N73: 1925 | O73: Tampereen Pyrintö | P73: - | Q73: Helsingin Pallonlyöjät | R73: 10 | S73: - | T73: 5 | V73: Tampere | X73: 0 | Y73: 0 | Z73: 0 | AA73: 2 | AB73: 1 | AC73: 2 | AD73: 5 | AP73: 0 | AQ73: 0 | AR73: 0 | AS73: 1 | AT73: 0 | AU73: 2 | AV73: 2
K74: La | L74: 1 | M74: 8 | N74: 1925 | O74: Lahden suojeluskunta | P74: - | Q74: Toijalan Vauhti | R74: 10 | S74: - | T74: 8 | V74: Tampere | X74: 0 | Y74: 3 | Z74: 1 | AA74: 3 | AB74: 2 | AC74: 0 | AD74: 1 | AP74: 0 | AQ74: 0 | AR74: 1 | AS74: 3 | AT74: 3 | AU74: 1 | AV74: 0
O76: LOPPUOTTELU
K77: Su | L77: 2 | M77: 8 | N77: 1925 | O77: Lahden suojeluskunta | P77: - | Q77: Tampereen Pyrintö | R77: 8 | S77: - | T77: 4 | V77: Tampere | X77: 0 | Y77: 0 | Z77: 0 | AA77: 1 | AB77: 0 | AC77: 4 | AD77: 3 | AP77: 2 | AQ77: 0 | AR77: 2 | AS77: 0 | AT77: 0 | AU77: 0 | AV77: 0
B80: SUOMEN PESÄPALLOMESTARUUSKILPAILUT 1926 | O80: OTTELUT 1926 | V80: Pelipaikka
O81: ALKUERÄT
B82: SIJOITUKSET | K82: Su | L82: 29 | M82: 8 | N82: 1926 | O82: Helsingin Pallo-Toverit | P82: - | Q82: Viipurin rykmentti | R82: 6 | S82: - | T82: 3 | X82: 0 | Y82: 0 | Z82: 3 | AA82: 0 | AB82: 3 | AC82: 0 | AD82: 0 | AP82: 3 | AQ82: 0 | AR82: 0 | AS82: 0 | AT82: 0 | AU82: 0 | AV82: 0
A83: 1 | B83: Helsingin Pallonlyöjät | K83: Su | L83: 29 | M83: 8 | N83: 1926 | O83: Loimaan Voima | P83: - | Q83: Toijalan Vauhti | R83: 4 | S83: - | T83: 21 | X83: 0 | Y83: 2 | Z83: 0 | AA83: 0 | AB83: 0 | AC83: 1 | AD83: 1 | AP83: 2 | AQ83: 5 | AR83: 6 | AS83: 0 | AT83: 8 | AU83: 0 | AV83: X
A84: 2 | B84: Helsingin Pallo-Toverit | K84: Su | L84: 29 | M84: 8 | N84: 1926 | O84: Haminan suojeluskunta | P84: - | Q84: Riihimäen Pallonlyöjät | R84: 1 | S84: - | T84: 4
A85: 3 | B85: Tampereen Pyrintö | K85: Su | L85: 29 | M85: 8 | N85: 1926 | O85: Loviisan Tor | P85: - | Q85: Lahden suojeluskunta | R85: 8 | S85: - | T85: 6 | X85: 0 | Y85: 2 | Z85: 4 | AA85: 0 | AB85: 1 | AC85: 0 | AD85: 1 | AP85: 1 | AQ85: 3 | AR85: 0 | AS85: 1 | AT85: 0 | AU85: 1 | AV85: 0
A86: 4 | B86: Loviisan Tor | K86: Su | L86: 29 | M86: 8 | N86: 1926 | O86: Viipurin Pallonlyöjät | P86: - | Q86: Helsingin Pallonlyöjät | R86: 4 | S86: - | T86: 6 | X86: 0 | Y86: 0 | Z86: 0 | AA86: 1 | AB86: 1 | AC86: 2 | AD86: 0 | AP86: 2 | AQ86: 1 | AR86: 2 | AS86: 0 | AT86: 0 | AU86: 0 | AV86: 1
B87: Riihimäen Pallonlyöjät | O87: Tampereen Pyrintö jatkoon
B88: Toijalan Vauhti
A89: 7 | B89: Lahden suojeluskunta | O89: VÄLIERÄT
B90: Viipurin Pallonlyöjät | K90: Su | L90: 5 | M90: 9 | N90: 1926 | O90: Helsingin Pallonlyöjät | P90: - | Q90: Toijalan Vauhti | R90: 25 | S90: - | T90: 13 | X90: 1 | Y90: 6 | Z90: 4 | AA90: 3 | AB90: 6 | AC90: 1 | AD90: 4 | AP90: 2 | AQ90: 3 | AR90: 4 | AS90: 2 | AT90: 2 | AU90: 0 | AV90: 0
B91: Viipurin rykmentti | K91: Su | L91: 5 | M91: 9 | N91: 1926 | O91: Tampereen Pyrintö | P91: - | Q91: Loviisan Tor | R91: 6 | S91: - | T91: 3 | X91: 4 | Y91: 0 | Z91: 2 | AA91: 0 | AB91: 0 | AC91: 0 | AD91: 0 | AP91: 0 | AQ91: 1 | AR91: 0 | AS91: 1 | AT91: 0 | AU91: 1 | AV91: 0
B92: Haminan suojeluskunta | K92: To | L92: 16 | M92: 9 | N92: 1926 | O92: Helsingin Pallo-Toverit | P92: - | Q92: Riihimäen Pallonlyöjät | R92: 4 | S92: - | T92: 3 | X92: 0 | Y92: 1 | Z92: 0 | AA92: 0 | AB92: 0 | AC92: 0 | AD92: 3 | AP92: 0 | AQ92: 1 | AR92: 2 | AS92: 0 | AT92: 0 | AU92: 0 | AV92: 0
B93: Loimaan Voima
O94: SEMIFINAALIT
K95: To | L95: 16 | M95: 9 | N95: 1926 | O95: Helsingin Pallo-Toverit | P95: - | Q95: Tampereen Pyrintö | R95: 7 | S95: - | T95: 5 | X95: 0 | Y95: 1 | Z95: 4 | AA95: 2 | AB95: 0 | AC95: 0 | AD95: 0 | AP95: 1 | AQ95: 2 | AR95: 1 | AS95: 0 | AT95: 0 | AU95: 1 | AV95: 0
O96: Helsingin Pallonlyöjät suoraan loppuotteluun
O98: LOPPUOTTELU
K99: Su | L99: 19 | M99: 9 | N99: 1926 | O99: Helsingin Pallonlyöjät | P99: - | Q99: Helsingin Pallo-Toverit | R99: 5 | S99: - | T99: 3 | V99: Pallokenttä | X99: 0 | Y99: 2 | Z99: 2 | AA99: 0 | AB99: 1 | AC99: 0 | AD99: 0 | AP99: 0 | AQ99: 0 | AR99: 1 | AS99: 0 | AT99: 2 | AU99: 0 | AV99: 0
B102: SUOMEN PESÄPALLOMESTARUUSKILPAILUT 1927 | O102: OTTELUT 1927 | V102: Pelipaikka
O103: ALKUERÄT
B104: SIJOITUKSET | K104: La | L104: 21 | M104: 8 | N104: 1927 | O104: Turun Pallonlyöjät | P104: - | Q104: Lahden suojeluskunta | R104: 8 | S104: - | T104: 21 | X104: 1 | Y104: 0 | Z104: 0 | AA104: 0 | AB104: 3 | AC104: 0 | AD104: 0 | AP104: 1 | AQ104: 1 | AR104: 1 | AS104: 3 | AT104: 0 | AU104: 0 | AV104: 0
A105: 1 | B105: Helsingin Pallonlyöjät | K105: Su | L105: 21 | M105: 8 | N105: 1927 | O105: Sortavalan Viritys | P105: - | Q105: Viipurin Pallonlyöjät | R105: 2 | S105: - | T105: 9 | X105: 1 | Y105: 0 | Z105: 0 | AA105: 1 | AB105: 5 | AC105: 1 | AD105: 0 | AP105: 5 | AQ105: 2 | AR105: 4 | AS105: 4 | AT105: 2 | AU105: 4 | AV105: 0
A106: 2 | B106: Lahden suojeluskunta | K106: Su | L106: 24 | M106: 8 | N106: 1927 | O106: Helsingin Pallonlyöjät | P106: - | Q106: Ilmavoimat | R106: 6 | S106: - | T106: 1
A107: 3 | B107: Toijalan Vauhti | K107: Ke | L107: 25 | M107: 8 | N107: 1927 | O107: Salon Viesti | P107: - | Q107: Toijalan Vauhti | R107: 4 | S107: - | T107: 6 | X107: 1 | Y107: 0 | Z107: 3 | AA107: 0 | AB107: 0 | AC107: 2 | AD107: 0 | AP107: 0 | AQ107: 0 | AR107: 1 | AS107: 0 | AT107: 0 | AU107: 0 | AV107: 0
B108: Haminan suojeluskunta | K108: To | L108: 25 | M108: 8 | N108: 1927 | O108: Loviisan Tor | P108: - | Q108: Haminan suojeluskunta | R108: 2 | S108: - | T108: 12
A109: 5 | B109: Tampereen Pyrintö | K109: Pe | L109: 26 | M109: 8 | N109: 1927 | O109: Loimaan Voima | P109: - | Q109: Tampereen Pyrintö | R109: 9 | S109: - | T109: 11 | X109: 2 | Y109: 0 | Z109: 4 | AA109: 3 | AB109: 0 | AC109: 0 | AD109: 0 | AP109: 1 | AQ109: 1 | AR109: 0 | AS109: 3 | AT109: 5 | AU109: 0 | AV109: 1
B110: Viipurin Pallonlyöjät | K110: Su | L110: 28 | M110: 8 | N110: 1927 | O110: Riihimäen Pallonlyöjät | P110: - | Q110: Helsingin Pallo-Toverit | R110: 3 | S110: - | T110: 5 | V110: Hyvinkää | X110: 0 | Y110: 1 | Z110: 0 | AA110: 1 | AB110: 1 | AC110: 0 | AD110: 0 | AP110: 0 | AQ110: 2 | AR110: 1 | AS110: 0 | AT110: 0 | AU110: 0 | AV110: 2
B111: Helsingin Pallo-Toverit
A112: 8 | B112: Salon Viesti | O112: VÄLIERÄT
B113: Riihimäen Pallonlyöjät | K113: Su | L113: 4 | M113: 9 | N113: 1927 | O113: Lahden suojeluskunta | P113: - | Q113: Helsingin Pallo-Toverit | R113: 15 | S113: - | T113: 12 | X113: 0 | Y113: 4 | Z113: 7 | AA113: 2 | AB113: 2 | AC113: 0 | AD113: 0 | AP113: 3 | AQ113: 0 | AR113: 2 | AS113: 0 | AT113: 4 | AU113: 0 | AV113: 3
B114: Loimaan Voima | K114: Su | L114: 4 | M114: 9 | N114: 1927 | O114: Haminan suojeluskunta | P114: - | Q114: Viipurin Pallonlyöjät | R114: 2 | S114: - | T114: 1
B115: Ilmavoimat | K115: To | L115: 8 | M115: 9 | N115: 1927 | O115: Toijalan Vauhti | P115: - | Q115: Tampereen Pyrintö | R115: 8 | S115: - | T115: 7 | X115: 2 | Y115: 1 | Z115: 2 | AA115: 0 | AB115: 3 | AC115: 0 | AP115: 0 | AQ115: 2 | AR115: 3 | AS115: 0 | AT115: 1 | AU115: 0 | AV115: 1
B116: Sortavalan Viritys | O116: Helsingin Pallonlyöjät suoraan semifinaaleihin
B117: Loviisan Tor
B118: Turun Pallonlyöjät | O118: SEMIFINAALIT
K119: Su | L119: 18 | M119: 9 | N119: 1927 | O119: Lahden suojeluskunta | P119: - | Q119: Haminan suojeluskunta | R119: 16 | S119: - | T119: 5 | V119: Helsinki | X119: 2 | Y119: 1 | Z119: 1 | AA119: 8 | AB119: 3 | AC119: 1 | AD119: 0 | AP119: 1 | AQ119: 3 | AR119: 0 | AS119: 0 | AT119: 1 | AU119: 0 | AV119: 0
K120: Su | L120: 18 | M120: 9 | N120: 1927 | O120: Helsingin Pallonlyöjät | P120: - | Q120: Toijalan Vauhti | R120: 8 | S120: - | T120: 2 | V120: Helsinki | X120: 3 | Y120: 0 | Z120: 1 | AA120: 2 | AB120: 0 | AC120: 2 | AD120: 0 | AP120: 0 | AQ120: 1 | AR120: 0 | AS120: 1 | AT120: 0 | AU120: 0 | AV120: 0
O122: LOPPUOTTELU
K123: Su | L123: 18 | M123: 9 | N123: 1927 | O123: Helsingin Pallonlyöjät | P123: - | Q123: Lahden suojeluskunta | R123: 15 | S123: - | T123: 9 | V123: Helsinki | X123: 0 | Y123: 4 | Z123: 8 | AA123: 1 | AB123: 1 | AC123: 0 | AD123: 1 | AP123: 3 | AQ123: 3 | AR123: 0 | AS123: 0 | AT123: 0 | AU123: 0 | AV123: 3
B126: SUOMEN PESÄPALLOMESTARUUSKILPAILUT 1928 | O126: OTTELUT 1928 | V126: Pelipaikka
O127: ALKUERÄT
B128: SIJOITUKSET | K128: Su | L128: 19 | M128: 8 | N128: 1928 | O128: Haminan Palloilijat | P128: - | Q128: Kymintehtaan Urheiluseura | R128: 11 | S128: - | T128: 3
A129: 1 | B129: Viipurin Pallonlyöjät | K129: Su | L129: 19 | M129: 8 | N129: 1928 | O129: Helsingin Pallonlyöjät | P129: - | Q129: Tampereen Pyrintö | R129: 4 | S129: - | T129: 3
A130: 2 | B130: Haminan Palloilijat | K130: Su | L130: 26 | M130: 8 | N130: 1928 | O130: Viipurin Pallonlyöjät | P130: - | Q130: Lahden suojeluskunta | R130: 12 | S130: - | T130: 11
A131: 3 | B131: Riihimäen Palloseura | K131: Su | L131: 26 | M131: 8 | N131: 1928 | O131: Toijalan Vauhti | P131: - | Q131: Riihimäen Palloseura | R131: 10 | S131: - | T131: 15
A132: 4 | B132: Helsingin Pallo-Toverit | K132: Su | L132: 26 | M132: 8 | N132: 1928 | O132: Helsingin Pallo-Toverit | P132: - | Q132: Tampereen Mailapojat | R132: 9 | S132: - | T132: 4
B133: Helsingin Pallonlyöjät
B134: Joensuun Kalevaiset | O134: I VÄLIERÄT
A135: 7 | B135: Kymintehtaan Urheiluseura | K135: Su | L135: 2 | M135: 9 | N135: 1928 | O135: Viipurin Pallonlyöjät | P135: - | Q135: Joensuun Kalevaiset | R135: 8 | S135: - | T135: 0
B136: Lahden suojeluskunta | K136: Su | L136: 2 | M136: 9 | N136: 1928 | O136: Haminan Palloilijat | P136: - | Q136: Helsingin Pallonlyöjät | R136: 14 | S136: - | T136: 7 | V136: Lahti
B137: Tampereen Mailapojat | K137: Ti | L137: 4 | M137: 9 | N137: 1928 | O137: Helsingin Pallo-Toverit | P137: - | Q137: Riihimäen Palloseura | R137: 5 | S137: - | T137: 8
B138: Tampereen Pyrintö
B139: Toijalan Vauhti | O139: II VÄLIERÄT
K140: Su | L140: 16 | M140: 9 | N140: 1928 | O140: Haminan Palloilijat | P140: - | Q140: Riihimäen Palloseura | R140: 14 | S140: - | T140: 4 | V140: Lahti | X140: 2 | Y140: 2 | Z140: 3 | AA140: 1 | AB140: 3 | AC140: 2 | AD140: 1 | AP140: 0 | AQ140: 0 | AR140: 0 | AS140: 3 | AT140: 0 | AU140: 0 | AV140: 1
O142: LOPPUOTTELU
K143: Su | L143: 16 | M143: 9 | N143: 1928 | O143: Viipurin Pallonlyöjät | P143: - | Q143: Haminan Palloilijat | R143: 11 | S143: - | T143: 7 | V143: Lahti | X143: 0 | Y143: 1 | Z143: 2 | AA143: 2 | AB143: 3 | AC143: 0 | AD143: 3 | AP143: 0 | AQ143: 1 | AR143: 1 | AS143: 0 | AT143: 1 | AU143: 3 | AV143: 1
B146: SUOMEN PESÄPALLOMESTARUUSKILPAILUT 1929 | O146: OTTELUT 1929 | V146: Pelipaikka
O147: ALKUERÄT
B148: SIJOITUKSET | K148: Ke | L148: 14 | M148: 8 | N148: 1929 | O148: Viipurin Pallonlyöjät | P148: - | Q148: Kymintehtaan Urheiluseura | R148: 8 | S148: - | T148: 7
A149: 1 | B149: Lahden Mailaveikot | K149: To | L149: 15 | M149: 8 | N149: 1929 | O149: Riihimäen Palloseura | P149: - | Q149: Kronohagens Idrottsföreningen | R149: 20 | S149: - | T149: 0
A150: 2 | B150: Haminan Palloilijat | K150: Pe | L150: 16 | M150: 8 | N150: 1929 | O150: Joensuun Palloseura | P150: - | Q150: Sortavalan Viritys | R150: 7 | S150: - | T150: 6
A151: 3 | B151: Helsingin Pallonlyöjät | K151: To | L151: 22 | M151: 8 | N151: 1929 | O151: Lahden Mailaveikot | P151: - | Q151: Helsingin Pallo-Toverit | R151: 10 | S151: - | T151: 7
B152: Viipurin Pallonlyöjät | K152: To | L152: 22 | M152: 8 | N152: 1929 | O152: Helsingin Pallonlyöjät | P152: - | Q152: Tampereen Mailapojat | R152: 15 | S152: - | T152: 4
A153: 5 | B153: Joensuun Palloseura | K153: Su | L153: 25 | M153: 8 | N153: 1929 | O153: Varkauden Urheilijat | P153: - | Q153: Haminan Palloilijat | R153: 5 | S153: - | T153: 10
B154: Riihimäen Palloseura
A155: 7 | B155: Kymintehtaan Urheiluseura
B156: Sortavalan Viritys | O156: VÄLIERÄT
B157: Varkauden Urheilijat | K157: Su | L157: 1 | M157: 9 | N157: 1929 | O157: Helsingin Pallonlyöjät | P157: - | Q157: Riihimäen Palloseura | R157: 6 | S157: - | T157: 3
B158: Kronohagens Idrottsföreningen | K158: Su | L158: 8 | M158: 9 | N158: 1929 | O158: Joensuun Palloseura | P158: - | Q158: Viipurin Pallonlyöjät | R158: 3 | S158: - | T158: 11 | V158: Sortavala
B159: Helsingin Pallo-Toverit | O159: Haminan Palloilijat ja Lahden Mailaveikot suoraan semifinaaleihin.
B160: Tampereen Mailapojat
O161: SEMIFINAALIT
K162: Su | L162: 15 | M162: 9 | N162: 1929 | O162: Haminan Palloilijat | P162: - | Q162: Helsingin Pallonlyöjät | R162: 12 | S162: - | T162: 1 | V162: Kouvola | X162: 4 | Y162: 0 | Z162: 1 | AA162: 2 | AB162: 2 | AC162: 1 | AD162: 2 | AP162: 0 | AQ162: 0 | AR162: 0 | AS162: 0 | AT162: 0 | AU162: 1 | AV162: 0
K163: Su | L163: 15 | M163: 9 | N163: 1929 | O163: Lahden Mailaveikot | P163: - | Q163: Viipurin Pallonlyöjät | R163: 10 | S163: - | T163: 2 | V163: Kouvola | X163: 1 | Y163: 0 | Z163: 2 | AA163: 0 | AB163: 2 | AC163: 4 | AD163: 1 | AP163: 0 | AQ163: 0 | AR163: 0 | AS163: 0 | AT163: 0 | AU163: 0 | AV163: 2
O165: LOPPUOTTELU
K166: Su | L166: 15 | M166: 9 | N166: 1929 | O166: Lahden Mailaveikot | P166: - | Q166: Haminan Palloilijat | R166: 6 | S166: - | T166: 3 | V166: Kouvola | X166: 0 | Y166: 0 | Z166: 0 | AA166: 0 | AB166: 1 | AC166: 2 | AD166: 3 | AP166: 0 | AQ166: 0 | AR166: 0 | AS166: 1 | AT166: 2 | AU166: 0 | AV166: 0
B169: PESÄPALLON SUOMISARJA 1930 | O169: OTTELUT 1930 | V169: Pelipaikka
B170: LOUNAIS-SUOMEN ALUE | C170: O | D170: V | E170: T | F170: H | G170: TJ | I170: AJ | J170: PIST | O170: LOUNAIS-SUOMEN ALUE
A171: 1 | B171: Lahden Mailaveikot | C171: 10 | D171: 10 | E171: 0 | F171: 0 | G171: 155 | H171: - | I171: 54 | J171: 20 | K171: La | L171: 21 | M171: 6 | N171: 1930 | O171: Helsingin Pallo-Toverit | P171: - | Q171: Lahden Mailaveikot | R171: 6 | S171: - | T171: 12 | V171: Riihimäki | X171: 0 | Y171: 2 | Z171: 0 | AA171: 1 | AB171: 1 | AC171: 2 | AD171: 0 | AP171: 3 | AQ171: 0 | AR171: 0 | AS171: 0 | AT171: 4 | AU171: 2 | AV171: 3
A172: 2 | B172: Helsingin Pallonlyöjät | C172: 10 | D172: 8 | E172: 0 | F172: 2 | G172: 118 | H172: - | I172: 67 | J172: 16 | K172: La | L172: 21 | M172: 6 | N172: 1930 | O172: Loimaan suojeluskunta | P172: - | Q172: Kronohagens Idrottsföreningen | R172: 12 | S172: - | T172: 5 | V172: Riihimäki | X172: 1 | Y172: 0 | Z172: 0 | AA172: 4 | AB172: 1 | AC172: 3 | AD172: 3 | AP172: 1 | AQ172: 0 | AR172: 1 | AS172: 0 | AT172: 0 | AU172: 1 | AV172: 2
A173: 3 | B173: Helsingin Pallo-Toverit | C173: 10 | D173: 8 | E173: 0 | F173: 2 | G173: 121 | H173: - | I173: 76 | J173: 16 | K173: Su | L173: 22 | M173: 6 | N173: 1930 | O173: Loimaan suojeluskunta | P173: - | Q173: Lahden Mailaveikot | R173: 4 | S173: - | T173: 17 | V173: Riihimäki | X173: 0 | Y173: 1 | Z173: 1 | AA173: 2 | AB173: 0 | AC173: 0 | AD173: 0 | AP173: 0 | AQ173: 2 | AR173: 7 | AS173: 1 | AT173: 3 | AU173: 4
A174: 4 | B174: Toijalan Pallo-Veikot | C174: 9 | D174: 6 | E174: 0 | F174: 3 | G174: 150 | H174: - | I174: 76 | J174: 12 | K174: Su | L174: 22 | M174: 6 | N174: 1930 | O174: Loimaan suojeluskunta | P174: - | Q174: Helsingin Pallo-Toverit | R174: 5 | S174: - | T174: 16 | V174: Riihimäki | X174: 2 | Y174: 0 | Z174: 1 | AA174: 1 | AB174: 0 | AC174: 1 | AD174: 0 | AP174: 3 | AQ174: 1 | AR174: 8 | AS174: 2 | AT174: 0 | AU174: 2 | AV174: 0
A175: 5 | B175: Tampereen Pyrintö | C175: 11 | D175: 5 | E175: 0 | F175: 6 | G175: 104 | H175: - | I175: 115 | J175: 10 | K175: Su | L175: 22 | M175: 6 | N175: 1930 | O175: Riihimäen Palloseura | P175: - | Q175: Helsingin Pallo-Toverit | R175: 16 | S175: - | T175: 5 | V175: Riihimäki | X175: 4 | Y175: 2 | Z175: 1 | AA175: 3 | AB175: 1 | AC175: 2 | AD175: 3 | AP175: 1 | AQ175: 1 | AR175: 3 | AS175: 0 | AT175: 0 | AU175: 0 | AV175: 0
A176: 6 | B176: Tampereen Mailapojat | C176: 9 | D176: 5 | E176: 0 | F176: 4 | G176: 90 | H176: - | I176: 104 | J176: 10 | K176: Su | L176: 22 | M176: 6 | N176: 1930 | O176: Keravan KooPee | P176: - | Q176: Salon Viesti | R176: 4 | S176: - | T176: 12 | V176: Kerava | X176: 2 | Y176: 1 | Z176: 0 | AA176: 0 | AB176: 1 | AC176: 0 | AD176: 0 | AP176: 0 | AQ176: 6 | AR176: 1 | AS176: 1 | AT176: 2 | AU176: 2
A177: 7 | B177: Katajanokan Haukat | C177: 10 | D177: 4 | E177: 0 | F177: 6 | G177: 72 | H177: - | I177: 104 | J177: 8 | K177: Su | L177: 22 | M177: 6 | N177: 1930 | O177: Keravan KooPee | P177: - | Q177: Kronohagens Idrottsföreningen | R177: 22 | S177: - | T177: 2 | V177: Kerava | X177: 4 | Y177: 5 | Z177: 0 | AA177: 3 | AB177: 6 | AC177: 0 | AD177: 4 | AP177: 0 | AQ177: 0 | AR177: 0 | AS177: 2 | AT177: 0 | AU177: 0 | AV177: 0
A178: 8 | B178: Riihimäen Palloseura | C178: 8 | D178: 3 | E178: 0 | F178: 5 | G178: 105 | H178: - | I178: 91 | J178: 6 | K178: Su | L178: 22 | M178: 6 | N178: 1930 | O178: Salon Viesti | P178: - | Q178: Kronohagens Idrottsföreningen | R178: 26 | S178: - | T178: 9 | V178: Kerava | X178: 8 | Y178: 1 | Z178: 5 | AA178: 2 | AB178: 3 | AC178: 2 | AD178: 5 | AP178: 0 | AQ178: 5 | AR178: 0 | AS178: 2 | AT178: 1 | AU178: 1 | AV178: 0
A179: 9 | B179: Salon Viesti | C179: 8 | D179: 3 | E179: 0 | F179: 5 | G179: 82 | H179: - | I179: 73 | J179: 6 | K179: La | L179: 28 | M179: 6 | N179: 1930 | O179: Tampereen Pyrintö | P179: - | Q179: Lahden Mailaveikot | R179: 9 | S179: - | T179: 15 | V179: Toijala | X179: 3 | Y179: 0 | Z179: 2 | AA179: 0 | AB179: 3 | AC179: 0 | AD179: 1 | AP179: 0 | AQ179: 1 | AR179: 0 | AS179: 5 | AT179: 2 | AU179: 5 | AV179: 2
A180: 10 | B180: Loimaan suojeluskunta | C180: 8 | D180: 2 | E180: 0 | F180: 6 | G180: 53 | H180: - | I180: 87 | J180: 4 | K180: La | L180: 28 | M180: 6 | N180: 1930 | O180: Toijalan Pallo-Veikot | P180: - | Q180: Keravan KooPee | R180: 11 | S180: - | T180: 2 | V180: Toijala | X180: 0 | Y180: 0 | Z180: 2 | AA180: 0 | AB180: 1 | AC180: 4 | AD180: 4 | AP180: 0 | AQ180: 0 | AR180: 0 | AS180: 1 | AT180: 0 | AU180: 1 | AV180: 0
A181: 11 | B181: Keravan KooPee | C181: 8 | D181: 1 | E181: 0 | F181: 7 | G181: 51 | H181: - | I181: 122 | J181: 2 | K181: Su | L181: 29 | M181: 6 | N181: 1930 | O181: Keravan KooPee | P181: - | Q181: Tampereen Mailapojat | R181: 4 | S181: - | T181: 17 | V181: Toijala | X181: 1 | Y181: 3 | Z181: 0 | AA181: 0 | AB181: 0 | AC181: 0 | AD181: 0 | AP181: 3 | AQ181: 3 | AR181: 3 | AS181: 3 | AT181: 1 | AU181: 4 | AV181: 0
A182: 12 | B182: Kronohagens Idrottsföreningen | C182: 9 | D182: 0 | E182: 0 | F182: 9 | G182: 35 | H182: - | I182: 167 | J182: 0 | K182: Su | L182: 29 | M182: 6 | N182: 1930 | O182: Lahden Mailaveikot | P182: - | Q182: Tampereen Mailapojat | R182: 17 | S182: - | T182: 3 | V182: Toijala | X182: 3 | Y182: 4 | Z182: 4 | AA182: 2 | AB182: 4 | AC182: 0 | AP182: 0 | AQ182: 0 | AR182: 0 | AS182: 1 | AT182: 1 | AU182: 0 | AV182: 1
K183: Su | L183: 29 | M183: 6 | N183: 1930 | O183: Loimaan suojeluskunta | P183: - | Q183: Tampereen Pyrintö | R183: 7 | S183: - | T183: 9 | V183: Toijala | X183: 1 | Y183: 0 | Z183: 1 | AA183: 1 | AB183: 0 | AC183: 0 | AD183: 4 | AP183: 1 | AQ183: 2 | AR183: 0 | AS183: 0 | AT183: 1 | AU183: 5 | AV183: 0
B184: Lahden Mailaveikot lopputurnaukseen | K184: Su | L184: 29 | M184: 6 | N184: 1930 | O184: Loimaan suojeluskunta | P184: - | Q184: Keravan KooPee | R184: 15 | S184: - | T184: 5 | V184: Toijala | X184: 1 | Y184: 3 | Z184: 7 | AA184: 3 | AB184: 0 | AC184: 1 | AP184: 0 | AQ184: 2 | AR184: 0 | AS184: 0 | AT184: 3 | AU184: 0
B185: Helsingin Pallonlyöjät lopputurnaukseen | K185: Su | L185: 29 | M185: 6 | N185: 1930 | O185: Toijalan Pallo-Veikot | P185: - | Q185: Tampereen Pyrintö | R185: 31 | S185: - | T185: 4 | V185: Toijala | X185: 2 | Y185: 5 | Z185: 5 | AA185: 7 | AB185: 5 | AC185: 7 | AD185: 0 | AP185: 0 | AQ185: 0 | AR185: 1 | AS185: 0 | AT185: 0 | AU185: 2 | AV185: 1
K186: Su | L186: 29 | M186: 6 | N186: 1930 | O186: Toijalan Pallo-Veikot | P186: - | Q186: Lahden Mailaveikot | R186: 7 | S186: - | T186: 13 | V186: Toijala | X186: 0 | Y186: 0 | Z186: 0 | AA186: 0 | AB186: 3 | AC186: 4 | AD186: 0 | AP186: 2 | AQ186: 3 | AR186: 2 | AS186: 2 | AT186: 3 | AU186: 1
K187: La | L187: 5 | M187: 7 | N187: 1930 | O187: Helsingin Pallonlyöjät | P187: - | Q187: Kronohagens Idrottsföreningen | R187: 15 | S187: - | T187: 1 | V187: Helsinki | X187: 6 | Y187: 1 | Z187: 1 | AA187: 1 | AB187: 4 | AC187: 1 | AD187: 1 | AP187: 0 | AQ187: 0 | AR187: 0 | AS187: 0 | AT187: 0 | AU187: 1 | AV187: 0
K188: La | L188: 5 | M188: 7 | N188: 1930 | O188: Helsingin Pallo-Toverit | P188: - | Q188: Salon Viesti | R188: 7 | S188: - | T188: 5 | V188: Helsinki | X188: 2 | Y188: 0 | Z188: 0 | AA188: 2 | AB188: 2 | AC188: 0 | AD188: 1 | AP188: 1 | AQ188: 0 | AR188: 2 | AS188: 1 | AT188: 0 | AU188: 1 | AV188: 0
K189: La | L189: 5 | M189: 7 | N189: 1930 | O189: Katajanokan Haukat | P189: - | Q189: Lahden Mailaveikot | R189: 3 | S189: - | T189: 8 | V189: Helsinki | X189: 0 | Y189: 0 | Z189: 0 | AA189: 1 | AB189: 0 | AC189: 1 | AD189: 1 | AE189: 0 | AF189: 0 | AP189: 0 | AQ189: 0 | AR189: 0 | AS189: 0 | AT189: 2 | AU189: 0 | AV189: 1 | AW189: 0 | AX189: 5
K190: La | L190: 5 | M190: 7 | N190: 1930 | O190: Tampereen Pyrintö | P190: - | Q190: Keravan KooPee | R190: 8 | S190: - | T190: 0 | V190: Helsinki | X190: 3 | Y190: 3 | Z190: 0 | AA190: 1 | AB190: 1 | AC190: 0 | AD190: 0 | AP190: 0 | AQ190: 0 | AR190: 0 | AS190: 0 | AT190: 0 | AU190: 0 | AV190: 0
K191: Su | L191: 6 | M191: 7 | N191: 1930 | O191: Helsingin Pallonlyöjät | P191: - | Q191: Lahden Mailaveikot | R191: 2 | S191: - | T191: 11 | V191: Helsinki | X191: 0 | Y191: 2 | Z191: 0 | AA191: 0 | AB191: 0 | AC191: 0 | AD191: 0 | AP191: 0 | AQ191: 6 | AR191: 0 | AS191: 0 | AT191: 3 | AU191: 2
K192: Su | L192: 6 | M192: 7 | N192: 1930 | O192: Kronohagens Idrottsföreningen | P192: - | Q192: Tampereen Pyrintö | R192: 2 | S192: - | T192: 23 | V192: Helsinki | X192: 0 | Y192: 1 | Z192: 0 | AA192: 0 | AB192: 0 | AC192: 1 | AD192: 0 | AP192: 5 | AQ192: 2 | AR192: 1 | AS192: 0 | AT192: 3 | AU192: 5 | AV192: 7
K193: Su | L193: 6 | M193: 7 | N193: 1930 | O193: Kronohagens Idrottsföreningen | P193: - | Q193: Katajanokan Haukat | R193: 0 | S193: - | T193: 22 | V193: Helsinki | X193: 0 | Y193: 0 | Z193: 0 | AA193: 0 | AB193: 0 | AP193: 3 | AQ193: 3 | AR193: 8 | AS193: 8 | AT193: 0
K194: Su | L194: 6 | M194: 7 | N194: 1930 | O194: Salon Viesti | P194: - | Q194: Tampereen Pyrintö | R194: 7 | S194: - | T194: 14 | V194: Helsinki | X194: 1 | Y194: 2 | Z194: 0 | AA194: 4 | AB194: 0 | AC194: 0 | AD194: 0 | AP194: 5 | AQ194: 1 | AR194: 0 | AS194: 5 | AT194: 1 | AU194: 1 | AV194: 1
K195: Su | L195: 6 | M195: 7 | N195: 1930 | O195: Salon Viesti | P195: - | Q195: Lahden Mailaveikot | R195: 0 | S195: - | T195: 11 | V195: Helsinki | X195: 0 | Y195: 0 | Z195: 0 | AA195: 0 | AB195: 0 | AC195: 0 | AD195: 0 | AP195: 1 | AQ195: 2 | AR195: 1 | AS195: 1 | AT195: 2 | AU195: 3 | AV195: 1
K196: La | L196: 12 | M196: 7 | N196: 1930 | O196: Tampereen Mailapojat | P196: - | Q196: Riihimäen Palloseura | R196: 13 | S196: - | T196: 8 | V196: Tampereella | X196: 1 | Y196: 0 | Z196: 1 | AA196: 2 | AB196: 3 | AC196: 4 | AD196: 2 | AP196: 3 | AQ196: 2 | AR196: 1 | AS196: 2 | AT196: 0 | AU196: 0 | AV196: 0
K197: La | L197: 12 | M197: 7 | N197: 1930 | O197: Tampereen Pyrintö | P197: - | Q197: Helsingin Pallo-Toverit | R197: 13 | S197: - | T197: 14 | V197: Tampereella | X197: 2 | Y197: 3 | Z197: 2 | AA197: 4 | AB197: 1 | AC197: 0 | AD197: 1 | AP197: 4 | AQ197: 1 | AR197: 5 | AS197: 0 | AT197: 0 | AU197: 3 | AV197: 1
K198: Su | L198: 13 | M198: 7 | N198: 1930 | O198: Helsingin Pallo-Toverit | P198: - | Q198: Toijalan Pallo-Veikot | R198: 13 | S198: - | T198: 12 | V198: Tampereella | X198: 3 | Y198: 0 | Z198: 3 | AA198: 3 | AB198: 1 | AC198: 3 | AD198: 0 | AP198: 6 | AQ198: 1 | AR198: 1 | AS198: 4 | AT198: 0 | AU198: 0 | AV198: 0
K199: Su | L199: 13 | M199: 7 | N199: 1930 | O199: Riihimäen Palloseura | P199: - | Q199: Toijalan Pallo-Veikot | R199: 3 | S199: - | T199: 17 | V199: Tampereella | X199: 2 | Y199: 0 | Z199: 0 | AA199: 1 | AB199: 0 | AC199: 0 | AD199: 0 | AP199: 1 | AQ199: 0 | AR199: 2 | AS199: 2 | AT199: 3 | AU199: 1 | AV199: 8
K200: Su | L200: 13 | M200: 7 | N200: 1930 | O200: Tampereen Mailapojat | P200: - | Q200: Helsingin Pallo-Toverit | R200: 4 | S200: - | T200: 23 | V200: Tampereella | X200: 0 | Y200: 0 | Z200: 3 | AA200: 0 | AB200: 0 | AC200: 1 | AD200: 0 | AP200: 0 | AQ200: 0 | AR200: 0 | AS200: 9 | AT200: 5 | AU200: 2 | AV200: 7
K201: Su | L201: 13 | M201: 7 | N201: 1930 | O201: Tampereen Pyrintö | P201: - | Q201: Riihimäen Palloseura | R201: 8 | S201: - | T201: 4 | V201: Tampereella | X201: 0 | Y201: 0 | Z201: 0 | AA201: 0 | AB201: 2 | AC201: 1 | AD201: 5 | AP201: 1 | AQ201: 0 | AR201: 0 | AS201: 2 | AT201: 0 | AU201: 0 | AV201: 1
K202: La | L202: 12 | M202: 7 | N202: 1930 | O202: Salon Viesti | P202: - | Q202: Loimaan suojeluskunta | R202: 12 | S202: - | T202: 1 | V202: Salossa | X202: 0 | Y202: 1 | Z202: 0 | AA202: 5 | AB202: 1 | AC202: 5 | AD202: 0 | AP202: 0 | AQ202: 0 | AR202: 0 | AS202: 1 | AT202: 0 | AU202: 0 | AV202: 0
K203: Su | L203: 13 | M203: 7 | N203: 1930 | O203: Loimaan suojeluskunta | P203: - | Q203: Katajanokan Haukat | R203: 4 | S203: - | T203: 7 | V203: Salossa | X203: 3 | Y203: 0 | Z203: 0 | AA203: 0 | AB203: 0 | AC203: 1 | AD203: 0 | AP203: 4 | AQ203: 2 | AR203: 0 | AS203: 0 | AT203: 0 | AU203: 1 | AV203: 0
K204: Su | L204: 13 | M204: 7 | N204: 1930 | O204: Loimaan suojeluskunta | P204: - | Q204: Helsingin Pallonlyöjät | R204: 5 | S204: - | T204: 16 | V204: Salossa | X204: 0 | Y204: 0 | Z204: 4 | AA204: 0 | AB204: 0 | AC204: 1 | AD204: 0 | AP204: 2 | AQ204: 5 | AR204: 0 | AS204: 0 | AT204: 1 | AU204: 5 | AV204: 3
K205: Su | L205: 13 | M205: 7 | N205: 1930 | O205: Salon Viesti | P205: - | Q205: Katajanokan Haukat | R205: 11 | S205: - | T205: 12 | V205: Salossa | X205: 1 | Y205: 0 | Z205: 0 | AA205: 2 | AB205: 0 | AC205: 8 | AD205: 0 | AP205: 1 | AQ205: 8 | AR205: 0 | AS205: 0 | AT205: 3 | AU205: 0 | AV205: 0
K206: Su | L206: 13 | M206: 7 | N206: 1930 | O206: Salon Viesti | P206: - | Q206: Helsingin Pallonlyöjät | R206: 9 | S206: - | T206: 15 | V206: Salossa | X206: 0 | Y206: 0 | Z206: 1 | AA206: 3 | AB206: 0 | AC206: 3 | AD206: 2 | AP206: 4 | AQ206: 2 | AR206: 3 | AS206: 3 | AT206: 0 | AU206: 0 | AV206: 3
K207: La | L207: 19 | M207: 7 | N207: 1930 | O207: Lahden Mailaveikot | P207: - | Q207: Riihimäen Palloseura | R207: 23 | S207: - | T207: 18 | V207: Lahti | X207: 9 | Y207: 2 | Z207: 1 | AA207: 5 | AB207: 0 | AC207: 5 | AD207: 1 | AP207: 2 | AQ207: 3 | AR207: 3 | AS207: 0 | AT207: 7 | AU207: 3 | AV207: 0
K208: Su | L208: 20 | M208: 7 | N208: 1930 | O208: Lahden Mailaveikot | P208: - | Q208: Keravan KooPee | R208: 28 | S208: - | T208: 2 | V208: Lahti | X208: 4 | Y208: 4 | Z208: 3 | AA208: 17 | AP208: 1 | AQ208: 0 | AR208: 0 | AS208: 1
K209: Su | L209: 20 | M209: 7 | N209: 1930 | O209: Keravan KooPee | P209: - | Q209: Riihimäen Palloseura | R209: 12 | S209: - | T209: 29 | V209: Lahti | X209: 0 | Y209: 6 | Z209: 2 | AA209: 0 | AB209: 2 | AC209: 1 | AD209: 1 | AP209: 13 | AQ209: 4 | AR209: 2 | AS209: 0 | AT209: 4 | AU209: 0 | AV209: 6
K210: Su | L210: 20 | M210: 7 | N210: 1930 | O210: Lahden Mailaveikot | P210: - | Q210: Kronohagens Idrottsföreningen | T210: luov. | V210: Lahti
K211: Su | L211: 20 | M211: 7 | N211: 1930 | O211: Riihimäen Palloseura | P211: - | Q211: Kronohagens Idrottsföreningen | T211: luov. | V211: Lahti
K212: La | L212: 19 | M212: 7 | N212: 1930 | O212: Helsingin Pallonlyöjät | P212: - | Q212: Katajanokan Haukat | R212: 10 | S212: - | T212: 6 | V212: Helsinki | X212: 1 | Y212: 2 | Z212: 0 | AA212: 1 | AB212: 1 | AC212: 0 | AD212: 1 | AE212: 4 | AP212: 0 | AQ212: 1 | AR212: 0 | AS212: 0 | AT212: 4 | AU212: 1 | AV212: 0 | AW212: 0
K213: La | L213: 19 | M213: 7 | N213: 1930 | O213: Kronohagens Idrottsföreningen | P213: - | Q213: Toijalan Pallo-Veikot | R213: 7 | S213: - | T213: 26 | V213: Helsinki | X213: 3 | Y213: 0 | Z213: 1 | AA213: 1 | AB213: 0 | AC213: 0 | AD213: 2 | AP213: 7 | AQ213: 4 | AR213: 6 | AS213: 1 | AT213: 6 | AU213: 0 | AV213: 2
K214: Su | L214: 20 | M214: 7 | N214: 1930 | O214: Helsingin Pallo-Toverit | P214: - | Q214: Katajanokan Haukat | R214: 14 | S214: - | T214: 0 | V214: Helsinki | X214: 2 | Y214: 2 | Z214: 1 | AA214: 3 | AB214: 2 | AC214: 1 | AD214: 3 | AP214: 0 | AQ214: 0 | AR214: 0 | AS214: 0 | AT214: 0 | AU214: 0 | AV214: 0
K215: Su | L215: 20 | M215: 7 | N215: 1930 | O215: Helsingin Pallonlyöjät | P215: - | Q215: Toijalan Pallo-Veikot | R215: 9 | S215: - | T215: 5 | V215: Helsinki | X215: 2 | Y215: 1 | Z215: 0 | AA215: 1 | AB215: 2 | AC215: 2 | AD215: 1 | AP215: 0 | AQ215: 1 | AR215: 0 | AS215: 3 | AT215: 0 | AU215: 1 | AV215: 0
K216: Su | L216: 20 | M216: 7 | N216: 1930 | O216: Katajanokan Haukat | P216: - | Q216: Toijalan Pallo-Veikot | R216: 6 | S216: - | T216: 20 | V216: Helsinki | X216: 1 | Y216: 0 | Z216: 0 | AA216: 3 | AB216: 0 | AC216: 2 | AD216: 0 | AP216: 6 | AQ216: 3 | AR216: 2 | AS216: 5 | AT216: 3 | AU216: 0 | AV216: 1
K217: Ke | L217: 23 | M217: 7 | N217: 1930 | O217: Tampereen Mailapojat | P217: - | Q217: Toijalan Pallo-Veikot | R217: 19 | S217: - | T217: 21 | V217: Tampereella
K218: To | L218: 31 | M218: 7 | N218: 1930 | O218: Tampereen Pyrintö | P218: - | Q218: Tampereen Mailapojat | R218: 5 | S218: - | T218: 7 | V218: Tampereella
K219: La | L219: 2 | M219: 8 | N219: 1930 | O219: Helsingin Pallo-Toverit | P219: - | Q219: Keravan KooPee | T219: luov. | V219: Helsinki
K220: La | L220: 2 | M220: 8 | N220: 1930 | O220: Helsingin Pallonlyöjät | P220: - | Q220: Helsingin Pallo-Toverit | R220: 5 | S220: - | T220: 12 | V220: Helsinki | X220: 0 | Y220: 0 | Z220: 1 | AA220: 3 | AB220: 0 | AC220: 0 | AD220: 1 | AP220: 2 | AQ220: 0 | AR220: 2 | AS220: 1 | AT220: 4 | AU220: 1 | AV220: 2
K221: La | L221: 2 | M221: 8 | N221: 1930 | O221: Helsingin Pallonlyöjät | P221: - | Q221: Tampereen Mailapojat | R221: 16 | S221: - | T221: 6 | V221: Helsinki | X221: 0 | Y221: 4 | Z221: 2 | AA221: 0 | AB221: 0 | AC221: 2 | AD221: 8 | AP221: 0 | AQ221: 0 | AR221: 2 | AS221: 0 | AT221: 0 | AU221: 1 | AV221: 3
K222: Su | L222: 3 | M222: 8 | N222: 1930 | O222: Helsingin Pallonlyöjät | P222: - | Q222: Keravan KooPee | T222: luov. | V222: Helsinki
K223: Su | L223: 3 | M223: 8 | N223: 1930 | O223: Katajanokan Haukat | P223: - | Q223: Tampereen Mailapojat | R223: 5 | S223: - | T223: 11 | V223: Helsinki | X223: 1 | Y223: 0 | Z223: 2 | AA223: 0 | AB223: 2 | AC223: 0 | AD223: 0 | AP223: 5 | AQ223: 0 | AR223: 0 | AS223: 4 | AT223: 1 | AU223: 0 | AV223: 1
K224: Su | L224: 3 | M224: 8 | N224: 1930 | O224: Kronohagens Idrottsföreningen | P224: - | Q224: Helsingin Pallo-Toverit | R224: 4 | S224: - | T224: 11 | V224: Helsinki | X224: 1 | Y224: 0 | Z224: 0 | AA224: 1 | AB224: 1 | AC224: 0 | AD224: 1 | AP224: 0 | AQ224: 0 | AR224: 2 | AS224: 2 | AT224: 3 | AU224: 2 | AV224: 2
K225: Su | L225: 3 | M225: 8 | N225: 1930 | O225: Katajanokan Haukat | P225: - | Q225: Keravan KooPee | T225: luov. | V225: Helsinki
... 1914 more rows

Sheet 1994-2019
B1: OTTELUT JA SARJATAULUKOT 1994 - 2019
AB2: 0 | AC2: = aloitti sisällä
B3: SUPERPESIS 1994 | C3: O | D3: 3P | E3: 2P | F3: 1P | G3: 0P | H3: JUOKSUT | K3: PIST | P3: RUNKOSARJA 1994 | T3: JAKSOT | V3: JAKSOTULOS | W3: YLEISÖ | Y3: JUOKSUT | AB3: I JAKSO | AF3: II JAKSO | AJ3: S | AK3: K | AT3: I JAKSO | AX3: II JAKSO | BB3: S | BC3: K | BI3: h | BJ3: min
A4: 1 | B4: Hyvinkään Tahko | C4: 16 | D4: 11 | E4: 1 | F4: 2 | G4: 2 | H4: 143 | I4: - | J4: 54 | K4: 37 | L4: Su | M4: 8 | N4: 5 | O4: 1994 | P4: Imatran Pallo-Veikot | Q4: - | R4: Oulun Lippo | S4: 1 | T4: - | U4: 2 | V4: (7-1, 3-4, 0-1) | W4: 2656 | X4: 10 | Y4: - | Z4: 6 | AB4: 0 | AC4: 3 | AD4: 3 | AE4: 1 | AF4: 1 | AG4: 0 | AH4: 0 | AI4: 2 | AJ4: 0 | AT4: 0 | AU4: 0 | AV4: 0 | AW4: 1 | AX4: 2 | AY4: 0 | AZ4: 0 | BA4: 2 | BB4: 1 | BI4: 2 | BJ4: 16
A5: 2 | B5: Oulun Lippo | C5: 16 | D5: 9 | E5: 3 | F5: 2 | G5: 2 | H5: 130 | I5: - | J5: 70 | K5: 35 | L5: Su | M5: 8 | N5: 5 | O5: 1994 | P5: Kankaanpään Maila | Q5: - | R5: Alajärven Ankkurit | S5: 0 | T5: - | U5: 2 | V5: (3-5, 1-7) | W5: 1630 | X5: 4 | Y5: - | Z5: 12 | AB5: 0 | AC5: 2 | AD5: 0 | AE5: 1 | AF5: 0 | AG5: 1 | AH5: 0 | AI5: 0 | AT5: 2 | AU5: 0 | AV5: 0 | AW5: 3 | AX5: 2 | AY5: 1 | AZ5: 4 | BI5: 2 | BJ5: 24
A6: 3 | B6: Alajärven Ankkurit | C6: 16 | D6: 10 | E6: 2 | F6: 1 | G6: 3 | H6: 99 | I6: - | J6: 61 | K6: 35 | L6: Su | M6: 8 | N6: 5 | O6: 1994 | P6: Kiteen Pallo-90 | Q6: - | R6: Vimpelin Veto | S6: 2 | T6: - | U6: 0 | V6: (6-3, 5-0) | W6: 1473 | X6: 11 | Y6: - | Z6: 3 | AB6: 1 | AC6: 1 | AD6: 2 | AE6: 2 | AF6: 2 | AG6: 2 | AH6: 1 | AT6: 0 | AU6: 0 | AV6: 0 | AW6: 3 | AX6: 0 | AY6: 0 | AZ6: 0 | BA6: 0 | BI6: 2 | BJ6: 24
A7: 4 | B7: Sotkamon Jymy | C7: 16 | D7: 6 | E7: 5 | F7: 2 | G7: 3 | H7: 98 | I7: - | J7: 69 | K7: 30 | L7: Su | M7: 8 | N7: 5 | O7: 1994 | P7: Muhoksen Pallo-Salamat | Q7: - | R7: Sotkamon Jymy | S7: 1 | T7: - | U7: 2 | V7: (6-3, 4-5, 2-3) | W7: 1340 | X7: 12 | Y7: - | Z7: 11 | AB7: 1 | AC7: 3 | AD7: 2 | AE7: 0 | AF7: 0 | AG7: 0 | AH7: 4 | AI7: 0 | AJ7: 2 | AT7: 1 | AU7: 0 | AV7: 0 | AW7: 2 | AX7: 2 | AY7: 0 | AZ7: 2 | BA7: 1 | BB7: 3 | BI7: 2 | BJ7: 53
A8: 5 | B8: Loimaan Palloilijat | C8: 16 | D8: 8 | E8: 2 | F8: 1 | G8: 5 | H8: 83 | I8: - | J8: 77 | K8: 29 | L8: Su | M8: 8 | N8: 5 | O8: 1994 | P8: Pattijoen Urheilijat | Q8: - | R8: Hyvinkään Tahko | S8: 0 | T8: - | U8: 2 | V8: (3-6, 0-9) | W8: 2142 | X8: 3 | Y8: - | Z8: 15 | AB8: 0 | AC8: 0 | AD8: 0 | AE8: 3 | AF8: 0 | AG8: 0 | AH8: 0 | AI8: 0 | AT8: 0 | AU8: 0 | AV8: 3 | AW8: 3 | AX8: 0 | AY8: 0 | AZ8: 7 | BA8: 2 | BI8: 2 | BJ8: 8
A9: 6 | B9: Seinäjoen Maila-Jussit | C9: 16 | D9: 7 | E9: 3 | F9: 2 | G9: 5 | H9: 102 | I9: - | J9: 95 | K9: 28 | L9: Su | M9: 8 | N9: 5 | O9: 1994 | P9: Riihimäen Pallonlyöjät | Q9: - | R9: Jyväskylän Kiri | S9: 2 | T9: - | U9: 1 | V9: (3-4, 7-4, 1-0) | W9: 1366 | X9: 11 | Y9: - | Z9: 8 | AB9: 0 | AC9: 0 | AD9: 3 | AE9: 0 | AF9: 0 | AG9: 1 | AH9: 0 | AI9: 6 | AJ9: 1 | AT9: 2 | AU9: 2 | AV9: 0 | AW9: 0 | AX9: 0 | AY9: 2 | AZ9: 1 | BA9: 1 | BB9: 0 | BI9: 2 | BJ9: 26
A10: 7 | B10: Imatran Pallo-Veikot | C10: 16 | D10: 7 | E10: 0 | F10: 5 | G10: 4 | H10: 101 | I10: - | J10: 58 | K10: 26 | L10: Su | M10: 8 | N10: 5 | O10: 1994 | P10: Seinäjoen Maila-Jussit | Q10: - | R10: Loimaan Palloilijat | S10: 0 | T10: - | U10: 2 | V10: (0-1, 0-3) | W10: 2815 | X10: 0 | Y10: - | Z10: 4 | AB10: 0 | AC10: 0 | AD10: 0 | AE10: 0 | AF10: 0 | AG10: 0 | AH10: 0 | AI10: 0 | AT10: 1 | AU10: 0 | AV10: 0 | AW10: 0 | AX10: 0 | AY10: 2 | AZ10: 1 | BI10: 1 | BJ10: 54
A11: 8 | B11: Jyväskylän Kiri | C11: 16 | D11: 7 | E11: 0 | F11: 3 | G11: 6 | H11: 89 | I11: - | J11: 88 | K11: 24 | L11: To | M11: 12 | N11: 5 | O11: 1994 | P11: Hyvinkään Tahko | Q11: - | R11: Muhoksen Pallo-Salamat | S11: 2 | T11: - | U11: 0 | V11: (6-3, 5-4) | W11: 2252 | X11: 11 | Y11: - | Z11: 7 | AB11: 1 | AC11: 0 | AD11: 1 | AE11: 4 | AF11: 2 | AG11: 0 | AH11: 3 | AT11: 0 | AU11: 1 | AV11: 0 | AW11: 2 | AX11: 0 | AY11: 3 | AZ11: 1 | BA11: 0 | BI11: 2 | BJ11: 30
A12: 9 | B12: Kiteen Pallo-90 | C12: 16 | D12: 5 | E12: 2 | F12: 4 | G12: 5 | H12: 78 | I12: - | J12: 119 | K12: 23 | L12: To | M12: 12 | N12: 5 | O12: 1994 | P12: Imatran Pallo-Veikot | Q12: - | R12: Riihimäen Pallonlyöjät | S12: 0 | T12: - | U12: 2 | V12: (1-3, 1-3) | W12: 1469 | X12: 2 | Y12: - | Z12: 6 | AB12: 0 | AC12: 1 | AD12: 0 | AE12: 0 | AF12: 0 | AG12: 0 | AH12: 1 | AI12: 0 | AT12: 0 | AU12: 3 | AV12: 0 | AX12: 0 | AY12: 0 | AZ12: 0 | BA12: 3 | BI12: 1 | BJ12: 50
A13: 10 | B13: Pattijoen Urheilijat | C13: 16 | D13: 5 | E13: 0 | F13: 4 | G13: 7 | H13: 121 | I13: - | J13: 151 | K13: 19 | L13: To | M13: 12 | N13: 5 | O13: 1994 | P13: Jyväskylän Kiri | Q13: - | R13: Pattijoen Urheilijat | S13: 1 | T13: - | U13: 0 | V13: (1-1, 3-1) | W13: 1172 | X13: 4 | Y13: - | Z13: 2 | AB13: 1 | AC13: 0 | AD13: 0 | AE13: 0 | AF13: 2 | AG13: 1 | AH13: 0 | AT13: 0 | AU13: 0 | AV13: 1 | AW13: 0 | AX13: 0 | AY13: 1 | AZ13: 0 | BA13: 0 | BI13: 1 | BJ13: 49
A14: 11 | B14: Muhoksen Pallo-Salamat | C14: 16 | D14: 3 | E14: 1 | F14: 5 | G14: 7 | H14: 124 | I14: - | J14: 130 | K14: 16 | L14: To | M14: 12 | N14: 5 | O14: 1994 | P14: Loimaan Palloilijat | Q14: - | R14: Vimpelin Veto | S14: 2 | T14: - | U14: 0 | V14: (1-0, 5-4) | W14: 2476 | X14: 6 | Y14: - | Z14: 4 | AB14: 0 | AC14: 0 | AD14: 0 | AE14: 1 | AF14: 1 | AG14: 0 | AH14: 2 | AI14: 2 | AT14: 0 | AU14: 0 | AV14: 0 | AW14: 0 | AX14: 2 | AY14: 0 | AZ14: 2 | BA14: 0 | BI14: 2 | BJ14: 20
A15: 12 | B15: Kankaanpään Maila | C15: 16 | D15: 2 | E15: 0 | F15: 5 | G15: 9 | H15: 62 | I15: - | J15: 119 | K15: 11 | L15: To | M15: 12 | N15: 5 | O15: 1994 | P15: Oulun Lippo | Q15: - | R15: Kankaanpään Maila | S15: 2 | T15: - | U15: 0 | V15: (7-4, 8-0) | W15: 2736 | X15: 15 | Y15: - | Z15: 4 | AB15: 1 | AC15: 6 | AD15: 0 | AE15: 0 | AF15: 2 | AG15: 5 | AH15: 1 | AT15: 0 | AU15: 2 | AV15: 0 | AW15: 2 | AX15: 0 | AY15: 0 | AZ15: 0 | BA15: 0 | BI15: 2 | BJ15: 13
A16: 13 | B16: Riihimäen Pallonlyöjät | C16: 16 | D16: 1 | E16: 2 | F16: 2 | G16: 11 | H16: 74 | I16: - | J16: 132 | K16: 9 | L16: To | M16: 12 | N16: 5 | O16: 1994 | P16: Seinäjoen Maila-Jussit | Q16: - | R16: Kiteen Pallo-90 | S16: 1 | T16: - | U16: 0 | V16: (1-1, 1-0) | W16: 1120 | X16: 2 | Y16: - | Z16: 1 | AB16: 1 | AC16: 0 | AD16: 0 | AE16: 0 | AF16: 0 | AG16: 0 | AH16: 0 | AI16: 1 | AT16: 0 | AU16: 0 | AV16: 0 | AW16: 1 | AX16: 0 | AY16: 0 | AZ16: 0 | BA16: 0 | BI16: 1 | BJ16: 46
A17: 14 | B17: Vimpelin Veto | C17: 16 | D17: 0 | E17: 0 | F17: 4 | G17: 12 | H17: 50 | I17: - | J17: 131 | K17: 4 | L17: To | M17: 12 | N17: 5 | O17: 1994 | P17: Sotkamon Jymy | Q17: - | R17: Alajärven Ankkurit | S17: 0 | T17: - | U17: 1 | V17: (1-1, 2-4) | W17: 2234 | X17: 3 | Y17: - | Z17: 5 | AB17: 0 | AC17: 0 | AD17: 0 | AE17: 1 | AF17: 1 | AG17: 1 | AH17: 0 | AI17: 0 | AT17: 0 | AU17: 0 | AV17: 1 | AW17: 0 | AX17: 2 | AY17: 1 | AZ17: 1 | BI17: 2 | BJ17: 0
L18: La | M18: 14 | N18: 5 | O18: 1994 | P18: Vimpelin Veto | Q18: - | R18: Jyväskylän Kiri | S18: 0 | T18: - | U18: 1 | V18: (1-1, 0-7) | W18: 886 | X18: 1 | Y18: - | Z18: 8 | AB18: 1 | AC18: 0 | AD18: 0 | AE18: 0 | AF18: 0 | AG18: 0 | AH18: 0 | AI18: 0 | AT18: 0 | AU18: 0 | AV18: 1 | AW18: 0 | AX18: 2 | AY18: 2 | AZ18: 1 | BA18: 2 | BI18: 2 | BJ18: 24
B19: 1 - 10 sijoittuneet loppusarjaan | L19: Su | M19: 15 | N19: 5 | O19: 1994 | P19: Alajärven Ankkurit | Q19: - | R19: Hyvinkään Tahko | S19: 0 | T19: - | U19: 0 | V19: (2-2, 1-1, 1-1) | W19: 1954 | X19: 4 | Y19: - | Z19: 4 | AB19: 0 | AC19: 2 | AD19: 0 | AE19: 0 | AF19: 0 | AG19: 0 | AH19: 0 | AI19: 1 | AJ19: 1 | AT19: 1 | AU19: 0 | AV19: 1 | AW19: 0 | AX19: 0 | AY19: 0 | AZ19: 1 | BA19: 0 | BB19: 1 | BI19: 2 | BJ19: 17
B20: 11 - 14 sijoittuneet karsintasarjaan | L20: Su | M20: 15 | N20: 5 | O20: 1994 | P20: Kankaanpään Maila | Q20: - | R20: Seinäjoen Maila-Jussit | S20: 1 | T20: - | U20: 2 | V20: (2-3, 6-2, 0-2) | W20: 1177 | X20: 8 | Y20: - | Z20: 7 | AB20: 0 | AC20: 2 | AD20: 0 | AE20: 0 | AF20: 5 | AG20: 1 | AH20: 0 | AJ20: 0 | AT20: 0 | AU20: 0 | AV20: 2 | AW20: 1 | AX20: 2 | AY20: 0 | AZ20: 0 | BA20: 0 | BB20: 2
L21: Su | M21: 15 | N21: 5 | O21: 1994 | P21: Kiteen Pallo-90 | Q21: - | R21: Sotkamon Jymy | S21: 1 | T21: - | U21: 1 | V21: (5-2, 1-4, 1-1) | W21: 1293 | X21: 7 | Y21: - | Z21: 7 | AB21: 5 | AC21: 0 | AD21: 0 | AE21: 0 | AF21: 0 | AG21: 1 | AH21: 0 | AI21: 0 | AJ21: 1 | AT21: 0 | AU21: 0 | AV21: 0 | AW21: 2 | AX21: 1 | AY21: 1 | AZ21: 0 | BA21: 2 | BB21: 1
B22: Voitto kahden jakson aikana kolme pistettä | L22: Su | M22: 15 | N22: 5 | O22: 1994 | P22: Muhoksen Pallo-Salamat | Q22: - | R22: Loimaan Palloilijat | S22: 1 | T22: - | U22: 2 | V22: (1-0, 0-3, 0-2) | W22: 545 | X22: 1 | Y22: - | Z22: 5 | AB22: 1 | AC22: 0 | AD22: 0 | AF22: 0 | AG22: 0 | AH22: 0 | AI22: 0 | AJ22: 0 | AT22: 0 | AU22: 0 | AV22: 0 | AW22: 0 | AX22: 1 | AY22: 0 | AZ22: 2 | BB22: 2
B23: Jatkoaikavoitosta kaksi pistettä, tappiosta yksi piste | L23: Su | M23: 15 | N23: 5 | O23: 1994 | P23: Pattijoen Urheilijat | Q23: - | R23: Imatran Pallo-Veikot | S23: 0 | T23: - | U23: 2 | V23: (0-4, 0-5) | W23: 1324 | X23: 0 | Y23: - | Z23: 9 | AB23: 0 | AC23: 0 | AD23: 0 | AE23: 0 | AF23: 0 | AG23: 0 | AH23: 0 | AI23: 0 | AT23: 0 | AU23: 3 | AV23: 1 | AX23: 2 | AY23: 2 | AZ23: 0 | BA23: 1
B24: Tasapelistä yksi piste kummallekin | L24: Su | M24: 15 | N24: 5 | O24: 1994 | P24: Riihimäen Pallonlyöjät | Q24: - | R24: Oulun Lippo | S24: 0 | T24: - | U24: 1 | V24: (0-12, 4-4) | W24: 1392 | X24: 4 | Y24: - | Z24: 16 | AB24: 0 | AC24: 0 | AD24: 0 | AE24: 0 | AF24: 0 | AG24: 2 | AH24: 0 | AI24: 2 | AT24: 6 | AU24: 1 | AV24: 1 | AW24: 4 | AX24: 0 | AY24: 2 | AZ24: 1 | BA24: 1
L25: Ke | M25: 18 | N25: 5 | O25: 1994 | P25: Loimaan Palloilijat | Q25: - | R25: Kankaanpään Maila | S25: 2 | T25: - | U25: 0 | V25: (4-0, 4-0) | W25: 3559 | X25: 8 | Y25: - | Z25: 0 | AB25: 0 | AC25: 2 | AD25: 2 | AE25: 0 | AF25: 3 | AG25: 1 | AH25: 0 | AT25: 0 | AU25: 0 | AV25: 0 | AW25: 0 | AX25: 0 | AY25: 0 | AZ25: 0 | BA25: 0
L26: Ke | M26: 18 | N26: 5 | O26: 1994 | P26: Muhoksen Pallo-Salamat | Q26: - | R26: Pattijoen Urheilijat | S26: 1 | T26: - | U26: 1 | V26: (8-3, 4-9, 0-0) | W26: 1050 | X26: 12 | Y26: - | Z26: 12 | AB26: 2 | AC26: 0 | AD26: 5 | AE26: 1 | AF26: 1 | AG26: 0 | AH26: 2 | AI26: 1 | AJ26: 0 | AT26: 1 | AU26: 0 | AV26: 2 | AW26: 0 | AX26: 0 | AY26: 1 | AZ26: 8 | BA26: 0 | BB26: 0
L27: To | M27: 19 | N27: 5 | O27: 1994 | P27: Imatran Pallo-Veikot | Q27: - | R27: Kiteen Pallo-90 | S27: 1 | T27: - | U27: 1 | V27: (0-1, 5-4, 0-0) | W27: 1700 | X27: 5 | Y27: - | Z27: 5 | AB27: 0 | AC27: 0 | AD27: 0 | AE27: 0 | AF27: 1 | AG27: 3 | AH27: 1 | AI27: 0 | AJ27: 0 | AT27: 0 | AU27: 0 | AV27: 0 | AW27: 1 | AX27: 1 | AY27: 3 | AZ27: 0 | BA27: 0 | BB27: 0
L28: To | M28: 19 | N28: 5 | O28: 1994 | P28: Oulun Lippo | Q28: - | R28: Sotkamon Jymy | S28: 2 | T28: - | U28: 0 | V28: (4-3, 1-0) | W28: 4059 | X28: 5 | Y28: - | Z28: 3 | AB28: 1 | AC28: 1 | AD28: 2 | AE28: 0 | AF28: 0 | AG28: 0 | AH28: 1 | AT28: 0 | AU28: 1 | AV28: 0 | AW28: 2 | AX28: 0 | AY28: 0 | AZ28: 0 | BA28: 0
L29: To | M29: 19 | N29: 5 | O29: 1994 | P29: Riihimäen Pallonlyöjät | Q29: - | R29: Hyvinkään Tahko | S29: 2 | T29: - | U29: 1 | V29: (2-1, 0-1, 3-1) | W29: 2112 | X29: 5 | Y29: - | Z29: 3 | AB29: 0 | AC29: 0 | AD29: 1 | AE29: 1 | AF29: 0 | AG29: 0 | AH29: 0 | AI29: 0 | AJ29: 3 | AT29: 0 | AU29: 0 | AV29: 1 | AW29: 0 | AX29: 0 | AY29: 0 | AZ29: 1 | BB29: 1
L30: To | M30: 19 | N30: 5 | O30: 1994 | P30: Seinäjoen Maila-Jussit | Q30: - | R30: Jyväskylän Kiri | S30: 0 | T30: - | U30: 2 | V30: (2-3, 0-4) | W30: 1040 | X30: 2 | Y30: - | Z30: 7 | AB30: 0 | AC30: 0 | AD30: 0 | AE30: 2 | AF30: 0 | AG30: 0 | AH30: 0 | AI30: 0 | AT30: 1 | AU30: 1 | AV30: 1 | AX30: 3 | AY30: 0 | AZ30: 0 | BA30: 1
L31: La | M31: 21 | N31: 5 | O31: 1994 | P31: Alajärven Ankkurit | Q31: - | R31: Vimpelin Veto | S31: 1 | T31: - | U31: 0 | V31: (0-0, 1-0) | W31: 813 | X31: 1 | Y31: - | Z31: 0 | AB31: 0 | AC31: 0 | AD31: 0 | AE31: 0 | AF31: 1 | AG31: 0 | AH31: 0 | AT31: 0 | AU31: 0 | AV31: 0 | AW31: 0 | AX31: 0 | AY31: 0 | AZ31: 0 | BA31: 0
L32: Su | M32: 22 | N32: 5 | O32: 1994 | P32: Hyvinkään Tahko | Q32: - | R32: Imatran Pallo-Veikot | S32: 0 | T32: - | U32: 1 | V32: (0-0, 1-2) | W32: 1944 | X32: 1 | Y32: - | Z32: 2 | AB32: 0 | AC32: 0 | AD32: 0 | AE32: 0 | AF32: 0 | AG32: 1 | AH32: 0 | AI32: 0 | AT32: 0 | AU32: 0 | AV32: 0 | AW32: 0 | AX32: 2 | AY32: 0 | AZ32: 0 | BA32: 0
L33: Su | M33: 22 | N33: 5 | O33: 1994 | P33: Jyväskylän Kiri | Q33: - | R33: Alajärven Ankkurit | S33: 0 | T33: - | U33: 2 | V33: (3-5, 0-2) | W33: 1025 | X33: 3 | Y33: - | Z33: 7 | AB33: 1 | AC33: 2 | AD33: 0 | AE33: 0 | AF33: 0 | AG33: 0 | AH33: 0 | AI33: 0 | AT33: 0 | AU33: 2 | AV33: 3 | AX33: 0 | AY33: 2 | AZ33: 0 | BA33: 0
L34: Su | M34: 22 | N34: 5 | O34: 1994 | P34: Kankaanpään Maila | Q34: - | R34: Kiteen Pallo-90 | S34: 0 | T34: - | U34: 1 | V34: (0-1, 0-0) | W34: 805 | X34: 0 | Y34: - | Z34: 1 | AB34: 0 | AC34: 0 | AD34: 0 | AE34: 0 | AF34: 0 | AG34: 0 | AH34: 0 | AI34: 0 | AT34: 1 | AU34: 0 | AV34: 0 | AW34: 0 | AX34: 0 | AY34: 0 | AZ34: 0
L35: Su | M35: 22 | N35: 5 | O35: 1994 | P35: Loimaan Palloilijat | Q35: - | R35: Riihimäen Pallonlyöjät | S35: 2 | T35: - | U35: 0 | V35: (4-2, 9-1) | W35: 2030 | X35: 13 | Y35: - | Z35: 3 | AB35: 2 | AC35: 1 | AD35: 0 | AE35: 1 | AF35: 3 | AG35: 2 | AH35: 4 | AT35: 2 | AU35: 0 | AV35: 0 | AW35: 0 | AX35: 0 | AY35: 1 | AZ35: 0 | BA35: 0
L36: Su | M36: 22 | N36: 5 | O36: 1994 | P36: Oulun Lippo | Q36: - | R36: Seinäjoen Maila-Jussit | S36: 0 | T36: - | U36: 1 | V36: (3-3, 0-2) | W36: 1695 | X36: 3 | Y36: - | Z36: 5 | AB36: 0 | AC36: 1 | AD36: 0 | AE36: 2 | AF36: 0 | AG36: 0 | AH36: 0 | AI36: 0 | AT36: 1 | AU36: 0 | AV36: 2 | AW36: 0 | AX36: 1 | AY36: 1 | AZ36: 0 | BA36: 0
L37: Su | M37: 22 | N37: 5 | O37: 1994 | P37: Sotkamon Jymy | Q37: - | R37: Pattijoen Urheilijat | S37: 1 | T37: - | U37: 0 | V37: (4-1, 0-0) | W37: 1142 | X37: 4 | Y37: - | Z37: 1 | AB37: 2 | AC37: 0 | AD37: 0 | AE37: 2 | AF37: 0 | AG37: 0 | AH37: 0 | AT37: 0 | AU37: 1 | AV37: 0 | AW37: 0 | AX37: 0 | AY37: 0 | AZ37: 0 | BA37: 0
L38: Su | M38: 22 | N38: 5 | O38: 1994 | P38: Vimpelin Veto | Q38: - | R38: Muhoksen Pallo-Salamat | S38: 1 | T38: - | U38: 2 | V38: (2-0, 1-12, 0-7) | W38: 736 | X38: 3 | Y38: - | Z38: 19 | AB38: 0 | AC38: 2 | AD38: 0 | AF38: 1 | AG38: 0 | AH38: 0 | AI38: 0 | AJ38: 0 | AT38: 0 | AU38: 0 | AV38: 0 | AW38: 0 | AX38: 3 | AY38: 9 | AZ38: 0 | BB38: 7
L39: Ti | M39: 24 | N39: 5 | O39: 1994 | P39: Alajärven Ankkurit | Q39: - | R39: Oulun Lippo | S39: 0 | T39: - | U39: 1 | V39: (1-1, 0-4) | W39: 1315 | X39: 1 | Y39: - | Z39: 5 | AB39: 0 | AC39: 1 | AD39: 0 | AE39: 0 | AF39: 0 | AG39: 0 | AH39: 0 | AI39: 0 | AT39: 1 | AU39: 0 | AV39: 0 | AW39: 0 | AX39: 1 | AY39: 1 | AZ39: 1 | BA39: 1
L40: Ti | M40: 24 | N40: 5 | O40: 1994 | P40: Jyväskylän Kiri | Q40: - | R40: Sotkamon Jymy | S40: 0 | T40: - | U40: 1 | V40: (1-1, 3-4) | W40: 1538 | X40: 4 | Y40: - | Z40: 5 | AB40: 0 | AC40: 0 | AD40: 1 | AE40: 0 | AF40: 0 | AG40: 2 | AH40: 0 | AI40: 1 | AT40: 0 | AU40: 0 | AV40: 1 | AW40: 0 | AX40: 2 | AY40: 1 | AZ40: 1 | BA40: 0
L41: Ti | M41: 24 | N41: 5 | O41: 1994 | P41: Loimaan Palloilijat | Q41: - | R41: Kiteen Pallo-90 | S41: 1 | T41: - | U41: 0 | V41: (2-2, 4-1) | W41: 1565 | X41: 6 | Y41: - | Z41: 3 | AB41: 0 | AC41: 0 | AD41: 2 | AE41: 0 | AF41: 1 | AG41: 1 | AH41: 1 | AI41: 1 | AT41: 1 | AU41: 0 | AV41: 0 | AW41: 1 | AX41: 0 | AY41: 0 | AZ41: 0 | BA41: 1
L42: Ti | M42: 24 | N42: 5 | O42: 1994 | P42: Riihimäen Pallonlyöjät | Q42: - | R42: Vimpelin Veto | S42: 1 | T42: - | U42: 1 | V42: (5-4, 2-3, 0-0) | W42: 952 | X42: 7 | Y42: - | Z42: 7 | AB42: 0 | AC42: 0 | AD42: 1 | AE42: 4 | AF42: 2 | AG42: 0 | AH42: 0 | AI42: 0 | AJ42: 0 | AT42: 0 | AU42: 1 | AV42: 1 | AW42: 2 | AX42: 0 | AY42: 3 | AZ42: 0 | BB42: 0
L43: Ti | M43: 24 | N43: 5 | O43: 1994 | P43: Seinäjoen Maila-Jussit | Q43: - | R43: Hyvinkään Tahko | S43: 1 | T43: - | U43: 2 | V43: (7-6, 1-3, 0-1) | W43: 1478 | X43: 8 | Y43: - | Z43: 10 | AB43: 6 | AC43: 1 | AD43: 0 | AE43: 0 | AF43: 1 | AG43: 0 | AH43: 0 | AI43: 0 | AJ43: 0 | AT43: 0 | AU43: 3 | AV43: 3 | AW43: 0 | AX43: 3 | AY43: 0 | AZ43: 0 | BA43: 0 | BB43: 1
L44: To | M44: 26 | N44: 5 | O44: 1994 | P44: Hyvinkään Tahko | Q44: - | R44: Riihimäen Pallonlyöjät | S44: 1 | T44: - | U44: 0 | V44: (7-2, 1-1) | W44: 2462 | X44: 8 | Y44: - | Z44: 3 | AB44: 3 | AC44: 4 | AD44: 0 | AF44: 0 | AG44: 0 | AH44: 1 | AI44: 0 | AT44: 1 | AU44: 0 | AV44: 1 | AW44: 0 | AX44: 0 | AY44: 1 | AZ44: 0 | BA44: 0
L45: To | M45: 26 | N45: 5 | O45: 1994 | P45: Kankaanpään Maila | Q45: - | R45: Loimaan Palloilijat | S45: 1 | T45: - | U45: 1 | V45: (2-1, 2-3, 1-1) | W45: 712 | X45: 5 | Y45: - | Z45: 5 | AB45: 0 | AC45: 0 | AD45: 1 | AE45: 1 | AF45: 0 | AG45: 2 | AH45: 0 | AI45: 0 | AJ45: 1 | AT45: 0 | AU45: 0 | AV45: 0 | AW45: 1 | AX45: 2 | AY45: 0 | AZ45: 1 | BB45: 1
L46: To | M46: 26 | N46: 5 | O46: 1994 | P46: Kiteen Pallo-90 | Q46: - | R46: Imatran Pallo-Veikot | S46: 0 | T46: - | U46: 2 | V46: (2-8, 0-5) | W46: 1432 | X46: 2 | Y46: - | Z46: 13 | AB46: 0 | AC46: 0 | AD46: 1 | AE46: 1 | AF46: 0 | AG46: 0 | AH46: 0 | AI46: 0 | AT46: 4 | AU46: 3 | AV46: 1 | AX46: 1 | AY46: 2 | AZ46: 2 | BA46: 0
L47: To | M47: 26 | N47: 5 | O47: 1994 | P47: Muhoksen Pallo-Salamat | Q47: - | R47: Jyväskylän Kiri | S47: 0 | T47: - | U47: 2 | V47: (2-4, 2-5) | W47: 592 | X47: 4 | Y47: - | Z47: 9 | AB47: 1 | AC47: 1 | AD47: 0 | AE47: 0 | AF47: 0 | AG47: 0 | AH47: 1 | AI47: 1 | AT47: 1 | AU47: 3 | AV47: 0 | AW47: 0 | AX47: 2 | AY47: 1 | AZ47: 2
L48: To | M48: 26 | N48: 5 | O48: 1994 | P48: Pattijoen Urheilijat | Q48: - | R48: Seinäjoen Maila-Jussit | S48: 1 | T48: - | U48: 0 | V48: (8-8, 10-6) | W48: 1352 | X48: 18 | Y48: - | Z48: 14 | AB48: 1 | AC48: 3 | AD48: 4 | AE48: 0 | AF48: 3 | AG48: 2 | AH48: 0 | AI48: 5 | AT48: 2 | AU48: 1 | AV48: 3 | AW48: 2 | AX48: 4 | AY48: 0 | AZ48: 0 | BA48: 2
L49: To | M49: 26 | N49: 5 | O49: 1994 | P49: Sotkamon Jymy | Q49: - | R49: Oulun Lippo | S49: 2 | T49: - | U49: 1 | V49: (6-1, 0-3, 1-0) | W49: 2814 | X49: 7 | Y49: - | Z49: 4 | AB49: 1 | AC49: 2 | AD49: 0 | AE49: 3 | AF49: 0 | AG49: 0 | AH49: 0 | AI49: 0 | AJ49: 1 | AT49: 0 | AU49: 0 | AV49: 0 | AW49: 1 | AX49: 0 | AY49: 1 | AZ49: 1 | BA49: 1 | BB49: 0
L50: To | M50: 26 | N50: 5 | O50: 1994 | P50: Vimpelin Veto | Q50: - | R50: Alajärven Ankkurit | S50: 0 | T50: - | U50: 1 | V50: (1-3, 2-2) | W50: 1188 | X50: 3 | Y50: - | Z50: 5 | AB50: 0 | AC50: 0 | AD50: 1 | AE50: 0 | AF50: 0 | AG50: 1 | AH50: 1 | AI50: 0 | AT50: 0 | AU50: 3 | AV50: 0 | AW50: 0 | AX50: 0 | AY50: 2 | AZ50: 0
L51: La | M51: 28 | N51: 5 | O51: 1994 | P51: Riihimäen Pallonlyöjät | Q51: - | R51: Sotkamon Jymy | S51: 1 | T51: - | U51: 2 | V51: (0-1, 3-2, 0-1) | W51: 1008 | X51: 3 | Y51: - | Z51: 4 | AB51: 0 | AC51: 0 | AD51: 0 | AE51: 0 | AF51: 0 | AG51: 2 | AH51: 0 | AI51: 1 | AJ51: 0 | AT51: 0 | AU51: 1 | AV51: 0 | AW51: 0 | AX51: 0 | AY51: 0 | AZ51: 1 | BA51: 1 | BB51: 1
L52: Su | M52: 29 | N52: 5 | O52: 1994 | P52: Alajärven Ankkurit | Q52: - | R52: Kiteen Pallo-90 | S52: 0 | T52: - | U52: 1 | V52: (1-5, 1-1) | W52: 930 | X52: 2 | Y52: - | Z52: 6 | AB52: 1 | AC52: 0 | AD52: 0 | AE52: 0 | AF52: 0 | AG52: 1 | AH52: 0 | AI52: 0 | AT52: 0 | AU52: 2 | AV52: 3 | AX52: 1 | AY52: 0 | AZ52: 0 | BA52: 0
L53: Su | M53: 29 | N53: 5 | O53: 1994 | P53: Imatran Pallo-Veikot | Q53: - | R53: Vimpelin Veto | S53: 2 | T53: - | U53: 0 | V53: (3-1, 6-1) | W53: 1398 | X53: 9 | Y53: - | Z53: 2 | AB53: 0 | AC53: 0 | AD53: 0 | AE53: 3 | AF53: 1 | AG53: 1 | AH53: 1 | AI53: 3 | AT53: 0 | AU53: 0 | AV53: 1 | AW53: 0 | AX53: 1 | AY53: 0 | AZ53: 0 | BA53: 0
L54: Su | M54: 29 | N54: 5 | O54: 1994 | P54: Jyväskylän Kiri | Q54: - | R54: Seinäjoen Maila-Jussit | S54: 0 | T54: - | U54: 2 | V54: (5-8, 0-4) | W54: 1602 | X54: 5 | Y54: - | Z54: 12 | AB54: 5 | AC54: 0 | AD54: 0 | AE54: 0 | AF54: 0 | AG54: 0 | AH54: 0 | AI54: 0 | AT54: 3 | AU54: 4 | AV54: 0 | AW54: 1 | AX54: 2 | AY54: 0 | AZ54: 2
L55: Su | M55: 29 | N55: 5 | O55: 1994 | P55: Kankaanpään Maila | Q55: - | R55: Muhoksen Pallo-Salamat | S55: 0 | T55: - | U55: 1 | V55: (0-3, 2-2) | W55: 648 | X55: 2 | Y55: - | Z55: 5 | AB55: 0 | AC55: 0 | AD55: 0 | AE55: 0 | AF55: 0 | AG55: 0 | AH55: 2 | AI55: 0 | AT55: 0 | AU55: 0 | AV55: 3 | AW55: 0 | AX55: 0 | AY55: 2 | AZ55: 0
L56: Su | M56: 29 | N56: 5 | O56: 1994 | P56: Loimaan Palloilijat | Q56: - | R56: Pattijoen Urheilijat | S56: 2 | T56: - | U56: 0 | V56: (5-2, 5-0) | W56: 1449 | X56: 10 | Y56: - | Z56: 2 | AB56: 2 | AC56: 3 | AD56: 0 | AF56: 1 | AG56: 2 | AH56: 1 | AI56: 1 | AT56: 2 | AU56: 0 | AV56: 0 | AW56: 0 | AX56: 0 | AY56: 0 | AZ56: 0 | BA56: 0
L57: Su | M57: 29 | N57: 5 | O57: 1994 | P57: Oulun Lippo | Q57: - | R57: Hyvinkään Tahko | S57: 0 | T57: - | U57: 1 | V57: (1-3, 2-2) | W57: 3115 | X57: 3 | Y57: - | Z57: 5 | AB57: 1 | AC57: 0 | AD57: 0 | AE57: 0 | AF57: 0 | AG57: 2 | AH57: 0 | AI57: 0 | AT57: 1 | AU57: 1 | AV57: 1 | AX57: 0 | AY57: 1 | AZ57: 1 | BA57: 0
L58: Ti | M58: 31 | N58: 5 | O58: 1994 | P58: Pattijoen Urheilijat | Q58: - | R58: Muhoksen Pallo-Salamat | S58: 0 | T58: - | U58: 2 | V58: (0-2, 12-15) | W58: 1456 | X58: 12 | Y58: - | Z58: 17 | AB58: 0 | AC58: 0 | AD58: 0 | AE58: 0 | AF58: 0 | AG58: 9 | AH58: 3 | AI58: 0 | AT58: 0 | AU58: 0 | AV58: 2 | AX58: 4 | AY58: 5 | AZ58: 6 | BA58: 0
L59: Ti | M59: 31 | N59: 5 | O59: 1994 | P59: Riihimäen Pallonlyöjät | Q59: - | R59: Kankaanpään Maila | S59: 0 | T59: - | U59: 1 | V59: (4-4, 3-4) | W59: 1771 | X59: 7 | Y59: - | Z59: 8 | AB59: 0 | AC59: 2 | AD59: 2 | AE59: 0 | AF59: 2 | AG59: 1 | AH59: 0 | AI59: 0 | AT59: 1 | AU59: 0 | AV59: 0 | AW59: 3 | AX59: 2 | AY59: 1 | AZ59: 1
L60: Ke | M60: 1 | N60: 6 | O60: 1994 | P60: Seinäjoen Maila-Jussit | Q60: - | R60: Alajärven Ankkurit | S60: 1 | T60: - | U60: 0 | V60: (4-0, 5-5) | W60: 1960 | X60: 9 | Y60: - | Z60: 5 | AB60: 0 | AC60: 4 | AD60: 0 | AF60: 2 | AG60: 2 | AH60: 1 | AI60: 0 | AT60: 0 | AU60: 0 | AV60: 0 | AW60: 0 | AX60: 4 | AY60: 0 | AZ60: 1 | BA60: 0
L61: To | M61: 2 | N61: 6 | O61: 1994 | P61: Hyvinkään Tahko | Q61: - | R61: Sotkamon Jymy | S61: 1 | T61: - | U61: 0 | V61: (1-1, 5-2) | W61: 2907 | X61: 6 | Y61: - | Z61: 3 | AB61: 0 | AC61: 1 | AD61: 0 | AE61: 0 | AF61: 1 | AG61: 1 | AH61: 2 | AI61: 1 | AT61: 0 | AU61: 0 | AV61: 1 | AW61: 0 | AX61: 1 | AY61: 0 | AZ61: 1 | BA61: 0
L62: To | M62: 2 | N62: 6 | O62: 1994 | P62: Imatran Pallo-Veikot | Q62: - | R62: Jyväskylän Kiri | S62: 2 | T62: - | U62: 0 | V62: (1-0, 7-1) | W62: 1328 | X62: 8 | Y62: - | Z62: 1 | AB62: 0 | AC62: 1 | AD62: 0 | AF62: 1 | AG62: 0 | AH62: 6 | AI62: 0 | AT62: 0 | AU62: 0 | AV62: 0 | AW62: 0 | AX62: 1 | AY62: 0 | AZ62: 0 | BA62: 0
L63: To | M63: 2 | N63: 6 | O63: 1994 | P63: Kiteen Pallo-90 | Q63: - | R63: Riihimäen Pallonlyöjät | S63: 2 | T63: - | U63: 0 | V63: (3-2, 6-2) | W63: 1162 | X63: 9 | Y63: - | Z63: 4 | AB63: 1 | AC63: 0 | AD63: 1 | AE63: 1 | AF63: 2 | AG63: 1 | AH63: 3 | AT63: 0 | AU63: 0 | AV63: 2 | AW63: 0 | AX63: 0 | AY63: 0 | AZ63: 0 | BA63: 2
L64: To | M64: 2 | N64: 6 | O64: 1994 | P64: Loimaan Palloilijat | Q64: - | R64: Kankaanpään Maila | S64: 2 | T64: - | U64: 0 | V64: (2-1, 3-1) | W64: 1414 | X64: 5 | Y64: - | Z64: 2 | AB64: 0 | AC64: 0 | AD64: 2 | AE64: 0 | AF64: 1 | AG64: 0 | AH64: 2 | AT64: 0 | AU64: 1 | AV64: 0 | AW64: 0 | AX64: 1 | AY64: 0 | AZ64: 0 | BA64: 0
L65: To | M65: 2 | N65: 6 | O65: 1994 | P65: Muhoksen Pallo-Salamat | Q65: - | R65: Oulun Lippo | S65: 0 | T65: - | U65: 2 | V65: (0-5, 0-3) | W65: 1619 | X65: 0 | Y65: - | Z65: 8 | AB65: 0 | AC65: 0 | AD65: 0 | AE65: 0 | AF65: 0 | AG65: 0 | AH65: 0 | AI65: 0 | AT65: 3 | AU65: 1 | AV65: 1 | AX65: 1 | AY65: 0 | AZ65: 1 | BA65: 1
L66: To | M66: 2 | N66: 6 | O66: 1994 | P66: Vimpelin Veto | Q66: - | R66: Pattijoen Urheilijat | S66: 0 | T66: - | U66: 2 | V66: (0-7, 1-2) | W66: 802 | X66: 1 | Y66: - | Z66: 9 | AB66: 0 | AC66: 0 | AD66: 0 | AE66: 0 | AF66: 0 | AG66: 0 | AH66: 0 | AI66: 1 | AT66: 6 | AU66: 1 | AV66: 0 | AX66: 0 | AY66: 0 | AZ66: 2 | BA66: 0
L67: Su | M67: 5 | N67: 6 | O67: 1994 | P67: Alajärven Ankkurit | Q67: - | R67: Muhoksen Pallo-Salamat | S67: 2 | T67: - | U67: 0 | V67: (5-3, 2-1) | W67: 2281 | X67: 7 | Y67: - | Z67: 4 | AB67: 2 | AC67: 0 | AD67: 3 | AF67: 1 | AG67: 1 | AH67: 0 | AI67: 0 | AT67: 1 | AU67: 0 | AV67: 1 | AW67: 1 | AX67: 0 | AY67: 0 | AZ67: 1 | BA67: 0
L68: Su | M68: 5 | N68: 6 | O68: 1994 | P68: Jyväskylän Kiri | Q68: - | R68: Kankaanpään Maila | S68: 2 | T68: - | U68: 0 | V68: (4-2, 5-1) | W68: 954 | X68: 9 | Y68: - | Z68: 3 | AB68: 3 | AC68: 1 | AD68: 0 | AE68: 0 | AF68: 2 | AG68: 0 | AH68: 3 | AT68: 0 | AU68: 1 | AV68: 0 | AW68: 1 | AX68: 1 | AY68: 0 | AZ68: 0 | BA68: 0
L69: Su | M69: 5 | N69: 6 | O69: 1994 | P69: Kiteen Pallo-90 | Q69: - | R69: Pattijoen Urheilijat | S69: 0 | T69: - | U69: 2 | V69: (0-4, 6-10) | W69: 1106 | X69: 6 | Y69: - | Z69: 14 | AB69: 0 | AC69: 0 | AD69: 0 | AE69: 0 | AF69: 0 | AG69: 0 | AH69: 4 | AI69: 2 | AT69: 0 | AU69: 3 | AV69: 1 | AX69: 2 | AY69: 4 | AZ69: 1 | BA69: 3
L70: Su | M70: 5 | N70: 6 | O70: 1994 | P70: Oulun Lippo | Q70: - | R70: Loimaan Palloilijat | S70: 2 | T70: - | U70: 0 | V70: (6-1, 5-1) | W70: 1835 | X70: 11 | Y70: - | Z70: 2 | AB70: 0 | AC70: 0 | AD70: 2 | AE70: 4 | AF70: 2 | AG70: 2 | AH70: 1 | AT70: 0 | AU70: 0 | AV70: 0 | AW70: 1 | AX70: 1 | AY70: 0 | AZ70: 0 | BA70: 0
L71: Su | M71: 5 | N71: 6 | O71: 1994 | P71: Riihimäen Pallonlyöjät | Q71: - | R71: Hyvinkään Tahko | S71: 0 | T71: - | U71: 1 | V71: (0-4, 2-2) | W71: 2288 | X71: 2 | Y71: - | Z71: 6 | AB71: 0 | AC71: 0 | AD71: 0 | AE71: 0 | AF71: 1 | AG71: 1 | AH71: 0 | AI71: 0 | AT71: 1 | AU71: 2 | AV71: 0 | AW71: 1 | AX71: 2 | AY71: 0 | AZ71: 0
L72: Su | M72: 5 | N72: 6 | O72: 1994 | P72: Seinäjoen Maila-Jussit | Q72: - | R72: Imatran Pallo-Veikot | S72: 1 | T72: - | U72: 0 | V72: (1-1, 4-2) | W72: 2090 | X72: 5 | Y72: - | Z72: 3 | AB72: 0 | AC72: 0 | AD72: 1 | AE72: 0 | AF72: 2 | AG72: 2 | AH72: 0 | AI72: 0 | AT72: 0 | AU72: 0 | AV72: 1 | AW72: 0 | AX72: 0 | AY72: 0 | AZ72: 2 | BA72: 0
L73: Su | M73: 5 | N73: 6 | O73: 1994 | P73: Sotkamon Jymy | Q73: - | R73: Vimpelin Veto | S73: 2 | T73: - | U73: 0 | V73: (4-3, 2-1) | W73: 1628 | X73: 6 | Y73: - | Z73: 4 | AB73: 0 | AC73: 4 | AD73: 0 | AE73: 0 | AF73: 1 | AG73: 0 | AH73: 1 | AT73: 2 | AU73: 0 | AV73: 0 | AW73: 1 | AX73: 0 | AY73: 1 | AZ73: 0 | BA73: 0
L74: Ti | M74: 7 | N74: 6 | O74: 1994 | P74: Imatran Pallo-Veikot | Q74: - | R74: Kankaanpään Maila | S74: 2 | T74: - | U74: 0 | V74: (4-1, 5-1) | W74: 1352 | X74: 9 | Y74: - | Z74: 2 | AB74: 2 | AC74: 0 | AD74: 2 | AF74: 3 | AG74: 1 | AH74: 1 | AI74: 0 | AT74: 0 | AU74: 0 | AV74: 1 | AW74: 0 | AX74: 1 | AY74: 0 | AZ74: 0 | BA74: 0
L75: Ti | M75: 7 | N75: 6 | O75: 1994 | P75: Sotkamon Jymy | Q75: - | R75: Oulun Lippo | S75: 2 | T75: - | U75: 1 | V75: (4-0, 1-5, 1-0) | W75: 3123 | X75: 6 | Y75: - | Z75: 5 | AB75: 1 | AC75: 1 | AD75: 2 | AE75: 0 | AF75: 0 | AG75: 0 | AH75: 1 | AI75: 0 | AJ75: 1 | AT75: 0 | AU75: 0 | AV75: 0 | AW75: 0 | AX75: 0 | AY75: 0 | AZ75: 0 | BA75: 5 | BB75: 0
L76: Ke | M76: 8 | N76: 6 | O76: 1994 | P76: Pattijoen Urheilijat | Q76: - | R76: Muhoksen Pallo-Salamat | S76: 1 | T76: - | U76: 1 | V76: (0-4, 12-5, 0-0) | W76: 1652 | X76: 12 | Y76: - | Z76: 9 | AB76: 0 | AC76: 0 | AD76: 0 | AE76: 0 | AF76: 2 | AG76: 3 | AH76: 5 | AI76: 2 | AJ76: 0 | AT76: 2 | AU76: 1 | AV76: 0 | AW76: 1 | AX76: 2 | AY76: 2 | AZ76: 0 | BA76: 1 | BB76: 0
L77: To | M77: 9 | N77: 6 | O77: 1994 | P77: Jyväskylän Kiri | Q77: - | R77: Kiteen Pallo-90 | S77: 1 | T77: - | U77: 1 | V77: (0-1, 6-0, 0-0) | W77: 927 | X77: 6 | Y77: - | Z77: 1 | AB77: 0 | AC77: 0 | AD77: 0 | AE77: 0 | AF77: 3 | AG77: 1 | AH77: 2 | AJ77: 0 | AT77: 0 | AU77: 0 | AV77: 1 | AX77: 0 | AY77: 0 | AZ77: 0 | BA77: 0 | BB77: 0
L78: To | M78: 9 | N78: 6 | O78: 1994 | P78: Kankaanpään Maila | Q78: - | R78: Hyvinkään Tahko | S78: 1 | T78: - | U78: 0 | V78: (1-1, 2-1) | W78: 603 | X78: 3 | Y78: - | Z78: 2 | AB78: 0 | AC78: 0 | AD78: 1 | AE78: 0 | AF78: 0 | AG78: 1 | AH78: 1 | AT78: 1 | AU78: 0 | AV78: 0 | AW78: 0 | AX78: 1 | AY78: 0 | AZ78: 0 | BA78: 0
L79: To | M79: 9 | N79: 6 | O79: 1994 | P79: Loimaan Palloilijat | Q79: - | R79: Imatran Pallo-Veikot | S79: 2 | T79: - | U79: 1 | V79: (3-2, 0-2, 1-0) | W79: 1839 | X79: 4 | Y79: - | Z79: 4 | AB79: 0 | AC79: 3 | AD79: 0 | AF79: 0 | AG79: 0 | AH79: 0 | AI79: 0 | AJ79: 1 | AT79: 0 | AU79: 0 | AV79: 2 | AW79: 0 | AX79: 2 | AY79: 0 | AZ79: 0 | BB79: 0
L80: To | M80: 9 | N80: 6 | O80: 1994 | P80: Oulun Lippo | Q80: - | R80: Sotkamon Jymy | S80: 2 | T80: - | U80: 1 | V80: (4-3, 0-3, 1-0) | W80: 3875 | X80: 5 | Y80: - | Z80: 6 | AB80: 1 | AC80: 1 | AD80: 0 | AE80: 2 | AF80: 0 | AG80: 0 | AH80: 0 | AI80: 0 | AJ80: 1 | AT80: 0 | AU80: 0 | AV80: 3 | AW80: 0 | AX80: 2 | AY80: 0 | AZ80: 1 | BB80: 0
L81: To | M81: 9 | N81: 6 | O81: 1994 | P81: Riihimäen Pallonlyöjät | Q81: - | R81: Seinäjoen Maila-Jussit | S81: 0 | T81: - | U81: 1 | V81: (1-1, 1-10) | W81: 898 | X81: 2 | Y81: - | Z81: 11 | AB81: 1 | AC81: 0 | AD81: 0 | AE81: 0 | AF81: 0 | AG81: 0 | AH81: 1 | AI81: 0 | AT81: 0 | AU81: 0 | AV81: 0 | AW81: 1 | AX81: 4 | AY81: 3 | AZ81: 3
L82: To | M82: 9 | N82: 6 | O82: 1994 | P82: Vimpelin Veto | Q82: - | R82: Alajärven Ankkurit | S82: 0 | T82: - | U82: 1 | V82: (0-3, 2-2) | W82: 1154 | X82: 2 | Y82: - | Z82: 5 | AB82: 0 | AC82: 0 | AD82: 0 | AE82: 0 | AF82: 2 | AG82: 0 | AH82: 0 | AI82: 0 | AT82: 2 | AU82: 0 | AV82: 1 | AX82: 2 | AY82: 0 | AZ82: 0 | BA82: 0
L83: La | M83: 11 | N83: 6 | O83: 1994 | P83: Alajärven Ankkurit | Q83: - | R83: Loimaan Palloilijat | S83: 2 | T83: - | U83: 0 | V83: (2-0, 8-1) | W83: 1481 | X83: 10 | Y83: - | Z83: 1 | AB83: 2 | AC83: 0 | AD83: 0 | AE83: 0 | AF83: 0 | AG83: 8 | AH83: 0 | AT83: 0 | AU83: 0 | AV83: 0 | AW83: 0 | AX83: 0 | AY83: 0 | AZ83: 1 | BA83: 0
L84: Su | M84: 12 | N84: 6 | O84: 1994 | P84: Hyvinkään Tahko | Q84: - | R84: Jyväskylän Kiri | S84: 2 | T84: - | U84: 0 | V84: (6-1, 6-2) | W84: 1993 | X84: 12 | Y84: - | Z84: 3 | AB84: 4 | AC84: 0 | AD84: 2 | AF84: 1 | AG84: 0 | AH84: 0 | AI84: 5 | AT84: 0 | AU84: 0 | AV84: 0 | AW84: 1 | AX84: 1 | AY84: 1 | AZ84: 0 | BA84: 0
L85: Su | M85: 12 | N85: 6 | O85: 1994 | P85: Kiteen Pallo-90 | Q85: - | R85: Oulun Lippo | S85: 1 | T85: - | U85: 2 | V85: (3-5, 6-2, 0-1) | W85: 1392 | X85: 9 | Y85: - | Z85: 8 | AB85: 0 | AC85: 2 | AD85: 0 | AE85: 1 | AF85: 2 | AG85: 3 | AH85: 1 | AJ85: 0 | AT85: 0 | AU85: 1 | AV85: 4 | AX85: 1 | AY85: 0 | AZ85: 0 | BA85: 1 | BB85: 1
L86: Su | M86: 12 | N86: 6 | O86: 1994 | P86: Muhoksen Pallo-Salamat | Q86: - | R86: Imatran Pallo-Veikot | S86: 0 | T86: - | U86: 1 | V86: (0-3, 2-2) | W86: 645 | X86: 2 | Y86: - | Z86: 5 | AB86: 0 | AC86: 0 | AD86: 0 | AE86: 0 | AF86: 1 | AG86: 0 | AH86: 0 | AI86: 1 | AT86: 1 | AU86: 0 | AV86: 1 | AW86: 1 | AX86: 1 | AY86: 0 | AZ86: 0 | BA86: 1
L87: Su | M87: 12 | N87: 6 | O87: 1994 | P87: Pattijoen Urheilijat | Q87: - | R87: Riihimäen Pallonlyöjät | S87: 1 | T87: - | U87: 0 | V87: (3-2, 4-4) | W87: 1388 | X87: 7 | Y87: - | Z87: 6 | AB87: 3 | AC87: 0 | AD87: 0 | AE87: 0 | AF87: 2 | AG87: 0 | AH87: 0 | AI87: 2 | AT87: 0 | AU87: 1 | AV87: 1 | AW87: 0 | AX87: 2 | AY87: 0 | AZ87: 2 | BA87: 0
L88: Su | M88: 12 | N88: 6 | O88: 1994 | P88: Sotkamon Jymy | Q88: - | R88: Kankaanpään Maila | S88: 2 | T88: - | U88: 1 | V88: (1-2, 8-1, 1-0) | W88: 2229 | X88: 10 | Y88: - | Z88: 3 | AB88: 1 | AC88: 0 | AD88: 0 | AE88: 0 | AF88: 6 | AG88: 1 | AH88: 1 | AJ88: 1 | AT88: 0 | AU88: 0 | AV88: 1 | AW88: 1 | AX88: 1 | AY88: 0 | AZ88: 0 | BA88: 0 | BB88: 0
L89: Su | M89: 12 | N89: 6 | O89: 1994 | P89: Vimpelin Veto | Q89: - | R89: Seinäjoen Maila-Jussit | S89: 1 | T89: - | U89: 2 | V89: (3-2, 1-8, 0-1) | W89: 1010 | X89: 4 | Y89: - | Z89: 11 | AB89: 1 | AC89: 1 | AD89: 0 | AE89: 1 | AF89: 1 | AG89: 0 | AH89: 0 | AI89: 0 | AJ89: 0 | AT89: 0 | AU89: 0 | AV89: 2 | AW89: 0 | AX89: 2 | AY89: 1 | AZ89: 5 | BB89: 1
L90: Ti | M90: 14 | N90: 6 | O90: 1994 | P90: Alajärven Ankkurit | Q90: - | R90: Vimpelin Veto | S90: 2 | T90: - | U90: 0 | V90: (3-1, 5-1) | W90: 1549 | X90: 8 | Y90: - | Z90: 2 | AB90: 0 | AC90: 2 | AD90: 1 | AF90: 1 | AG90: 4 | AH90: 0 | AI90: 0 | AT90: 0 | AU90: 0 | AV90: 0 | AW90: 1 | AX90: 0 | AY90: 0 | AZ90: 0 | BA90: 1
L91: Ti | M91: 14 | N91: 6 | O91: 1994 | P91: Hyvinkään Tahko | Q91: - | R91: Riihimäen Pallonlyöjät | S91: 2 | T91: - | U91: 0 | V91: (3-1, 5-2) | W91: 2356 | X91: 8 | Y91: - | Z91: 3 | AB91: 0 | AC91: 2 | AD91: 1 | AF91: 1 | AG91: 1 | AH91: 1 | AI91: 2 | AT91: 0 | AU91: 0 | AV91: 1 | AW91: 0 | AX91: 1 | AY91: 1 | AZ91: 0 | BA91: 0
L92: Ti | M92: 14 | N92: 6 | O92: 1994 | P92: Jyväskylän Kiri | Q92: - | R92: Loimaan Palloilijat | S92: 1 | T92: - | U92: 0 | V92: (2-2, 5-1) | W92: 1644 | X92: 7 | Y92: - | Z92: 3 | AB92: 0 | AC92: 0 | AD92: 1 | AE92: 1 | AF92: 2 | AG92: 3 | AH92: 0 | AT92: 0 | AU92: 1 | AV92: 1 | AW92: 0 | AX92: 1 | AY92: 0 | AZ92: 0 | BA92: 0
L93: Ti | M93: 14 | N93: 6 | O93: 1994 | P93: Kankaanpään Maila | Q93: - | R93: Pattijoen Urheilijat | S93: 1 | T93: - | U93: 1 | V93: (0-5, 4-3, 0-0) | W93: 789 | X93: 4 | Y93: - | Z93: 8 | AB93: 0 | AC93: 0 | AD93: 0 | AE93: 0 | AF93: 0 | AG93: 0 | AH93: 2 | AI93: 2 | AJ93: 0 | AT93: 0 | AU93: 3 | AV93: 2 | AX93: 3 | AY93: 0 | AZ93: 0 | BA93: 0 | BB93: 0
L94: Ti | M94: 14 | N94: 6 | O94: 1994 | P94: Kiteen Pallo-90 | Q94: - | R94: Imatran Pallo-Veikot | S94: 2 | T94: - | U94: 1 | V94: (0-9, 4-2, 1-0) | W94: 1212 | X94: 5 | Y94: - | Z94: 11 | AB94: 0 | AC94: 0 | AD94: 0 | AE94: 0 | AF94: 1 | AG94: 2 | AH94: 1 | AI94: 0 | AJ94: 1 | AT94: 1 | AU94: 4 | AV94: 4 | AW94: 0 | AX94: 0 | AY94: 1 | AZ94: 1 | BA94: 0 | BB94: 0
L95: Ti | M95: 14 | N95: 6 | O95: 1994 | P95: Seinäjoen Maila-Jussit | Q95: - | R95: Muhoksen Pallo-Salamat | S95: 1 | T95: - | U95: 0 | V95: (3-3, 3-0) | W95: 1370 | X95: 6 | Y95: - | Z95: 3 | AB95: 0 | AC95: 1 | AD95: 0 | AE95: 2 | AF95: 3 | AG95: 0 | AH95: 0 | AT95: 1 | AU95: 1 | AV95: 0 | AW95: 1 | AX95: 0 | AY95: 0 | AZ95: 0 | BA95: 0
L96: To | M96: 16 | N96: 6 | O96: 1994 | P96: Hyvinkään Tahko | Q96: - | R96: Loimaan Palloilijat | S96: 2 | T96: - | U96: 0 | V96: (8-1, 7-1) | W96: 2710 | X96: 15 | Y96: - | Z96: 2 | AB96: 4 | AC96: 0 | AD96: 4 | AF96: 5 | AG96: 1 | AH96: 0 | AI96: 1 | AT96: 0 | AU96: 1 | AV96: 0 | AW96: 0 | AX96: 0 | AY96: 0 | AZ96: 1 | BA96: 0
L97: To | M97: 16 | N97: 6 | O97: 1994 | P97: Jyväskylän Kiri | Q97: - | R97: Seinäjoen Maila-Jussit | S97: 1 | T97: - | U97: 2 | V97: (1-0, 2-3, 0-3) | W97: 1332 | X97: 3 | Y97: - | Z97: 6 | AB97: 0 | AC97: 1 | AD97: 0 | AF97: 1 | AG97: 0 | AH97: 0 | AI97: 1 | AJ97: 0 | AT97: 0 | AU97: 0 | AV97: 0 | AW97: 0 | AX97: 0 | AY97: 0 | AZ97: 2 | BA97: 1 | BB97: 3
L98: To | M98: 16 | N98: 6 | O98: 1994 | P98: Kiteen Pallo-90 | Q98: - | R98: Muhoksen Pallo-Salamat | S98: 2 | T98: - | U98: 1 | V98: (4-2, 2-4, 1-0) | W98: 1023 | X98: 7 | Y98: - | Z98: 6 | AB98: 0 | AC98: 1 | AD98: 3 | AF98: 0 | AG98: 1 | AH98: 0 | AI98: 1 | AJ98: 1 | AT98: 0 | AU98: 1 | AV98: 0 | AW98: 1 | AX98: 0 | AY98: 1 | AZ98: 1 | BA98: 2 | BB98: 0
L99: To | M99: 16 | N99: 6 | O99: 1994 | P99: Oulun Lippo | Q99: - | R99: Vimpelin Veto | S99: 2 | T99: - | U99: 0 | V99: (6-3, 4-0) | W99: 2823 | X99: 10 | Y99: - | Z99: 3 | AB99: 5 | AC99: 0 | AD99: 1 | AE99: 0 | AF99: 0 | AG99: 3 | AH99: 1 | AT99: 0 | AU99: 3 | AV99: 0 | AW99: 0 | AX99: 0 | AY99: 0 | AZ99: 0 | BA99: 0
L100: To | M100: 16 | N100: 6 | O100: 1994 | P100: Pattijoen Urheilijat | Q100: - | R100: Alajärven Ankkurit | S100: 1 | T100: - | U100: 2 | V100: (3-9, 2-0, 0-1) | W100: 2149 | X100: 5 | Y100: - | Z100: 10 | AB100: 1 | AC100: 0 | AD100: 1 | AE100: 1 | AF100: 0 | AG100: 2 | AH100: 0 | AI100: 0 | AJ100: 0 | AT100: 4 | AU100: 0 | AV100: 0 | AW100: 5 | AX100: 0 | AY100: 0 | AZ100: 0 | BA100: 0 | BB100: 1
L101: To | M101: 16 | N101: 6 | O101: 1994 | P101: Sotkamon Jymy | Q101: - | R101: Imatran Pallo-Veikot | S101: 2 | T101: - | U101: 0 | V101: (3-1, 5-0) | W101: 3351 | X101: 8 | Y101: - | Z101: 1 | AB101: 2 | AC101: 1 | AD101: 0 | AF101: 0 | AG101: 4 | AH101: 1 | AI101: 0 | AT101: 1 | AU101: 0 | AV101: 0 | AW101: 0 | AX101: 0 | AY101: 0 | AZ101: 0 | BA101: 0
L102: Su | M102: 19 | N102: 6 | O102: 1994 | P102: Hyvinkään Tahko | Q102: - | R102: Kiteen Pallo-90 | S102: 2 | T102: - | U102: 0 | V102: (8-2, 22-0) | W102: 2370 | X102: 30 | Y102: - | Z102: 2 | AB102: 6 | AC102: 1 | AD102: 1 | AF102: 3 | AG102: 1 | AH102: 18 | AI102: 0 | AT102: 0 | AU102: 0 | AV102: 0 | AW102: 2 | AX102: 0 | AY102: 0 | AZ102: 0 | BA102: 0
L103: Su | M103: 19 | N103: 6 | O103: 1994 | P103: Imatran Pallo-Veikot | Q103: - | R103: Alajärven Ankkurit | S103: 1 | T103: - | U103: 2 | V103: (5-1, 2-3, 1-2) | W103: 1629 | X103: 8 | Y103: - | Z103: 6 | AB103: 0 | AC103: 1 | AD103: 0 | AE103: 4 | AF103: 2 | AG103: 0 | AH103: 0 | AI103: 0 | AJ103: 1 | AT103: 0 | AU103: 0 | AV103: 0 | AW103: 1 | AX103: 0 | AY103: 0 | AZ103: 0 | BA103: 3 | BB103: 2
L104: Su | M104: 19 | N104: 6 | O104: 1994 | P104: Loimaan Palloilijat | Q104: - | R104: Sotkamon Jymy | S104: 0 | T104: - | U104: 1 | V104: (0-2, 3-3) | W104: 1515 | X104: 3 | Y104: - | Z104: 5 | AB104: 0 | AC104: 0 | AD104: 0 | AE104: 0 | AF104: 0 | AG104: 3 | AH104: 0 | AI104: 0 | AT104: 0 | AU104: 0 | AV104: 1 | AW104: 1 | AX104: 2 | AY104: 1 | AZ104: 0
L105: Su | M105: 19 | N105: 6 | O105: 1994 | P105: Muhoksen Pallo-Salamat | Q105: - | R105: Riihimäen Pallonlyöjät | S105: 2 | T105: - | U105: 0 | V105: (5-4, 6-2) | W105: 698 | X105: 11 | Y105: - | Z105: 6 | AB105: 1 | AC105: 2 | AD105: 1 | AE105: 1 | AF105: 1 | AG105: 1 | AH105: 4 | AI105: 0 | AT105: 1 | AU105: 1 | AV105: 2 | AW105: 0 | AX105: 0 | AY105: 0 | AZ105: 0 | BA105: 2
L106: Su | M106: 19 | N106: 6 | O106: 1994 | P106: Pattijoen Urheilijat | Q106: - | R106: Oulun Lippo | S106: 0 | T106: - | U106: 2 | V106: (2-7, 0-11) | W106: 2362 | X106: 2 | Y106: - | Z106: 18 | AB106: 1 | AC106: 0 | AD106: 1 | AE106: 0 | AF106: 0 | AG106: 0 | AH106: 0 | AI106: 0 | AT106: 3 | AU106: 0 | AV106: 3 | AW106: 1 | AX106: 1 | AY106: 3 | AZ106: 7
L107: Su | M107: 19 | N107: 6 | O107: 1994 | P107: Seinäjoen Maila-Jussit | Q107: - | R107: Jyväskylän Kiri | S107: 0 | T107: - | U107: 1 | V107: (1-7, 2-2) | W107: 1865 | X107: 3 | Y107: - | Z107: 9 | AB107: 1 | AC107: 0 | AD107: 0 | AE107: 0 | AF107: 0 | AG107: 0 | AH107: 2 | AI107: 0 | AT107: 2 | AU107: 3 | AV107: 2 | AX107: 0 | AY107: 1 | AZ107: 0 | BA107: 1
L108: Su | M108: 19 | N108: 6 | O108: 1994 | P108: Vimpelin Veto | Q108: - | R108: Kankaanpään Maila | S108: 1 | T108: - | U108: 1 | V108: (6-7, 4-2, 0-0) | W108: 698 | X108: 10 | Y108: - | Z108: 9 | AB108: 2 | AC108: 1 | AD108: 3 | AE108: 0 | AF108: 0 | AG108: 4 | AH108: 0 | AJ108: 0 | AT108: 1 | AU108: 3 | AV108: 0 | AW108: 3 | AX108: 0 | AY108: 0 | AZ108: 2 | BA108: 0 | BB108: 0
L109: Ti | M109: 21 | N109: 6 | O109: 1994 | P109: Alajärven Ankkurit | Q109: - | R109: Riihimäen Pallonlyöjät | S109: 2 | T109: - | U109: 0 | V109: (2-0, 9-2) | W109: 1106 | X109: 11 | Y109: - | Z109: 2 | AB109: 2 | AC109: 0 | AD109: 0 | AF109: 0 | AG109: 2 | AH109: 3 | AI109: 4 | AT109: 0 | AU109: 0 | AV109: 0 | AW109: 0 | AX109: 0 | AY109: 1 | AZ109: 0 | BA109: 1
L110: Ti | M110: 21 | N110: 6 | O110: 1994 | P110: Oulun Lippo | Q110: - | R110: Jyväskylän Kiri | S110: 2 | T110: - | U110: 0 | V110: (5-2, 3-1) | W110: 3051 | X110: 8 | Y110: - | Z110: 3 | AB110: 2 | AC110: 0 | AD110: 3 | AF110: 1 | AG110: 0 | AH110: 1 | AI110: 1 | AT110: 0 | AU110: 1 | AV110: 0 | AW110: 1 | AX110: 0 | AY110: 0 | AZ110: 1 | BA110: 0
L111: Ke | M111: 22 | N111: 6 | O111: 1994 | P111: Imatran Pallo-Veikot | Q111: - | R111: Kiteen Pallo-90 | S111: 0 | T111: - | U111: 1 | V111: (1-1, 1-2) | W111: 681 | X111: 2 | Y111: - | Z111: 3 | AB111: 0 | AC111: 0 | AD111: 0 | AE111: 1 | AF111: 0 | AG111: 0 | AH111: 1 | AI111: 0 | AT111: 0 | AU111: 1 | AV111: 0 | AW111: 0 | AX111: 0 | AY111: 1 | AZ111: 0 | BA111: 1
L112: Ke | M112: 22 | N112: 6 | O112: 1994 | P112: Kankaanpään Maila | Q112: - | R112: Loimaan Palloilijat | S112: 0 | T112: - | U112: 1 | V112: (4-5, 1-1) | W112: 417 | X112: 5 | Y112: - | Z112: 6 | AB112: 0 | AC112: 1 | AD112: 1 | AE112: 2 | AF112: 0 | AG112: 0 | AH112: 0 | AI112: 1 | AT112: 1 | AU112: 3 | AV112: 0 | AW112: 1 | AX112: 1 | AY112: 0 | AZ112: 0 | BA112: 0
L113: Ke | M113: 22 | N113: 6 | O113: 1994 | P113: Muhoksen Pallo-Salamat | Q113: - | R113: Pattijoen Urheilijat | S113: 0 | T113: - | U113: 1 | V113: (4-6, 8-8) | W113: 2114 | X113: 12 | Y113: - | Z113: 14 | AB113: 0 | AC113: 0 | AD113: 2 | AE113: 2 | AF113: 6 | AG113: 2 | AH113: 0 | AI113: 0 | AT113: 0 | AU113: 0 | AV113: 6 | AX113: 5 | AY113: 0 | AZ113: 3 | BA113: 0
L114: Ke | M114: 22 | N114: 6 | O114: 1994 | P114: Sotkamon Jymy | Q114: - | R114: Seinäjoen Maila-Jussit | S114: 2 | T114: - | U114: 0 | V114: (4-0, 6-1) | W114: 2440 | X114: 10 | Y114: - | Z114: 1 | AB114: 0 | AC114: 0 | AD114: 1 | AE114: 3 | AF114: 5 | AG114: 0 | AH114: 1 | AT114: 0 | AU114: 0 | AV114: 0 | AW114: 0 | AX114: 0 | AY114: 0 | AZ114: 0 | BA114: 1
L115: Ke | M115: 22 | N115: 6 | O115: 1994 | P115: Vimpelin Veto | Q115: - | R115: Hyvinkään Tahko | S115: 0 | T115: - | U115: 2 | V115: (0-2, 1-5) | W115: 538 | X115: 1 | Y115: - | Z115: 7 | AB115: 0 | AC115: 0 | AD115: 0 | AE115: 0 | AF115: 0 | AG115: 0 | AH115: 0 | AI115: 1 | AT115: 0 | AU115: 0 | AV115: 2 | AX115: 2 | AY115: 2 | AZ115: 1 | BA115: 0
Q116: - | R116: Yhteensä | S116: 111 | T116: - | U116: 96 | W116: 182666 | X116: 699 | Y116: - | Z116: 655
Q117: - | R117: Keskiarvo | S117: 1.0 | T117: - | U117: 0.9 | W117: 1631 | X117: 6.2 | Y117: - | Z117: 5.8
B120: LOPPUSARJA 1994 | C120: O | D120: 3P | E120: 2P | F120: 1P | G120: 0P | H120: JUOKSUT | K120: PIST | P120: LOPPUSARJA 1994 | T120: JAKSOT | V120: JAKSOTULOS | W120: YLEISÖ | Y120: JUOKSUT | AB120: I JAKSO | AF120: II JAKSO | AJ120: S | AK120: K | AT120: I JAKSO | AX120: II JAKSO | BB120: S | BC120: K | BI120: h | BJ120: min
A121: 1 | B121: Oulun Lippo | C121: 18 | D121: 11 | E121: 1 | F121: 4 | G121: 2 | H121: 138 | I121: - | J121: 76 | K121: 44 | L121: Su | M121: 3 | N121: 7 | O121: 1994 | P121: Hyvinkään Tahko | Q121: - | R121: Alajärven Ankkurit | S121: 2 | T121: - | U121: 1 | V121: (9-1, 2-6, 1-0) | W121: 2964 | X121: 12 | Y121: - | Z121: 7 | AB121: 5 | AC121: 3 | AD121: 1 | AF121: 1 | AG121: 0 | AH121: 0 | AI121: 1 | AJ121: 1 | AT121: 0 | AU121: 0 | AV121: 0 | AW121: 1 | AX121: 1 | AY121: 3 | AZ121: 2 | BB121: 0
A122: 2 | B122: Sotkamon Jymy | C122: 18 | D122: 12 | E122: 1 | F122: 1 | G122: 4 | H122: 118 | I122: - | J122: 96 | K122: 42 | L122: Su | M122: 3 | N122: 7 | O122: 1994 | P122: Imatran Pallo-Veikot | Q122: - | R122: Pattijoen Urheilijat | S122: 2 | T122: - | U122: 0 | V122: (8-0, 9-0) | W122: 1272 | X122: 17 | Y122: - | Z122: 0 | AB122: 2 | AC122: 0 | AD122: 6 | AF122: 2 | AG122: 0 | AH122: 0 | AI122: 7 | AT122: 0 | AU122: 0 | AV122: 0 | AW122: 0 | AX122: 0 | AY122: 0 | AZ122: 0 | BA122: 0
A123: 3 | B123: Hyvinkään Tahko | C123: 18 | D123: 7 | E123: 5 | F123: 3 | G123: 3 | H123: 144 | I123: - | J123: 106 | K123: 40 | L123: Su | M123: 3 | N123: 7 | O123: 1994 | P123: Jyväskylän Kiri | Q123: - | R123: Kiteen Pallo-90 | S123: 0 | T123: - | U123: 2 | V123: (0-2, 1-2) | W123: 2286 | X123: 1 | Y123: - | Z123: 4 | AB123: 0 | AC123: 0 | AD123: 0 | AE123: 0 | AF123: 0 | AG123: 0 | AH123: 1 | AI123: 0 | AT123: 1 | AU123: 1 | AV123: 0 | AX123: 0 | AY123: 1 | AZ123: 0 | BA123: 1
A124: 4 | B124: Alajärven Ankkurit | C124: 18 | D124: 7 | E124: 1 | F124: 5 | G124: 5 | H124: 134 | I124: - | J124: 104 | K124: 32 | L124: Su | M124: 3 | N124: 7 | O124: 1994 | P124: Oulun Lippo | Q124: - | R124: Seinäjoen Maila-Jussit | S124: 1 | T124: - | U124: 0 | V124: (2-0, 3-3) | W124: 2670 | X124: 5 | Y124: - | Z124: 3 | AB124: 0 | AC124: 1 | AD124: 0 | AE124: 1 | AF124: 1 | AG124: 0 | AH124: 0 | AI124: 2 | AT124: 0 | AU124: 0 | AV124: 0 | AW124: 0 | AX124: 0 | AY124: 1 | AZ124: 2 | BA124: 0
A125: 5 | B125: Kiteen Pallo-90 | C125: 18 | D125: 6 | E125: 3 | F125: 3 | G125: 6 | H125: 102 | I125: - | J125: 121 | K125: 27 | L125: Su | M125: 3 | N125: 7 | O125: 1994 | P125: Sotkamon Jymy | Q125: - | R125: Loimaan Palloilijat | S125: 1 | T125: - | U125: 0 | V125: (1-1, 3-1) | W125: 3321 | X125: 4 | Y125: - | Z125: 2 | AB125: 0 | AC125: 0 | AD125: 1 | AE125: 0 | AF125: 3 | AG125: 0 | AH125: 0 | AT125: 1 | AU125: 0 | AV125: 0 | AW125: 0 | AX125: 0 | AY125: 0 | AZ125: 0 | BA125: 1
A126: 6 | B126: Loimaan Palloilijat | C126: 18 | D126: 6 | E126: 1 | F126: 4 | G126: 7 | H126: 100 | I126: - | J126: 128 | K126: 26 | L126: Ke | M126: 6 | N126: 7 | O126: 1994 | P126: Seinäjoen Maila-Jussit | Q126: - | R126: Pattijoen Urheilijat | S126: 1 | T126: - | U126: 1 | V126: (2-5, 6-0, 0-0) | W126: 2610 | X126: 8 | Y126: - | Z126: 5 | AB126: 1 | AC126: 0 | AD126: 1 | AE126: 0 | AF126: 2 | AG126: 0 | AH126: 0 | AI126: 4 | AJ126: 0 | AT126: 1 | AU126: 4 | AV126: 0 | AW126: 0 | AX126: 0 | AY126: 0 | AZ126: 0 | BA126: 0 | BB126: 0
A127: 7 | B127: Imatran Pallo-Veikot | C127: 18 | D127: 5 | E127: 1 | F127: 3 | G127: 9 | H127: 101 | I127: - | J127: 125 | K127: 20 | L127: To | M127: 7 | N127: 7 | O127: 1994 | P127: Alajärven Ankkurit | Q127: - | R127: Kiteen Pallo-90 | S127: 1 | T127: - | U127: 2 | V127: (5-0, 3-4, 0-1) | W127: 1538 | X127: 8 | Y127: - | Z127: 5 | AB127: 1 | AC127: 3 | AD127: 0 | AE127: 1 | AF127: 1 | AG127: 0 | AH127: 0 | AI127: 2 | AJ127: 0 | AT127: 0 | AU127: 0 | AV127: 0 | AW127: 0 | AX127: 0 | AY127: 4 | AZ127: 0 | BA127: 0 | BB127: 1
A128: 8 | B128: Jyväskylän Kiri | C128: 18 | D128: 5 | E128: 0 | F128: 5 | G128: 8 | H128: 82 | I128: - | J128: 96 | K128: 20 | L128: To | M128: 7 | N128: 7 | O128: 1994 | P128: Imatran Pallo-Veikot | Q128: - | R128: Hyvinkään Tahko | S128: 0 | T128: - | U128: 1 | V128: (3-3, 0-7) | W128: 2300 | X128: 3 | Y128: - | Z128: 10 | AB128: 0 | AC128: 2 | AD128: 1 | AE128: 0 | AF128: 0 | AG128: 0 | AH128: 0 | AI128: 0 | AT128: 2 | AU128: 1 | AV128: 0 | AW128: 0 | AX128: 1 | AY128: 0 | AZ128: 6 | BA128: 0
A129: 9 | B129: Seinäjoen Maila-Jussit | C129: 18 | D129: 4 | E129: 1 | F129: 4 | G129: 9 | H129: 99 | I129: - | J129: 95 | K129: 19 | L129: To | M129: 7 | N129: 7 | O129: 1994 | P129: Loimaan Palloilijat | Q129: - | R129: Jyväskylän Kiri | S129: 2 | T129: - | U129: 0 | V129: (1-0, 5-1) | W129: 1837 | X129: 6 | Y129: - | Z129: 1 | AB129: 0 | AC129: 0 | AD129: 0 | AE129: 1 | AF129: 0 | AG129: 4 | AH129: 1 | AI129: 0 | AT129: 0 | AU129: 0 | AV129: 0 | AW129: 0 | AX129: 0 | AY129: 1 | AZ129: 0 | BA129: 0
A130: 10 | B130: Pattijoen Urheilijat | C130: 18 | D130: 3 | E130: 1 | F130: 1 | G130: 13 | H130: 90 | I130: - | J130: 161 | K130: 12 | L130: To | M130: 7 | N130: 7 | O130: 1994 | P130: Sotkamon Jymy | Q130: - | R130: Oulun Lippo | S130: 1 | T130: - | U130: 0 | V130: (6-2, 3-3) | W130: 4591 | X130: 9 | Y130: - | Z130: 5 | AB130: 1 | AC130: 1 | AD130: 4 | AF130: 1 | AG130: 0 | AH130: 0 | AI130: 2 | AT130: 1 | AU130: 0 | AV130: 0 | AW130: 1 | AX130: 0 | AY130: 2 | AZ130: 1 | BA130: 0
L131: Su | M131: 10 | N131: 7 | O131: 1994 | P131: Alajärven Ankkurit | Q131: - | R131: Seinäjoen Maila-Jussit | S131: 1 | T131: - | U131: 1 | V131: (3-4, 3-1, 0-0) | W131: 2316 | X131: 6 | Y131: - | Z131: 5 | AB131: 1 | AC131: 0 | AD131: 0 | AE131: 2 | AF131: 2 | AG131: 1 | AH131: 0 | AJ131: 0 | AT131: 0 | AU131: 1 | AV131: 3 | AX131: 0 | AY131: 1 | AZ131: 0 | BA131: 0 | BB131: 0
B132: 1 - 4 sijoittuneet välieriin | L132: Su | M132: 10 | N132: 7 | O132: 1994 | P132: Kiteen Pallo-90 | Q132: - | R132: Loimaan Palloilijat | S132: 0 | T132: - | U132: 2 | V132: (2-3, 2-3) | W132: 1504 | X132: 4 | Y132: - | Z132: 6 | AB132: 1 | AC132: 1 | AD132: 0 | AE132: 0 | AF132: 1 | AG132: 0 | AH132: 0 | AI132: 1 | AT132: 0 | AU132: 2 | AV132: 1 | AX132: 0 | AY132: 2 | AZ132: 0 | BA132: 1
L133: Su | M133: 10 | N133: 7 | O133: 1994 | P133: Oulun Lippo | Q133: - | R133: Hyvinkään Tahko | S133: 1 | T133: - | U133: 1 | V133: (2-0, 3-4, 0-0) | W133: 3712 | X133: 5 | Y133: - | Z133: 4 | AB133: 0 | AC133: 0 | AD133: 0 | AE133: 2 | AF133: 0 | AG133: 2 | AH133: 1 | AI133: 0 | AJ133: 0 | AT133: 0 | AU133: 0 | AV133: 0 | AW133: 0 | AX133: 0 | AY133: 1 | AZ133: 1 | BA133: 2 | BB133: 0
B134: Hyvityspisteet | L134: Su | M134: 10 | N134: 7 | O134: 1994 | P134: Pattijoen Urheilijat | Q134: - | R134: Jyväskylän Kiri | S134: 0 | T134: - | U134: 2 | V134: (7-8, 1-10) | W134: 1439 | X134: 8 | Y134: - | Z134: 18 | AB134: 0 | AC134: 2 | AD134: 5 | AE134: 0 | AF134: 0 | AG134: 0 | AH134: 0 | AI134: 1 | AT134: 2 | AU134: 4 | AV134: 1 | AW134: 1 | AX134: 1 | AY134: 2 | AZ134: 3 | BA134: 4
B135: Hyvinkään Tahko | C135: 6 | L135: Su | M135: 10 | N135: 7 | O135: 1994 | P135: Sotkamon Jymy | Q135: - | R135: Imatran Pallo-Veikot | S135: 1 | T135: - | U135: 0 | V135: (1-1, 4-1) | W135: 3339 | X135: 5 | Y135: - | Z135: 2 | AB135: 0 | AC135: 0 | AD135: 0 | AE135: 1 | AF135: 0 | AG135: 3 | AH135: 1 | AT135: 0 | AU135: 0 | AV135: 0 | AW135: 1 | AX135: 0 | AY135: 0 | AZ135: 1 | BA135: 0
B136: Oulun Lippo | C136: 5 | L136: To | M136: 14 | N136: 7 | O136: 1994 | P136: Hyvinkään Tahko | Q136: - | R136: Loimaan Palloilijat | S136: 2 | T136: - | U136: 1 | V136: (2-8, 8-5, 1-0) | W136: 2576 | X136: 11 | Y136: - | Z136: 13 | AB136: 0 | AC136: 1 | AD136: 0 | AE136: 1 | AF136: 3 | AG136: 0 | AH136: 1 | AI136: 4 | AJ136: 1 | AT136: 2 | AU136: 1 | AV136: 2 | AW136: 3 | AX136: 4 | AY136: 0 | AZ136: 1 | BA136: 0 | BB136: 0
B137: Alajärven Ankkurit | C137: 4 | L137: To | M137: 14 | N137: 7 | O137: 1994 | P137: Jyväskylän Kiri | Q137: - | R137: Oulun Lippo | S137: 1 | T137: - | U137: 1 | V137: (0-5, 5-0, 0-0) | W137: 1480 | X137: 5 | Y137: - | Z137: 5 | AB137: 0 | AC137: 0 | AD137: 0 | AE137: 0 | AF137: 1 | AG137: 1 | AH137: 3 | AJ137: 0 | AT137: 4 | AU137: 1 | AV137: 0 | AX137: 0 | AY137: 0 | AZ137: 0 | BA137: 0 | BB137: 0
B138: Sotkamon Jymy | C138: 3 | L138: To | M138: 14 | N138: 7 | O138: 1994 | P138: Pattijoen Urheilijat | Q138: - | R138: Alajärven Ankkurit | S138: 0 | T138: - | U138: 2 | V138: (2-4, 2-6) | W138: 1305 | X138: 4 | Y138: - | Z138: 10 | AB138: 2 | AC138: 0 | AD138: 0 | AE138: 0 | AF138: 0 | AG138: 1 | AH138: 0 | AI138: 1 | AT138: 1 | AU138: 0 | AV138: 3 | AX138: 0 | AY138: 0 | AZ138: 5 | BA138: 1
B139: Loimaan Palloilijat | C139: 2 | L139: To | M139: 14 | N139: 7 | O139: 1994 | P139: Seinäjoen Maila-Jussit | Q139: - | R139: Imatran Pallo-Veikot | S139: 2 | T139: - | U139: 0 | V139: (13-2, 2-0) | W139: 1810 | X139: 15 | Y139: - | Z139: 2 | AB139: 5 | AC139: 4 | AD139: 4 | AE139: 0 | AF139: 1 | AG139: 1 | AH139: 0 | AT139: 2 | AU139: 0 | AV139: 0 | AW139: 0 | AX139: 0 | AY139: 0 | AZ139: 0 | BA139: 0
B140: Seinäjoen Maila-Jussit | C140: 1 | L140: To | M140: 14 | N140: 7 | O140: 1994 | P140: Sotkamon Jymy | Q140: - | R140: Kiteen Pallo-90 | S140: 1 | T140: - | U140: 0 | V140: (4-4, 3-0) | W140: 4119 | X140: 7 | Y140: - | Z140: 4 | AB140: 0 | AC140: 1 | AD140: 0 | AE140: 3 | AF140: 2 | AG140: 0 | AH140: 1 | AT140: 0 | AU140: 3 | AV140: 1 | AW140: 0 | AX140: 0 | AY140: 0 | AZ140: 0 | BA140: 0
L141: Su | M141: 17 | N141: 7 | O141: 1994 | P141: Alajärven Ankkurit | Q141: - | R141: Sotkamon Jymy | S141: 0 | T141: - | U141: 2 | V141: (2-3, 4-5) | W141: 2645 | X141: 6 | Y141: - | Z141: 8 | AB141: 0 | AC141: 1 | AD141: 0 | AE141: 1 | AF141: 3 | AG141: 0 | AH141: 0 | AI141: 1 | AT141: 1 | AU141: 1 | AV141: 0 | AW141: 1 | AX141: 3 | AY141: 2 | AZ141: 0 | BA141: 0
L142: Su | M142: 17 | N142: 7 | O142: 1994 | P142: Imatran Pallo-Veikot | Q142: - | R142: Oulun Lippo | S142: 1 | T142: - | U142: 2 | V142: (2-9, 1-0, 0-1) | W142: 1206 | X142: 3 | Y142: - | Z142: 10 | AB142: 0 | AC142: 0 | AD142: 2 | AE142: 0 | AF142: 0 | AG142: 1 | AH142: 0 | AI142: 0 | AJ142: 0 | AT142: 0 | AU142: 1 | AV142: 0 | AW142: 8 | AX142: 0 | AY142: 0 | AZ142: 0 | BA142: 0 | BB142: 1
L143: Su | M143: 17 | N143: 7 | O143: 1994 | P143: Jyväskylän Kiri | Q143: - | R143: Hyvinkään Tahko | S143: 0 | T143: - | U143: 1 | V143: (0-0, 0-3) | W143: 1861 | X143: 0 | Y143: - | Z143: 3 | AB143: 0 | AC143: 0 | AD143: 0 | AE143: 0 | AF143: 0 | AG143: 0 | AH143: 0 | AI143: 0 | AT143: 0 | AU143: 0 | AV143: 0 | AW143: 0 | AX143: 0 | AY143: 2 | AZ143: 0 | BA143: 1
L144: Su | M144: 17 | N144: 7 | O144: 1994 | P144: Kiteen Pallo-90 | Q144: - | R144: Seinäjoen Maila-Jussit | S144: 1 | T144: - | U144: 0 | V144: (1-1, 3-0) | W144: 1423 | X144: 4 | Y144: - | Z144: 1 | AB144: 0 | AC144: 0 | AD144: 1 | AE144: 0 | AF144: 1 | AG144: 2 | AH144: 0 | AI144: 0 | AT144: 1 | AU144: 0 | AV144: 0 | AW144: 0 | AX144: 0 | AY144: 0 | AZ144: 0 | BA144: 0
L145: Su | M145: 17 | N145: 7 | O145: 1994 | P145: Loimaan Palloilijat | Q145: - | R145: Pattijoen Urheilijat | S145: 0 | T145: - | U145: 1 | V145: (2-2, 1-4) | W145: 2075 | X145: 3 | Y145: - | Z145: 6 | AB145: 1 | AC145: 0 | AD145: 0 | AE145: 1 | AF145: 1 | AG145: 0 | AH145: 0 | AI145: 0 | AT145: 2 | AU145: 0 | AV145: 0 | AW145: 0 | AX145: 0 | AY145: 1 | AZ145: 3
L146: Ti | M146: 19 | N146: 7 | O146: 1994 | P146: Hyvinkään Tahko | Q146: - | R146: Sotkamon Jymy | S146: 1 | T146: - | U146: 0 | V146: (3-3, 8-2) | W146: 3961 | X146: 11 | Y146: - | Z146: 5 | AB146: 3 | AC146: 0 | AD146: 0 | AE146: 0 | AF146: 2 | AG146: 2 | AH146: 0 | AI146: 4 | AT146: 1 | AU146: 1 | AV146: 0 | AW146: 1 | AX146: 0 | AY146: 0 | AZ146: 1 | BA146: 1
L147: Ti | M147: 19 | N147: 7 | O147: 1994 | P147: Kiteen Pallo-90 | Q147: - | R147: Imatran Pallo-Veikot | S147: 1 | T147: - | U147: 0 | V147: (1-1, 2-0) | W147: 1703 | X147: 3 | Y147: - | Z147: 1 | AB147: 0 | AC147: 0 | AD147: 1 | AE147: 0 | AF147: 0 | AG147: 2 | AH147: 0 | AT147: 0 | AU147: 0 | AV147: 0 | AW147: 1 | AX147: 0 | AY147: 0 | AZ147: 0 | BA147: 0
L148: Ti | M148: 19 | N148: 7 | O148: 1994 | P148: Loimaan Palloilijat | Q148: - | R148: Alajärven Ankkurit | S148: 0 | T148: - | U148: 1 | V148: (5-5, 2-2, 0-2) | W148: 2704 | X148: 7 | Y148: - | Z148: 9 | AB148: 0 | AC148: 4 | AD148: 0 | AE148: 1 | AF148: 0 | AG148: 0 | AH148: 2 | AI148: 0 | AJ148: 0 | AT148: 1 | AU148: 2 | AV148: 2 | AW148: 0 | AX148: 0 | AY148: 0 | AZ148: 2 | BA148: 0 | BB148: 2
L149: Ti | M149: 19 | N149: 7 | O149: 1994 | P149: Pattijoen Urheilijat | Q149: - | R149: Oulun Lippo | S149: 0 | T149: - | U149: 1 | V149: (1-6, 1-1) | W149: 1940 | X149: 2 | Y149: - | Z149: 7 | AB149: 0 | AC149: 0 | AD149: 1 | AE149: 0 | AF149: 1 | AG149: 0 | AH149: 0 | AI149: 0 | AT149: 2 | AU149: 1 | AV149: 2 | AW149: 1 | AX149: 0 | AY149: 1 | AZ149: 0
L150: Ti | M150: 19 | N150: 7 | O150: 1994 | P150: Seinäjoen Maila-Jussit | Q150: - | R150: Jyväskylän Kiri | S150: 0 | T150: - | U150: 1 | V150: (0-0, 3-3, 1-2) | W150: 1070 | X150: 4 | Y150: - | Z150: 5 | AB150: 0 | AC150: 0 | AD150: 0 | AE150: 0 | AF150: 0 | AG150: 3 | AH150: 0 | AI150: 0 | AJ150: 1 | AT150: 0 | AU150: 0 | AV150: 0 | AW150: 0 | AX150: 0 | AY150: 0 | AZ150: 0 | BA150: 3 | BB150: 2
L151: To | M151: 21 | N151: 7 | O151: 1994 | P151: Alajärven Ankkurit | Q151: - | R151: Imatran Pallo-Veikot | S151: 2 | T151: - | U151: 0 | V151: (8-2, 7-6) | W151: 1841 | X151: 15 | Y151: - | Z151: 8 | AB151: 6 | AC151: 0 | AD151: 2 | AF151: 0 | AG151: 5 | AH151: 2 | AI151: 0 | AT151: 2 | AU151: 0 | AV151: 0 | AW151: 0 | AX151: 0 | AY151: 1 | AZ151: 2 | BA151: 3
L152: To | M152: 21 | N152: 7 | O152: 1994 | P152: Hyvinkään Tahko | Q152: - | R152: Seinäjoen Maila-Jussit | S152: 2 | T152: - | U152: 0 | V152: (5-3, 5-4) | W152: 1660 | X152: 10 | Y152: - | Z152: 7 | AB152: 1 | AC152: 0 | AD152: 0 | AE152: 4 | AF152: 5 | AG152: 0 | AH152: 0 | AI152: 0 | AT152: 0 | AU152: 0 | AV152: 0 | AW152: 3 | AX152: 1 | AY152: 1 | AZ152: 2 | BA152: 0
L153: To | M153: 21 | N153: 7 | O153: 1994 | P153: Jyväskylän Kiri | Q153: - | R153: Sotkamon Jymy | S153: 1 | T153: - | U153: 2 | V153: (1-2, 3-2, 0-1) | W153: 2261 | X153: 4 | Y153: - | Z153: 5 | AB153: 0 | AC153: 1 | AD153: 0 | AE153: 0 | AF153: 1 | AG153: 0 | AH153: 2 | AJ153: 0 | AT153: 1 | AU153: 0 | AV153: 0 | AW153: 1 | AX153: 1 | AY153: 0 | AZ153: 0 | BA153: 1 | BB153: 1
L154: To | M154: 21 | N154: 7 | O154: 1994 | P154: Oulun Lippo | Q154: - | R154: Loimaan Palloilijat | S154: 2 | T154: - | U154: 0 | V154: (6-5, 3-0) | W154: 3140 | X154: 9 | Y154: - | Z154: 5 | AB154: 1 | AC154: 3 | AD154: 1 | AE154: 1 | AF154: 0 | AG154: 0 | AH154: 3 | AT154: 2 | AU154: 2 | AV154: 1 | AW154: 0 | AX154: 0 | AY154: 0 | AZ154: 0 | BA154: 0
L155: To | M155: 21 | N155: 7 | O155: 1994 | P155: Pattijoen Urheilijat | Q155: - | R155: Kiteen Pallo-90 | S155: 2 | T155: - | U155: 1 | V155: (5-0, 6-10, 1-0) | W155: 1564 | X155: 12 | Y155: - | Z155: 10 | AB155: 2 | AC155: 0 | AD155: 3 | AF155: 1 | AG155: 4 | AH155: 0 | AI155: 1 | AJ155: 1 | AT155: 0 | AU155: 0 | AV155: 0 | AW155: 0 | AX155: 1 | AY155: 8 | AZ155: 1 | BB155: 0
L156: Ti | M156: 26 | N156: 7 | O156: 1994 | P156: Hyvinkään Tahko | Q156: - | R156: Kiteen Pallo-90 | S156: 2 | T156: - | U156: 1 | V156: (2-6, 3-2, 7-0) | W156: 2079 | X156: 12 | Y156: - | Z156: 8 | AB156: 0 | AC156: 1 | AD156: 1 | AE156: 0 | AF156: 1 | AG156: 2 | AH156: 0 | AI156: 0 | AJ156: 7 | AT156: 1 | AU156: 1 | AV156: 3 | AW156: 1 | AX156: 1 | AY156: 0 | AZ156: 0 | BA156: 1 | BB156: 0
L157: Ti | M157: 26 | N157: 7 | O157: 1994 | P157: Jyväskylän Kiri | Q157: - | R157: Imatran Pallo-Veikot | S157: 0 | T157: - | U157: 1 | V157: (2-2, 0-1) | W157: 1376 | X157: 2 | Y157: - | Z157: 3 | AB157: 1 | AC157: 0 | AD157: 0 | AE157: 1 | AF157: 0 | AG157: 0 | AH157: 0 | AI157: 0 | AT157: 0 | AU157: 2 | AV157: 0 | AW157: 0 | AX157: 1 | AY157: 0 | AZ157: 0
L158: Ti | M158: 26 | N158: 7 | O158: 1994 | P158: Loimaan Palloilijat | Q158: - | R158: Seinäjoen Maila-Jussit | S158: 1 | T158: - | U158: 0 | V158: (3-3, 6-1) | W158: 1230 | X158: 9 | Y158: - | Z158: 4 | AB158: 0 | AC158: 1 | AD158: 0 | AE158: 2 | AF158: 1 | AG158: 1 | AH158: 2 | AI158: 2 | AT158: 1 | AU158: 1 | AV158: 0 | AW158: 1 | AX158: 0 | AY158: 0 | AZ158: 1 | BA158: 0
L159: Ti | M159: 26 | N159: 7 | O159: 1994 | P159: Oulun Lippo | Q159: - | R159: Alajärven Ankkurit | S159: 1 | T159: - | U159: 2 | V159: (5-0, 1-3, 0-3) | W159: 3413 | X159: 6 | Y159: - | Z159: 6 | AB159: 1 | AC159: 1 | AD159: 3 | AF159: 0 | AG159: 0 | AH159: 1 | AI159: 0 | AJ159: 0 | AT159: 0 | AU159: 0 | AV159: 0 | AW159: 0 | AX159: 1 | AY159: 1 | AZ159: 1 | BB159: 3
L160: Ti | M160: 26 | N160: 7 | O160: 1994 | P160: Sotkamon Jymy | Q160: - | R160: Pattijoen Urheilijat | S160: 1 | T160: - | U160: 0 | V160: (3-2, 3-3) | W160: 2805 | X160: 6 | Y160: - | Z160: 5 | AB160: 0 | AC160: 2 | AD160: 0 | AE160: 1 | AF160: 2 | AG160: 0 | AH160: 0 | AI160: 1 | AT160: 1 | AU160: 0 | AV160: 0 | AW160: 1 | AX160: 3 | AY160: 0 | AZ160: 0 | BA160: 0
L161: To | M161: 28 | N161: 7 | O161: 1994 | P161: Imatran Pallo-Veikot | Q161: - | R161: Loimaan Palloilijat | S161: 2 | T161: - | U161: 0 | V161: (12-0, 7-3) | W161: 1269 | X161: 19 | Y161: - | Z161: 3 | AB161: 5 | AC161: 0 | AD161: 0 | AE161: 7 | AF161: 1 | AG161: 1 | AH161: 5 | AT161: 0 | AU161: 0 | AV161: 0 | AW161: 0 | AX161: 3 | AY161: 0 | AZ161: 0 | BA161: 0
L162: To | M162: 28 | N162: 7 | O162: 1994 | P162: Kiteen Pallo-90 | Q162: - | R162: Oulun Lippo | S162: 0 | T162: - | U162: 2 | V162: (1-16, 1-6) | W162: 1507 | X162: 2 | Y162: - | Z162: 22 | AB162: 0 | AC162: 1 | AD162: 0 | AE162: 0 | AF162: 0 | AG162: 0 | AH162: 1 | AI162: 0 | AT162: 1 | AU162: 9 | AV162: 5 | AW162: 1 | AX162: 1 | AY162: 3 | AZ162: 2
L163: To | M163: 28 | N163: 7 | O163: 1994 | P163: Pattijoen Urheilijat | Q163: - | R163: Hyvinkään Tahko | S163: 1 | T163: - | U163: 0 | V163: (4-1, 4-4) | W163: 1640 | X163: 8 | Y163: - | Z163: 5 | AB163: 0 | AC163: 0 | AD163: 3 | AE163: 1 | AF163: 1 | AG163: 3 | AH163: 0 | AT163: 0 | AU163: 1 | AV163: 0 | AW163: 0 | AX163: 2 | AY163: 0 | AZ163: 1 | BA163: 1
L164: To | M164: 28 | N164: 7 | O164: 1994 | P164: Seinäjoen Maila-Jussit | Q164: - | R164: Sotkamon Jymy | S164: 2 | T164: - | U164: 0 | V164: (8-2, 9-3) | W164: 2051 | X164: 17 | Y164: - | Z164: 5 | AB164: 1 | AC164: 4 | AD164: 3 | AF164: 1 | AG164: 0 | AH164: 3 | AI164: 5 | AT164: 0 | AU164: 1 | AV164: 1 | AW164: 0 | AX164: 1 | AY164: 0 | AZ164: 2 | BA164: 0
L165: Pe | M165: 29 | N165: 7 | O165: 1994 | P165: Alajärven Ankkurit | Q165: - | R165: Jyväskylän Kiri | S165: 0 | T165: - | U165: 2 | V165: (0-1, 1-2) | W165: 1436 | X165: 1 | Y165: - | Z165: 3 | AB165: 0 | AC165: 0 | AD165: 0 | AE165: 0 | AF165: 0 | AG165: 0 | AH165: 0 | AI165: 1 | AT165: 0 | AU165: 1 | AV165: 0 | AX165: 0 | AY165: 2 | AZ165: 0 | BA165: 0
L166: Su | M166: 31 | N166: 7 | O166: 1994 | P166: Hyvinkään Tahko | Q166: - | R166: Oulun Lippo | S166: 0 | T166: - | U166: 1 | V166: (6-6, 1-3) | W166: 3094 | X166: 7 | Y166: - | Z166: 9 | AB166: 1 | AC166: 4 | AD166: 0 | AE166: 1 | AF166: 0 | AG166: 0 | AH166: 0 | AI166: 1 | AT166: 0 | AU166: 0 | AV166: 6 | AW166: 0 | AX166: 0 | AY166: 1 | AZ166: 2
L167: Su | M167: 31 | N167: 7 | O167: 1994 | P167: Loimaan Palloilijat | Q167: - | R167: Sotkamon Jymy | S167: 1 | T167: - | U167: 0 | V167: (5-5, 4-2) | W167: 1593 | X167: 9 | Y167: - | Z167: 7 | AB167: 1 | AC167: 1 | AD167: 1 | AE167: 2 | AF167: 1 | AG167: 2 | AH167: 1 | AT167: 0 | AU167: 1 | AV167: 4 | AW167: 0 | AX167: 2 | AY167: 0 | AZ167: 0 | BA167: 0
L168: Su | M168: 31 | N168: 7 | O168: 1994 | P168: Pattijoen Urheilijat | Q168: - | R168: Imatran Pallo-Veikot | S168: 0 | T168: - | U168: 1 | V168: (5-6, 2-2) | W168: 1788 | X168: 7 | Y168: - | Z168: 8 | AB168: 4 | AC168: 1 | AD168: 0 | AE168: 0 | AF168: 0 | AG168: 1 | AH168: 1 | AI168: 0 | AT168: 4 | AU168: 1 | AV168: 1 | AX168: 0 | AY168: 1 | AZ168: 0 | BA168: 1
L169: Su | M169: 31 | N169: 7 | O169: 1994 | P169: Seinäjoen Maila-Jussit | Q169: - | R169: Kiteen Pallo-90 | S169: 1 | T169: - | U169: 0 | V169: (3-1, 3-3) | W169: 1832 | X169: 6 | Y169: - | Z169: 4 | AB169: 0 | AC169: 0 | AD169: 1 | AE169: 2 | AF169: 1 | AG169: 2 | AH169: 0 | AT169: 1 | AU169: 0 | AV169: 0 | AW169: 0 | AX169: 1 | AY169: 0 | AZ169: 2 | BA169: 0
L170: Ke | M170: 3 | N170: 8 | O170: 1994 | P170: Oulun Lippo | Q170: - | R170: Sotkamon Jymy | S170: 1 | T170: - | U170: 0 | V170: (3-0, 3-3) | W170: 6435 | X170: 6 | Y170: - | Z170: 3 | AB170: 2 | AC170: 0 | AD170: 0 | AE170: 1 | AF170: 0 | AG170: 0 | AH170: 0 | AI170: 3 | AT170: 0 | AU170: 0 | AV170: 0 | AW170: 0 | AX170: 2 | AY170: 0 | AZ170: 0 | BA170: 1
L171: To | M171: 4 | N171: 8 | O171: 1994 | P171: Imatran Pallo-Veikot | Q171: - | R171: Alajärven Ankkurit | S171: 0 | T171: - | U171: 2 | V171: (2-12, 1-2) | W171: 1512 | X171: 3 | Y171: - | Z171: 14 | AB171: 0 | AC171: 2 | AD171: 0 | AE171: 0 | AF171: 0 | AG171: 0 | AH171: 1 | AI171: 0 | AT171: 7 | AU171: 0 | AV171: 1 | AW171: 4 | AX171: 1 | AY171: 1 | AZ171: 0
L172: To | M172: 4 | N172: 8 | O172: 1994 | P172: Jyväskylän Kiri | Q172: - | R172: Seinäjoen Maila-Jussit | S172: 1 | T172: - | U172: 1 | V172: (3-1, 0-1, 0-0) | W172: 1172 | X172: 3 | Y172: - | Z172: 2 | AB172: 0 | AC172: 1 | AD172: 2 | AE172: 0 | AF172: 0 | AG172: 0 | AH172: 0 | AI172: 0 | AJ172: 0 | AT172: 1 | AU172: 0 | AV172: 0 | AW172: 0 | AX172: 1 | AY172: 0 | AZ172: 0 | BA172: 0 | BB172: 0
L173: To | M173: 4 | N173: 8 | O173: 1994 | P173: Kiteen Pallo-90 | Q173: - | R173: Pattijoen Urheilijat | S173: 2 | T173: - | U173: 0 | V173: (2-1, 5-4) | W173: 1052 | X173: 7 | Y173: - | Z173: 5 | AB173: 1 | AC173: 0 | AD173: 1 | AF173: 3 | AG173: 1 | AH173: 0 | AI173: 1 | AT173: 0 | AU173: 0 | AV173: 0 | AW173: 1 | AX173: 2 | AY173: 2 | AZ173: 0 | BA173: 0
L174: To | M174: 4 | N174: 8 | O174: 1994 | P174: Loimaan Palloilijat | Q174: - | R174: Hyvinkään Tahko | S174: 0 | T174: - | U174: 1 | V174: (1-1, 1-3) | W174: 2089 | X174: 2 | Y174: - | Z174: 4 | AB174: 1 | AC174: 0 | AD174: 0 | AE174: 0 | AF174: 1 | AG174: 0 | AH174: 0 | AI174: 0 | AT174: 0 | AU174: 1 | AV174: 0 | AW174: 0 | AX174: 3 | AY174: 0 | AZ174: 0
L175: Su | M175: 7 | N175: 8 | O175: 1994 | P175: Alajärven Ankkurit | Q175: - | R175: Oulun Lippo | S175: 1 | T175: - | U175: 0 | V175: (2-1, 1-1) | W175: 2114 | X175: 3 | Y175: - | Z175: 2 | AB175: 2 | AC175: 0 | AD175: 0 | AE175: 0 | AF175: 0 | AG175: 0 | AH175: 0 | AI175: 1 | AT175: 1 | AU175: 0 | AV175: 0 | AW175: 0 | AX175: 1 | AY175: 0 | AZ175: 0 | BA175: 0
L176: Su | M176: 7 | N176: 8 | O176: 1994 | P176: Hyvinkään Tahko | Q176: - | R176: Jyväskylän Kiri | S176: 2 | T176: - | U176: 0 | V176: (2-1, 5-0) | W176: 1505 | X176: 7 | Y176: - | Z176: 1 | AB176: 1 | AC176: 0 | AD176: 0 | AE176: 1 | AF176: 1 | AG176: 1 | AH176: 3 | AI176: 0 | AT176: 0 | AU176: 0 | AV176: 1 | AW176: 0 | AX176: 0 | AY176: 0 | AZ176: 0 | BA176: 0
L177: Su | M177: 7 | N177: 8 | O177: 1994 | P177: Imatran Pallo-Veikot | Q177: - | R177: Kiteen Pallo-90 | S177: 0 | T177: - | U177: 2 | V177: (1-4, 0-5) | W177: 645 | X177: 1 | Y177: - | Z177: 9 | AB177: 0 | AC177: 1 | AD177: 0 | AE177: 0 | AF177: 0 | AG177: 0 | AH177: 0 | AI177: 0 | AT177: 0 | AU177: 0 | AV177: 4 | AX177: 1 | AY177: 2 | AZ177: 2 | BA177: 0
L178: Su | M178: 7 | N178: 8 | O178: 1994 | P178: Pattijoen Urheilijat | Q178: - | R178: Loimaan Palloilijat | S178: 0 | T178: - | U178: 1 | V178: (1-1, 3-4) | W178: 1570 | X178: 4 | Y178: - | Z178: 5 | AB178: 0 | AC178: 1 | AD178: 0 | AE178: 0 | AF178: 0 | AG178: 1 | AH178: 0 | AI178: 2 | AT178: 0 | AU178: 1 | AV178: 0 | AW178: 0 | AX178: 1 | AY178: 0 | AZ178: 0 | BA178: 3
L179: Su | M179: 7 | N179: 8 | O179: 1994 | P179: Sotkamon Jymy | Q179: - | R179: Seinäjoen Maila-Jussit | S179: 2 | T179: - | U179: 0 | V179: (3-0, 7-3) | W179: 2248 | X179: 10 | Y179: - | Z179: 3 | AB179: 2 | AC179: 1 | AD179: 0 | AF179: 1 | AG179: 0 | AH179: 0 | AI179: 6 | AT179: 0 | AU179: 0 | AV179: 0 | AW179: 0 | AX179: 2 | AY179: 0 | AZ179: 1 | BA179: 0
L180: Ti | M180: 9 | N180: 8 | O180: 1994 | P180: Jyväskylän Kiri | Q180: - | R180: Alajärven Ankkurit | S180: 1 | T180: - | U180: 0 | V180: (2-0, 0-0) | W180: 786 | X180: 2 | Y180: - | Z180: 0 | AB180: 0 | AC180: 0 | AD180: 0 | AE180: 2 | AF180: 0 | AG180: 0 | AH180: 0 | AT180: 0 | AU180: 0 | AV180: 0 | AW180: 0 | AX180: 0 | AY180: 0 | AZ180: 0 | BA180: 0
L181: Ti | M181: 9 | N181: 8 | O181: 1994 | P181: Pattijoen Urheilijat | Q181: - | R181: Seinäjoen Maila-Jussit | S181: 1 | T181: - | U181: 0 | V181: (2-2, 4-3) | W181: 1204 | X181: 6 | Y181: - | Z181: 5 | AB181: 1 | AC181: 1 | AD181: 0 | AE181: 0 | AF181: 2 | AG181: 0 | AH181: 1 | AI181: 1 | AT181: 0 | AU181: 0 | AV181: 1 | AW181: 1 | AX181: 0 | AY181: 0 | AZ181: 3 | BA181: 0
L182: To | M182: 11 | N182: 8 | O182: 1994 | P182: Jyväskylän Kiri | Q182: - | R182: Pattijoen Urheilijat | S182: 1 | T182: - | U182: 0 | V182: (1-1, 5-5, 2-1) | W182: 604 | X182: 8 | Y182: - | Z182: 7 | AB182: 0 | AC182: 0 | AD182: 0 | AE182: 1 | AF182: 0 | AG182: 0 | AH182: 0 | AI182: 5 | AJ182: 2 | AT182: 0 | AU182: 1 | AV182: 0 | AW182: 0 | AX182: 1 | AY182: 0 | AZ182: 1 | BA182: 3 | BB182: 1
L183: To | M183: 11 | N183: 8 | O183: 1994 | P183: Kiteen Pallo-90 | Q183: - | R183: Hyvinkään Tahko | S183: 2 | T183: - | U183: 1 | V183: (6-5, 4-5, 3-1) | W183: 1067 | X183: 13 | Y183: - | Z183: 11 | AB183: 0 | AC183: 0 | AD183: 6 | AF183: 3 | AG183: 0 | AH183: 0 | AI183: 1 | AJ183: 3 | AT183: 0 | AU183: 4 | AV183: 0 | AW183: 1 | AX183: 0 | AY183: 0 | AZ183: 1 | BA183: 4 | BB183: 1
L184: To | M184: 11 | N184: 8 | O184: 1994 | P184: Oulun Lippo | Q184: - | R184: Imatran Pallo-Veikot | S184: 2 | T184: - | U184: 0 | V184: (2-1, 3-2) | W184: 2673 | X184: 5 | Y184: - | Z184: 3 | AB184: 2 | AC184: 0 | AD184: 0 | AF184: 2 | AG184: 1 | AH184: 0 | AI184: 0 | AT184: 1 | AU184: 0 | AV184: 0 | AW184: 0 | AX184: 0 | AY184: 1 | AZ184: 1 | BA184: 0
L185: To | M185: 11 | N185: 8 | O185: 1994 | P185: Seinäjoen Maila-Jussit | Q185: - | R185: Loimaan Palloilijat | S185: 0 | T185: - | U185: 1 | V185: (0-3, 0-0) | W185: 1154 | X185: 0 | Y185: - | Z185: 3 | AB185: 0 | AC185: 0 | AD185: 0 | AE185: 0 | AF185: 0 | AG185: 0 | AH185: 0 | AI185: 0 | AT185: 1 | AU185: 2 | AV185: 0 | AW185: 0 | AX185: 0 | AY185: 0 | AZ185: 0
L186: To | M186: 11 | N186: 8 | O186: 1994 | P186: Sotkamon Jymy | Q186: - | R186: Alajärven Ankkurit | S186: 2 | T186: - | U186: 0 | V186: (2-1, 7-2) | W186: 2743 | X186: 9 | Y186: - | Z186: 3 | AB186: 1 | AC186: 1 | AD186: 0 | AF186: 4 | AG186: 2 | AH186: 0 | AI186: 1 | AT186: 0 | AU186: 0 | AV186: 0 | AW186: 1 | AX186: 1 | AY186: 1 | AZ186: 0 | BA186: 0
L187: La | M187: 13 | N187: 8 | O187: 1994 | P187: Alajärven Ankkurit | Q187: - | R187: Pattijoen Urheilijat | S187: 2 | T187: - | U187: 0 | V187: (5-1, 5-3) | W187: 914 | X187: 10 | Y187: - | Z187: 4 | AB187: 2 | AC187: 1 | AD187: 2 | AF187: 2 | AG187: 2 | AH187: 0 | AI187: 1 | AT187: 0 | AU187: 0 | AV187: 1 | AW187: 0 | AX187: 0 | AY187: 3 | AZ187: 0 | BA187: 0
L188: Su | M188: 14 | N188: 8 | O188: 1994 | P188: Imatran Pallo-Veikot | Q188: - | R188: Sotkamon Jymy | S188: 0 | T188: - | U188: 2 | V188: (1-2, 1-2) | W188: 424 | X188: 2 | Y188: - | Z188: 4 | AB188: 1 | AC188: 0 | AD188: 0 | AE188: 0 | AF188: 0 | AG188: 0 | AH188: 1 | AI188: 0 | AT188: 1 | AU188: 1 | AV188: 0 | AX188: 1 | AY188: 0 | AZ188: 1 | BA188: 0
L189: Su | M189: 14 | N189: 8 | O189: 1994 | P189: Kiteen Pallo-90 | Q189: - | R189: Jyväskylän Kiri | S189: 2 | T189: - | U189: 0 | V189: (4-2, 4-3) | W189: 964 | X189: 8 | Y189: - | Z189: 5 | AB189: 1 | AC189: 2 | AD189: 0 | AE189: 1 | AF189: 4 | AG189: 0 | AH189: 0 | AT189: 0 | AU189: 2 | AV189: 0 | AW189: 0 | AX189: 0 | AY189: 1 | AZ189: 2 | BA189: 0
L190: Su | M190: 14 | N190: 8 | O190: 1994 | P190: Loimaan Palloilijat | Q190: - | R190: Oulun Lippo | S190: 0 | T190: - | U190: 2 | V190: (1-4, 0-5) | W190: 1204 | X190: 1 | Y190: - | Z190: 9 | AB190: 1 | AC190: 0 | AD190: 0 | AE190: 0 | AF190: 0 | AG190: 0 | AH190: 0 | AI190: 0 | AT190: 2 | AU190: 1 | AV190: 1 | AX190: 3 | AY190: 0 | AZ190: 0 | BA190: 2
L191: Su | M191: 14 | N191: 8 | O191: 1994 | P191: Seinäjoen Maila-Jussit | Q191: - | R191: Hyvinkään Tahko | S191: 2 | T191: - | U191: 1 | V191: (7-2, 1-4, 1-0) | W191: 947 | X191: 9 | Y191: - | Z191: 6 | AB191: 1 | AC191: 2 | AD191: 3 | AE191: 1 | AF191: 0 | AG191: 0 | AH191: 0 | AI191: 1 | AJ191: 1 | AT191: 0 | AU191: 0 | AV191: 1 | AW191: 1 | AX191: 1 | AY191: 0 | AZ191: 2 | BA191: 1 | BB191: 0
L192: Ti | M192: 16 | N192: 8 | O192: 1994 | P192: Alajärven Ankkurit | Q192: - | R192: Hyvinkään Tahko | S192: 2 | T192: - | U192: 0 | V192: (4-2, 3-1) | W192: 1684 | X192: 7 | Y192: - | Z192: 3 | AB192: 2 | AC192: 2 | AD192: 0 | AF192: 3 | AG192: 0 | AH192: 0 | AI192: 0 | AT192: 1 | AU192: 1 | AV192: 0 | AW192: 0 | AX192: 0 | AY192: 0 | AZ192: 0 | BA192: 1
L193: Ti | M193: 16 | N193: 8 | O193: 1994 | P193: Loimaan Palloilijat | Q193: - | R193: Imatran Pallo-Veikot | S193: 1 | T193: - | U193: 1 | V193: (0-5, 5-3, 0-0) | W193: 740 | X193: 5 | Y193: - | Z193: 8 | AB193: 0 | AC193: 0 | AD193: 0 | AE193: 0 | AF193: 0 | AG193: 3 | AH193: 0 | AI193: 2 | AJ193: 0 | AT193: 2 | AU193: 1 | AV193: 0 | AW193: 2 | AX193: 0 | AY193: 1 | AZ193: 1 | BA193: 1 | BB193: 0
L194: Ti | M194: 16 | N194: 8 | O194: 1994 | P194: Oulun Lippo | Q194: - | R194: Kiteen Pallo-90 | S194: 1 | T194: - | U194: 0 | V194: (1-1, 1-0) | W194: 2574 | X194: 2 | Y194: - | Z194: 1 | AB194: 0 | AC194: 0 | AD194: 0 | AE194: 1 | AF194: 1 | AG194: 0 | AH194: 0 | AT194: 0 | AU194: 0 | AV194: 1 | AW194: 0 | AX194: 0 | AY194: 0 | AZ194: 0 | BA194: 0
L195: Ti | M195: 16 | N195: 8 | O195: 1994 | P195: Sotkamon Jymy | Q195: - | R195: Jyväskylän Kiri | S195: 2 | T195: - | U195: 0 | V195: (3-0, 7-2) | W195: 1910 | X195: 10 | Y195: - | Z195: 2 | AB195: 1 | AC195: 0 | AD195: 2 | AF195: 1 | AG195: 5 | AH195: 0 | AI195: 1 | AT195: 0 | AU195: 0 | AV195: 0 | AW195: 0 | AX195: 0 | AY195: 2 | AZ195: 0 | BA195: 0
L196: To | M196: 18 | N196: 8 | O196: 1994 | P196: Hyvinkään Tahko | Q196: - | R196: Imatran Pallo-Veikot | S196: 2 | T196: - | U196: 1 | V196: (3-4, 2-1, 2-0) | W196: 2147 | X196: 7 | Y196: - | Z196: 5 | AB196: 1 | AC196: 2 | AD196: 0 | AE196: 0 | AF196: 1 | AG196: 1 | AH196: 0 | AI196: 0 | AJ196: 2 | AT196: 0 | AU196: 3 | AV196: 0 | AW196: 1 | AX196: 0 | AY196: 1 | AZ196: 0 | BA196: 0 | BB196: 0
L197: To | M197: 18 | N197: 8 | O197: 1994 | P197: Jyväskylän Kiri | Q197: - | R197: Loimaan Palloilijat | S197: 1 | T197: - | U197: 1 | V197: (2-1, 1-2, 0-0) | W197: 812 | X197: 3 | Y197: - | Z197: 3 | AB197: 0 | AC197: 0 | AD197: 0 | AE197: 2 | AF197: 0 | AG197: 0 | AH197: 0 | AI197: 1 | AJ197: 0 | AT197: 0 | AU197: 1 | AV197: 0 | AW197: 0 | AX197: 0 | AY197: 1 | AZ197: 1 | BB197: 0
L198: To | M198: 18 | N198: 8 | O198: 1994 | P198: Kiteen Pallo-90 | Q198: - | R198: Alajärven Ankkurit | S198: 1 | T198: - | U198: 1 | V198: (3-5, 3-2, 0-0) | W198: 1082 | X198: 6 | Y198: - | Z198: 7 | AB198: 0 | AC198: 1 | AD198: 1 | AE198: 1 | AF198: 0 | AG198: 1 | AH198: 2 | AJ198: 0 | AT198: 2 | AU198: 0 | AV198: 3 | AX198: 0 | AY198: 0 | AZ198: 2 | BA198: 0 | BB198: 0
L199: To | M199: 18 | N199: 8 | O199: 1994 | P199: Pattijoen Urheilijat | Q199: - | R199: Sotkamon Jymy | S199: 0 | T199: - | U199: 2 | V199: (1-2, 0-7) | W199: 1783 | X199: 1 | Y199: - | Z199: 9 | AB199: 0 | AC199: 0 | AD199: 1 | AE199: 0 | AF199: 0 | AG199: 0 | AH199: 0 | AI199: 0 | AT199: 0 | AU199: 0 | AV199: 0 | AW199: 2 | AX199: 3 | AY199: 0 | AZ199: 3 | BA199: 1
L200: To | M200: 18 | N200: 8 | O200: 1994 | P200: Seinäjoen Maila-Jussit | Q200: - | R200: Oulun Lippo | S200: 0 | T200: - | U200: 2 | V200: (1-2, 1-4) | W200: 1163 | X200: 2 | Y200: - | Z200: 6 | AB200: 1 | AC200: 0 | AD200: 0 | AE200: 0 | AF200: 0 | AG200: 1 | AH200: 0 | AI200: 0 | AT200: 0 | AU200: 2 | AV200: 0 | AX200: 0 | AY200: 3 | AZ200: 0 | BA200: 1
L201: Su | M201: 21 | N201: 8 | O201: 1994 | P201: Imatran Pallo-Veikot | Q201: - | R201: Jyväskylän Kiri | S201: 1 | T201: - | U201: 0 | V201: (5-5, 2-1) | W201: 519 | X201: 7 | Y201: - | Z201: 6 | AB201: 2 | AC201: 1 | AD201: 1 | AE201: 1 | AF201: 0 | AG201: 1 | AH201: 1 | AT201: 4 | AU201: 0 | AV201: 0 | AW201: 1 | AX201: 0 | AY201: 0 | AZ201: 1 | BA201: 0
L202: Su | M202: 21 | N202: 8 | O202: 1994 | P202: Loimaan Palloilijat | Q202: - | R202: Kiteen Pallo-90 | S202: 1 | T202: - | U202: 2 | V202: (3-0, 1-3, 0-1) | W202: 752 | X202: 4 | Y202: - | Z202: 4 | AB202: 0 | AC202: 1 | AD202: 0 | AE202: 2 | AF202: 1 | AG202: 0 | AH202: 0 | AI202: 0 | AJ202: 0 | AT202: 0 | AU202: 0 | AV202: 0 | AW202: 0 | AX202: 0 | AY202: 0 | AZ202: 0 | BA202: 3 | BB202: 1
... 1923 more rows

Sheet 2020-
B1: OTTELUT JA SARJATAULUKOT 2020 -
AC2: 0 | AD2: = aloitti sisällä
B3: SUPERPESIS 2020 | C3: O | D3: 3P | E3: 2P | F3: 1P | G3: 0P | H3: JUOKSUT | K3: PIST | Q3: RUNKOSARJA 2020 | U3: JAKSOT | W3: JAKSOTULOS | X3: YLEISÖ | Z3: JUOKSUT | AC3: I JAKSO | AG3: II JAKSO | AK3: S | AL3: K | AU3: I JAKSO | AY3: II JAKSO | BC3: S | BD3: K | BJ3: h | BK3: min | BN3: PELITUOMARI | BO3: SYÖTTÖTUOMARI
A4: 1 | B4: Joensuun Maila | C4: 24 | D4: 12 | E4: 10 | F4: 2 | G4: 0 | H4: 221 | I4: - | J4: 131 | K4: 58 | M4: To | N4: 2 | O4: 7 | P4: 2020 | Q4: Joensuun Maila | R4: - | S4: Imatran Pallo-Veikot | T4: 1 | U4: - | V4: 2 | W4: (0-1, 2-1, 0-0, 1-2) | X4: 1736 | Y4: 2 | Z4: - | AA4: 2 | AC4: 0 | AD4: 0 | AE4: 0 | AF4: 0 | AG4: 0 | AH4: 0 | AI4: 2 | AJ4: 0 | AK4: 0 | AL4: 1 | AU4: 0 | AV4: 0 | AW4: 0 | AX4: 1 | AY4: 0 | AZ4: 1 | BA4: 0 | BB4: 0 | BC4: 0 | BD4: 2 | BJ4: 2 | BK4: 34 | BL4: =PRODUCT(BJ4*60+BK4) -> 154 | BN4: Tommi Nupponen | BO4: Ossi Muurainen
A5: 2 | B5: Sotkamon Jymy | C5: 24 | D5: 12 | E5: 6 | F5: 3 | G5: 3 | H5: 220 | I5: - | J5: 139 | K5: 51 | M5: To | N5: 2 | O5: 7 | P5: 2020 | Q5: Vimpelin Veto | R5: - | S5: Seinäjoen JymyJussit | T5: 1 | U5: - | V5: 2 | W5: (7-2, 3-5, 0-1) | X5: 950 | Y5: 10 | Z5: - | AA5: 8 | AC5: 5 | AD5: 0 | AE5: 2 | AG5: 1 | AH5: 1 | AI5: 1 | AJ5: 0 | AK5: 0 | AU5: 2 | AV5: 0 | AW5: 0 | AX5: 0 | AY5: 2 | AZ5: 1 | BA5: 2 | BC5: 1 | BJ5: 2 | BK5: 32 | BL5: =PRODUCT(BJ5*60+BK5) -> 152 | BN5: Peter Laitio | BO5: Ari Kiviniemi
A6: 3 | B6: Vimpelin Veto | C6: 24 | D6: 12 | E6: 5 | F6: 3 | G6: 4 | H6: 216 | I6: - | J6: 143 | K6: 49 | M6: To | N6: 2 | O6: 7 | P6: 2020 | Q6: Sotkamon Jymy | R6: - | S6: Kempeleen Kiri | T6: 1 | U6: - | V6: 2 | W6: (2-3, 3-2, 0-1) | X6: 1347 | Y6: 5 | Z6: - | AA6: 6 | AC6: 0 | AD6: 1 | AE6: 0 | AF6: 1 | AG6: 3 | AH6: 0 | AI6: 0 | AJ6: 0 | AK6: 0 | AU6: 0 | AV6: 1 | AW6: 0 | AX6: 2 | AY6: 0 | AZ6: 0 | BA6: 0 | BB6: 2 | BC6: 1 | BJ6: 2 | BK6: 14 | BL6: =PRODUCT(BJ6*60+BK6) -> 134 | BN6: Jari Saaranen | BO6: Jussi Mäntymaa
A7: 4 | B7: Kouvolan Pallonlyöjät | C7: 24 | D7: 10 | E7: 7 | F7: 2 | G7: 5 | H7: 220 | I7: - | J7: 167 | K7: 46 | M7: To | N7: 2 | O7: 7 | P7: 2020 | Q7: Siilinjärven Pesis | R7: - | S7: Pattijoen Urheilijat | T7: 0 | U7: - | V7: 1 | W7: (2-2, 1-2) | X7: 783 | Y7: 3 | Z7: - | AA7: 4 | AC7: 1 | AD7: 1 | AE7: 0 | AF7: 0 | AG7: 0 | AH7: 0 | AI7: 1 | AJ7: 0 | AU7: 1 | AV7: 0 | AW7: 1 | AX7: 0 | AY7: 0 | AZ7: 1 | BA7: 1 | BB7: 0 | BJ7: 2 | BK7: 19 | BL7: =PRODUCT(BJ7*60+BK7) -> 139 | BN7: Jaakko Kuronen | BO7: Eki Kutvonen
A8: 5 | B8: Kiteen Pallo-90 | C8: 24 | D8: 5 | E8: 9 | F8: 6 | G8: 4 | H8: 189 | I8: - | J8: 163 | K8: 39 | M8: To | N8: 2 | O8: 7 | P8: 2020 | Q8: Hyvinkään Tahko | R8: - | S8: Kankaanpään Maila | T8: 2 | U8: - | V8: 0 | W8: (1-0, 2-0) | X8: 822 | Y8: 3 | Z8: - | AA8: 0 | AC8: 0 | AD8: 0 | AE8: 1 | AG8: 0 | AH8: 1 | AI8: 1 | AJ8: 0 | AU8: 0 | AV8: 0 | AW8: 0 | AX8: 0 | AY8: 0 | AZ8: 0 | BA8: 0 | BB8: 0 | BJ8: 2 | BK8: 9 | BL8: =PRODUCT(BJ8*60+BK8) -> 129 | BN8: Kalle Hietanen | BO8: Miko Kotiniemi
A9: 6 | B9: Hyvinkään Tahko | C9: 24 | D9: 7 | E9: 4 | F9: 4 | G9: 9 | H9: 182 | I9: - | J9: 200 | K9: 33 | M9: Pe | N9: 3 | O9: 7 | P9: 2020 | Q9: Kouvolan Pallonlyöjät | R9: - | S9: Manse PP Edustus | T9: 2 | U9: - | V9: 1 | W9: (7-4, 4-7, 1-0) | X9: 1222 | Y9: 12 | Z9: - | AA9: 11 | AC9: 3 | AD9: 2 | AE9: 2 | AF9: 0 | AG9: 1 | AH9: 1 | AI9: 0 | AJ9: 2 | AK9: 1 | AU9: 0 | AV9: 1 | AW9: 2 | AX9: 1 | AY9: 0 | AZ9: 1 | BA9: 5 | BB9: 1 | BC9: 0 | BJ9: 2 | BK9: 41 | BL9: =PRODUCT(BJ9*60+BK9) -> 161 | BN9: Suvi Kaukovalta | BO9: Mika Kääriäinen
A10: 7 | B10: Seinäjoen JymyJussit | C10: 24 | D10: 7 | E10: 5 | F10: 1 | G10: 11 | H10: 176 | I10: - | J10: 201 | K10: 32 | M10: La | N10: 4 | O10: 7 | P10: 2020 | Q10: Kankaanpään Maila | R10: - | S10: Hyvinkään Tahko | T10: 2 | U10: - | V10: 0 | W10: (3-2, 5-4) | X10: 380 | Y10: 8 | Z10: - | AA10: 6 | AC10: 0 | AD10: 3 | AE10: 0 | AF10: 0 | AG10: 4 | AH10: 0 | AI10: 0 | AJ10: 1 | AU10: 1 | AV10: 0 | AW10: 1 | AX10: 0 | AY10: 1 | AZ10: 1 | BA10: 0 | BB10: 2 | BJ10: 2 | BK10: 21 | BL10: =PRODUCT(BJ10*60+BK10) -> 141 | BN10: Kati Rantala | BO10: Matias Laukkanen
A11: 8 | B11: Pattijoen Urheilijat | C11: 24 | D11: 3 | E11: 9 | F11: 4 | G11: 8 | H11: 154 | I11: - | J11: 161 | K11: 31 | M11: La | N11: 4 | O11: 7 | P11: 2020 | Q11: Koskenkorvan Urheilijat | R11: - | S11: Vimpelin Veto | T11: 0 | U11: - | V11: 2 | W11: (8-9, 4-5) | X11: 512 | Y11: 12 | Z11: - | AA11: 14 | AC11: 2 | AD11: 1 | AE11: 2 | AF11: 3 | AG11: 1 | AH11: 0 | AI11: 3 | AJ11: 0 | AU11: 1 | AV11: 1 | AW11: 7 | AX11: 0 | AY11: 0 | AZ11: 3 | BA11: 2 | BJ11: 2 | BK11: 34 | BL11: =PRODUCT(BJ11*60+BK11) -> 154 | BN11: Joona Tervonen | BO11: Turo Timo
A12: 9 | B12: Imatran Pallo-Veikot | C12: 24 | D12: 5 | E12: 4 | F12: 4 | G12: 11 | H12: 163 | I12: - | J12: 167 | K12: 27 | M12: La | N12: 4 | O12: 7 | P12: 2020 | Q12: Kempeleen Kiri | R12: - | S12: Siilinjärven Pesis | T12: 1 | U12: - | V12: 2 | W12: (14-5, 3-6, 2-4) | X12: 574 | Y12: 19 | Z12: - | AA12: 15 | AC12: 5 | AD12: 5 | AE12: 2 | AF12: 2 | AG12: 3 | AH12: 0 | AI12: 0 | AJ12: 0 | AK12: 2 | AU12: 0 | AV12: 4 | AW12: 1 | AX12: 0 | AY12: 4 | AZ12: 1 | BA12: 0 | BB12: 1 | BC12: 4 | BJ12: 3 | BK12: 11 | BL12: =PRODUCT(BJ12*60+BK12) -> 191 | BN12: Jari Saaranen | BO12: Jussi Mäntymaa
A13: 10 | B13: Kempeleen Kiri | C13: 24 | D13: 5 | E13: 4 | F13: 3 | G13: 12 | H13: 164 | I13: - | J13: 183 | K13: 26 | M13: Su | N13: 5 | O13: 7 | P13: 2020 | Q13: Kiteen Pallo-90 | R13: - | S13: Imatran Pallo-Veikot | T13: 1 | U13: - | V13: 0 | W13: (2-2, 7-2) | X13: 1013 | Y13: 9 | Z13: - | AA13: 4 | AC13: 0 | AD13: 1 | AE13: 0 | AF13: 1 | AG13: 5 | AH13: 1 | AI13: 0 | AJ13: 1 | AU13: 0 | AV13: 1 | AW13: 0 | AX13: 1 | AY13: 1 | AZ13: 1 | BA13: 0 | BB13: 0 | BJ13: 2 | BK13: 25 | BL13: =PRODUCT(BJ13*60+BK13) -> 145 | BN13: Jaakko Kuronen | BO13: Eki Kutvonen
A14: 11 | B14: Koskenkorvan Urheilijat | C14: 24 | D14: 4 | E14: 5 | F14: 2 | G14: 13 | H14: 154 | I14: - | J14: 204 | K14: 24 | M14: Su | N14: 5 | O14: 7 | P14: 2020 | Q14: Pattijoen Urheilijat | R14: - | S14: Sotkamon Jymy | T14: 1 | U14: - | V14: 2 | W14: (5-2, 1-6, 0-3) | X14: 840 | Y14: 7 | Z14: - | AA14: 11 | AC14: 1 | AD14: 1 | AE14: 1 | AF14: 2 | AG14: 0 | AH14: 0 | AI14: 1 | AJ14: 0 | AK14: 0 | AU14: 0 | AV14: 0 | AW14: 2 | AX14: 0 | AY14: 0 | AZ14: 1 | BA14: 3 | BB14: 2 | BC14: 3 | BJ14: 2 | BK14: 44 | BL14: =PRODUCT(BJ14*60+BK14) -> 164 | BN14: Joonas Lassila | BO14: Tapio Väisänen
A15: 12 | B15: Manse PP Edustus | C15: 24 | D15: 2 | E15: 5 | F15: 8 | G15: 9 | H15: 140 | I15: - | J15: 185 | K15: 24 | M15: Su | N15: 5 | O15: 7 | P15: 2020 | Q15: Manse PP Edustus | R15: - | S15: Kouvolan Pallonlyöjät | T15: 0 | U15: - | V15: 2 | W15: (3-6, 2-3) | X15: 970 | Y15: 5 | Z15: - | AA15: 9 | AC15: 1 | AD15: 2 | AE15: 0 | AF15: 0 | AG15: 0 | AH15: 1 | AI15: 1 | AJ15: 0 | AU15: 1 | AV15: 2 | AW15: 0 | AX15: 3 | AY15: 1 | AZ15: 2 | BA15: 0 | BJ15: 2 | BK15: 23 | BL15: =PRODUCT(BJ15*60+BK15) -> 143 | BN15: Waltteri Uurasjärvi | BO15: Jesse Mäkinen
A16: 13 | B16: Kankaanpään Maila | C16: 24 | D16: 3 | E16: 3 | F16: 2 | G16: 16 | H16: 126 | I16: - | J16: 181 | K16: 17 | M16: Ti | N16: 7 | O16: 7 | P16: 2020 | Q16: Imatran Pallo-Veikot | R16: - | S16: Kiteen Pallo-90 | T16: 0 | U16: - | V16: 1 | W16: (2-2, 2-3) | X16: 1000 | Y16: 4 | Z16: - | AA16: 5 | AC16: 0 | AD16: 2 | AE16: 0 | AF16: 0 | AG16: 0 | AH16: 0 | AI16: 2 | AJ16: 0 | AU16: 0 | AV16: 0 | AW16: 0 | AX16: 2 | AY16: 2 | AZ16: 0 | BA16: 1 | BJ16: 2 | BK16: 8 | BL16: =PRODUCT(BJ16*60+BK16) -> 128 | BN16: Kati Rantala | BO16: Matias Laukkanen
A17: 14 | B17: Siilinjärven Pesis | C17: 24 | D17: 1 | E17: 4 | F17: 3 | G17: 16 | H17: 120 | I17: - | J17: 220 | K17: 14 | M17: Ti | N17: 7 | O17: 7 | P17: 2020 | Q17: Joensuun Maila | R17: - | S17: Siilinjärven Pesis | T17: 2 | U17: - | V17: 0 | W17: (5-1, 4-1) | X17: 1672 | Y17: 9 | Z17: - | AA17: 2 | AC17: 1 | AD17: 0 | AE17: 3 | AF17: 1 | AG17: 2 | AH17: 0 | AI17: 2 | AU17: 1 | AV17: 0 | AW17: 0 | AX17: 0 | AY17: 0 | AZ17: 1 | BA17: 0 | BB17: 0 | BJ17: 2 | BK17: 24 | BL17: =PRODUCT(BJ17*60+BK17) -> 144 | BN17: Olli Vilén | BO17: Manu Majanne
M18: Ti | N18: 7 | O18: 7 | P18: 2020 | Q18: Sotkamon Jymy | R18: - | S18: Vimpelin Veto | T18: 2 | U18: - | V18: 0 | W18: (3-2, 5-0) | X18: 1497 | Y18: 8 | Z18: - | AA18: 2 | AC18: 0 | AD18: 1 | AE18: 1 | AF18: 1 | AG18: 2 | AH18: 2 | AI18: 1 | AJ18: 0 | AU18: 0 | AV18: 1 | AW18: 0 | AX18: 1 | AY18: 0 | AZ18: 0 | BA18: 0 | BB18: 0 | BJ18: 2 | BK18: 2 | BL18: =PRODUCT(BJ18*60+BK18) -> 122 | BN18: Kosti Rautiainen | BO18: Immo Rautiainen
B19: 1 - 8 sijoittuneet ylempiin pudotuspeleihin | M19: Ti | N19: 7 | O19: 7 | P19: 2020 | Q19: Seinäjoen JymyJussit | R19: - | S19: Koskenkorvan Urheilijat | T19: 2 | U19: - | V19: 0 | W19: (2-0, 8-5) | X19: 1130 | Y19: 10 | Z19: - | AA19: 5 | AC19: 1 | AD19: 1 | AE19: 0 | AG19: 1 | AH19: 0 | AI19: 5 | AJ19: 2 | AU19: 0 | AV19: 0 | AW19: 0 | AX19: 0 | AY19: 1 | AZ19: 0 | BA19: 1 | BB19: 3 | BJ19: 2 | BK19: 35 | BL19: =PRODUCT(BJ19*60+BK19) -> 155 | BN19: Jani Heinineva | BO19: Jari Mäkynen
M20: Ti | N20: 7 | O20: 7 | P20: 2020 | Q20: Kankaanpään Maila | R20: - | S20: Manse PP Edustus | T20: 1 | U20: - | V20: 2 | W20: (3-2, 3-4, 0-0, 0-3) | X20: 617 | Y20: 6 | Z20: - | AA20: 6 | AC20: 1 | AD20: 2 | AE20: 0 | AF20: 0 | AG20: 0 | AH20: 2 | AI20: 0 | AJ20: 1 | AK20: 0 | AL20: 0 | AU20: 0 | AV20: 0 | AW20: 2 | AX20: 0 | AY20: 0 | AZ20: 0 | BA20: 0 | BB20: 4 | BC20: 0 | BD20: 3 | BJ20: 2 | BK20: 41 | BL20: =PRODUCT(BJ20*60+BK20) -> 161 | BN20: Kalle Hietanen | BO20: Miko Kotiniemi
M21: Ti | N21: 7 | O21: 7 | P21: 2020 | Q21: Hyvinkään Tahko | R21: - | S21: Kouvolan Pallonlyöjät | T21: 0 | U21: - | V21: 2 | W21: (2-6, 1-3) | X21: 1067 | Y21: 3 | Z21: - | AA21: 9 | AC21: 0 | AD21: 0 | AE21: 0 | AF21: 2 | AG21: 0 | AH21: 0 | AI21: 0 | AJ21: 1 | AU21: 1 | AV21: 2 | AW21: 2 | AX21: 1 | AY21: 0 | AZ21: 3 | BA21: 0 | BJ21: 2 | BK21: 5 | BL21: =PRODUCT(BJ21*60+BK21) -> 125 | BN21: Ari Mustonen | BO21: Sami Ritola
M22: Ti | N22: 7 | O22: 7 | P22: 2020 | Q22: Pattijoen Urheilijat | R22: - | S22: Kempeleen Kiri | T22: 1 | U22: - | V22: 0 | W22: (4-3, 0-0) | X22: 605 | Y22: 4 | Z22: - | AA22: 3 | AC22: 1 | AD22: 1 | AE22: 0 | AF22: 2 | AG22: 0 | AH22: 0 | AI22: 0 | AJ22: 0 | AU22: 1 | AV22: 1 | AW22: 1 | AX22: 0 | AY22: 0 | AZ22: 0 | BA22: 0 | BB22: 0 | BJ22: 2 | BK22: 22 | BL22: =PRODUCT(BJ22*60+BK22) -> 142 | BN22: Jari Saaranen | BO22: Jussi Mäntymaa
M23: To | N23: 9 | O23: 7 | P23: 2020 | Q23: Seinäjoen JymyJussit | R23: - | S23: Vimpelin Veto | T23: 0 | U23: - | V23: 2 | W23: (0-2, 2-3) | X23: 1041 | Y23: 2 | Z23: - | AA23: 5 | AC23: 0 | AD23: 0 | AE23: 0 | AF23: 0 | AG23: 0 | AH23: 0 | AI23: 2 | AJ23: 0 | AU23: 0 | AV23: 1 | AW23: 1 | AX23: 0 | AY23: 2 | AZ23: 0 | BA23: 1 | BJ23: 2 | BK23: 6 | BL23: =PRODUCT(BJ23*60+BK23) -> 126 | BN23: Peter Laitio | BO23: Ari Kiviniemi
M24: To | N24: 9 | O24: 7 | P24: 2020 | Q24: Siilinjärven Pesis | R24: - | S24: Sotkamon Jymy | T24: 0 | U24: - | V24: 2 | W24: (1-2, 2-7) | X24: 828 | Y24: 3 | Z24: - | AA24: 9 | AC24: 0 | AD24: 1 | AE24: 0 | AF24: 0 | AG24: 2 | AH24: 0 | AI24: 0 | AJ24: 0 | AU24: 0 | AV24: 1 | AW24: 1 | AY24: 3 | AZ24: 3 | BA24: 0 | BB24: 1 | BJ24: 2 | BK24: 13 | BL24: =PRODUCT(BJ24*60+BK24) -> 133 | BN24: Tommi Nupponen | BO24: Ossi Muurainen
M25: To | N25: 9 | O25: 7 | P25: 2020 | Q25: Joensuun Maila | R25: - | S25: Kiteen Pallo-90 | T25: 1 | U25: - | V25: 2 | W25: (6-2, 2-9, 1-3) | X25: 2018 | Y25: 9 | Z25: - | AA25: 14 | AC25: 5 | AD25: 0 | AE25: 0 | AF25: 1 | AG25: 0 | AH25: 0 | AI25: 1 | AJ25: 1 | AK25: 1 | AU25: 1 | AV25: 0 | AW25: 1 | AX25: 0 | AY25: 5 | AZ25: 0 | BA25: 3 | BB25: 1 | BC25: 3 | BJ25: 2 | BK25: 43 | BL25: =PRODUCT(BJ25*60+BK25) -> 163 | BN25: Jaakko Kuronen | BO25: Eki Kutvonen
M26: Pe | N26: 10 | O26: 7 | P26: 2020 | Q26: Kempeleen Kiri | R26: - | S26: Pattijoen Urheilijat | T26: 1 | U26: - | V26: 2 | W26: (2-11, 6-1, 1-1, 4-5) | X26: 832 | Y26: 9 | Z26: - | AA26: 13 | AC26: 0 | AD26: 1 | AE26: 0 | AF26: 1 | AG26: 1 | AH26: 0 | AI26: 0 | AJ26: 5 | AK26: 1 | AL26: 4 | AU26: 0 | AV26: 3 | AW26: 0 | AX26: 8 | AY26: 0 | AZ26: 1 | BA26: 0 | BB26: 0 | BC26: 1 | BD26: 5 | BJ26: 3 | BK26: 6 | BL26: =PRODUCT(BJ26*60+BK26) -> 186 | BN26: Kosti Rautiainen | BO26: Immo Rautiainen
M27: Pe | N27: 10 | O27: 7 | P27: 2020 | Q27: Manse PP Edustus | R27: - | S27: Hyvinkään Tahko | T27: 0 | U27: - | V27: 1 | W27: (2-2, 3-6) | X27: 922 | Y27: 5 | Z27: - | AA27: 8 | AC27: 1 | AD27: 1 | AE27: 0 | AF27: 0 | AG27: 0 | AH27: 1 | AI27: 2 | AJ27: 0 | AU27: 1 | AV27: 0 | AW27: 0 | AX27: 1 | AY27: 2 | AZ27: 0 | BA27: 4 | BJ27: 2 | BK27: 14 | BL27: =PRODUCT(BJ27*60+BK27) -> 134 | BN27: Kati Rantala | BO27: Matias Laukkanen
M28: Pe | N28: 10 | O28: 7 | P28: 2020 | Q28: Kouvolan Pallonlyöjät | R28: - | S28: Kankaanpään Maila | T28: 2 | U28: - | V28: 0 | W28: (9-2, 5-4) | X28: 1169 | Y28: 14 | Z28: - | AA28: 6 | AC28: 7 | AD28: 1 | AE28: 0 | AF28: 1 | AG28: 1 | AH28: 0 | AI28: 2 | AJ28: 2 | AU28: 0 | AV28: 0 | AW28: 0 | AX28: 2 | AY28: 1 | AZ28: 0 | BA28: 0 | BB28: 3 | BJ28: 2 | BK28: 32 | BL28: =PRODUCT(BJ28*60+BK28) -> 152 | BN28: Suvi Kaukovalta | BO28: Mika Kääriäinen
M29: La | N29: 11 | O29: 7 | P29: 2020 | Q29: Koskenkorvan Urheilijat | R29: - | S29: Seinäjoen JymyJussit | T29: 0 | U29: - | V29: 2 | W29: (1-2, 3-5) | X29: 648 | Y29: 4 | Z29: - | AA29: 7 | AC29: 0 | AD29: 0 | AE29: 0 | AF29: 1 | AG29: 1 | AH29: 0 | AI29: 1 | AJ29: 1 | AU29: 0 | AV29: 0 | AW29: 1 | AX29: 1 | AY29: 0 | AZ29: 3 | BA29: 2 | BJ29: 2 | BK29: 25 | BL29: =PRODUCT(BJ29*60+BK29) -> 145 | BN29: Jani Heinineva | BO29: Jari Mäkynen
M30: Su | N30: 12 | O30: 7 | P30: 2020 | Q30: Vimpelin Veto | R30: - | S30: Sotkamon Jymy | T30: 0 | U30: - | V30: 2 | W30: (3-4, 2-4) | X30: 950 | Y30: 5 | Z30: - | AA30: 8 | AC30: 0 | AD30: 3 | AE30: 0 | AF30: 0 | AG30: 0 | AH30: 1 | AI30: 1 | AJ30: 0 | AU30: 0 | AV30: 3 | AW30: 1 | AX30: 0 | AY30: 1 | AZ30: 1 | BA30: 1 | BB30: 1 | BJ30: 2 | BK30: 9 | BL30: =PRODUCT(BJ30*60+BK30) -> 129 | BN30: Joona Tervonen | BO30: Turo Timo
M31: Su | N31: 12 | O31: 7 | P31: 2020 | Q31: Kempeleen Kiri | R31: - | S31: Koskenkorvan Urheilijat | T31: 2 | U31: - | V31: 0 | W31: (6-3, 7-5) | X31: 580 | Y31: 13 | Z31: - | AA31: 8 | AC31: 2 | AD31: 1 | AE31: 3 | AF31: 0 | AG31: 2 | AH31: 5 | AI31: 0 | AJ31: 0 | AU31: 2 | AV31: 0 | AW31: 1 | AX31: 0 | AY31: 1 | AZ31: 0 | BA31: 2 | BB31: 2 | BJ31: 2 | BK31: 26 | BL31: =PRODUCT(BJ31*60+BK31) -> 146 | BN31: Kosti Rautiainen | BO31: Immo Rautiainen
M32: Su | N32: 12 | O32: 7 | P32: 2020 | Q32: Pattijoen Urheilijat | R32: - | S32: Siilinjärven Pesis | T32: 2 | U32: - | V32: 1 | W32: (2-1, 3-5, 2-1) | X32: 622 | Y32: 7 | Z32: - | AA32: 7 | AC32: 1 | AD32: 0 | AE32: 0 | AF32: 1 | AG32: 0 | AH32: 2 | AI32: 1 | AJ32: 0 | AK32: 2 | AU32: 1 | AV32: 0 | AW32: 0 | AX32: 0 | AY32: 2 | AZ32: 0 | BA32: 3 | BB32: 0 | BC32: 1 | BJ32: 2 | BK32: 32 | BL32: =PRODUCT(BJ32*60+BK32) -> 152 | BN32: Jari Saaranen | BO32: Jussi Mäntymaa
M33: Su | N33: 12 | O33: 7 | P33: 2020 | Q33: Kankaanpään Maila | R33: - | S33: Kouvolan Pallonlyöjät | T33: 0 | U33: - | V33: 2 | W33: (2-5, 4-7) | X33: 452 | Y33: 6 | Z33: - | AA33: 12 | AC33: 0 | AD33: 0 | AE33: 2 | AF33: 0 | AG33: 2 | AH33: 1 | AI33: 1 | AJ33: 0 | AU33: 4 | AV33: 0 | AW33: 1 | AY33: 0 | AZ33: 1 | BA33: 0 | BB33: 6 | BJ33: 2 | BK33: 15 | BL33: =PRODUCT(BJ33*60+BK33) -> 135 | BN33: Antti Aine | BO33: Samuli Eeva
M34: Su | N34: 12 | O34: 7 | P34: 2020 | Q34: Imatran Pallo-Veikot | R34: - | S34: Manse PP Edustus | T34: 2 | U34: - | V34: 1 | W34: (0-2, 6-1, 2-1) | X34: 846 | Y34: 8 | Z34: - | AA34: 4 | AC34: 0 | AD34: 0 | AE34: 0 | AF34: 0 | AG34: 0 | AH34: 3 | AI34: 1 | AJ34: 2 | AK34: 2 | AU34: 1 | AV34: 0 | AW34: 1 | AX34: 0 | AY34: 0 | AZ34: 0 | BA34: 1 | BB34: 0 | BC34: 1 | BJ34: 2 | BK34: 37 | BL34: =PRODUCT(BJ34*60+BK34) -> 157 | BN34: Olli Vilén | BO34: Mika Kääriäinen
M35: Su | N35: 12 | O35: 7 | P35: 2020 | Q35: Kiteen Pallo-90 | R35: - | S35: Joensuun Maila | T35: 1 | U35: - | V35: 2 | W35: (4-1, 5-6, 0-1) | X35: 1727 | Y35: 9 | Z35: - | AA35: 8 | AC35: 3 | AD35: 1 | AE35: 0 | AF35: 0 | AG35: 4 | AH35: 0 | AI35: 0 | AJ35: 1 | AK35: 0 | AU35: 0 | AV35: 1 | AW35: 0 | AX35: 0 | AY35: 1 | AZ35: 1 | BA35: 1 | BB35: 3 | BC35: 1 | BJ35: 2 | BK35: 39 | BL35: =PRODUCT(BJ35*60+BK35) -> 159 | BN35: Jaakko Kuronen | BO35: Eki Kutvonen
M36: Ti | N36: 14 | O36: 7 | P36: 2020 | Q36: Hyvinkään Tahko | R36: - | S36: Kiteen Pallo-90 | T36: 1 | U36: - | V36: 2 | W36: (12-5, 2-4, 0-4) | X36: 1188 | Y36: 14 | Z36: - | AA36: 13 | AC36: 10 | AD36: 0 | AE36: 0 | AF36: 2 | AG36: 1 | AH36: 0 | AI36: 0 | AJ36: 1 | AK36: 0 | AU36: 0 | AV36: 1 | AW36: 2 | AX36: 2 | AY36: 1 | AZ36: 1 | BA36: 2 | BB36: 0 | BC36: 4 | BJ36: 2 | BK36: 37 | BL36: =PRODUCT(BJ36*60+BK36) -> 157 | BN36: Waltteri Uurasjärvi | BO36: Jesse Mäkinen
M37: Ti | N37: 14 | O37: 7 | P37: 2020 | Q37: Manse PP Edustus | R37: - | S37: Seinäjoen JymyJussit | T37: 0 | U37: - | V37: 2 | W37: (6-7, 1-6) | X37: 812 | Y37: 7 | Z37: - | AA37: 13 | AC37: 1 | AD37: 1 | AE37: 0 | AF37: 4 | AG37: 0 | AH37: 1 | AI37: 0 | AJ37: 0 | AU37: 4 | AV37: 0 | AW37: 3 | AY37: 1 | AZ37: 4 | BA37: 0 | BB37: 1 | BJ37: 2 | BK37: 37 | BL37: =PRODUCT(BJ37*60+BK37) -> 157 | BN37: Antti Aine | BO37: Samuli Eeva
M38: Ti | N38: 14 | O38: 7 | P38: 2020 | Q38: Kouvolan Pallonlyöjät | R38: - | S38: Imatran Pallo-Veikot | T38: 2 | U38: - | V38: 0 | W38: (2-0, 3-0) | X38: 1449 | Y38: 5 | Z38: - | AA38: 0 | AC38: 1 | AD38: 0 | AE38: 0 | AF38: 1 | AG38: 0 | AH38: 2 | AI38: 1 | AU38: 0 | AV38: 0 | AW38: 0 | AX38: 0 | AY38: 0 | AZ38: 0 | BA38: 0 | BB38: 0 | BJ38: 2 | BK38: 7 | BL38: =PRODUCT(BJ38*60+BK38) -> 127 | BN38: Olli Vilén | BO38: Manu Majanne
M39: Ti | N39: 14 | O39: 7 | P39: 2020 | Q39: Sotkamon Jymy | R39: - | S39: Siilinjärven Pesis | T39: 2 | U39: - | V39: 0 | W39: (11-2, 9-2) | X39: 1450 | Y39: 20 | Z39: - | AA39: 4 | AC39: 3 | AD39: 1 | AE39: 7 | AG39: 8 | AH39: 0 | AI39: 1 | AJ39: 0 | AU39: 0 | AV39: 1 | AW39: 0 | AX39: 1 | AY39: 1 | AZ39: 1 | BA39: 0 | BB39: 0 | BJ39: 2 | BK39: 16 | BL39: =PRODUCT(BJ39*60+BK39) -> 136 | BN39: Joonas Lassila | BO39: Tapio Väisänen
M40: Ti | N40: 14 | O40: 7 | P40: 2020 | Q40: Vimpelin Veto | R40: - | S40: Kankaanpään Maila | T40: 1 | U40: - | V40: 0 | W40: (3-0, 4-4) | X40: 950 | Y40: 7 | Z40: - | AA40: 4 | AC40: 1 | AD40: 0 | AE40: 2 | AG40: 1 | AH40: 0 | AI40: 2 | AJ40: 1 | AU40: 0 | AV40: 0 | AW40: 0 | AX40: 0 | AY40: 3 | AZ40: 0 | BA40: 1 | BB40: 0 | BJ40: 2 | BK40: 19 | BL40: =PRODUCT(BJ40*60+BK40) -> 139 | BN40: Tommi Nupponen | BO40: Ossi Muurainen
M41: Ti | N41: 14 | O41: 7 | P41: 2020 | Q41: Koskenkorvan Urheilijat | R41: - | S41: Pattijoen Urheilijat | T41: 0 | U41: - | V41: 1 | W41: (2-3, 3-3) | X41: 596 | Y41: 5 | Z41: - | AA41: 6 | AC41: 0 | AD41: 1 | AE41: 0 | AF41: 1 | AG41: 2 | AH41: 1 | AI41: 0 | AJ41: 0 | AU41: 2 | AV41: 1 | AW41: 0 | AY41: 0 | AZ41: 2 | BA41: 0 | BB41: 1 | BJ41: 2 | BK41: 8 | BL41: =PRODUCT(BJ41*60+BK41) -> 128 | BN41: Peter Laitio | BO41: Ari Kiviniemi
M42: To | N42: 16 | O42: 7 | P42: 2020 | Q42: Seinäjoen JymyJussit | R42: - | S42: Sotkamon Jymy | T42: 0 | U42: - | V42: 1 | W42: (0-5, 1-1) | X42: 1187 | Y42: 1 | Z42: - | AA42: 6 | AC42: 0 | AD42: 0 | AE42: 0 | AG42: 0 | AH42: 0 | AI42: 1 | AJ42: 0 | AU42: 0 | AV42: 2 | AW42: 3 | AX42: 0 | AY42: 1 | AZ42: 0 | BA42: 0 | BB42: 0 | BJ42: 2 | BK42: 2 | BL42: =PRODUCT(BJ42*60+BK42) -> 122 | BN42: Peter Laitio | BO42: Ari Kiviniemi
M43: To | N43: 16 | O43: 7 | P43: 2020 | Q43: Kiteen Pallo-90 | R43: - | S43: Siilinjärven Pesis | T43: 1 | U43: - | V43: 0 | W43: (4-1, 1-1) | X43: 1218 | Y43: 5 | Z43: - | AA43: 2 | AC43: 0 | AD43: 3 | AE43: 1 | AG43: 0 | AH43: 1 | AI43: 0 | AJ43: 0 | AU43: 0 | AV43: 1 | AW43: 0 | AX43: 0 | AY43: 0 | AZ43: 0 | BA43: 1 | BB43: 0 | BJ43: 2 | BK43: 3 | BL43: =PRODUCT(BJ43*60+BK43) -> 123 | BN43: Suvi Kaukovalta | BO43: Mika Kääriäinen
M44: To | N44: 16 | O44: 7 | P44: 2020 | Q44: Imatran Pallo-Veikot | R44: - | S44: Hyvinkään Tahko | T44: 2 | U44: - | V44: 0 | W44: (12-2, 4-1) | X44: 761 | Y44: 16 | Z44: - | AA44: 3 | AC44: 1 | AD44: 9 | AE44: 2 | AF44: 0 | AG44: 3 | AH44: 0 | AI44: 1 | AJ44: 0 | AU44: 2 | AV44: 0 | AW44: 0 | AX44: 0 | AY44: 0 | AZ44: 0 | BA44: 1 | BB44: 0 | BJ44: 2 | BK44: 14 | BL44: =PRODUCT(BJ44*60+BK44) -> 134 | BN44: Kalle Hietanen | BO44: Miko Kotiniemi
M45: Pe | N45: 17 | O45: 7 | P45: 2020 | Q45: Kempeleen Kiri | R45: - | S45: Joensuun Maila | T45: 0 | U45: - | V45: 1 | W45: (2-5, 7-7) | X45: 1031 | Y45: 9 | Z45: - | AA45: 12 | AC45: 1 | AD45: 0 | AE45: 0 | AF45: 1 | AG45: 0 | AH45: 5 | AI45: 0 | AJ45: 2 | AU45: 4 | AV45: 1 | AW45: 0 | AY45: 4 | AZ45: 1 | BA45: 1 | BB45: 1 | BJ45: 2 | BK45: 6 | BL45: =PRODUCT(BJ45*60+BK45) -> 126 | BN45: Joonas Lassila | BO45: Tapio Väisänen
M46: Pe | N46: 17 | O46: 7 | P46: 2020 | Q46: Kouvolan Pallonlyöjät | R46: - | S46: Vimpelin Veto | T46: 2 | U46: - | V46: 0 | W46: (5-4, 6-1) | X46: 1489 | Y46: 11 | Z46: - | AA46: 5 | AC46: 0 | AD46: 1 | AE46: 2 | AF46: 2 | AG46: 1 | AH46: 2 | AI46: 3 | AU46: 0 | AV46: 4 | AW46: 0 | AX46: 0 | AY46: 0 | AZ46: 0 | BA46: 0 | BB46: 1 | BJ46: 2 | BK46: 21 | BL46: =PRODUCT(BJ46*60+BK46) -> 141 | BN46: Suvi Kaukovalta | BO46: Mika Kääriäinen
M47: Pe | N47: 17 | O47: 7 | P47: 2020 | Q47: Manse PP Edustus | R47: - | S47: Koskenkorvan Urheilijat | T47: 1 | U47: - | V47: 2 | W47: (3-2, 4-8, 0-0, 2-4) | X47: 871 | Y47: 7 | Z47: - | AA47: 10 | AC47: 1 | AD47: 0 | AE47: 2 | AG47: 0 | AH47: 2 | AI47: 1 | AJ47: 1 | AK47: 0 | AL47: 2 | AU47: 1 | AV47: 1 | AW47: 0 | AX47: 0 | AY47: 6 | AZ47: 1 | BA47: 1 | BB47: 0 | BC47: 0 | BD47: 4 | BJ47: 2 | BK47: 35 | BL47: =PRODUCT(BJ47*60+BK47) -> 155 | BN47: Ari Mustonen | BO47: Arttu Moisio
M48: La | N48: 18 | O48: 7 | P48: 2020 | Q48: Kankaanpään Maila | R48: - | S48: Seinäjoen JymyJussit | T48: 2 | U48: - | V48: 0 | W48: (7-3, 6-2) | X48: 676 | Y48: 13 | Z48: - | AA48: 5 | AC48: 2 | AD48: 2 | AE48: 0 | AF48: 3 | AG48: 2 | AH48: 0 | AI48: 4 | AU48: 1 | AV48: 0 | AW48: 2 | AX48: 0 | AY48: 0 | AZ48: 2 | BA48: 0 | BB48: 0 | BJ48: 2 | BK48: 50 | BL48: =PRODUCT(BJ48*60+BK48) -> 170 | BN48: Antti Aine | BO48: Samuli Eeva
M49: La | N49: 18 | O49: 7 | P49: 2020 | Q49: Pattijoen Urheilijat | R49: - | S49: Joensuun Maila | T49: 0 | U49: - | V49: 1 | W49: (5-5, 8-10) | X49: 757 | Y49: 13 | Z49: - | AA49: 15 | AC49: 2 | AD49: 3 | AE49: 0 | AF49: 0 | AG49: 1 | AH49: 7 | AI49: 0 | AJ49: 0 | AU49: 3 | AV49: 0 | AW49: 1 | AX49: 1 | AY49: 1 | AZ49: 0 | BA49: 5 | BB49: 4 | BJ49: 2 | BK49: 37 | BL49: =PRODUCT(BJ49*60+BK49) -> 157 | BN49: Peter Laitio | BO49: Ari Kiviniemi
M50: Su | N50: 19 | O50: 7 | P50: 2020 | Q50: Sotkamon Jymy | R50: - | S50: Kempeleen Kiri | T50: 2 | U50: - | V50: 0 | W50: (6-5, 5-3) | X50: 1497 | Y50: 11 | Z50: - | AA50: 8 | AC50: 1 | AD50: 4 | AE50: 0 | AF50: 1 | AG50: 4 | AH50: 0 | AI50: 1 | AJ50: 0 | AU50: 0 | AV50: 1 | AW50: 2 | AX50: 2 | AY50: 0 | AZ50: 2 | BA50: 0 | BB50: 1 | BJ50: 2 | BK50: 3 | BL50: =PRODUCT(BJ50*60+BK50) -> 123 | BN50: Kosti Rautiainen | BO50: Immo Rautiainen
M51: Su | N51: 19 | O51: 7 | P51: 2020 | Q51: Kouvolan Pallonlyöjät | R51: - | S51: Kiteen Pallo-90 | T51: 2 | U51: - | V51: 1 | W51: (5-6, 5-3, 5-1) | X51: 1341 | Y51: 15 | Z51: - | AA51: 10 | AC51: 3 | AD51: 1 | AE51: 0 | AF51: 1 | AG51: 0 | AH51: 3 | AI51: 2 | AJ51: 0 | AK51: 5 | AU51: 6 | AV51: 0 | AW51: 0 | AX51: 0 | AY51: 0 | AZ51: 1 | BA51: 2 | BB51: 0 | BC51: 1 | BJ51: 2 | BK51: 26 | BL51: =PRODUCT(BJ51*60+BK51) -> 146 | BN51: Ari Mustonen | BO51: Sami Ritola
M52: Su | N52: 19 | O52: 7 | P52: 2020 | Q52: Vimpelin Veto | R52: - | S52: Manse PP Edustus | T52: 2 | U52: - | V52: 0 | W52: (6-4, 6-2) | X52: 950 | Y52: 12 | Z52: - | AA52: 6 | AC52: 1 | AD52: 0 | AE52: 0 | AF52: 5 | AG52: 2 | AH52: 0 | AI52: 4 | AU52: 0 | AV52: 1 | AW52: 1 | AX52: 2 | AY52: 0 | AZ52: 0 | BA52: 0 | BB52: 2 | BJ52: 2 | BK52: 10 | BL52: =PRODUCT(BJ52*60+BK52) -> 130 | BN52: Joona Tervonen | BO52: Turo Timo
M53: Su | N53: 19 | O53: 7 | P53: 2020 | Q53: Koskenkorvan Urheilijat | R53: - | S53: Hyvinkään Tahko | T53: 2 | U53: - | V53: 1 | W53: (1-9, 4-3, 0-0, 1-0) | X53: 702 | Y53: 5 | Z53: - | AA53: 12 | AC53: 0 | AD53: 0 | AE53: 0 | AF53: 1 | AG53: 0 | AH53: 0 | AI53: 3 | AJ53: 1 | AK53: 0 | AL53: 1 | AU53: 0 | AV53: 2 | AW53: 6 | AX53: 1 | AY53: 1 | AZ53: 0 | BA53: 0 | BB53: 2 | BC53: 0 | BD53: 0 | BJ53: 3 | BK53: 3 | BL53: =PRODUCT(BJ53*60+BK53) -> 183 | BN53: Kristian Hirsimäki | BO53: Aleksi Mansikkamäki
M54: Su | N54: 19 | O54: 7 | P54: 2020 | Q54: Imatran Pallo-Veikot | R54: - | S54: Kankaanpään Maila | T54: 1 | U54: - | V54: 2 | W54: (9-4, 2-3, 1-4) | X54: 693 | Y54: 12 | Z54: - | AA54: 11 | AC54: 8 | AD54: 0 | AE54: 1 | AG54: 1 | AH54: 1 | AI54: 0 | AJ54: 0 | AK54: 1 | AU54: 0 | AV54: 2 | AW54: 0 | AX54: 2 | AY54: 0 | AZ54: 3 | BA54: 0 | BC54: 4 | BJ54: 2 | BK54: 44 | BL54: =PRODUCT(BJ54*60+BK54) -> 164 | BN54: Olli Vilén | BO54: Manu Majanne
M55: Su | N55: 19 | O55: 7 | P55: 2020 | Q55: Siilinjärven Pesis | R55: - | S55: Pattijoen Urheilijat | T55: 0 | U55: - | V55: 1 | W55: (1-1, 2-3) | X55: 573 | Y55: 3 | Z55: - | AA55: 4 | AC55: 0 | AD55: 1 | AE55: 0 | AF55: 0 | AG55: 0 | AH55: 0 | AI55: 0 | AJ55: 2 | AU55: 1 | AV55: 0 | AW55: 0 | AX55: 0 | AY55: 1 | AZ55: 0 | BA55: 2 | BB55: 0 | BJ55: 2 | BK55: 11 | BL55: =PRODUCT(BJ55*60+BK55) -> 131 | BN55: Jaakko Kuronen | BO55: Eki Kutvonen
M56: Ti | N56: 21 | O56: 7 | P56: 2020 | Q56: Siilinjärven Pesis | R56: - | S56: Vimpelin Veto | T56: 2 | U56: - | V56: 1 | W56: (0-7, 4-3, 2-0) | X56: 493 | Y56: 6 | Z56: - | AA56: 10 | AC56: 0 | AD56: 0 | AE56: 0 | AF56: 0 | AG56: 2 | AH56: 1 | AI56: 1 | AK56: 2 | AU56: 5 | AV56: 0 | AW56: 2 | AY56: 1 | AZ56: 1 | BA56: 0 | BB56: 1 | BC56: 0 | BJ56: 2 | BK56: 22 | BL56: =PRODUCT(BJ56*60+BK56) -> 142 | BN56: Tommi Nupponen | BO56: Ossi Muurainen
M57: Ti | N57: 21 | O57: 7 | P57: 2020 | Q57: Hyvinkään Tahko | R57: - | S57: Koskenkorvan Urheilijat | T57: 0 | U57: - | V57: 1 | W57: (10-10, 2-3) | X57: 887 | Y57: 12 | Z57: - | AA57: 13 | AC57: 4 | AD57: 0 | AE57: 3 | AF57: 3 | AG57: 0 | AH57: 2 | AI57: 0 | AJ57: 0 | AU57: 2 | AV57: 3 | AW57: 4 | AX57: 1 | AY57: 2 | AZ57: 0 | BA57: 0 | BB57: 1 | BJ57: 2 | BK57: 31 | BL57: =PRODUCT(BJ57*60+BK57) -> 151 | BN57: Kati Rantala | BO57: Matias Laukkanen
M58: Ti | N58: 21 | O58: 7 | P58: 2020 | Q58: Pattijoen Urheilijat | R58: - | S58: Kiteen Pallo-90 | T58: 0 | U58: - | V58: 2 | W58: (4-5, 0-1) | X58: 674 | Y58: 4 | Z58: - | AA58: 6 | AC58: 2 | AD58: 0 | AE58: 0 | AF58: 2 | AG58: 0 | AH58: 0 | AI58: 0 | AJ58: 0 | AU58: 1 | AV58: 2 | AW58: 0 | AX58: 2 | AY58: 1 | AZ58: 0 | BA58: 0 | BJ58: 2 | BK58: 7 | BL58: =PRODUCT(BJ58*60+BK58) -> 127 | BN58: Kosti Rautiainen | BO58: Immo Rautiainen
M59: Ti | N59: 21 | O59: 7 | P59: 2020 | Q59: Seinäjoen JymyJussit | R59: - | S59: Manse PP Edustus | T59: 2 | U59: - | V59: 1 | W59: (6-4, 7-8, 1-1, 1-0) | X59: 913 | Y59: 14 | Z59: - | AA59: 13 | AC59: 1 | AD59: 1 | AE59: 1 | AF59: 3 | AG59: 5 | AH59: 2 | AI59: 0 | AJ59: 0 | AK59: 1 | AL59: 1 | AU59: 0 | AV59: 2 | AW59: 2 | AX59: 0 | AY59: 3 | AZ59: 3 | BA59: 2 | BC59: 1 | BD59: 0 | BJ59: 2 | BK59: 42 | BL59: =PRODUCT(BJ59*60+BK59) -> 162 | BN59: Kristian Hirsimäki | BO59: Aleksi Mansikkamäki
M60: Ti | N60: 21 | O60: 7 | P60: 2020 | Q60: Imatran Pallo-Veikot | R60: - | S60: Sotkamon Jymy | T60: 0 | U60: - | V60: 2 | W60: (4-6, 3-4) | X60: 927 | Y60: 7 | Z60: - | AA60: 10 | AC60: 1 | AD60: 1 | AE60: 2 | AF60: 0 | AG60: 1 | AH60: 2 | AI60: 0 | AJ60: 0 | AU60: 6 | AV60: 0 | AW60: 0 | AY60: 2 | AZ60: 0 | BA60: 2 | BB60: 0 | BJ60: 2 | BK60: 7 | BL60: =PRODUCT(BJ60*60+BK60) -> 127 | BN60: Suvi Kaukovalta | BO60: Mika Kääriäinen
M61: Ti | N61: 21 | O61: 7 | P61: 2020 | Q61: Joensuun Maila | R61: - | S61: Kouvolan Pallonlyöjät | T61: 2 | U61: - | V61: 0 | W61: (4-3, 7-4) | X61: 2100 | Y61: 11 | Z61: - | AA61: 7 | AC61: 0 | AD61: 0 | AE61: 4 | AG61: 4 | AH61: 2 | AI61: 0 | AJ61: 1 | AU61: 0 | AV61: 0 | AW61: 2 | AX61: 1 | AY61: 1 | AZ61: 2 | BA61: 1 | BB61: 0 | BJ61: 2 | BK61: 15 | BL61: =PRODUCT(BJ61*60+BK61) -> 135 | BN61: Jaakko Kuronen | BO61: Eki Kutvonen
M62: Ke | N62: 22 | O62: 7 | P62: 2020 | Q62: Kempeleen Kiri | R62: - | S62: Kiteen Pallo-90 | T62: 2 | U62: - | V62: 1 | W62: (2-0, 1-3, 1-1, 1-0) | X62: 422 | Y62: 4 | Z62: - | AA62: 4 | AC62: 1 | AD62: 1 | AE62: 0 | AG62: 0 | AH62: 0 | AI62: 1 | AJ62: 0 | AK62: 1 | AL62: 1 | AU62: 0 | AV62: 0 | AW62: 0 | AX62: 0 | AY62: 0 | AZ62: 1 | BA62: 2 | BC62: 1 | BD62: 0 | BJ62: 2 | BK62: 17 | BL62: =PRODUCT(BJ62*60+BK62) -> 137 | BN62: Joonas Lassila | BO62: Tapio Väisänen
M63: To | N63: 23 | O63: 7 | P63: 2020 | Q63: Seinäjoen JymyJussit | R63: - | S63: Kankaanpään Maila | T63: 1 | U63: - | V63: 0 | W63: (4-4, 2-1) | X63: 607 | Y63: 6 | Z63: - | AA63: 5 | AC63: 1 | AD63: 0 | AE63: 1 | AF63: 2 | AG63: 0 | AH63: 0 | AI63: 2 | AU63: 2 | AV63: 2 | AW63: 0 | AX63: 0 | AY63: 0 | AZ63: 0 | BA63: 0 | BB63: 1 | BJ63: 2 | BK63: 13 | BL63: =PRODUCT(BJ63*60+BK63) -> 133 | BN63: Peter Laitio | BO63: Ari Kiviniemi
M64: To | N64: 23 | O64: 7 | P64: 2020 | Q64: Siilinjärven Pesis | R64: - | S64: Joensuun Maila | T64: 0 | U64: - | V64: 2 | W64: (2-3, 3-4) | X64: 754 | Y64: 5 | Z64: - | AA64: 7 | AC64: 1 | AD64: 0 | AE64: 0 | AF64: 1 | AG64: 2 | AH64: 1 | AI64: 0 | AJ64: 0 | AU64: 1 | AV64: 0 | AW64: 2 | AY64: 0 | AZ64: 3 | BA64: 0 | BB64: 1 | BJ64: 2 | BK64: 29 | BL64: =PRODUCT(BJ64*60+BK64) -> 149 | BN64: Tommi Nupponen | BO64: Ossi Muurainen
M65: Pe | N65: 24 | O65: 7 | P65: 2020 | Q65: Koskenkorvan Urheilijat | R65: - | S65: Kouvolan Pallonlyöjät | T65: 1 | U65: - | V65: 2 | W65: (5-8, 5-2, 0-0, 1-2) | X65: 402 | Y65: 10 | Z65: - | AA65: 10 | AC65: 1 | AD65: 2 | AE65: 0 | AF65: 2 | AG65: 2 | AH65: 2 | AI65: 1 | AJ65: 0 | AK65: 0 | AL65: 1 | AU65: 1 | AV65: 1 | AW65: 2 | AX65: 4 | AY65: 0 | AZ65: 0 | BA65: 1 | BB65: 1 | BC65: 0 | BD65: 2 | BJ65: 3 | BK65: 2 | BL65: =PRODUCT(BJ65*60+BK65) -> 182 | BN65: Waltteri Uurasjärvi | BO65: Jesse Mäkinen
M66: Pe | N66: 24 | O66: 7 | P66: 2020 | Q66: Vimpelin Veto | R66: - | S66: Pattijoen Urheilijat | T66: 2 | U66: - | V66: 1 | W66: (2-3, 4-2, 1-0) | X66: 950 | Y66: 7 | Z66: - | AA66: 5 | AC66: 0 | AD66: 0 | AE66: 0 | AF66: 2 | AG66: 3 | AH66: 1 | AI66: 0 | AK66: 1 | AU66: 0 | AV66: 0 | AW66: 1 | AX66: 2 | AY66: 0 | AZ66: 0 | BA66: 0 | BB66: 2 | BJ66: 2 | BK66: 21 | BL66: =PRODUCT(BJ66*60+BK66) -> 141 | BN66: Kristian Hirsimäki | BO66: Aleksi Mansikkamäki
M67: Pe | N67: 24 | O67: 7 | P67: 2020 | Q67: Kempeleen Kiri | R67: - | S67: Sotkamon Jymy | T67: 0 | U67: - | V67: 1 | W67: (3-7, 4-4) | X67: 1200 | Y67: 7 | Z67: - | AA67: 11 | AC67: 2 | AD67: 0 | AE67: 0 | AF67: 1 | AG67: 3 | AH67: 1 | AI67: 0 | AJ67: 0 | AU67: 3 | AV67: 0 | AW67: 4 | AY67: 2 | AZ67: 0 | BA67: 1 | BB67: 1 | BJ67: 2 | BK67: 13 | BL67: =PRODUCT(BJ67*60+BK67) -> 133 | BN67: Kosti Rautiainen | BO67: Immo Rautiainen
M68: Pe | N68: 24 | O68: 7 | P68: 2020 | Q68: Manse PP Edustus | R68: - | S68: Imatran Pallo-Veikot | T68: 1 | U68: - | V68: 0 | W68: (4-4, 2-0) | X68: 552 | Y68: 6 | Z68: - | AA68: 4 | AC68: 2 | AD68: 0 | AE68: 1 | AF68: 1 | AG68: 0 | AH68: 2 | AI68: 0 | AU68: 0 | AV68: 3 | AW68: 0 | AX68: 1 | AY68: 0 | AZ68: 0 | BA68: 0 | BB68: 0 | BJ68: 2 | BK68: 13 | BL68: =PRODUCT(BJ68*60+BK68) -> 133 | BN68: Ari Mustonen | BO68: Sami Ritola
M69: La | N69: 25 | O69: 7 | P69: 2020 | Q69: Kankaanpään Maila | R69: - | S69: Imatran Pallo-Veikot | T69: 0 | U69: - | V69: 1 | W69: (4-4, 3-3, 1-2) | X69: 602 | Y69: 8 | Z69: - | AA69: 9 | AC69: 0 | AD69: 2 | AE69: 2 | AF69: 0 | AG69: 1 | AH69: 0 | AI69: 1 | AJ69: 1 | AK69: 1 | AU69: 1 | AV69: 0 | AW69: 3 | AX69: 0 | AY69: 0 | AZ69: 0 | BA69: 2 | BB69: 1 | BC69: 2 | BJ69: 2 | BK69: 56 | BL69: =PRODUCT(BJ69*60+BK69) -> 176 | BN69: Kalle Hietanen | BO69: Miko Kotiniemi
M70: La | N70: 25 | O70: 7 | P70: 2020 | Q70: Joensuun Maila | R70: - | S70: Hyvinkään Tahko | T70: 1 | U70: - | V70: 0 | W70: (6-0, 2-2) | X70: 1454 | Y70: 8 | Z70: - | AA70: 2 | AC70: 0 | AD70: 4 | AE70: 2 | AG70: 1 | AH70: 0 | AI70: 1 | AJ70: 0 | AU70: 0 | AV70: 0 | AW70: 0 | AX70: 0 | AY70: 1 | AZ70: 0 | BA70: 0 | BB70: 1 | BJ70: 2 | BK70: 19 | BL70: =PRODUCT(BJ70*60+BK70) -> 139 | BN70: Tommi Nupponen | BO70: Ossi Muurainen
M71: Su | N71: 26 | O71: 7 | P71: 2020 | Q71: Sotkamon Jymy | R71: - | S71: Pattijoen Urheilijat | T71: 2 | U71: - | V71: 0 | W71: (5-3, 3-0) | X71: 1497 | Y71: 8 | Z71: - | AA71: 3 | AC71: 1 | AD71: 2 | AE71: 2 | AG71: 0 | AH71: 0 | AI71: 2 | AJ71: 1 | AU71: 0 | AV71: 3 | AW71: 0 | AX71: 0 | AY71: 0 | AZ71: 0 | BA71: 0 | BB71: 0 | BJ71: 2 | BK71: 10 | BL71: =PRODUCT(BJ71*60+BK71) -> 130 | BN71: Jari Saaranen | BO71: Jussi Mäntymaa
M72: Su | N72: 26 | O72: 7 | P72: 2020 | Q72: Vimpelin Veto | R72: - | S72: Kempeleen Kiri | T72: 2 | U72: - | V72: 0 | W72: (4-3, 3-2) | X72: 950 | Y72: 7 | Z72: - | AA72: 5 | AC72: 1 | AD72: 1 | AE72: 2 | AG72: 0 | AH72: 0 | AI72: 1 | AJ72: 2 | AU72: 1 | AV72: 1 | AW72: 1 | AX72: 0 | AY72: 2 | AZ72: 0 | BA72: 0 | BB72: 0 | BJ72: 2 | BK72: 21 | BL72: =PRODUCT(BJ72*60+BK72) -> 141 | BN72: Kristian Hirsimäki | BO72: Aleksi Mansikkamäki
M73: Su | N73: 26 | O73: 7 | P73: 2020 | Q73: Koskenkorvan Urheilijat | R73: - | S73: Seinäjoen JymyJussit | T73: 1 | U73: - | V73: 2 | W73: (1-3, 8-2, 2-5) | X73: 882 | Y73: 11 | Z73: - | AA73: 10 | AC73: 0 | AD73: 0 | AE73: 1 | AF73: 0 | AG73: 1 | AH73: 1 | AI73: 6 | AJ73: 0 | AK73: 2 | AU73: 1 | AV73: 1 | AW73: 1 | AX73: 0 | AY73: 0 | AZ73: 0 | BA73: 1 | BB73: 1 | BC73: 5 | BJ73: 2 | BK73: 31 | BL73: =PRODUCT(BJ73*60+BK73) -> 151 | BN73: Joona Tervonen | BO73: Turo Timo
M74: Su | N74: 26 | O74: 7 | P74: 2020 | Q74: Kiteen Pallo-90 | R74: - | S74: Hyvinkään Tahko | T74: 0 | U74: - | V74: 2 | W74: (3-5, 4-5) | X74: 1455 | Y74: 7 | Z74: - | AA74: 10 | AC74: 0 | AD74: 1 | AE74: 1 | AF74: 1 | AG74: 0 | AH74: 0 | AI74: 2 | AJ74: 2 | AU74: 4 | AV74: 1 | AW74: 0 | AX74: 0 | AY74: 0 | AZ74: 0 | BA74: 5 | BJ74: 2 | BK74: 14 | BL74: =PRODUCT(BJ74*60+BK74) -> 134 | BN74: Olli Vilén | BO74: Manu Majanne
M75: Ti | N75: 28 | O75: 7 | P75: 2020 | Q75: Kankaanpään Maila | R75: - | S75: Koskenkorvan Urheilijat | T75: 0 | U75: - | V75: 2 | W75: (3-8, 2-4) | X75: 652 | Y75: 5 | Z75: - | AA75: 12 | AC75: 0 | AD75: 0 | AE75: 1 | AF75: 2 | AG75: 1 | AH75: 0 | AI75: 0 | AJ75: 1 | AU75: 4 | AV75: 1 | AW75: 2 | AX75: 1 | AY75: 1 | AZ75: 1 | BA75: 2 | BJ75: 2 | BK75: 20 | BL75: =PRODUCT(BJ75*60+BK75) -> 140 | BN75: Ari Mustonen | BO75: Sami Ritola
M76: Ti | N76: 28 | O76: 7 | P76: 2020 | Q76: Sotkamon Jymy | R76: - | S76: Joensuun Maila | T76: 0 | U76: - | V76: 2 | W76: (2-8, 5-6) | X76: 1497 | Y76: 7 | Z76: - | AA76: 14 | AC76: 0 | AD76: 2 | AE76: 0 | AF76: 0 | AG76: 3 | AH76: 2 | AI76: 0 | AJ76: 0 | AU76: 1 | AV76: 3 | AW76: 2 | AX76: 2 | AY76: 2 | AZ76: 4 | BA76: 0 | BJ76: 2 | BK76: 34 | BL76: =PRODUCT(BJ76*60+BK76) -> 154 | BN76: Joonas Lassila | BO76: Tapio Väisänen
M77: Ti | N77: 28 | O77: 7 | P77: 2020 | Q77: Kiteen Pallo-90 | R77: - | S77: Kempeleen Kiri | T77: 0 | U77: - | V77: 2 | W77: (5-6, 1-2) | X77: 1116 | Y77: 6 | Z77: - | AA77: 8 | AC77: 0 | AD77: 4 | AE77: 1 | AF77: 0 | AG77: 1 | AH77: 0 | AI77: 0 | AJ77: 0 | AU77: 1 | AV77: 0 | AW77: 3 | AX77: 2 | AY77: 0 | AZ77: 0 | BA77: 1 | BB77: 1 | BJ77: 2 | BK77: 22 | BL77: =PRODUCT(BJ77*60+BK77) -> 142 | BN77: Jaakko Kuronen | BO77: Eki Kutvonen
M78: Ti | N78: 28 | O78: 7 | P78: 2020 | Q78: Imatran Pallo-Veikot | R78: - | S78: Siilinjärven Pesis | T78: 2 | U78: - | V78: 0 | W78: (4-1, 10-4) | X78: 759 | Y78: 14 | Z78: - | AA78: 5 | AC78: 0 | AD78: 3 | AE78: 1 | AG78: 7 | AH78: 2 | AI78: 1 | AJ78: 0 | AU78: 0 | AV78: 0 | AW78: 0 | AX78: 1 | AY78: 2 | AZ78: 1 | BA78: 1 | BB78: 0 | BJ78: 2 | BK78: 36 | BL78: =PRODUCT(BJ78*60+BK78) -> 156 | BN78: Olli Vilén | BO78: Mika Kääriäinen
M79: Ke | N79: 29 | O79: 7 | P79: 2020 | Q79: Hyvinkään Tahko | R79: - | S79: Manse PP Edustus | T79: 2 | U79: - | V79: 0 | W79: (1-0, 5-2) | X79: 931 | Y79: 6 | Z79: - | AA79: 2 | AC79: 0 | AD79: 0 | AE79: 1 | AF79: 0 | AG79: 2 | AH79: 2 | AI79: 1 | AU79: 0 | AV79: 0 | AW79: 0 | AX79: 0 | AY79: 0 | AZ79: 2 | BA79: 0 | BB79: 0 | BJ79: 1 | BK79: 53 | BL79: =PRODUCT(BJ79*60+BK79) -> 113 | BN79: Antti Aine | BO79: Samuli Eeva
M80: To | N80: 30 | O80: 7 | P80: 2020 | Q80: Joensuun Maila | R80: - | S80: Sotkamon Jymy | T80: 1 | U80: - | V80: 0 | W80: (3-3, 5-1) | X80: 2100 | Y80: 8 | Z80: - | AA80: 4 | AC80: 2 | AD80: 0 | AE80: 1 | AF80: 0 | AG80: 0 | AH80: 1 | AI80: 2 | AJ80: 2 | AU80: 0 | AV80: 1 | AW80: 0 | AX80: 2 | AY80: 0 | AZ80: 0 | BA80: 0 | BB80: 1 | BJ80: 2 | BK80: 36 | BL80: =PRODUCT(BJ80*60+BK80) -> 156 | BN80: Tommi Nupponen | BO80: Ossi Muurainen
M81: To | N81: 30 | O81: 7 | P81: 2020 | Q81: Seinäjoen JymyJussit | R81: - | S81: Vimpelin Veto | T81: 0 | U81: - | V81: 2 | W81: (4-5, 3-10) | X81: 1319 | Y81: 7 | Z81: - | AA81: 15 | AC81: 1 | AD81: 1 | AE81: 2 | AF81: 0 | AG81: 1 | AH81: 1 | AI81: 1 | AJ81: 0 | AU81: 0 | AV81: 0 | AW81: 1 | AX81: 4 | AY81: 0 | AZ81: 1 | BA81: 9 | BJ81: 2 | BK81: 35 | BL81: =PRODUCT(BJ81*60+BK81) -> 155 | BN81: Peter Laitio | BO81: Aleksi Mansikkamäki
M82: To | N82: 30 | O82: 7 | P82: 2020 | Q82: Kouvolan Pallonlyöjät | R82: - | S82: Hyvinkään Tahko | T82: 2 | U82: - | V82: 0 | W82: (3-1, 7-2) | X82: 1386 | Y82: 10 | Z82: - | AA82: 3 | AC82: 0 | AD82: 2 | AE82: 0 | AF82: 1 | AG82: 1 | AH82: 3 | AI82: 3 | AU82: 1 | AV82: 0 | AW82: 0 | AX82: 0 | AY82: 0 | AZ82: 0 | BA82: 1 | BB82: 1 | BJ82: 2 | BK82: 16 | BL82: =PRODUCT(BJ82*60+BK82) -> 136 | BN82: Suvi Kaukovalta | BO82: Mika Kääriäinen
M83: Pe | N83: 31 | O83: 7 | P83: 2020 | Q83: Pattijoen Urheilijat | R83: - | S83: Imatran Pallo-Veikot | T83: 2 | U83: - | V83: 0 | W83: (5-4, 2-0) | X83: 852 | Y83: 7 | Z83: - | AA83: 4 | AC83: 2 | AD83: 1 | AE83: 1 | AF83: 1 | AG83: 0 | AH83: 0 | AI83: 2 | AU83: 1 | AV83: 2 | AW83: 1 | AX83: 0 | AY83: 0 | AZ83: 0 | BA83: 0 | BB83: 0 | BJ83: 2 | BK83: 20 | BL83: =PRODUCT(BJ83*60+BK83) -> 140 | BN83: Jari Saaranen | BO83: Jussi Mäntymaa
M84: La | N84: 1 | O84: 8 | P84: 2020 | Q84: Manse PP Edustus | R84: - | S84: Kankaanpään Maila | T84: 0 | U84: - | V84: 1 | W84: (1-2, 2-2) | X84: 882 | Y84: 3 | Z84: - | AA84: 4 | AC84: 0 | AD84: 0 | AE84: 0 | AF84: 1 | AG84: 1 | AH84: 0 | AI84: 0 | AJ84: 1 | AU84: 1 | AV84: 0 | AW84: 0 | AX84: 1 | AY84: 0 | AZ84: 1 | BA84: 1 | BB84: 0 | BJ84: 2 | BK84: 14 | BL84: =PRODUCT(BJ84*60+BK84) -> 134 | BN84: Waltteri Uurasjärvi | BO84: Jesse Mäkinen
M85: La | N85: 1 | O85: 8 | P85: 2020 | Q85: Kempeleen Kiri | R85: - | S85: Imatran Pallo-Veikot | T85: 2 | U85: - | V85: 1 | W85: (3-2, 0-3, 1-0) | X85: 747 | Y85: 4 | Z85: - | AA85: 5 | AC85: 2 | AD85: 0 | AE85: 0 | AF85: 1 | AG85: 0 | AH85: 0 | AI85: 0 | AJ85: 0 | AK85: 1 | AU85: 1 | AV85: 0 | AW85: 1 | AX85: 0 | AY85: 0 | AZ85: 2 | BA85: 1 | BB85: 0 | BC85: 0 | BJ85: 2 | BK85: 15 | BL85: =PRODUCT(BJ85*60+BK85) -> 135 | BN85: Joonas Lassila | BO85: Tapio Väisänen
M86: La | N86: 1 | O86: 8 | P86: 2020 | Q86: Koskenkorvan Urheilijat | R86: - | S86: Vimpelin Veto | T86: 0 | U86: - | V86: 2 | W86: (1-4, 0-1) | X86: 526 | Y86: 1 | Z86: - | AA86: 5 | AC86: 0 | AD86: 0 | AE86: 1 | AF86: 0 | AG86: 0 | AH86: 0 | AI86: 0 | AJ86: 0 | AU86: 0 | AV86: 4 | AW86: 0 | AX86: 0 | AY86: 1 | AZ86: 0 | BA86: 0 | BJ86: 2 | BK86: 0 | BL86: =PRODUCT(BJ86*60+BK86) -> 120 | BN86: Joona Tervonen | BO86: Turo Timo
M87: Su | N87: 2 | O87: 8 | P87: 2020 | Q87: Sotkamon Jymy | R87: - | S87: Koskenkorvan Urheilijat | T87: 1 | U87: - | V87: 0 | W87: (2-2, 5-3) | X87: 937 | Y87: 7 | Z87: - | AA87: 5 | AC87: 0 | AD87: 1 | AE87: 1 | AF87: 0 | AG87: 0 | AH87: 2 | AI87: 3 | AJ87: 0 | AU87: 1 | AV87: 0 | AW87: 1 | AX87: 0 | AY87: 0 | AZ87: 0 | BA87: 1 | BB87: 2 | BJ87: 2 | BK87: 28 | BL87: =PRODUCT(BJ87*60+BK87) -> 148 | BN87: Jari Saaranen | BO87: Jussi Mäntymaa
M88: Su | N88: 2 | O88: 8 | P88: 2020 | Q88: Hyvinkään Tahko | R88: - | S88: Kouvolan Pallonlyöjät | T88: 1 | U88: - | V88: 2 | W88: (5-4, 0-6, 0-0, 1-2) | X88: 760 | Y88: 5 | Z88: - | AA88: 10 | AC88: 1 | AD88: 0 | AE88: 3 | AF88: 1 | AG88: 0 | AH88: 0 | AI88: 0 | AJ88: 0 | AK88: 0 | AL88: 1 | AU88: 1 | AV88: 1 | AW88: 2 | AX88: 0 | AY88: 0 | AZ88: 2 | BA88: 4 | BB88: 0 | BC88: 0 | BD88: 2 | BJ88: 2 | BK88: 38 | BL88: =PRODUCT(BJ88*60+BK88) -> 158 | BN88: Waltteri Uurasjärvi | BO88: Jesse Mäkinen
M89: Su | N89: 2 | O89: 8 | P89: 2020 | Q89: Kankaanpään Maila | R89: - | S89: Kiteen Pallo-90 | T89: 2 | U89: - | V89: 0 | W89: (3-1, 9-7) | X89: 522 | Y89: 12 | Z89: - | AA89: 8 | AC89: 2 | AD89: 0 | AE89: 0 | AF89: 1 | AG89: 1 | AH89: 1 | AI89: 2 | AJ89: 5 | AU89: 1 | AV89: 0 | AW89: 0 | AX89: 0 | AY89: 2 | AZ89: 4 | BA89: 0 | BB89: 1 | BJ89: 2 | BK89: 35 | BL89: =PRODUCT(BJ89*60+BK89) -> 155 | BN89: Antti Aine | BO89: Samuli Eeva
M90: Su | N90: 2 | O90: 8 | P90: 2020 | Q90: Seinäjoen JymyJussit | R90: - | S90: Pattijoen Urheilijat | T90: 1 | U90: - | V90: 0 | W90: (6-6, 6-4) | X90: 695 | Y90: 12 | Z90: - | AA90: 10 | AC90: 3 | AD90: 0 | AE90: 1 | AF90: 2 | AG90: 0 | AH90: 1 | AI90: 3 | AJ90: 2 | AU90: 1 | AV90: 1 | AW90: 1 | AX90: 3 | AY90: 2 | AZ90: 1 | BA90: 0 | BB90: 1 | BJ90: 2 | BK90: 31 | BL90: =PRODUCT(BJ90*60+BK90) -> 151 | BN90: Peter Laitio | BO90: Jari Mäkynen
M91: Su | N91: 2 | O91: 8 | P91: 2020 | Q91: Siilinjärven Pesis | R91: - | S91: Kempeleen Kiri | T91: 0 | U91: - | V91: 2 | W91: (2-4, 1-6) | X91: 297 | Y91: 3 | Z91: - | AA91: 10 | AC91: 1 | AD91: 0 | AE91: 1 | AF91: 0 | AG91: 0 | AH91: 1 | AI91: 0 | AJ91: 0 | AU91: 1 | AV91: 3 | AW91: 0 | AY91: 1 | AZ91: 3 | BA91: 2 | BB91: 0 | BJ91: 2 | BK91: 22 | BL91: =PRODUCT(BJ91*60+BK91) -> 142 | BN91: Tommi Nupponen | BO91: Jani Rutanen
M92: Su | N92: 2 | O92: 8 | P92: 2020 | Q92: Manse PP Edustus | R92: - | S92: Joensuun Maila | T92: 0 | U92: - | V92: 2 | W92: (1-7, 0-2) | X92: 774 | Y92: 1 | Z92: - | AA92: 9 | AC92: 0 | AD92: 0 | AE92: 1 | AF92: 0 | AG92: 0 | AH92: 0 | AI92: 0 | AJ92: 0 | AU92: 2 | AV92: 5 | AW92: 0 | AY92: 0 | AZ92: 0 | BA92: 0 | BB92: 2 | BJ92: 2 | BK92: 26 | BL92: =PRODUCT(BJ92*60+BK92) -> 146 | BN92: Kati Rantala | BO92: Matias Laukkanen
M93: Ti | N93: 4 | O93: 8 | P93: 2020 | Q93: Kiteen Pallo-90 | R93: - | S93: Kouvolan Pallonlyöjät | T93: 2 | U93: - | V93: 0 | W93: (8-4, 4-2) | X93: 891 | Y93: 12 | Z93: - | AA93: 6 | AC93: 5 | AD93: 3 | AE93: 0 | AF93: 0 | AG93: 1 | AH93: 1 | AI93: 1 | AJ93: 1 | AU93: 2 | AV93: 2 | AW93: 0 | AX93: 0 | AY93: 2 | AZ93: 0 | BA93: 0 | BB93: 0 | BJ93: 2 | BK93: 19 | BL93: =PRODUCT(BJ93*60+BK93) -> 139 | BN93: Olli Vilén | BO93: Eki Kutvonen
M94: Ti | N94: 4 | O94: 8 | P94: 2020 | Q94: Vimpelin Veto | R94: - | S94: Hyvinkään Tahko | T94: 2 | U94: - | V94: 0 | W94: (10-8, 9-4) | X94: 1080 | Y94: 19 | Z94: - | AA94: 12 | AC94: 3 | AD94: 1 | AE94: 3 | AF94: 3 | AG94: 0 | AH94: 0 | AI94: 4 | AJ94: 5 | AU94: 0 | AV94: 4 | AW94: 3 | AX94: 1 | AY94: 1 | AZ94: 0 | BA94: 2 | BB94: 1 | BJ94: 2 | BK94: 31 | BL94: =PRODUCT(BJ94*60+BK94) -> 151 | BN94: Peter Laitio | BO94: Ari Kiviniemi
M95: Ti | N95: 4 | O95: 8 | P95: 2020 | Q95: Imatran Pallo-Veikot | R95: - | S95: Joensuun Maila | T95: 0 | U95: - | V95: 2 | W95: (3-5, 0-2) | X95: 818 | Y95: 3 | Z95: - | AA95: 7 | AC95: 1 | AD95: 0 | AE95: 1 | AF95: 1 | AG95: 0 | AH95: 0 | AI95: 0 | AJ95: 0 | AU95: 4 | AV95: 1 | AW95: 0 | AX95: 0 | AY95: 0 | AZ95: 2 | BA95: 0 | BJ95: 2 | BK95: 16 | BL95: =PRODUCT(BJ95*60+BK95) -> 136 | BN95: Suvi Kaukovalta | BO95: Mika Kääriäinen
M96: Ke | N96: 5 | O96: 8 | P96: 2020 | Q96: Kempeleen Kiri | R96: - | S96: Siilinjärven Pesis | T96: 0 | U96: - | V96: 2 | W96: (1-3, 1-2) | X96: 724 | Y96: 2 | Z96: - | AA96: 5 | AC96: 0 | AD96: 1 | AE96: 0 | AF96: 0 | AG96: 0 | AH96: 1 | AI96: 0 | AJ96: 0 | AU96: 1 | AV96: 1 | AW96: 1 | AX96: 0 | AY96: 2 | AZ96: 0 | BA96: 0 | BJ96: 2 | BK96: 18 | BL96: =PRODUCT(BJ96*60+BK96) -> 138 | BN96: Jari Saaranen | BO96: Jussi Mäntymaa
M97: Ke | N97: 5 | O97: 8 | P97: 2020 | Q97: Kankaanpään Maila | R97: - | S97: Manse PP Edustus | T97: 0 | U97: - | V97: 2 | W97: (1-3, 2-3) | X97: 692 | Y97: 3 | Z97: - | AA97: 6 | AC97: 1 | AD97: 0 | AE97: 0 | AF97: 0 | AG97: 1 | AH97: 1 | AI97: 0 | AJ97: 0 | AU97: 0 | AV97: 2 | AW97: 0 | AX97: 1 | AY97: 1 | AZ97: 1 | BA97: 1 | BJ97: 2 | BK97: 19 | BL97: =PRODUCT(BJ97*60+BK97) -> 139 | BN97: Ari Mustonen | BO97: Sami Ritola
M98: To | N98: 6 | O98: 8 | P98: 2020 | Q98: Hyvinkään Tahko | R98: - | S98: Seinäjoen JymyJussit | T98: 1 | U98: - | V98: 0 | W98: (6-6, 4-1) | X98: 791 | Y98: 10 | Z98: - | AA98: 7 | AC98: 3 | AD98: 1 | AE98: 0 | AF98: 2 | AG98: 1 | AH98: 0 | AI98: 3 | AU98: 1 | AV98: 4 | AW98: 1 | AX98: 0 | AY98: 0 | AZ98: 0 | BA98: 1 | BB98: 0 | BJ98: 2 | BK98: 26 | BL98: =PRODUCT(BJ98*60+BK98) -> 146 | BN98: Antti Aine | BO98: Samuli Eeva
M99: To | N99: 6 | O99: 8 | P99: 2020 | Q99: Kiteen Pallo-90 | R99: - | S99: Imatran Pallo-Veikot | T99: 2 | U99: - | V99: 0 | W99: (8-0, 2-1) | X99: 1103 | Y99: 10 | Z99: - | AA99: 1 | AC99: 7 | AD99: 0 | AE99: 1 | AF99: 0 | AG99: 1 | AH99: 1 | AI99: 0 | AU99: 0 | AV99: 0 | AW99: 0 | AX99: 0 | AY99: 0 | AZ99: 0 | BA99: 1 | BB99: 0 | BJ99: 2 | BK99: 2 | BL99: =PRODUCT(BJ99*60+BK99) -> 122 | BN99: Suvi Kaukovalta | BO99: Mika Kääriäinen
M100: To | N100: 6 | O100: 8 | P100: 2020 | Q100: Sotkamon Jymy | R100: - | S100: Pattijoen Urheilijat | T100: 2 | U100: - | V100: 0 | W100: (6-1, 1-0) | X100: 1109 | Y100: 7 | Z100: - | AA100: 1 | AC100: 0 | AD100: 2 | AE100: 1 | AF100: 3 | AG100: 0 | AH100: 0 | AI100: 1 | AU100: 0 | AV100: 0 | AW100: 1 | AX100: 0 | AY100: 0 | AZ100: 0 | BA100: 0 | BB100: 0 | BJ100: 2 | BK100: 4 | BL100: =PRODUCT(BJ100*60+BK100) -> 124 | BN100: Joonas Lassila | BO100: Tapio Väisänen
M101: Pe | N101: 7 | O101: 8 | P101: 2020 | Q101: Vimpelin Veto | R101: - | S101: Siilinjärven Pesis | T101: 2 | U101: - | V101: 1 | W101: (2-3, 11-7, 0-0, 4-3) | X101: 872 | Y101: 13 | Z101: - | AA101: 10 | AC101: 1 | AD101: 1 | AE101: 0 | AF101: 0 | AG101: 8 | AH101: 0 | AI101: 0 | AJ101: 3 | AK101: 0 | AL101: 4 | AU101: 0 | AV101: 1 | AW101: 2 | AX101: 0 | AY101: 0 | AZ101: 2 | BA101: 1 | BB101: 4 | BC101: 0 | BD101: 3 | BJ101: 2 | BK101: 57 | BL101: =PRODUCT(BJ101*60+BK101) -> 177 | BN101: Joona Tervonen | BO101: Turo Timo
M102: Pe | N102: 7 | O102: 8 | P102: 2020 | Q102: Joensuun Maila | R102: - | S102: Kankaanpään Maila | T102: 1 | U102: - | V102: 0 | W102: (3-3, 4-2) | X102: 1402 | Y102: 7 | Z102: - | AA102: 5 | AC102: 1 | AD102: 0 | AE102: 2 | AF102: 0 | AG102: 1 | AH102: 2 | AI102: 0 | AJ102: 1 | AU102: 2 | AV102: 0 | AW102: 1 | AX102: 0 | AY102: 0 | AZ102: 0 | BA102: 1 | BB102: 1 | BJ102: 2 | BK102: 28 | BL102: =PRODUCT(BJ102*60+BK102) -> 148 | BN102: Olli Vilén | BO102: Mika Kääriäinen
M103: Pe | N103: 7 | O103: 8 | P103: 2020 | Q103: Koskenkorvan Urheilijat | R103: - | S103: Kempeleen Kiri | T103: 2 | U103: - | V103: 0 | W103: (5-4, 3-1) | X103: 459 | Y103: 8 | Z103: - | AA103: 5 | AC103: 4 | AD103: 1 | AE103: 0 | AG103: 0 | AH103: 1 | AI103: 2 | AJ103: 0 | AU103: 3 | AV103: 0 | AW103: 1 | AX103: 0 | AY103: 0 | AZ103: 1 | BA103: 0 | BB103: 0 | BJ103: 2 | BK103: 19 | BL103: =PRODUCT(BJ103*60+BK103) -> 139 | BN103: Peter Laitio | BO103: Ari Kiviniemi
M104: Pe | N104: 7 | O104: 8 | P104: 2020 | Q104: Manse PP Edustus | R104: - | S104: Kouvolan Pallonlyöjät | T104: 0 | U104: - | V104: 1 | W104: (2-2, 1-2) | X104: 775 | Y104: 3 | Z104: - | AA104: 4 | AC104: 0 | AD104: 1 | AE104: 1 | AF104: 0 | AG104: 0 | AH104: 1 | AI104: 0 | AJ104: 0 | AU104: 0 | AV104: 2 | AW104: 0 | AX104: 0 | AY104: 1 | AZ104: 0 | BA104: 1 | BJ104: 2 | BK104: 20 | BL104: =PRODUCT(BJ104*60+BK104) -> 140 | BN104: Kalle Hietanen | BO104: Miko Kotiniemi
M105: La | N105: 8 | O105: 8 | P105: 2020 | Q105: Seinäjoen JymyJussit | R105: - | S105: Koskenkorvan Urheilijat | T105: 2 | U105: - | V105: 0 | W105: (3-2, 3-2) | X105: 1075 | Y105: 6 | Z105: - | AA105: 4 | AC105: 1 | AD105: 0 | AE105: 1 | AF105: 1 | AG105: 0 | AH105: 1 | AI105: 1 | AJ105: 1 | AU105: 1 | AV105: 1 | AW105: 0 | AX105: 0 | AY105: 0 | AZ105: 1 | BA105: 0 | BB105: 1 | BJ105: 2 | BK105: 16 | BL105: =PRODUCT(BJ105*60+BK105) -> 136 | BN105: Kristian Hirsimäki | BO105: Aleksi Mansikkamäki
M106: La | N106: 8 | O106: 8 | P106: 2020 | Q106: Kiteen Pallo-90 | R106: - | S106: Kankaanpään Maila | T106: 2 | U106: - | V106: 0 | W106: (7-3, 3-1) | X106: 980 | Y106: 10 | Z106: - | AA106: 4 | AC106: 2 | AD106: 0 | AE106: 1 | AF106: 4 | AG106: 0 | AH106: 2 | AI106: 1 | AU106: 2 | AV106: 0 | AW106: 1 | AX106: 0 | AY106: 1 | AZ106: 0 | BA106: 0 | BB106: 0 | BJ106: 2 | BK106: 20 | BL106: =PRODUCT(BJ106*60+BK106) -> 140 | BN106: Jaakko Kuronen | BO106: Eki Kutvonen
M107: La | N107: 8 | O107: 8 | P107: 2020 | Q107: Hyvinkään Tahko | R107: - | S107: Manse PP Edustus | T107: 2 | U107: - | V107: 1 | W107: (1-3, 10-8, 1-0) | X107: 781 | Y107: 12 | Z107: - | AA107: 11 | AC107: 0 | AD107: 1 | AE107: 0 | AF107: 0 | AG107: 6 | AH107: 1 | AI107: 0 | AJ107: 3 | AK107: 1 | AU107: 0 | AV107: 0 | AW107: 3 | AY107: 1 | AZ107: 0 | BA107: 5 | BB107: 2 | BC107: 0 | BJ107: 2 | BK107: 34 | BL107: =PRODUCT(BJ107*60+BK107) -> 154 | BN107: Ari Mustonen | BO107: Matias Laukkanen
M108: La | N108: 8 | O108: 8 | P108: 2020 | Q108: Pattijoen Urheilijat | R108: - | S108: Sotkamon Jymy | T108: 0 | U108: - | V108: 2 | W108: (1-2, 2-4) | X108: 1173 | Y108: 3 | Z108: - | AA108: 6 | AC108: 1 | AD108: 0 | AE108: 0 | AF108: 0 | AG108: 1 | AH108: 0 | AI108: 0 | AJ108: 1 | AU108: 0 | AV108: 0 | AW108: 0 | AX108: 2 | AY108: 0 | AZ108: 2 | BA108: 0 | BB108: 2 | BJ108: 2 | BK108: 7 | BL108: =PRODUCT(BJ108*60+BK108) -> 127 | BN108: Kosti Rautiainen | BO108: Immo Rautiainen
M109: Su | N109: 9 | O109: 8 | P109: 2020 | Q109: Kouvolan Pallonlyöjät | R109: - | S109: Joensuun Maila | T109: 0 | U109: - | V109: 2 | W109: (7-9, 3-6) | X109: 1628 | Y109: 10 | Z109: - | AA109: 15 | AC109: 0 | AD109: 2 | AE109: 4 | AF109: 1 | AG109: 0 | AH109: 2 | AI109: 0 | AJ109: 1 | AU109: 3 | AV109: 0 | AW109: 4 | AX109: 2 | AY109: 3 | AZ109: 0 | BA109: 0 | BB109: 3 | BJ109: 2 | BK109: 42 | BL109: =PRODUCT(BJ109*60+BK109) -> 162 | BN109: Tommi Nupponen | BO109: Ossi Muurainen
M110: Su | N110: 9 | O110: 8 | P110: 2020 | Q110: Siilinjärven Pesis | R110: - | S110: Imatran Pallo-Veikot | T110: 0 | U110: - | V110: 2 | W110: (2-9, 3-4) | X110: 601 | Y110: 5 | Z110: - | AA110: 13 | AC110: 2 | AD110: 0 | AE110: 0 | AF110: 0 | AG110: 1 | AH110: 1 | AI110: 0 | AJ110: 1 | AU110: 2 | AV110: 0 | AW110: 0 | AX110: 7 | AY110: 0 | AZ110: 0 | BA110: 2 | BB110: 2 | BJ110: 2 | BK110: 37 | BL110: =PRODUCT(BJ110*60+BK110) -> 157 | BN110: Jaakko Kuronen | BO110: Eki Kutvonen
M111: Ti | N111: 11 | O111: 8 | P111: 2020 | Q111: Imatran Pallo-Veikot | R111: - | S111: Kouvolan Pallonlyöjät | T111: 1 | U111: - | V111: 2 | W111: (4-2, 1-3, 1-1, 1-4) | X111: 808 | Y111: 6 | Z111: - | AA111: 6 | AC111: 2 | AD111: 0 | AE111: 0 | AF111: 2 | AG111: 1 | AH111: 0 | AI111: 0 | AJ111: 0 | AK111: 1 | AL111: 1 | AU111: 0 | AV111: 0 | AW111: 1 | AX111: 1 | AY111: 0 | AZ111: 1 | BA111: 0 | BB111: 2 | BC111: 1 | BD111: 4 | BJ111: 3 | BK111: 5 | BL111: =PRODUCT(BJ111*60+BK111) -> 185 | BN111: Tommi Nupponen | BO111: Ossi Muurainen
M112: Ti | N112: 11 | O112: 8 | P112: 2020 | Q112: Manse PP Edustus | R112: - | S112: Kankaanpään Maila | T112: 1 | U112: - | V112: 0 | W112: (2-2, 2-1) | X112: 712 | Y112: 4 | Z112: - | AA112: 3 | AC112: 1 | AD112: 0 | AE112: 1 | AF112: 0 | AG112: 0 | AH112: 0 | AI112: 1 | AJ112: 1 | AU112: 0 | AV112: 0 | AW112: 2 | AX112: 0 | AY112: 0 | AZ112: 1 | BA112: 0 | BB112: 0 | BJ112: 2 | BK112: 17 | BL112: =PRODUCT(BJ112*60+BK112) -> 137 | BN112: Waltteri Uurasjärvi | BO112: Jesse Mäkinen
M113: Ti | N113: 11 | O113: 8 | P113: 2020 | Q113: Joensuun Maila | R113: - | S113: Kiteen Pallo-90 | T113: 2 | U113: - | V113: 1 | W113: (4-2, 0-1, 1-1, 4-3) | X113: 1961 | Y113: 5 | Z113: - | AA113: 4 | AC113: 2 | AD113: 0 | AE113: 2 | AG113: 0 | AH113: 0 | AI113: 0 | AJ113: 0 | AK113: 1 | AL113: 4 | AU113: 0 | AV113: 0 | AW113: 0 | AX113: 2 | AY113: 0 | AZ113: 1 | BA113: 0 | BB113: 0 | BC113: 1 | BD113: 3 | BJ113: 2 | BK113: 34 | BL113: =PRODUCT(BJ113*60+BK113) -> 154 | BN113: Jaakko Kuronen | BO113: Eki Kutvonen
M114: Ti | N114: 11 | O114: 8 | P114: 2020 | Q114: Pattijoen Urheilijat | R114: - | S114: Vimpelin Veto | T114: 1 | U114: - | V114: 2 | W114: (2-3, 2-0, 1-2) | X114: 864 | Y114: 5 | Z114: - | AA114: 5 | AC114: 1 | AD114: 0 | AE114: 1 | AF114: 0 | AG114: 0 | AH114: 0 | AI114: 1 | AJ114: 1 | AK114: 1 | AU114: 0 | AV114: 1 | AW114: 0 | AX114: 2 | AY114: 0 | AZ114: 0 | BA114: 0 | BB114: 0 | BC114: 2 | BJ114: 2 | BK114: 33 | BL114: =PRODUCT(BJ114*60+BK114) -> 153 | BN114: Kosti Rautiainen | BO114: Immo Rautiainen
M115: Ti | N115: 11 | O115: 8 | P115: 2020 | Q115: Seinäjoen JymyJussit | R115: - | S115: Kempeleen Kiri | T115: 2 | U115: - | V115: 0 | W115: (3-2, 4-2) | X115: 687 | Y115: 7 | Z115: - | AA115: 4 | AC115: 1 | AD115: 0 | AE115: 0 | AF115: 2 | AG115: 2 | AH115: 1 | AI115: 1 | AU115: 0 | AV115: 1 | AW115: 0 | AX115: 1 | AY115: 0 | AZ115: 1 | BA115: 1 | BB115: 0 | BJ115: 2 | BK115: 37 | BL115: =PRODUCT(BJ115*60+BK115) -> 157 | BN115: Jani Heinineva | BO115: Jari Mäkynen
M116: Ti | N116: 11 | O116: 8 | P116: 2020 | Q116: Siilinjärven Pesis | R116: - | S116: Koskenkorvan Urheilijat | T116: 0 | U116: - | V116: 2 | W116: (0-1,0-1) | X116: 432 | Y116: 0 | Z116: - | AA116: 2 | AB116: säännöt | AC116: 1 | AD116: 0 | AE116: 0 | AF116: 0 | AG116: 1 | AH116: 4 | AI116: 0 | AU116: 0 | AV116: 0 | AW116: 0 | AX116: 0 | AY116: 0 | AZ116: 0 | BA116: 0 | BB116: 1 | BJ116: 2 | BK116: 11 | BL116: =PRODUCT(BJ116*60+BK116) -> 131 | BN116: Kalle Hietanen | BO116: Miko Kotiniemi
M117: To | N117: 13 | O117: 8 | P117: 2020 | Q117: Hyvinkään Tahko | R117: - | S117: Imatran Pallo-Veikot | T117: 2 | U117: - | V117: 0 | W117: (8-5, 5-1) | X117: 922 | Y117: 13 | Z117: - | AA117: 6 | AC117: 1 | AD117: 0 | AE117: 2 | AF117: 5 | AG117: 0 | AH117: 4 | AI117: 1 | AU117: 2 | AV117: 0 | AW117: 2 | AX117: 1 | AY117: 0 | AZ117: 1 | BA117: 0 | BB117: 0 | BJ117: 2 | BK117: 21 | BL117: =PRODUCT(BJ117*60+BK117) -> 141 | BN117: Ari Mustonen | BO117: Sami Ritola
M118: To | N118: 13 | O118: 8 | P118: 2020 | Q118: Kankaanpään Maila | R118: - | S118: Vimpelin Veto | T118: 1 | U118: - | V118: 0 | W118: (2-2, 2-1) | X118: 652 | Y118: 4 | Z118: - | AA118: 3 | AC118: 0 | AD118: 1 | AE118: 0 | AF118: 1 | AG118: 0 | AH118: 1 | AI118: 1 | AU118: 1 | AV118: 0 | AW118: 0 | AX118: 1 | AY118: 0 | AZ118: 0 | BA118: 1 | BB118: 0 | BJ118: 2 | BK118: 14 | BL118: =PRODUCT(BJ118*60+BK118) -> 134 | BN118: Antti Aine | BO118: Samuli Eeva
M119: To | N119: 13 | O119: 8 | P119: 2020 | Q119: Siilinjärven Pesis | R119: - | S119: Kiteen Pallo-90 | T119: 0 | U119: - | V119: 2 | W119: (2-5, 0-3) | X119: 418 | Y119: 2 | Z119: - | AA119: 8 | AC119: 1 | AD119: 1 | AE119: 0 | AF119: 0 | AG119: 0 | AH119: 0 | AI119: 0 | AJ119: 0 | AU119: 2 | AV119: 1 | AW119: 2 | AX119: 0 | AY119: 1 | AZ119: 1 | BA119: 1 | BJ119: 2 | BK119: 5 | BL119: =PRODUCT(BJ119*60+BK119) -> 125 | BN119: Jaakko Kuronen | BO119: Eki Kutvonen
M120: Pe | N120: 14 | O120: 8 | P120: 2020 | Q120: Koskenkorvan Urheilijat | R120: - | S120: Sotkamon Jymy | T120: 2 | U120: - | V120: 1 | W120: (3-4, 3-1, 1-1, 2-1) | X120: 511 | Y120: 7 | Z120: - | AA120: 6 | AC120: 0 | AD120: 3 | AE120: 0 | AF120: 0 | AG120: 0 | AH120: 3 | AI120: 0 | AJ120: 0 | AK120: 1 | AL120: 2 | AU120: 0 | AV120: 3 | AW120: 1 | AY120: 0 | AZ120: 0 | BA120: 0 | BB120: 1 | BC120: 1 | BD120: 1 | BJ120: 2 | BK120: 29 | BL120: =PRODUCT(BJ120*60+BK120) -> 149 | BN120: Peter Laitio | BO120: Aleksi Mansikkamäki
M121: Pe | N121: 14 | O121: 8 | P121: 2020 | Q121: Kempeleen Kiri | R121: - | S121: Pattijoen Urheilijat | T121: 2 | U121: - | V121: 0 | W121: (2-1, 5-1) | X121: 903 | Y121: 7 | Z121: - | AA121: 2 | AC121: 1 | AD121: 1 | AE121: 0 | AF121: 0 | AG121: 1 | AH121: 2 | AI121: 2 | AU121: 0 | AV121: 1 | AW121: 0 | AX121: 0 | AY121: 0 | AZ121: 0 | BA121: 0 | BB121: 1 | BJ121: 1 | BK121: 59 | BL121: =PRODUCT(BJ121*60+BK121) -> 119 | BN121: Jari Saaranen | BO121: Jussi Mäntymaa
M122: Pe | N122: 14 | O122: 8 | P122: 2020 | Q122: Kouvolan Pallonlyöjät | R122: - | S122: Seinäjoen JymyJussit | T122: 2 | U122: - | V122: 0 | W122: (7-5, 5-4) | X122: 982 | Y122: 12 | Z122: - | AA122: 9 | AC122: 2 | AD122: 2 | AE122: 1 | AF122: 2 | AG122: 0 | AH122: 1 | AI122: 0 | AJ122: 4 | AU122: 0 | AV122: 2 | AW122: 0 | AX122: 3 | AY122: 0 | AZ122: 2 | BA122: 1 | BB122: 1 | BJ122: 2 | BK122: 42 | BL122: =PRODUCT(BJ122*60+BK122) -> 162 | BN122: Suvi Kaukovalta | BO122: Mika Kääriäinen
M123: La | N123: 15 | O123: 8 | P123: 2020 | Q123: Joensuun Maila | R123: - | S123: Manse PP Edustus | T123: 2 | U123: - | V123: 0 | W123: (6-2, 6-4) | X123: 1365 | Y123: 12 | Z123: - | AA123: 6 | AC123: 3 | AD123: 1 | AE123: 2 | AG123: 3 | AH123: 3 | AI123: 0 | AJ123: 0 | AU123: 0 | AV123: 0 | AW123: 2 | AX123: 0 | AY123: 1 | AZ123: 3 | BA123: 0 | BB123: 0 | BJ123: 2 | BK123: 18 | BL123: =PRODUCT(BJ123*60+BK123) -> 138 | BN123: Tommi Nupponen | BO123: Ossi Muurainen
M124: Su | N124: 16 | O124: 8 | P124: 2020 | Q124: Vimpelin Veto | R124: - | S124: Seinäjoen JymyJussit | T124: 2 | U124: - | V124: 0 | W124: (10-8, 6-4) | X124: 1092 | Y124: 16 | Z124: - | AA124: 12 | AC124: 7 | AD124: 3 | AE124: 0 | AG124: 1 | AH124: 4 | AI124: 0 | AJ124: 1 | AU124: 2 | AV124: 1 | AW124: 2 | AX124: 3 | AY124: 1 | AZ124: 1 | BA124: 2 | BB124: 0 | BJ124: 2 | BK124: 41 | BL124: =PRODUCT(BJ124*60+BK124) -> 161 | BN124: Joona Tervonen | BO124: Turo Timo
M125: Su | N125: 16 | O125: 8 | P125: 2020 | Q125: Pattijoen Urheilijat | R125: - | S125: Siilinjärven Pesis | T125: 2 | U125: - | V125: 1 | W125: (6-4, 0-2, 1-0) | X125: 678 | Y125: 7 | Z125: - | AA125: 6 | AC125: 4 | AD125: 2 | AE125: 0 | AG125: 0 | AH125: 0 | AI125: 0 | AJ125: 0 | AK125: 1 | AU125: 0 | AV125: 2 | AW125: 0 | AX125: 2 | AY125: 0 | AZ125: 2 | BA125: 0 | BC125: 0 | BJ125: 2 | BK125: 28 | BL125: =PRODUCT(BJ125*60+BK125) -> 148 | BN125: Joonas Lassila | BO125: Tapio Väisänen
M126: Su | N126: 16 | O126: 8 | P126: 2020 | Q126: Kempeleen Kiri | R126: - | S126: Sotkamon Jymy | T126: 0 | U126: - | V126: 2 | W126: (1-4, 4-5) | X126: 1147 | Y126: 5 | Z126: - | AA126: 9 | AC126: 0 | AD126: 1 | AE126: 0 | AF126: 0 | AG126: 1 | AH126: 1 | AI126: 2 | AJ126: 0 | AU126: 0 | AV126: 0 | AW126: 1 | AX126: 3 | AY126: 5 | AZ126: 0 | BA126: 0 | BJ126: 2 | BK126: 20 | BL126: =PRODUCT(BJ126*60+BK126) -> 140 | BN126: Kosti Rautiainen | BO126: Immo Rautiainen
M127: Su | N127: 16 | O127: 8 | P127: 2020 | Q127: Kouvolan Pallonlyöjät | R127: - | S127: Hyvinkään Tahko | T127: 1 | U127: - | V127: 2 | W127: (7-3, 4-5, 1-1, 4-5) | X127: 1003 | Y127: 12 | Z127: - | AA127: 9 | AC127: 1 | AD127: 2 | AE127: 4 | AG127: 1 | AH127: 0 | AI127: 1 | AJ127: 2 | AK127: 1 | AL127: 5 | AU127: 0 | AV127: 2 | AW127: 0 | AX127: 1 | AY127: 4 | AZ127: 0 | BA127: 1 | BC127: 1 | BD127: 4 | BJ127: 2 | BK127: 44 | BL127: =PRODUCT(BJ127*60+BK127) -> 164 | BN127: Olli Vilén | BO127: Mika Kääriäinen
M128: Su | N128: 16 | O128: 8 | P128: 2020 | Q128: Kiteen Pallo-90 | R128: - | S128: Manse PP Edustus | T128: 2 | U128: - | V128: 1 | W128: (1-2, 2-0, 1-0) | X128: 1108 | Y128: 4 | Z128: - | AA128: 2 | AC128: 1 | AD128: 0 | AE128: 0 | AF128: 0 | AG128: 1 | AH128: 1 | AI128: 0 | AK128: 1 | AU128: 1 | AV128: 0 | AW128: 1 | AY128: 0 | AZ128: 0 | BA128: 0 | BB128: 0 | BJ128: 2 | BK128: 7 | BL128: =PRODUCT(BJ128*60+BK128) -> 127 | BN128: Tommi Nupponen | BO128: Ossi Muurainen
M129: Su | N129: 16 | O129: 8 | P129: 2020 | Q129: Koskenkorvan Urheilijat | R129: - | S129: Kankaanpään Maila | T129: 2 | U129: - | V129: 0 | W129: (3-0, 5-3) | X129: 609 | Y129: 8 | Z129: - | AA129: 3 | AC129: 0 | AD129: 3 | AE129: 0 | AF129: 0 | AG129: 0 | AH129: 4 | AI129: 1 | AU129: 0 | AV129: 0 | AW129: 0 | AX129: 0 | AY129: 2 | AZ129: 0 | BA129: 0 | BB129: 1 | BJ129: 2 | BK129: 14 | BL129: =PRODUCT(BJ129*60+BK129) -> 134 | BN129: Jani Heinineva | BO129: Jari Mäkynen
M130: Ti | N130: 18 | O130: 8 | P130: 2020 | Q130: Hyvinkään Tahko | R130: - | S130: Joensuun Maila | T130: 1 | U130: - | V130: 2 | W130: (2-4, 4-3, 0-5) | X130: 1198 | Y130: 6 | Z130: - | AA130: 12 | AC130: 0 | AD130: 1 | AE130: 1 | AF130: 0 | AG130: 0 | AH130: 0 | AI130: 0 | AJ130: 4 | AK130: 0 | AU130: 4 | AV130: 0 | AW130: 0 | AY130: 0 | AZ130: 0 | BA130: 1 | BB130: 2 | BC130: 5 | BJ130: 2 | BK130: 34 | BL130: =PRODUCT(BJ130*60+BK130) -> 154 | BN130: Kati Rantala | BO130: Matias Laukkanen
M131: Ti | N131: 18 | O131: 8 | P131: 2020 | Q131: Kankaanpään Maila | R131: - | S131: Kouvolan Pallonlyöjät | T131: 0 | U131: - | V131: 1 | W131: (2-3, 3-3) | X131: 613 | Y131: 5 | Z131: - | AA131: 6 | AC131: 0 | AD131: 0 | AE131: 2 | AF131: 0 | AG131: 0 | AH131: 2 | AI131: 0 | AJ131: 1 | AU131: 2 | AV131: 1 | AW131: 0 | AY131: 0 | AZ131: 2 | BA131: 1 | BB131: 0 | BJ131: 2 | BK131: 25 | BL131: =PRODUCT(BJ131*60+BK131) -> 145 | BN131: Waltteri Uurasjärvi | BO131: Jesse Mäkinen
M132: Ti | N132: 18 | O132: 8 | P132: 2020 | Q132: Sotkamon Jymy | R132: - | S132: Kiteen Pallo-90 | T132: 1 | U132: - | V132: 2 | W132: (5-2, 2-6, 2-3) | X132: 1054 | Y132: 9 | Z132: - | AA132: 11 | AC132: 1 | AD132: 3 | AE132: 1 | AG132: 0 | AH132: 1 | AI132: 1 | AJ132: 0 | AK132: 2 | AU132: 0 | AV132: 1 | AW132: 0 | AX132: 1 | AY132: 0 | AZ132: 6 | BA132: 0 | BB132: 0 | BC132: 3 | BJ132: 2 | BK132: 17 | BL132: =PRODUCT(BJ132*60+BK132) -> 137 | BN132: Jari Saaranen | BO132: Jussi Mäntymaa
M133: Ti | N133: 18 | O133: 8 | P133: 2020 | Q133: Kempeleen Kiri | R133: - | S133: Seinäjoen JymyJussit | T133: 2 | U133: - | V133: 0 | W133: (8-3, 3-1) | X133: 616 | Y133: 11 | Z133: - | AA133: 4 | AC133: 3 | AD133: 0 | AE133: 1 | AF133: 4 | AG133: 0 | AH133: 2 | AI133: 1 | AU133: 2 | AV133: 1 | AW133: 0 | AX133: 0 | AY133: 0 | AZ133: 0 | BA133: 0 | BB133: 1 | BJ133: 2 | BK133: 33 | BL133: =PRODUCT(BJ133*60+BK133) -> 153 | BN133: Joonas Lassila | BO133: Tapio Väisänen
M134: Ti | N134: 18 | O134: 8 | P134: 2020 | Q134: Vimpelin Veto | R134: - | S134: Koskenkorvan Urheilijat | T134: 2 | U134: - | V134: 0 | W134: (9-0, 7-3) | X134: 791 | Y134: 16 | Z134: - | AA134: 3 | AC134: 6 | AD134: 3 | AE134: 0 | AG134: 2 | AH134: 2 | AI134: 3 | AJ134: 0 | AU134: 0 | AV134: 0 | AW134: 0 | AX134: 0 | AY134: 0 | AZ134: 0 | BA134: 1 | BB134: 2 | BJ134: 2 | BK134: 9 | BL134: =PRODUCT(BJ134*60+BK134) -> 129 | BN134: Kristian Hirsimäki | BO134: Aleksi Mansikkamäki
M135: Ke | N135: 19 | O135: 8 | P135: 2020 | Q135: Imatran Pallo-Veikot | R135: - | S135: Pattijoen Urheilijat | T135: 2 | U135: - | V135: 1 | W135: (6-1, 1-8, 1-1, 2-1) | X135: 611 | Y135: 8 | Z135: - | AA135: 10 | AC135: 2 | AD135: 1 | AE135: 3 | AF135: 0 | AG135: 1 | AH135: 0 | AI135: 0 | AJ135: 0 | AK135: 1 | AL135: 2 | AU135: 0 | AV135: 1 | AW135: 0 | AX135: 0 | AY135: 1 | AZ135: 4 | BA135: 1 | BB135: 2 | BC135: 1 | BD135: 1 | BJ135: 2 | BK135: 36 | BL135: =PRODUCT(BJ135*60+BK135) -> 156 | BN135: Suvi Kaukovalta | BO135: Mika Kääriäinen
M136: To | N136: 20 | O136: 8 | P136: 2020 | Q136: Seinäjoen JymyJussit | R136: - | S136: Siilinjärven Pesis | T136: 2 | U136: - | V136: 0 | W136: (1-0, 7-5) | X136: 584 | Y136: 8 | Z136: - | AA136: 5 | AC136: 1 | AD136: 0 | AE136: 0 | AF136: 0 | AG136: 1 | AH136: 6 | AI136: 0 | AU136: 0 | AV136: 0 | AW136: 0 | AX136: 0 | AY136: 1 | AZ136: 0 | BA136: 1 | BB136: 3 | BJ136: 2 | BK136: 12 | BL136: =PRODUCT(BJ136*60+BK136) -> 132 | BN136: Joona Tervonen | BO136: Turo Timo
M137: To | N137: 20 | O137: 8 | P137: 2020 | Q137: Joensuun Maila | R137: - | S137: Pattijoen Urheilijat | T137: 2 | U137: - | V137: 0 | W137: (3-0, 3-1) | X137: 1320 | Y137: 6 | Z137: - | AA137: 1 | AC137: 1 | AD137: 0 | AE137: 0 | AF137: 2 | AG137: 0 | AH137: 0 | AI137: 3 | AU137: 0 | AV137: 0 | AW137: 0 | AX137: 0 | AY137: 1 | AZ137: 0 | BA137: 0 | BB137: 0 | BJ137: 1 | BK137: 58 | BL137: =PRODUCT(BJ137*60+BK137) -> 118 | BN137: Olli Vilén | BO137: Ossi Muurainen
M138: To | N138: 20 | O138: 8 | P138: 2020 | Q138: Hyvinkään Tahko | R138: - | S138: Vimpelin Veto | T138: 0 | U138: - | V138: 2 | W138: (0-6, 3-4) | X138: 950 | Y138: 3 | Z138: - | AA138: 10 | AC138: 0 | AD138: 0 | AE138: 0 | AF138: 0 | AG138: 2 | AH138: 0 | AI138: 0 | AJ138: 1 | AU138: 2 | AV138: 4 | AW138: 0 | AY138: 2 | AZ138: 0 | BA138: 0 | BB138: 2 | BJ138: 2 | BK138: 8 | BL138: =PRODUCT(BJ138*60+BK138) -> 128 | BN138: Kalle Hietanen | BO138: Miko Kotiniemi
M139: Pe | N139: 21 | O139: 8 | P139: 2020 | Q139: Kouvolan Pallonlyöjät | R139: - | S139: Koskenkorvan Urheilijat | T139: 2 | U139: - | V139: 0 | W139: (14-1, 7-6) | X139: 1024 | Y139: 21 | Z139: - | AA139: 7 | AC139: 6 | AD139: 1 | AE139: 0 | AF139: 7 | AG139: 6 | AH139: 1 | AI139: 0 | AU139: 0 | AV139: 1 | AW139: 0 | AX139: 0 | AY139: 4 | AZ139: 0 | BA139: 0 | BB139: 2 | BJ139: 2 | BK139: 16 | BL139: =PRODUCT(BJ139*60+BK139) -> 136 | BN139: Olli Vilén | BO139: Mika Kääriäinen
M140: Pe | N140: 21 | O140: 8 | P140: 2020 | Q140: Sotkamon Jymy | R140: - | S140: Imatran Pallo-Veikot | T140: 2 | U140: - | V140: 1 | W140: (4-6, 8-5, 2-1) | X140: 1460 | Y140: 14 | Z140: - | AA140: 12 | AC140: 2 | AD140: 0 | AE140: 2 | AF140: 0 | AG140: 1 | AH140: 1 | AI140: 2 | AJ140: 4 | AK140: 2 | AU140: 2 | AV140: 3 | AW140: 1 | AX140: 0 | AY140: 3 | AZ140: 0 | BA140: 1 | BB140: 1 | BC140: 1 | BJ140: 3 | BK140: 3 | BL140: =PRODUCT(BJ140*60+BK140) -> 183 | BN140: Joonas Lassila | BO140: Tapio Väisänen
M141: La | N141: 22 | O141: 8 | P141: 2020 | Q141: Manse PP Edustus | R141: - | S141: Kiteen Pallo-90 | T141: 1 | U141: - | V141: 2 | W141: (5-0, 2-4, 0-2) | X141: 421 | Y141: 7 | Z141: - | AA141: 6 | AC141: 5 | AD141: 0 | AE141: 0 | AG141: 0 | AH141: 0 | AI141: 0 | AJ141: 2 | AK141: 0 | AU141: 0 | AV141: 0 | AW141: 0 | AX141: 0 | AY141: 1 | AZ141: 3 | BA141: 0 | BC141: 2 | BJ141: 2 | BK141: 21 | BL141: =PRODUCT(BJ141*60+BK141) -> 141 | BN141: Ari Mustonen | BO141: Sami Ritola
M142: La | N142: 22 | O142: 8 | P142: 2020 | Q142: Joensuun Maila | R142: - | S142: Kempeleen Kiri | T142: 2 | U142: - | V142: 0 | W142: (9-6, 5-0) | X142: 1435 | Y142: 14 | Z142: - | AA142: 6 | AC142: 1 | AD142: 5 | AE142: 2 | AF142: 1 | AG142: 2 | AH142: 2 | AI142: 1 | AU142: 1 | AV142: 0 | AW142: 0 | AX142: 5 | AY142: 0 | AZ142: 0 | BA142: 0 | BB142: 0 | BJ142: 2 | BK142: 15 | BL142: =PRODUCT(BJ142*60+BK142) -> 135 | BN142: Jaakko Kuronen | BO142: Eki Kutvonen
M143: La | N143: 22 | O143: 8 | P143: 2020 | Q143: Pattijoen Urheilijat | R143: - | S143: Seinäjoen JymyJussit | T143: 2 | U143: - | V143: 1 | W143: (5-1, 2-4, 1-0) | X143: 623 | Y143: 8 | Z143: - | AA143: 5 | AC143: 1 | AD143: 2 | AE143: 2 | AF143: 0 | AG143: 0 | AH143: 1 | AI143: 1 | AJ143: 0 | AK143: 1 | AU143: 0 | AV143: 0 | AW143: 0 | AX143: 1 | AY143: 0 | AZ143: 0 | BA143: 1 | BB143: 3 | BC143: 0 | BJ143: 2 | BK143: 37 | BL143: =PRODUCT(BJ143*60+BK143) -> 157 | BN143: Jari Saaranen | BO143: Jussi Mäntymaa
M144: Su | N144: 23 | O144: 8 | P144: 2020 | Q144: Vimpelin Veto | R144: - | S144: Kouvolan Pallonlyöjät | T144: 2 | U144: - | V144: 0 | W144: (4-0, 3-0) | X144: 1112 | Y144: 7 | Z144: - | AA144: 0 | AC144: 0 | AD144: 1 | AE144: 3 | AG144: 0 | AH144: 1 | AI144: 1 | AJ144: 1 | AU144: 0 | AV144: 0 | AW144: 0 | AX144: 0 | AY144: 0 | AZ144: 0 | BA144: 0 | BB144: 0 | BJ144: 2 | BK144: 7 | BL144: =PRODUCT(BJ144*60+BK144) -> 127 | BN144: Peter Laitio | BO144: Jari Mäkynen
M145: Su | N145: 23 | O145: 8 | P145: 2020 | Q145: Koskenkorvan Urheilijat | R145: - | S145: Manse PP Edustus | T145: 0 | U145: - | V145: 2 | W145: (2-4, 1-2) | X145: 661 | Y145: 3 | Z145: - | AA145: 6 | AC145: 0 | AD145: 0 | AE145: 2 | AF145: 0 | AG145: 0 | AH145: 1 | AI145: 0 | AJ145: 0 | AU145: 1 | AV145: 3 | AW145: 0 | AY145: 0 | AZ145: 0 | BA145: 0 | BB145: 2 | BJ145: 2 | BK145: 0 | BL145: =PRODUCT(BJ145*60+BK145) -> 120 | BN145: Joona Tervonen | BO145: Turo Timo
M146: Su | N146: 23 | O146: 8 | P146: 2020 | Q146: Kankaanpään Maila | R146: - | S146: Hyvinkään Tahko | T146: 0 | U146: - | V146: 2 | W146: (3-6, 1-3) | X146: 673 | Y146: 4 | Z146: - | AA146: 9 | AC146: 0 | AD146: 1 | AE146: 2 | AF146: 0 | AG146: 0 | AH146: 1 | AI146: 0 | AJ146: 0 | AU146: 1 | AV146: 3 | AW146: 1 | AX146: 1 | AY146: 1 | AZ146: 2 | BA146: 0 | BJ146: 2 | BK146: 9 | BL146: =PRODUCT(BJ146*60+BK146) -> 129 | BN146: Waltteri Uurasjärvi | BO146: Jesse Mäkinen
M147: Su | N147: 23 | O147: 8 | P147: 2020 | Q147: Imatran Pallo-Veikot | R147: - | S147: Kempeleen Kiri | T147: 2 | U147: - | V147: 0 | W147: (4-3, 4-1) | X147: 805 | Y147: 8 | Z147: - | AA147: 4 | AC147: 2 | AD147: 1 | AE147: 1 | AF147: 0 | AG147: 2 | AH147: 2 | AI147: 0 | AU147: 0 | AV147: 0 | AW147: 2 | AX147: 1 | AY147: 0 | AZ147: 1 | BA147: 0 | BB147: 0 | BJ147: 2 | BK147: 1 | BL147: =PRODUCT(BJ147*60+BK147) -> 121 | BN147: Suvi Kaukovalta | BO147: Mika Kääriäinen
M148: Su | N148: 23 | O148: 8 | P148: 2020 | Q148: Siilinjärven Pesis | R148: - | S148: Sotkamon Jymy | T148: 0 | U148: - | V148: 1 | W148: (1-8, 5-5) | X148: 597 | Y148: 6 | Z148: - | AA148: 13 | AC148: 0 | AD148: 0 | AE148: 1 | AF148: 0 | AG148: 0 | AH148: 3 | AI148: 0 | AJ148: 2 | AU148: 1 | AV148: 6 | AW148: 1 | AY148: 0 | AZ148: 3 | BA148: 0 | BB148: 2 | BJ148: 2 | BK148: 11 | BL148: =PRODUCT(BJ148*60+BK148) -> 131 | BN148: Tommi Nupponen | BO148: Ossi Muurainen
M149: Ti | N149: 25 | O149: 8 | P149: 2020 | Q149: Kiteen Pallo-90 | R149: - | S149: Joensuun Maila | T149: 1 | U149: - | V149: 2 | W149: (2-3, 3-2, 1-2) | X149: 1412 | Y149: 6 | Z149: - | AA149: 7 | AC149: 1 | AD149: 0 | AE149: 1 | AF149: 0 | AG149: 1 | AH149: 0 | AI149: 1 | AJ149: 1 | AK149: 1 | AU149: 0 | AV149: 0 | AW149: 3 | AY149: 0 | AZ149: 1 | BA149: 0 | BB149: 1 | BC149: 2 | BJ149: 2 | BK149: 38 | BL149: =PRODUCT(BJ149*60+BK149) -> 158 | BN149: Jaakko Kuronen | BO149: Eki Kutvonen
M150: Ti | N150: 25 | O150: 8 | P150: 2020 | Q150: Siilinjärven Pesis | R150: - | S150: Seinäjoen JymyJussit | T150: 1 | U150: - | V150: 0 | W150: (2-2, 7-5) | X150: 267 | Y150: 9 | Z150: - | AA150: 7 | AC150: 1 | AD150: 0 | AE150: 1 | AF150: 0 | AG150: 1 | AH150: 4 | AI150: 0 | AJ150: 2 | AU150: 1 | AV150: 0 | AW150: 1 | AX150: 0 | AY150: 0 | AZ150: 2 | BA150: 2 | BB150: 1 | BJ150: 2 | BK150: 23 | BL150: =PRODUCT(BJ150*60+BK150) -> 143 | BN150: Tommi Nupponen | BO150: Ossi Muurainen
M151: To | N151: 27 | O151: 8 | P151: 2020 | Q151: Sotkamon Jymy | R151: - | S151: Siilinjärven Pesis | T151: 2 | U151: - | V151: 0 | W151: (10-2, 9-1) | X151: 735 | Y151: 19 | Z151: - | AA151: 3 | AC151: 6 | AD151: 4 | AE151: 0 | AG151: 4 | AH151: 2 | AI151: 1 | AJ151: 2 | AU151: 1 | AV151: 0 | AW151: 0 | AX151: 1 | AY151: 0 | AZ151: 0 | BA151: 1 | BB151: 0 | BJ151: 2 | BK151: 23 | BL151: =PRODUCT(BJ151*60+BK151) -> 143 | BN151: Jari Saaranen | BO151: Jussi Mäntymaa
M152: To | N152: 27 | O152: 8 | P152: 2020 | Q152: Seinäjoen JymyJussit | R152: - | S152: Hyvinkään Tahko | T152: 0 | U152: - | V152: 2 | W152: (1-2, 1-2) | X152: 864 | Y152: 2 | Z152: - | AA152: 4 | AC152: 1 | AD152: 0 | AE152: 0 | AF152: 0 | AG152: 0 | AH152: 0 | AI152: 0 | AJ152: 1 | AU152: 0 | AV152: 1 | AW152: 0 | AX152: 1 | AY152: 0 | AZ152: 1 | BA152: 0 | BB152: 1 | BJ152: 2 | BK152: 2 | BL152: =PRODUCT(BJ152*60+BK152) -> 122 | BN152: Joona Tervonen | BO152: Turo Timo
M153: To | N153: 27 | O153: 8 | P153: 2020 | Q153: Kankaanpään Maila | R153: - | S153: Joensuun Maila | T153: 0 | U153: - | V153: 2 | W153: (1-8, 1-2) | X153: 529 | Y153: 2 | Z153: - | AA153: 10 | AC153: 0 | AD153: 1 | AE153: 0 | AF153: 0 | AG153: 0 | AH153: 1 | AI153: 0 | AJ153: 0 | AU153: 2 | AV153: 1 | AW153: 5 | AX153: 0 | AY153: 0 | AZ153: 0 | BA153: 2 | BJ153: 2 | BK153: 12 | BL153: =PRODUCT(BJ153*60+BK153) -> 132 | BN153: Kalle Hietanen | BO153: Miko Kotiniemi
M154: To | N154: 27 | O154: 8 | P154: 2020 | Q154: Imatran Pallo-Veikot | R154: - | S154: Kiteen Pallo-90 | T154: 2 | U154: - | V154: 0 | W154: (5-3, 5-2) | X154: 763 | Y154: 10 | Z154: - | AA154: 5 | AC154: 1 | AD154: 3 | AE154: 1 | AF154: 0 | AG154: 3 | AH154: 0 | AI154: 2 | AU154: 1 | AV154: 1 | AW154: 0 | AX154: 1 | AY154: 0 | AZ154: 1 | BA154: 0 | BB154: 1 | BJ154: 2 | BK154: 12 | BL154: =PRODUCT(BJ154*60+BK154) -> 132 | BN154: Kati Rantala | BO154: Matias Laukkanen
M155: Pe | N155: 28 | O155: 8 | P155: 2020 | Q155: Vimpelin Veto | R155: - | S155: Koskenkorvan Urheilijat | T155: 2 | U155: - | V155: 0 | W155: (4-0, 3-0) | X155: 741 | Y155: 7 | Z155: - | AA155: 0 | AC155: 0 | AD155: 2 | AE155: 2 | AG155: 1 | AH155: 1 | AI155: 0 | AJ155: 1 | AU155: 0 | AV155: 0 | AW155: 0 | AX155: 0 | AY155: 0 | AZ155: 0 | BA155: 0 | BB155: 0 | BJ155: 2 | BK155: 9 | BL155: =PRODUCT(BJ155*60+BK155) -> 129 | BN155: Peter Laitio | BO155: Ari Kiviniemi
M156: Pe | N156: 28 | O156: 8 | P156: 2020 | Q156: Kouvolan Pallonlyöjät | R156: - | S156: Manse PP Edustus | T156: 1 | U156: - | V156: 2 | W156: (6-3, 3-5, 0-1) | X156: 1144 | Y156: 9 | Z156: - | AA156: 9 | AC156: 3 | AD156: 1 | AE156: 2 | AF156: 0 | AG156: 1 | AH156: 2 | AI156: 0 | AJ156: 0 | AK156: 0 | AU156: 0 | AV156: 0 | AW156: 1 | AX156: 2 | AY156: 0 | AZ156: 2 | BA156: 2 | BB156: 1 | BC156: 1 | BJ156: 2 | BK156: 48 | BL156: =PRODUCT(BJ156*60+BK156) -> 168 | BN156: Ari Mustonen | BO156: Sami Ritola
M157: Pe | N157: 28 | O157: 8 | P157: 2020 | Q157: Pattijoen Urheilijat | R157: - | S157: Kempeleen Kiri | T157: 2 | U157: - | V157: 0 | W157: (4-1, 5-3) | X157: 718 | Y157: 9 | Z157: - | AA157: 4 | AC157: 0 | AD157: 3 | AE157: 1 | AF157: 0 | AG157: 0 | AH157: 0 | AI157: 5 | AU157: 0 | AV157: 1 | AW157: 0 | AX157: 0 | AY157: 0 | AZ157: 0 | BA157: 0 | BB157: 3 | BJ157: 2 | BK157: 15 | BL157: =PRODUCT(BJ157*60+BK157) -> 135 | BN157: Kosti Rautiainen | BO157: Immo Rautiainen
M158: Su | N158: 30 | O158: 8 | P158: 2020 | Q158: Joensuun Maila | R158: - | S158: Imatran Pallo-Veikot | T158: 2 | U158: - | V158: 0 | W158: (5-5, 5-2) | X158: 1661 | Y158: 10 | Z158: - | AA158: 7 | AC158: 1 | AD158: 2 | AE158: 0 | AF158: 2 | AG158: 0 | AH158: 2 | AI158: 3 | AJ158: 0 | AU158: 3 | AV158: 0 | AW158: 1 | AX158: 1 | AY158: 0 | AZ158: 0 | BA158: 1 | BB158: 1 | BJ158: 2 | BK158: 19 | BL158: =PRODUCT(BJ158*60+BK158) -> 139 | BN158: Tommi Nupponen | BO158: Ossi Muurainen
M159: Su | N159: 30 | O159: 8 | P159: 2020 | Q159: Sotkamon Jymy | R159: - | S159: Seinäjoen JymyJussit | T159: 2 | U159: - | V159: 0 | W159: (4-2, 4-3) | X159: 674 | Y159: 8 | Z159: - | AA159: 5 | AC159: 2 | AD159: 1 | AE159: 1 | AG159: 1 | AH159: 1 | AI159: 1 | AJ159: 1 | AU159: 1 | AV159: 0 | AW159: 1 | AX159: 1 | AY159: 1 | AZ159: 0 | BA159: 1 | BB159: 0 | BJ159: 2 | BK159: 12 | BL159: =PRODUCT(BJ159*60+BK159) -> 132 | BN159: Kosti Rautiainen | BO159: Immo Rautiainen
M160: Su | N160: 30 | O160: 8 | P160: 2020 | Q160: Koskenkorvan Urheilijat | R160: - | S160: Siilinjärven Pesis | T160: 1 | U160: - | V160: 0 | W160: (1-0, 6-6) | X160: 461 | Y160: 7 | Z160: - | AA160: 6 | AC160: 1 | AD160: 0 | AE160: 0 | AG160: 2 | AH160: 4 | AI160: 0 | AJ160: 0 | AU160: 0 | AV160: 0 | AW160: 0 | AX160: 0 | AY160: 1 | AZ160: 2 | BA160: 0 | BB160: 3 | BJ160: 2 | BK160: 11 | BL160: =PRODUCT(BJ160*60+BK160) -> 131 | BN160: Jani Heinineva | BO160: Ari Kiviniemi
M161: Su | N161: 30 | O161: 8 | P161: 2020 | Q161: Manse PP Edustus | R161: - | S161: Hyvinkään Tahko | T161: 1 | U161: - | V161: 0 | W161: (4-4, 3-2) | X161: 542 | Y161: 7 | Z161: - | AA161: 6 | AC161: 1 | AD161: 2 | AE161: 0 | AF161: 1 | AG161: 0 | AH161: 3 | AI161: 0 | AJ161: 0 | AU161: 0 | AV161: 2 | AW161: 0 | AX161: 2 | AY161: 0 | AZ161: 1 | BA161: 1 | BB161: 0 | BJ161: 2 | BK161: 20 | BL161: =PRODUCT(BJ161*60+BK161) -> 140 | BN161: Antti Aine | BO161: Samuli Eeva
M162: Su | N162: 30 | O162: 8 | P162: 2020 | Q162: Kempeleen Kiri | R162: - | S162: Vimpelin Veto | T162: 2 | U162: - | V162: 1 | W162: (0-2, 6-5, 2-1) | X162: 629 | Y162: 8 | Z162: - | AA162: 8 | AC162: 0 | AD162: 0 | AE162: 0 | AF162: 0 | AG162: 0 | AH162: 2 | AI162: 3 | AJ162: 1 | AK162: 2 | AU162: 1 | AV162: 1 | AW162: 0 | AY162: 1 | AZ162: 1 | BA162: 1 | BB162: 2 | BC162: 1 | BJ162: 2 | BK162: 14 | BL162: =PRODUCT(BJ162*60+BK162) -> 134 | BN162: Joonas Lassila | BO162: Tapio Väisänen
M163: Su | N163: 30 | O163: 8 | P163: 2020 | Q163: Kouvolan Pallonlyöjät | R163: - | S163: Kankaanpään Maila | T163: 2 | U163: - | V163: 0 | W163: (2-1, 2-0) | X163: 899 | Y163: 4 | Z163: - | AA163: 1 | AC163: 1 | AD163: 0 | AE163: 0 | AF163: 1 | AG163: 2 | AH163: 0 | AI163: 0 | AU163: 0 | AV163: 1 | AW163: 0 | AX163: 0 | AY163: 0 | AZ163: 0 | BA163: 0 | BB163: 0 | BJ163: 2 | BK163: 11 | BL163: =PRODUCT(BJ163*60+BK163) -> 131 | BN163: Suvi Kaukovalta | BO163: Arttu Moisio
M164: Su | N164: 30 | O164: 8 | P164: 2020 | Q164: Kiteen Pallo-90 | R164: - | S164: Pattijoen Urheilijat | T164: 1 | U164: - | V164: 2 | W164: (4-7, 5-2, 1-2) | X164: 789 | Y164: 10 | Z164: - | AA164: 11 | AC164: 0 | AD164: 1 | AE164: 0 | AF164: 3 | AG164: 1 | AH164: 4 | AI164: 0 | AJ164: 0 | AK164: 1 | AU164: 2 | AV164: 0 | AW164: 5 | AX164: 0 | AY164: 0 | AZ164: 2 | BA164: 0 | BB164: 0 | BC164: 2 | BJ164: 2 | BK164: 52 | BL164: =PRODUCT(BJ164*60+BK164) -> 172 | BN164: Jaakko Kuronen | BO164: Eki Kutvonen
M165: Ti | N165: 1 | O165: 9 | P165: 2020 | Q165: Siilinjärven Pesis | R165: - | S165: Kempeleen Kiri | T165: 2 | U165: - | V165: 1 | W165: (2-3, 2-0, 1-0) | X165: 362 | Y165: 5 | Z165: - | AA165: 3 | AC165: 2 | AD165: 0 | AE165: 0 | AF165: 0 | AG165: 2 | AH165: 0 | AI165: 0 | AK165: 1 | AU165: 2 | AV165: 1 | AW165: 0 | AY165: 0 | AZ165: 0 | BA165: 0 | BB165: 0 | BC165: 0 | BJ165: 2 | BK165: 4 | BL165: =PRODUCT(BJ165*60+BK165) -> 124 | BN165: Tommi Nupponen | BO165: Ossi Muurainen
M166: Ti | N166: 1 | O166: 9 | P166: 2020 | Q166: Kiteen Pallo-90 | R166: - | S166: Sotkamon Jymy | T166: 1 | U166: - | V166: 0 | W166: (3-3, 4-1) | X166: 1451 | Y166: 7 | Z166: - | AA166: 4 | AC166: 1 | AD166: 0 | AE166: 2 | AF166: 0 | AG166: 0 | AH166: 2 | AI166: 2 | AU166: 1 | AV166: 0 | AW166: 2 | AX166: 0 | AY166: 0 | AZ166: 0 | BA166: 0 | BB166: 1 | BJ166: 2 | BK166: 8 | BL166: =PRODUCT(BJ166*60+BK166) -> 128 | BN166: Olli Vilén | BO166: Eki Kutvonen
M167: Ti | N167: 1 | O167: 9 | P167: 2020 | Q167: Manse PP Edustus | R167: - | S167: Vimpelin Veto | T167: 1 | U167: - | V167: 2 | W167: (2-1, 1-7, 0-0, 1-3) | X167: 948 | Y167: 3 | Z167: - | AA167: 8 | AC167: 2 | AD167: 0 | AE167: 0 | AG167: 0 | AH167: 0 | AI167: 1 | AJ167: 0 | AK167: 0 | AL167: 1 | AU167: 0 | AV167: 0 | AW167: 0 | AX167: 1 | AY167: 2 | AZ167: 2 | BA167: 3 | BB167: 0 | BC167: 0 | BD167: 3 | BJ167: 2 | BK167: 24 | BL167: =PRODUCT(BJ167*60+BK167) -> 144 | BN167: Kati Rantala | BO167: Matias Laukkanen
M168: Ti | N168: 1 | O168: 9 | P168: 2020 | Q168: Seinäjoen JymyJussit | R168: - | S168: Kouvolan Pallonlyöjät | T168: 2 | U168: - | V168: 0 | W168: (5-4, 4-2) | X168: 1027 | Y168: 9 | Z168: - | AA168: 6 | AC168: 4 | AD168: 1 | AE168: 0 | AF168: 0 | AG168: 1 | AH168: 1 | AI168: 2 | AU168: 0 | AV168: 1 | AW168: 1 | AX168: 2 | AY168: 0 | AZ168: 0 | BA168: 0 | BB168: 2 | BJ168: 2 | BK168: 11 | BL168: =PRODUCT(BJ168*60+BK168) -> 131 | BN168: Peter Laitio | BO168: Ari Kiviniemi
M169: Ti | N169: 1 | O169: 9 | P169: 2020 | Q169: Imatran Pallo-Veikot | R169: - | S169: Joensuun Maila | T169: 0 | U169: - | V169: 2 | W169: (0-1, 0-3) | X169: 746 | Y169: 0 | Z169: - | AA169: 4 | AC169: 0 | AD169: 0 | AE169: 0 | AF169: 0 | AG169: 0 | AH169: 0 | AI169: 0 | AJ169: 0 | AU169: 1 | AV169: 0 | AW169: 0 | AY169: 0 | AZ169: 2 | BA169: 1 | BB169: 0 | BJ169: 1 | BK169: 53 | BL169: =PRODUCT(BJ169*60+BK169) -> 113 | BN169: Kalle Hietanen | BO169: Miko Kotiniemi
M170: Ti | N170: 1 | O170: 9 | P170: 2020 | Q170: Hyvinkään Tahko | R170: - | S170: Kankaanpään Maila | T170: 2 | U170: - | V170: 0 | W170: (2-1, 9-3) | X170: 772 | Y170: 11 | Z170: - | AA170: 4 | AC170: 0 | AD170: 0 | AE170: 1 | AF170: 1 | AG170: 5 | AH170: 1 | AI170: 2 | AJ170: 1 | AU170: 0 | AV170: 0 | AW170: 0 | AX170: 1 | AY170: 2 | AZ170: 0 | BA170: 1 | BB170: 0 | BJ170: 2 | BK170: 13 | BL170: =PRODUCT(BJ170*60+BK170) -> 133 | BN170: Waltteri Uurasjärvi | BO170: Jesse Mäkinen
M171: Ti | N171: 1 | O171: 9 | P171: 2020 | Q171: Pattijoen Urheilijat | R171: - | S171: Koskenkorvan Urheilijat | T171: 2 | U171: - | V171: 0 | W171: (4-2, 6-2) | X171: 801 | Y171: 10 | Z171: - | AA171: 4 | AC171: 2 | AD171: 0 | AE171: 2 | AG171: 0 | AH171: 2 | AI171: 2 | AJ171: 2 | AU171: 2 | AV171: 0 | AW171: 0 | AX171: 0 | AY171: 0 | AZ171: 0 | BA171: 1 | BB171: 1 | BJ171: 1 | BK171: 59 | BL171: =PRODUCT(BJ171*60+BK171) -> 119 | BN171: Kosti Rautiainen | BO171: Immo Rautiainen
R172: - | S172: Yhteensä | T172: =SUM(T4:T171) -> 193 | U172: - | V172: =SUM(V4:V171) -> 156 | X172: =SUM(X4:X171) -> 155327 | Y172: =SUM(Y4:Y171) -> 1305 | Z172: - | AA172: =SUM(AA4:AA171) -> 1140 | BL172: =SUM(BL4:BL171) -> 23953
P173: =COUNT(X4:X171) -> 168 | R173: - | S173: Keskiarvo | T173: =PRODUCT(T172/P173) -> 1.1 | U173: - | V173: =PRODUCT(V172/P173) -> 0.9 | X173: =PRODUCT(X172/P173) -> 925 | Y173: =PRODUCT(Y172/P173) -> 7.8 | Z173: - | AA173: =PRODUCT(AA172/P173) -> 6.8 | BE173: Keskiarvo | BJ173: 2 | BK173: =PRODUCT(BL173-120) -> 23 | BL173: =PRODUCT(BL172/P173) -> 143
B175: YLEMMÄT PUDOTUSPELIT 2020 | Q175: YLEMMÄT PUDOTUSPELIT 2020 | U175: JAKSOT | W175: JAKSOTULOS | X175: YLEISÖ | Z175: JUOKSUT | AC175: I JAKSO | AG175: II JAKSO | AK175: S | AL175: K | AU175: I JAKSO | AY175: II JAKSO | BC175: S | BD175: K | BJ175: h | BK175: min
Q176: PUOLIVÄLIERÄT
M177: La | N177: 5 | O177: 9 | P177: 2020 | Q177: Joensuun Maila | R177: - | S177: Pattijoen Urheilijat | T177: 1 | U177: - | V177: 0 | W177: (4-1, 1-1) | X177: 1687 | Y177: 5 | Z177: - | AA177: 2 | AC177: 2 | AD177: 1 | AE177: 1 | AG177: 0 | AH177: 0 | AI177: 0 | AJ177: 1 | AU177: 0 | AV177: 0 | AW177: 1 | AX177: 0 | AY177: 1 | AZ177: 0 | BA177: 0 | BB177: 0 | BJ177: 2 | BK177: 5 | BL177: =PRODUCT(BJ177*60+BK177) -> 125 | BN177: Jaakko Kuronen | BO177: Eki Kutvonen
B178: Joensuun Maila välieriin voitoin 2-0 | M178: Su | N178: 6 | O178: 9 | P178: 2020 | Q178: Pattijoen Urheilijat | R178: - | S178: Joensuun Maila | T178: 0 | U178: - | V178: 2 | W178: (1-2, 1-3) | X178: 860 | Y178: 2 | Z178: - | AA178: 5 | AC178: 1 | AD178: 0 | AE178: 0 | AF178: 0 | AG178: 0 | AH178: 1 | AI178: 0 | AJ178: 0 | AU178: 0 | AV178: 0 | AW178: 0 | AX178: 2 | AY178: 1 | AZ178: 0 | BA178: 2 | BB178: 0 | BJ178: 2 | BK178: 15 | BL178: =PRODUCT(BJ178*60+BK178) -> 135 | BN178: Joona Tervonen | BO178: Turo Timo
M180: La | N180: 5 | O180: 9 | P180: 2020 | Q180: Sotkamon Jymy | R180: - | S180: Seinäjoen JymyJussit | T180: 1 | U180: - | V180: 0 | W180: (3-3, 7-3) | X180: 705 | Y180: 10 | Z180: - | AA180: 6 | AC180: 1 | AD180: 1 | AE180: 1 | AF180: 0 | AG180: 3 | AH180: 4 | AI180: 0 | AJ180: 0 | AU180: 2 | AV180: 1 | AW180: 0 | AX180: 0 | AY180: 0 | AZ180: 1 | BA180: 2 | BB180: 0 | BJ180: 2 | BK180: 11 | BL180: =PRODUCT(BJ180*60+BK180) -> 131 | BN180: Peter Laitio | BO180: Ari Kiviniemi
B181: Sotkamon Jymy välieriin voitoin 2-0 | M181: Su | N181: 6 | O181: 9 | P181: 2020 | Q181: Seinäjoen JymyJussit | R181: - | S181: Sotkamon Jymy | T181: 0 | U181: - | V181: 1 | W181: (0-2, 3-3) | X181: 1114 | Y181: 3 | Z181: - | AA181: 5 | AC181: 0 | AD181: 0 | AE181: 0 | AF181: 0 | AG181: 2 | AH181: 0 | AI181: 0 | AJ181: 1 | AU181: 0 | AV181: 1 | AW181: 1 | AY181: 0 | AZ181: 2 | BA181: 0 | BB181: 1 | BJ181: 1 | BK181: 56 | BL181: =PRODUCT(BJ181*60+BK181) -> 116 | BN181: Kosti Rautiainen | BO181: Immo Rautiainen
M183: La | N183: 5 | O183: 9 | P183: 2020 | Q183: Vimpelin Veto | R183: - | S183: Hyvinkään Tahko | T183: 2 | U183: - | V183: 0 | W183: (6-3, 4-0) | X183: 1021 | Y183: 10 | Z183: - | AA183: 3 | AC183: 2 | AD183: 3 | AE183: 0 | AF183: 1 | AG183: 3 | AH183: 1 | AI183: 0 | AU183: 1 | AV183: 1 | AW183: 1 | AX183: 0 | AY183: 0 | AZ183: 0 | BA183: 0 | BB183: 0 | BJ183: 2 | BK183: 20 | BL183: =PRODUCT(BJ183*60+BK183) -> 140 | BN183: Tommi Nupponen | BO183: Ossi Muurainen
B184: Vimpelin Veto välieriin voitoin 2-0 | M184: Su | N184: 6 | O184: 9 | P184: 2020 | Q184: Hyvinkään Tahko | R184: - | S184: Vimpelin Veto | T184: 1 | U184: - | V184: 2 | W184: (10-1, 0-5, 0-1) | X184: 956 | Y184: 10 | Z184: - | AA184: 7 | AC184: 1 | AD184: 0 | AE184: 8 | AF184: 1 | AG184: 0 | AH184: 0 | AI184: 0 | AJ184: 0 | AK184: 0 | AU184: 0 | AV184: 0 | AW184: 0 | AX184: 1 | AY184: 1 | AZ184: 2 | BA184: 1 | BB184: 1 | BC184: 1 | BJ184: 2 | BK184: 25 | BL184: =PRODUCT(BJ184*60+BK184) -> 145 | BN184: Ari Mustonen | BO184: Sami Ritola
M186: La | N186: 5 | O186: 9 | P186: 2020 | Q186: Kouvolan Pallonlyöjät | R186: - | S186: Kiteen Pallo-90 | T186: 2 | U186: - | V186: 0 | W186: (10-0, 6-0) | X186: 1237 | Y186: 16 | Z186: - | AA186: 0 | AC186: 3 | AD186: 5 | AE186: 1 | AF186: 1 | AG186: 0 | AH186: 4 | AI186: 2 | AU186: 0 | AV186: 0 | AW186: 0 | AX186: 0 | AY186: 0 | AZ186: 0 | BA186: 0 | BB186: 0 | BJ186: 2 | BK186: 14 | BL186: =PRODUCT(BJ186*60+BK186) -> 134 | BN186: Kalle Hietanen | BO186: Miko Kotiniemi
M187: Su | N187: 6 | O187: 9 | P187: 2020 | Q187: Kiteen Pallo-90 | R187: - | S187: Kouvolan Pallonlyöjät | T187: 2 | U187: - | V187: 0 | W187: (3-2, 6-4) | X187: 1223 | Y187: 9 | Z187: - | AA187: 6 | AC187: 0 | AD187: 1 | AE187: 1 | AF187: 1 | AG187: 1 | AH187: 0 | AI187: 4 | AJ187: 1 | AU187: 0 | AV187: 0 | AW187: 1 | AX187: 1 | AY187: 2 | AZ187: 0 | BA187: 1 | BB187: 1 | BJ187: 2 | BK187: 39 | BL187: =PRODUCT(BJ187*60+BK187) -> 159 | BN187: Suvi Kaukovalta | BO187: Mika Kääriäinen
B188: Kouvolan Pallonlyöjät välieriin voitoin 2-1 | M188: Ke | N188: 9 | O188: 9 | P188: 2020 | Q188: Kouvolan Pallonlyöjät | R188: - | S188: Kiteen Pallo-90 | T188: 2 | U188: - | V188: 0 | W188: (4-2, 4-2) | X188: 1258 | Y188: 8 | Z188: - | AA188: 4 | AC188: 0 | AD188: 2 | AE188: 0 | AF188: 2 | AG188: 1 | AH188: 1 | AI188: 2 | AU188: 1 | AV188: 0 | AW188: 0 | AX188: 1 | AY188: 0 | AZ188: 0 | BA188: 0 | BB188: 2 | BJ188: 2 | BK188: 18 | BL188: =PRODUCT(BJ188*60+BK188) -> 138 | BN188: Tommi Nupponen | BO188: Ossi Muurainen
Q190: VÄLIERÄT
M191: La | N191: 12 | O191: 9 | P191: 2020 | Q191: Joensuun Maila | R191: - | S191: Kouvolan Pallonlyöjät | T191: 1 | U191: - | V191: 2 | W191: (2-0, 3-4, 0-0, 0-1) | X191: 1914 | Y191: 5 | Z191: - | AA191: 4 | AC191: 1 | AD191: 0 | AE191: 1 | AG191: 0 | AH191: 0 | AI191: 1 | AJ191: 2 | AK191: 0 | AL191: 0 | AU191: 0 | AV191: 0 | AW191: 0 | AX191: 0 | AY191: 1 | AZ191: 0 | BA191: 2 | BB191: 1 | BC191: 0 | BD191: 1 | BJ191: 2 | BK191: 57 | BL191: =PRODUCT(BJ191*60+BK191) -> 177 | BN191: Jaakko Kuronen | BO191: Eki Kutvonen
B192: Kouvolan Pallonlyöjät loppuotteluun voitoin 2-0 | M192: Su | N192: 13 | O192: 9 | P192: 2020 | Q192: Kouvolan Pallonlyöjät | R192: - | S192: Joensuun Maila | T192: 2 | U192: - | V192: 0 | W192: (3-1, 3-0) | X192: 2083 | Y192: 6 | Z192: - | AA192: 1 | AC192: 0 | AD192: 3 | AE192: 0 | AF192: 0 | AG192: 0 | AH192: 2 | AI192: 1 | AU192: 1 | AV192: 0 | AW192: 0 | AX192: 0 | AY192: 0 | AZ192: 0 | BA192: 0 | BB192: 0 | BJ192: 2 | BK192: 18 | BL192: =PRODUCT(BJ192*60+BK192) -> 138 | BN192: Tommi Nupponen | BO192: Ossi Muurainen
M194: La | N194: 12 | O194: 9 | P194: 2020 | Q194: Sotkamon Jymy | R194: - | S194: Vimpelin Veto | T194: 2 | U194: - | V194: 0 | W194: (2-1, 4-0) | X194: 1320 | Y194: 6 | Z194: - | AA194: 1 | AC194: 1 | AD194: 0 | AE194: 0 | AF194: 1 | AG194: 1 | AH194: 2 | AI194: 0 | AJ194: 1 | AU194: 0 | AV194: 1 | AW194: 0 | AX194: 0 | AY194: 0 | AZ194: 0 | BA194: 0 | BB194: 0 | BJ194: 1 | BK194: 57 | BL194: =PRODUCT(BJ194*60+BK194) -> 117 | BN194: Joona Tervonen | BO194: Turo Timo
M195: Su | N195: 13 | O195: 9 | P195: 2020 | Q195: Vimpelin Veto | R195: - | S195: Sotkamon Jymy | T195: 2 | U195: - | V195: 0 | W195: (3-2, 11-9) | X195: 1634 | Y195: 14 | Z195: - | AA195: 11 | AC195: 2 | AD195: 0 | AE195: 1 | AF195: 0 | AG195: 1 | AH195: 0 | AI195: 4 | AJ195: 6 | AU195: 0 | AV195: 1 | AW195: 0 | AX195: 1 | AY195: 3 | AZ195: 1 | BA195: 5 | BB195: 0 | BJ195: 2 | BK195: 43 | BL195: =PRODUCT(BJ195*60+BK195) -> 163 | BN195: Joona Tervonen | BO195: Turo Timo
B196: Sotkamon Jymy loppuotteluun voitoin 3-2 | M196: Ti | N196: 15 | O196: 9 | P196: 2020 | Q196: Sotkamon Jymy | R196: - | S196: Vimpelin Veto | T196: 1 | U196: - | V196: 0 | W196: (2-2, 4-0) | X196: 1497 | Y196: 6 | Z196: - | AA196: 2 | AC196: 1 | AD196: 1 | AE196: 0 | AF196: 0 | AG196: 1 | AH196: 2 | AI196: 1 | AJ196: 0 | AU196: 1 | AV196: 1 | AW196: 0 | AX196: 0 | AY196: 0 | AZ196: 0 | BA196: 0 | BB196: 0 | BJ196: 2 | BK196: 14 | BL196: =PRODUCT(BJ196*60+BK196) -> 134 | BN196: Joona Tervonen | BO196: Turo Timo
Q198: PRONSSIOTTELUT
M199: La | N199: 19 | O199: 9 | P199: 2020 | Q199: Joensuun Maila | R199: - | S199: Vimpelin Veto | T199: 1 | U199: - | V199: 0 | W199: (2-2, 4-1) | X199: 1297 | Y199: 6 | Z199: - | AA199: 3 | AC199: 1 | AD199: 0 | AE199: 0 | AF199: 1 | AG199: 1 | AH199: 0 | AI199: 3 | AJ199: 0 | AU199: 0 | AV199: 0 | AW199: 1 | AX199: 1 | AY199: 0 | AZ199: 0 | BA199: 0 | BB199: 1 | BJ199: 2 | BK199: 7 | BL199: =PRODUCT(BJ199*60+BK199) -> 127 | BN199: Jaakko Kuronen | BO199: Eki Kutvonen
M200: Su | N200: 20 | O200: 9 | P200: 2020 | Q200: Vimpelin Veto | R200: - | S200: Joensuun Maila | T200: 2 | U200: - | V200: 0 | W200: (8-0, 4-2) | X200: 1018 | Y200: 12 | Z200: - | AA200: 2 | AC200: 2 | AD200: 1 | AE200: 0 | AF200: 5 | AG200: 3 | AH200: 0 | AI200: 1 | AJ200: 0 | AU200: 0 | AV200: 0 | AW200: 0 | AX200: 0 | AY200: 0 | AZ200: 2 | BA200: 0 | BB200: 0 | BJ200: 2 | BK200: 26 | BL200: =PRODUCT(BJ200*60+BK200) -> 146 | BN200: Jaakko Kuronen | BO200: Eki Kutvonen
B201: Vimpelin Veto pronssille voitoin 2-1 | M201: La | N201: 26 | O201: 9 | P201: 2020 | Q201: Joensuun Maila | R201: - | S201: Vimpelin Veto | T201: 1 | U201: - | V201: 2 | W201: (3-5, 3-1, 0-0, 5-6) | X201: 1457 | Y201: 6 | Z201: - | AA201: 6 | AC201: 3 | AD201: 0 | AE201: 0 | AF201: 0 | AG201: 1 | AH201: 0 | AI201: 2 | AK201: 0 | AL201: 5 | AU201: 0 | AV201: 0 | AW201: 5 | AY201: 1 | AZ201: 0 | BA201: 0 | BB201: 0 | BC201: 0 | BD201: 6 | BJ201: 3 | BK201: 4 | BL201: =PRODUCT(BJ201*60+BK201) -> 184 | BN201: Jaakko Kuronen | BO201: Eki Kutvonen
Q203: LOPPUOTTELUT
M204: La | N204: 19 | O204: 9 | P204: 2020 | Q204: Sotkamon Jymy | R204: - | S204: Kouvolan Pallonlyöjät | T204: 0 | U204: - | V204: 1 | W204: (1-4, 7-7) | X204: 1800 | Y204: 8 | Z204: - | AA204: 11 | AC204: 1 | AD204: 0 | AE204: 0 | AF204: 0 | AG204: 1 | AH204: 4 | AI204: 1 | AJ204: 1 | AU204: 0 | AV204: 0 | AW204: 1 | AX204: 3 | AY204: 0 | AZ204: 2 | BA204: 3 | BB204: 2 | BJ204: 2 | BK204: 41 | BL204: =PRODUCT(BJ204*60+BK204) -> 161 | BN204: Tommi Nupponen | BO204: Ossi Muurainen
M205: Su | N205: 20 | O205: 9 | P205: 2020 | Q205: Kouvolan Pallonlyöjät | R205: - | S205: Sotkamon Jymy | T205: 1 | U205: - | V205: 2 | W205: (0-4, 7-1, 0-5) | X205: 2580 | Y205: 7 | Z205: - | AA205: 10 | AC205: 0 | AD205: 0 | AE205: 0 | AF205: 0 | AG205: 1 | AH205: 1 | AI205: 5 | AJ205: 0 | AK205: 0 | AU205: 0 | AV205: 1 | AW205: 3 | AX205: 0 | AY205: 0 | AZ205: 1 | BA205: 0 | BB205: 0 | BC205: 5 | BJ205: 2 | BK205: 27 | BL205: =PRODUCT(BJ205*60+BK205) -> 147 | BN205: Joona Tervonen | BO205: Turo Timo
B206: Sotkamon Jymy mestari voitoin 2-1 | M206: La | N206: 26 | O206: 9 | P206: 2020 | Q206: Sotkamon Jymy | R206: - | S206: Kouvolan Pallonlyöjät | T206: 2 | U206: - | V206: 0 | W206: (3-2, 12-5) | X206: 1800 | Y206: 15 | Z206: - | AA206: 7 | AC206: 2 | AD206: 0 | AE206: 1 | AG206: 1 | AH206: 6 | AI206: 2 | AJ206: 3 | AU206: 2 | AV206: 0 | AW206: 0 | AX206: 0 | AY206: 2 | AZ206: 1 | BA206: 1 | BB206: 1 | BJ206: 2 | BK206: 26 | BL206: =PRODUCT(BJ206*60+BK206) -> 146 | BN206: Tommi Nupponen | BO206: Ossi Muurainen
R207: - | S207: Yhteensä | T207: =SUM(T176:T206) -> 26 | U207: - | V207: =SUM(V176:V206) -> 12 | X207: =SUM(X176:X206) -> 28461 | Y207: =SUM(Y176:Y206) -> 164 | Z207: - | AA207: =SUM(AA176:AA206) -> 96 | BL207: =SUM(BL176:BL206) -> 2863
P208: =COUNT(X176:X206) -> 20 | R208: - | S208: Keskiarvo | T208: =PRODUCT(T207/P208) -> 1.3 | U208: - | V208: =PRODUCT(V207/P208) -> 0.6 | X208: =PRODUCT(X207/P208) -> 1423 | Y208: =PRODUCT(Y207/P208) -> 8.2 | Z208: - | AA208: =PRODUCT(AA207/P208) -> 4.8 | BE208: Keskiarvo | BJ208: 2 | BK208: =PRODUCT(BL208-120) -> 23 | BL208: =PRODUCT(BL207/P208) -> 143
... 1259 more rows

Sheet Puolivälierät
B1: PUOLIVÄLIERÄT 1987 – 2025 | AC1: SUURIMMAT PUOLIVÄLIERÄVOITOT
N2: PUOLIVÄLIERÄSARJAT | O2: kerrat | P2: voitot | Q2: tappiot | R2: V-% | U2: JATKOSARJA 2004 | V2: O | W2: 3P | X2: 2P | Y2: 1P | Z2: 0P | AB2: 27 | AC2: 07. | AD2: 08. | AE2: 2011 | AF2: Sotkamon Jymy | AG2: - | AH2: Kiteen Pallo-90 | AI2: 2 | AJ2: - | AK2: 0 | AL2: (11-0, 17-1) | AM2: 3190
B3: 12 | C3: 8 | D3: 1987 | E3: Vaasan Maila | F3: - | G3: Seinäjoen Maila-Jussit | H3: 3 | I3: - | J3: 5 | L3: 5120 | N3: Sotkamon Jymy | O3: 37 | P3: 34 | Q3: =PRODUCT(O3-P3) -> 3 | R3: =PRODUCT(P3/O3) -> 91.9 % | T3: 1 | U3: Kiteen Pallo-90 | V3: 7 | W3: 3 | X3: 1 | Y3: 2 | Z3: 1 | AB3: 22 | AC3: 07. | AD3: 08. | AE3: 2011 | AF3: Vimpelin Veto | AG3: - | AH3: Hyvinkään Tahko | AI3: 2 | AJ3: - | AK3: 0 | AL3: (15-2, 9-0) | AM3: 2204
B4: 16 | C4: 8 | D4: 1987 | E4: Seinäjoen Maila-Jussit | F4: - | G4: Vaasan Maila | H4: 6 | I4: - | J4: 1 | L4: 5795 | N4: Hyvinkään Tahko | O4: 34 | P4: 18 | Q4: =PRODUCT(O4-P4) -> 16 | R4: =PRODUCT(P4/O4) -> 52.9 % | T4: 2 | U4: Sotkamon Jymy | V4: 7 | W4: 1 | X4: 4 | Y4: 1 | Z4: 1 | AB4: 21 | AC4: 18. | AD4: 08. | AE4: 1998 | AF4: Oulun Lippo | AG4: - | AH4: Kankaanpään Maila | AI4: 2 | AJ4: - | AK4: 0 | AL4: (12-1, 12-2) | AM4: 2015
N5: Vimpelin Veto | O5: 23 | P5: 16 | Q5: =PRODUCT(O5-P5) -> 7 | R5: =PRODUCT(P5/O5) -> 69.6 % | T5: 3 | U5: Hyvinkään Tahko | V5: 7 | W5: 1 | X5: 3 | Y5: 3 | Z5: 0 | AB5: 20 | AC5: 23. | AD5: 08. | AE5: 2018 | AF5: Vimpelin Veto | AG5: - | AH5: Pattijoen Urheilijat | AI5: 2 | AJ5: - | AK5: 0 | AL5: (20-4, 9-5) | AM5: 1508
B6: 12 | C6: 8 | D6: 1987 | E6: Vimpelin Veto | F6: - | G6: Hyvinkään Tahko | H6: 5 | I6: - | J6: 9 | L6: 2047 | N6: Kouvolan Pallonlyöjät | O6: 17 | P6: 12 | Q6: =PRODUCT(O6-P6) -> 5 | R6: =PRODUCT(P6/O6) -> 70.6 % | T6: 4 | U6: Seinäjoen Maila-Jussit | V6: 7 | W6: 2 | X6: 2 | Y6: 2 | Z6: 1 | AB6: 18 | AC6: 14. | AD6: 08. | AE6: 2011 | AF6: Sotkamon Jymy | AG6: - | AH6: Kiteen Pallo-90 | AI6: 2 | AJ6: - | AK6: 0 | AL6: (5-1, 14-0) | AM6: 2021
B7: 16 | C7: 8 | D7: 1987 | E7: Hyvinkään Tahko | G7: Vimpelin Veto | H7: 1 | I7: - | J7: 1 | L7: 2760 | N7: Joensuun Maila | O7: 17 | P7: 10 | Q7: =PRODUCT(O7-P7) -> 7 | R7: =PRODUCT(P7/O7) -> 58.8 % | T7: 5 | U7: Nurmon Jymy | V7: 7 | W7: 1 | X7: 4 | Y7: 1 | Z7: 1 | AB7: 17 | AC7: 19. | AD7: 08. | AE7: 2018 | AF7: Vimpelin Veto | AG7: - | AH7: Pattijoen Urheilijat | AI7: 2 | AJ7: - | AK7: 0 | AL7: (6-0, 13-2) | AM7: 1911
N8: Pattijoen Urheilijat | O8: 23 | P8: 10 | Q8: =PRODUCT(O8-P8) -> 13 | R8: =PRODUCT(P8/O8) -> 43.5 % | T8: 6 | U8: Puijon Pesäpallo | V8: 7 | W8: 0 | X8: 2 | Y8: 2 | Z8: 3 | AB8: 16 | AC8: 14. | AD8: 08. | AE8: 1991 | AF8: Jyväskylän Kiri | AG8: - | AH8: Imatran Pallo-Veikot | AI8: 2 | AJ8: - | AK8: 18 | AM8: 2687
B9: 12 | C9: 8 | D9: 1987 | E9: Alajärven Ankkurit | F9: - | G9: Kiteen Urheilijat | H9: 16 | I9: - | J9: 6 | L9: 2004 | N9: Kiteen Pallo-90 | O9: 28 | P9: 8 | Q9: =PRODUCT(O9-P9) -> 20 | R9: =PRODUCT(P9/O9) -> 28.6 % | T9: 7 | U9: Oulun Lippo | V9: 7 | W9: 1 | X9: 1 | Y9: 2 | Z9: 3 | AB9: 16 | AC9: 22. | AD9: 08. | AE9: 2002 | AF9: Sotkamon Jymy | AG9: - | AH9: Seinäjoen Maila-Jussit | AI9: 2 | AJ9: - | AK9: 0 | AL9: (6-0, 11-1) | AM9: 1608
B10: 16 | C10: 8 | D10: 1987 | E10: Kiteen Urheilijat | F10: - | G10: Alajärven Ankkurit | H10: 0 | I10: - | J10: 7 | L10: 920 | N10: Seinäjoen Maila-Jussit | O10: 15 | P10: 7 | Q10: =PRODUCT(O10-P10) -> 8 | R10: =PRODUCT(P10/O10) -> 46.7 % | T10: 8 | U10: Koskenkorvan Urheilijat | V10: 7 | W10: 0 | X10: 2 | Y10: 1 | Z10: 4
N11: Oulun Lippo | O11: 17 | P11: 7 | Q11: =PRODUCT(O11-P11) -> 10 | R11: =PRODUCT(P11/O11) -> 41.2 %
B12: 12 | C12: 8 | D12: 1987 | E12: Imatran Pallo-Veikot | F12: - | G12: Siilinjärven Ponnistus | H12: 6 | I12: - | J12: 1 | L12: 2883 | N12: Alajärven Ankkurit | O12: 10 | P12: 6 | Q12: =PRODUCT(O12-P12) -> 4 | R12: =PRODUCT(P12/O12) -> 60.0 % | U12: JATKOSARJA 2005 | V12: O | W12: 3P | X12: 2P | Y12: 1P | Z12: 0P
B13: 16 | C13: 8 | D13: 1987 | E13: Siilinjärven Ponnistus | F13: - | G13: Imatran Pallo-Veikot | H13: 8 | I13: - | J13: 6 | L13: 3500 | N13: Imatran Pallo-Veikot | O13: 9 | P13: 5 | Q13: =PRODUCT(O13-P13) -> 4 | R13: =PRODUCT(P13/O13) -> 55.6 % | T13: 1 | U13: Sotkamon Jymy | V13: 7 | W13: 4 | X13: 2 | Y13: 1 | Z13: 0
K14: Yhteensä | L14: =SUM(L3:L13) -> 25029 | N14: Manse PP Edustus | O14: 5 | P14: 5 | Q14: =PRODUCT(O14-P14) -> 0 | R14: =PRODUCT(P14/O14) -> 100.0 % | T14: 2 | U14: Kiteen Pallo-90 | V14: 7 | W14: 3 | X14: 2 | Y14: 1 | Z14: 1
K15: Keskiarvo | L15: =PRODUCT(L14/8) -> 3129 | N15: Nurmon Jymy | O15: 5 | P15: 3 | Q15: =PRODUCT(O15-P15) -> 2 | R15: =PRODUCT(P15/O15) -> 60.0 % | T15: 3 | U15: Hyvinkään Tahko | V15: 7 | W15: 2 | X15: 3 | Y15: 0 | Z15: 2
N16: Jyväskylän Kiri | O16: 8 | P16: 3 | Q16: =PRODUCT(O16-P16) -> 5 | R16: =PRODUCT(P16/O16) -> 37.5 % | T16: 4 | U16: Nurmon Jymy | V16: 7 | W16: 2 | X16: 0 | Y16: 2 | Z16: 3
N17: Koskenkorvan Urheilijat | O17: 17 | P17: 3 | Q17: =PRODUCT(O17-P17) -> 14 | R17: =PRODUCT(P17/O17) -> 17.6 % | T17: 5 | U17: Oulun Lippo | V17: 7 | W17: 1 | X17: 3 | Y17: 1 | Z17: 2
B18: 5 | C18: 8 | D18: 1988 | E18: Vaasan Maila | F18: - | G18: Kiteen Urheilijat | H18: 4 | I18: - | J18: 5 | L18: 3022 | N18: Kempeleen Kiri | O18: 5 | P18: 2 | Q18: =PRODUCT(O18-P18) -> 3 | R18: =PRODUCT(P18/O18) -> 40.0 % | T18: 6 | U18: Pattijoen Urheilijat | V18: 7 | W18: 1 | X18: 2 | Y18: 0 | Z18: 4
B19: 7 | C19: 8 | D19: 1988 | E19: Kiteen Urheilijat | F19: - | G19: Vaasan Maila | H19: 9 | I19: - | J19: 2 | L19: 2552 | N19: Kankaanpään Maila | O19: 7 | P19: 2 | Q19: =PRODUCT(O19-P19) -> 5 | R19: =PRODUCT(P19/O19) -> 28.6 % | T19: 7 | U19: Joensuun Maila | V19: 7 | W19: 1 | X19: 1 | Y19: 0 | Z19: 5
N20: Kaisaniemen Tiikerit | O20: 2 | P20: 1 | Q20: =PRODUCT(O20-P20) -> 1 | R20: =PRODUCT(P20/O20) -> 50.0 % | T20: 8 | U20: Puijon Pesäpallo | V20: 7 | W20: 1 | X20: 0 | Y20: 0 | Z20: 6
B21: 4 | C21: 8 | D21: 1988 | E21: Kankaanpään Maila | F21: - | G21: Hyvinkään Tahko | H21: 5 | I21: - | J21: 4 | L21: 2460 | N21: Kinnarin Pesis | O21: 2 | P21: 1 | Q21: =PRODUCT(O21-P21) -> 1 | R21: =PRODUCT(P21/O21) -> 50.0 %
B22: 7 | C22: 8 | D22: 1988 | E22: Hyvinkään Tahko | F22: - | G22: Kankaanpään Maila | H22: 1 | I22: - | J22: 8 | L22: 3309 | N22: Kiteen Urheilijat | O22: 2 | P22: 1 | Q22: =PRODUCT(O22-P22) -> 1 | R22: =PRODUCT(P22/O22) -> 50.0 % | U22: JATKOSARJA 2006 | V22: O | W22: 3P | X22: 2P | Y22: 1P | Z22: 0P
N23: Vaasan Maila | O23: 4 | P23: 1 | Q23: =PRODUCT(O23-P23) -> 3 | R23: =PRODUCT(P23/O23) -> 25.0 % | T23: 1 | U23: Sotkamon Jymy | V23: 7 | W23: 4 | X23: 2 | Y23: 0 | Z23: 1
B24: 4 | C24: 8 | D24: 1988 | E24: Alajärven Ankkurit | F24: - | G24: Kouvolan Pallonlyöjät | H24: 5 | I24: - | J24: 1 | L24: 1711 | N24: Puijon Pesäpallo | O24: 5 | P24: 1 | Q24: =PRODUCT(O24-P24) -> 4 | R24: =PRODUCT(P24/O24) -> 20.0 % | T24: 2 | U24: Puijon Pesäpallo | V24: 7 | W24: 4 | X24: 1 | Y24: 1 | Z24: 1
B25: 7 | C25: 8 | D25: 1988 | E25: Kouvolan Pallonlyöjät | F25: - | G25: Alajärven Ankkurit | H25: 2 | I25: - | J25: 11 | L25: 1618 | N25: Loimaan Palloilijat | O25: 4 | P25: 0 | Q25: =PRODUCT(O25-P25) -> 4 | R25: =PRODUCT(P25/O25) -> 0.0 % | T25: 3 | U25: Pattijoen Urheilijat | V25: 7 | W25: 3 | X25: 1 | Y25: 1 | Z25: 2
N26: Oulun Lippo Pesis | O26: 1 | P26: 0 | Q26: =PRODUCT(O26-P26) -> 1 | R26: =PRODUCT(P26/O26) -> 0.0 % | T26: 4 | U26: Kiteen Pallo-90 | V26: 7 | W26: 2 | X26: 3 | Y26: 0 | Z26: 2
B27: 4 | C27: 8 | D27: 1988 | E27: Imatran Pallo-Veikot | F27: - | G27: Seinäjoen Maila-Jussit | H27: 13 | I27: - | J27: 6 | L27: 2813 | N27: Riihimäen Pallonlyöjät | O27: 1 | P27: 0 | Q27: =PRODUCT(O27-P27) -> 1 | R27: =PRODUCT(P27/O27) -> 0.0 % | T27: 5 | U27: Nurmon Jymy | V27: 7 | W27: 3 | X27: 1 | Y27: 0 | Z27: 3
B28: 7 | C28: 8 | D28: 1988 | E28: Seinäjoen Maila-Jussit | F28: - | G28: Imatran Pallo-Veikot | H28: 3 | I28: - | J28: 2 | L28: 1940 | N28: Seinäjoen JymyJussit | O28: 7 | P28: 0 | Q28: =PRODUCT(O28-P28) -> 7 | R28: =PRODUCT(P28/O28) -> 0.0 % | T28: 6 | U28: Koskenkorvan Urheilijat | V28: 7 | W28: 0 | X28: 3 | Y28: 2 | Z28: 2
B29: 10 | C29: 8 | D29: 1988 | E29: Imatran Pallo-Veikot | F29: - | G29: Seinäjoen Maila-Jussit | H29: 3 | I29: - | J29: 8 | L29: 3431 | N29: Siilinjärven Pesis | O29: 3 | P29: 0 | Q29: =PRODUCT(O29-P29) -> 3 | R29: =PRODUCT(P29/O29) -> 0.0 % | T29: 7 | U29: Hyvinkään Tahko | V29: 7 | W29: 0 | X29: 1 | Y29: 0 | Z29: 6
K30: Yhteensä | L30: =SUM(L18:L29) -> 22856 | N30: Siilinjärven Ponnistus | O30: 1 | P30: 0 | Q30: =PRODUCT(O30-P30) -> 1 | R30: =PRODUCT(P30/O30) -> 0.0 % | T30: 8 | U30: Oulun Lippo | V30: 7 | W30: 0 | X30: 0 | Y30: 2 | Z30: 5
K31: Keskiarvo | L31: =PRODUCT(L30/9) -> 2540 | N31: Ulvilan Pesä-Veikot | O31: 3 | P31: 0 | Q31: =PRODUCT(O31-P31) -> 3 | R31: =PRODUCT(P31/O31) -> 0.0 %
O32: =SUM(O3:O31) -> 312 | P32: =SUM(P3:P31) -> 156 | Q32: =SUM(Q3:Q31) -> 156 | U32: JATKOSARJA 2007 | V32: O | W32: 3P | X32: 2P | Y32: 1P | Z32: 0P
T33: 1 | U33: Sotkamon Jymy | V33: 7 | W33: 4 | X33: 2 | Y33: 1 | Z33: 0
B34: 16 | C34: 8 | D34: 1989 | E34: Imatran Pallo-Veikot | F34: - | G34: Kouvolan Pallonlyöjät | H34: 13 | I34: - | J34: 5 | L34: 3019 | T34: 2 | U34: Nurmon Jymy | V34: 7 | W34: 2 | X34: 4 | Y34: 1 | Z34: 0
B35: 19 | C35: 8 | D35: 1989 | E35: Kouvolan Pallonlyöjät | F35: - | G35: Imatran Pallo-Veikot | H35: 5 | I35: - | J35: 6 | L35: 2084 | N35: TOP-5 YLEISÖMÄÄRÄT | T35: 3 | U35: Hyvinkään Tahko | V35: 7 | W35: 3 | X35: 1 | Y35: 1 | Z35: 2
N36: SMJ – VM | O36: 1987 | P36: 5795 | T36: 4 | U36: Koskenkorvan Urheilijat | V36: 7 | W36: 1 | X36: 3 | Y36: 2 | Z36: 1
B37: 16 | C37: 8 | D37: 1989 | E37: Alajärven Ankkurit | F37: - | G37: Seinäjoen Maila-Jussit | H37: 11 | I37: - | J37: 6 | L37: 4674 | N37: SMJ – AA | O37: 1989 | P37: 5123 | T37: 5 | U37: Vimpelin Veto | V37: 7 | W37: 2 | X37: 1 | Y37: 2 | Z37: 2
B38: 19 | C38: 8 | D38: 1989 | E38: Seinäjoen Maila-Jussit | F38: - | G38: Alajärven Ankkurit | H38: 2 | I38: - | J38: 6 | L38: 5123 | N38: VM – SMJ | O38: 1987 | P38: 5120 | T38: 6 | U38: Puijon Pesäpallo | V38: 7 | W38: 2 | X38: 1 | Y38: 0 | Z38: 4
N39: AA – SMJ | O39: 1989 | P39: 4674 | T39: 7 | U39: Pattijoen Urheilijat | V39: 7 | W39: 0 | X39: 1 | Y39: 1 | Z39: 5
B40: 16 | C40: 8 | D40: 1989 | E40: Kankaanpään Maila | F40: - | G40: Vaasan Maila | H40: 1 | I40: - | J40: 6 | L40: 2065 | N40: SMJ – Lippo | O40: 1997 | P40: 4256 | T40: 8 | U40: Joensuun Maila | V40: 7 | W40: 0 | X40: 1 | Y40: 0 | Z40: 6
B41: 19 | C41: 8 | D41: 1989 | E41: Vaasan Maila | F41: - | G41: Kankaanpään Maila | H41: 8 | I41: - | J41: 7 | L41: 2862
U42: JATKOSARJA 2008 | V42: O | W42: 3P | X42: 2P | Y42: 1P | Z42: 0P
B43: 16 | C43: 8 | D43: 1989 | E43: Sotkamon Jymy | F43: - | G43: Hyvinkään Tahko | H43: 6 | I43: - | J43: 8 | L43: 2073 | N43: YLEISÖMÄÄRÄT | T43: 1 | U43: Sotkamon Jymy | V43: 7 | W43: 3 | X43: 3 | Y43: 0 | Z43: 1
B44: 19 | C44: 8 | D44: 1989 | E44: Hyvinkään Tahko | F44: - | G44: Sotkamon Jymy | H44: 8 | I44: - | J44: 16 | L44: 2117 | N44: Vuosi | O44: otteluja | P44: yleisö | Q44: ka | T44: 2 | U44: Kouvolan Pallonlyöjät | V44: 7 | W44: 2 | X44: 3 | Y44: 1 | Z44: 1
B45: 20 | C45: 8 | D45: 1989 | E45: Sotkamon Jymy | F45: - | G45: Hyvinkään Tahko | H45: 2 | I45: - | J45: 8 | L45: 2045 | N45: 1987 | O45: 8 | P45: 25029 | Q45: =PRODUCT(P45/O45) -> 3129 | T45: 3 | U45: Pattijoen Urheilijat | V45: 7 | W45: 2 | X45: 2 | Y45: 1 | Z45: 2
K46: Yhteensä | L46: =SUM(L34:L45) -> 26062 | N46: 1988 | O46: 9 | P46: 22856 | Q46: =PRODUCT(P46/O46) -> 2540 | T46: 4 | U46: Nurmon Jymy | V46: 7 | W46: 1 | X46: 3 | Y46: 2 | Z46: 1
K47: Keskiarvo | L47: =PRODUCT(L46/9) -> 2896 | N47: 1989 | O47: 9 | P47: 26062 | Q47: =PRODUCT(P47/O47) -> 2896 | T47: 5 | U47: Joensuun Maila | V47: 7 | W47: 2 | X47: 0 | Y47: 2 | Z47: 3
N48: 1990 | O48: 10 | P48: 26089 | Q48: =PRODUCT(P48/O48) -> 2609 | T48: 6 | U48: Oulun Lippo | V48: 7 | W48: 2 | X48: 0 | Y48: 3 | Z48: 2
N49: 1991 | O49: 9 | P49: 26537 | Q49: =PRODUCT(P49/O49) -> 2949 | T49: 7 | U49: Hyvinkään Tahko | V49: 7 | W49: 0 | X49: 3 | Y49: 1 | Z49: 3
B50: 15 | C50: 8 | D50: 1990 | E50: Alajärven Ankkurit | F50: - | G50: Hyvinkään Tahko | H50: 5 | I50: - | J50: 7 | L50: 2614 | N50: 1992 | O50: 9 | P50: 17854 | Q50: =PRODUCT(P50/O50) -> 1984 | T50: 8 | U50: Vimpelin Veto | V50: 7 | W50: 0 | X50: 2 | Y50: 1 | Z50: 4
B51: 18 | C51: 8 | D51: 1990 | E51: Hyvinkään Tahko | F51: - | G51: Alajärven Ankkurit | H51: 10 | I51: - | J51: 9 | L51: 3566 | N51: 1993 | O51: 14 | P51: 26753 | Q51: =PRODUCT(P51/O51) -> 1911
N52: 1995 | O52: 14 | P52: 30446 | Q52: =PRODUCT(P52/O52) -> 2175
B53: 15 | C53: 8 | D53: 1990 | E53: Sotkamon Jymy | F53: - | G53: Siilinjärven Pesis | H53: 7 | I53: - | J53: 12 | L53: 3281 | N53: 1996 | O53: 15 | P53: 33382 | Q53: =PRODUCT(P53/O53) -> 2225
B54: 18 | C54: 8 | D54: 1990 | E54: Siilinjärven Pesis | F54: - | G54: Sotkamon Jymy | H54: 3 | I54: - | J54: 13 | L54: 2539 | N54: 1997 | O54: 15 | P54: 40826 | Q54: =PRODUCT(P54/O54) -> 2722
B55: 19 | C55: 8 | D55: 1990 | E55: Sotkamon Jymy | F55: - | G55: Siilinjärven Pesis | H55: 9 | I55: - | J55: 6 | L55: 2665 | N55: 1998 | O55: 14 | P55: 23456 | Q55: =PRODUCT(P55/O55) -> 1675
N56: 1999 | O56: 15 | P56: 27559 | Q56: =PRODUCT(P56/O56) -> 1837
B57: 15 | C57: 8 | D57: 1990 | E57: Imatran Pallo-Veikot | F57: - | G57: Vaasan Maila | H57: 3 | I57: - | J57: 2 | L57: 2826 | N57: 2000 | O57: 15 | P57: 33480 | Q57: =PRODUCT(P57/O57) -> 2232
B58: 18 | C58: 8 | D58: 1990 | E58: Vaasan Maila | F58: - | G58: Imatran Pallo-Veikot | H58: 1 | I58: - | J58: 4 | L58: 2120 | N58: 2001 | O58: 15 | P58: 27563 | Q58: =PRODUCT(P58/O58) -> 1838
N59: 2002 | O59: 14 | P59: 24538 | Q59: =PRODUCT(P59/O59) -> 1753
B60: 15 | C60: 8 | D60: 1990 | E60: Kankaanpään Maila | F60: - | G60: Vimpelin Veto | H60: 13 | I60: - | J60: 5 | L60: 2045 | N60: 2003 | O60: 21 | P60: 31669 | Q60: =PRODUCT(P60/O60) -> 1508
B61: 18 | C61: 8 | D61: 1990 | E61: Vimpelin Veto | F61: - | G61: Kankaanpään Maila | H61: 7 | I61: - | J61: 1 | L61: 1688 | N61: 2004 | O61: 28 | P61: 34397 | Q61: =PRODUCT(P61/O61) -> 1228 | R61: jatkosarja
B62: 19 | C62: 8 | D62: 1990 | E62: Kankaanpään Maila | F62: - | G62: Vimpelin Veto | H62: 12 | I62: - | J62: 4 | L62: 2745 | N62: 2005 | O62: 28 | P62: 35334 | Q62: =PRODUCT(P62/O62) -> 1262 | R62: jatkosarja
K63: Yhteensä | L63: =SUM(L50:L62) -> 26089 | N63: 2006 | O63: 28 | P63: 37561 | Q63: =PRODUCT(P63/O63) -> 1341 | R63: jatkosarja
K64: Keskiarvo | L64: =PRODUCT(L63/10) -> 2609 | N64: 2007 | O64: 28 | P64: 48610 | Q64: =PRODUCT(P64/O64) -> 1736 | R64: jatkosarja
N65: 2008 | O65: 28 | P65: 45238 | Q65: =PRODUCT(P65/O65) -> 1616 | R65: jatkosarja
N66: 2009 | O66: 22 | P66: 54697 | Q66: =PRODUCT(P66/O66) -> 2486
B67: 14 | C67: 8 | D67: 1991 | E67: Jyväskylän Kiri | F67: - | G67: Imatran Pallo-Veikot | H67: 2 | I67: - | J67: 18 | L67: 2687 | N67: 2010 | O67: 12 | P67: 34048 | Q67: =PRODUCT(P67/O67) -> 2837
B68: 17 | C68: 8 | D68: 1991 | E68: Imatran Pallo-Veikot | F68: - | G68: Jyväskylän Kiri | H68: 11 | I68: - | J68: 1 | L68: 2623 | N68: 2011 | O68: 20 | P68: 43499 | Q68: =PRODUCT(P68/O68) -> 2175
N69: 2012 | O69: 21 | P69: 33237 | Q69: =PRODUCT(P69/O69) -> 1583
B70: 15 | C70: 8 | D70: 1991 | E70: Alajärven Ankkurit | F70: - | G70: Sotkamon Jymy | H70: 4 | I70: - | J70: 7 | L70: 3641 | N70: 2013 | O70: 14 | P70: 27834 | Q70: =PRODUCT(P70/O70) -> 1988
B71: 17 | C71: 8 | D71: 1991 | E71: Sotkamon Jymy | F71: - | G71: Alajärven Ankkurit | H71: 5 | I71: - | J71: 4 | L71: 3305 | N71: 2014 | O71: 13 | P71: 22976 | Q71: =PRODUCT(P71/O71) -> 1767
N72: 2015 | O72: 15 | P72: 30237 | Q72: =PRODUCT(P72/O72) -> 2016
B73: 14 | C73: 8 | D73: 1991 | E73: Vimpelin Veto | F73: - | G73: Hyvinkään Tahko | H73: 7 | I73: - | J73: 12 | L73: 2685 | N73: 2016 | O73: 14 | P73: 18157 | Q73: =PRODUCT(P73/O73) -> 1297
B74: 17 | C74: 8 | D74: 1991 | E74: Hyvinkään Tahko | F74: - | G74: Vimpelin Veto | H74: 6 | I74: - | J74: 19 | L74: 3042 | N74: 2017 | O74: 14 | P74: 24119 | Q74: =PRODUCT(P74/O74) -> 1723
B75: 18 | C75: 8 | D75: 1991 | E75: Hyvinkään Tahko | F75: - | G75: Vimpelin Veto | H75: 3 | I75: - | J75: 2 | L75: 3166 | N75: 2018 | O75: 13 | P75: 20294 | Q75: =PRODUCT(P75/O75) -> 1561
N76: 2019 | O76: 12 | P76: 21258 | Q76: =PRODUCT(P76/O76) -> 1772
B77: 15 | C77: 8 | D77: 1991 | E77: Kiteen Pallo-90 | F77: - | G77: Seinäjoen Maila-Jussit | H77: 2 | I77: - | J77: 17 | L77: 2012 | N77: 2020 | O77: 9 | P77: 10061 | Q77: =PRODUCT(P77/O77) -> 1118
B78: 17 | C78: 8 | D78: 1991 | E78: Seinäjoen Maila-Jussit | F78: - | G78: Kiteen Pallo-90 | H78: 10 | I78: - | J78: 7 | L78: 3376 | N78: 2021 | O78: 16 | P78: 25508 | Q78: =PRODUCT(P78/O78) -> 1594
K79: Yhteensä | L79: =SUM(L66:L78) -> 26537 | N79: 2022 | O79: 16 | P79: 23473 | Q79: =PRODUCT(P79/O79) -> 1467
K80: Keskiarvo | L80: =PRODUCT(L79/9) -> 2949 | N80: 2023 | O80: 21 | P80: 36208 | Q80: =PRODUCT(P80/O80) -> 1724
N81: 2024 | O81: 15 | P81: 24323 | Q81: =PRODUCT(P81/O81) -> 1622
N82: 2025 | O82: 17 | P82: 28686 | Q82: =PRODUCT(P82/O82) -> 1687
B83: 12 | C83: 8 | D83: 1992 | E83: Vimpelin Veto | F83: - | G83: Sotkamon Jymy | H83: 2 | I83: - | J83: 9 | L83: 1144 | N83: YHT | O83: =SUM(O45:O82) -> 610 | P83: =SUM(P45:P82) -> 1123854 | Q83: =PRODUCT(P83/O83) -> 1842
B84: 15 | C84: 8 | D84: 1992 | E84: Sotkamon Jymy | F84: - | G84: Vimpelin Veto | H84: 11 | I84: - | J84: 2 | L84: 2732
B86: 12 | C86: 8 | D86: 1992 | E86: Oulun Lippo | F86: - | G86: Imatran Pallo-Veikot | H86: 14 | I86: - | J86: 7 | L86: 2315
B87: 15 | C87: 8 | D87: 1992 | E87: Imatran Pallo-Veikot | F87: - | G87: Oulun Lippo | H87: 9 | I87: - | J87: 4 | L87: 1969
B88: 16 | C88: 8 | D88: 1992 | E88: Imatran Pallo-Veikot | F88: - | G88: Oulun Lippo | H88: 5 | I88: - | J88: 7 | L88: 3278
B90: 12 | C90: 8 | D90: 1992 | E90: Jyväskylän Kiri | F90: - | G90: Alajärven Ankkurit | H90: 0 | I90: - | J90: 3 | L90: 1272
B91: 15 | C91: 8 | D91: 1992 | E91: Alajärven Ankkurit | F91: - | G91: Jyväskylän Kiri | H91: 9 | I91: - | J91: 0 | L91: 1415
B93: 12 | C93: 8 | D93: 1992 | E93: Kankaanpään Maila | F93: - | G93: Hyvinkään Tahko | H93: 4 | I93: - | J93: 6 | L93: 1620
B94: 15 | C94: 8 | D94: 1992 | E94: Hyvinkään Tahko | F94: - | G94: Kankaanpään Maila | H94: 11 | I94: - | J94: 3 | L94: 2109
K95: Yhteensä | L95: =SUM(L83:L94) -> 17854
K96: Keskiarvo | L96: =PRODUCT(L95/9) -> 1984
B99: 18 | C99: 8 | D99: 1993 | E99: Seinäjoen Maila-Jussit | F99: - | G99: Sotkamon Jymy | H99: 3 | I99: - | J99: 13 | L99: 2576
B100: 22 | C100: 8 | D100: 1993 | E100: Sotkamon Jymy | F100: - | G100: Seinäjoen Maila-Jussit | H100: 12 | I100: - | J100: 4 | L100: 2244
B101: 25 | C101: 8 | D101: 1993 | E101: Sotkamon Jymy | F101: - | G101: Seinäjoen Maila-Jussit | H101: 11 | I101: - | J101: 0 | L101: 1346
B103: 18 | C103: 8 | D103: 1993 | E103: Loimaan Palloilijat | F103: - | G103: Alajärven Ankkurit | H103: 3 | I103: - | J103: 4 | L103: 1154
B104: 22 | C104: 8 | D104: 1993 | E104: Alajärven Ankkurit | F104: - | G104: Loimaan Palloilijat | H104: 10 | I104: - | J104: 0 | L104: 1524
B105: 25 | C105: 8 | D105: 1993 | E105: Alajärven Ankkurit | F105: - | G105: Loimaan Palloilijat | H105: 6 | I105: - | J105: 7 | L105: 1112
B106: 28 | C106: 8 | D106: 1993 | E106: Loimaan Palloilijat | F106: - | G106: Alajärven Ankkurit | H106: 2 | I106: - | J106: 11 | L106: 1724
B108: 18 | C108: 8 | D108: 1993 | E108: Riihimäen Pallonlyöjät | F108: - | G108: Imatran Pallo-Veikot | H108: 3 | I108: - | J108: 7 | L108: 1541
B109: 22 | C109: 8 | D109: 1993 | E109: Imatran Pallo-Veikot | F109: - | G109: Riihimäen Pallonlyöjät | H109: 10 | I109: - | J109: 9 | L109: 1743
B110: 25 | C110: 8 | D110: 1993 | E110: Imatran Pallo-Veikot | F110: - | G110: Riihimäen Pallonlyöjät | H110: 15 | I110: - | J110: 2 | L110: 1447
B112: 18 | C112: 8 | D112: 1993 | E112: Hyvinkään Tahko | F112: - | G112: Oulun Lippo | H112: 7 | I112: - | J112: 15 | L112: 1350
B113: 22 | C113: 8 | D113: 1993 | E113: Oulun Lippo | F113: - | G113: Hyvinkään Tahko | H113: 6 | I113: - | J113: 5 | L113: 3221
B114: 25 | C114: 8 | D114: 1993 | E114: Oulun Lippo | F114: - | G114: Hyvinkään Tahko | H114: 3 | I114: - | J114: 7 | L114: 3151
B115: 28 | C115: 8 | D115: 1993 | E115: Hyvinkään Tahko | F115: - | G115: Oulun Lippo | H115: 6 | I115: - | J115: 12 | L115: 2620
K116: Yhteensä | L116: =SUM(L99:L115) -> 26753
K117: Keskiarvo | L117: =PRODUCT(L116/14) -> 1911
B120: 13 | C120: 8 | D120: 1995 | E120: Oulun Lippo | F120: - | G120: Loimaan Palloilijat | H120: 2 | I120: - | J120: 0 | K120: (7-3, 5-1) | L120: 2148
B121: 16 | C121: 8 | D121: 1995 | E121: Loimaan Palloilijat | F121: - | G121: Oulun Lippo | H121: 0 | I121: - | J121: 2 | K121: (2-3, 1-6) | L121: 1361
B122: 19 | C122: 8 | D122: 1995 | E122: Oulun Lippo | F122: - | G122: Loimaan Palloilijat | H122: 2 | I122: - | J122: 0 | K122: (3-0, 4-1) | L122: 2173
B124: 13 | C124: 8 | D124: 1995 | E124: Sotkamon Jymy | F124: - | G124: Jyväskylän Kiri | H124: 2 | I124: - | J124: 0 | K124: (6-0, 9-2) | L124: 1774
B125: 16 | C125: 8 | D125: 1995 | E125: Jyväskylän Kiri | F125: - | G125: Sotkamon Jymy | H125: 0 | I125: - | J125: 2 | K125: (4-5, 1-6) | L125: 1402
B126: 19 | C126: 8 | D126: 1995 | E126: Sotkamon Jymy | F126: - | G126: Jyväskylän Kiri | H126: 1 | I126: - | J126: 0 | K126: (5-4, 0-0) | L126: 1555
B128: 13 | C128: 8 | D128: 1995 | E128: Seinäjoen Maila-Jussit | F128: - | G128: Alajärven Ankkurit | H128: 2 | I128: - | J128: 0 | K128: (5-2, 1-0) | L128: 3124
B129: 16 | C129: 8 | D129: 1995 | E129: Alajärven Ankkurit | F129: - | G129: Seinäjoen Maila-Jussit | H129: 0 | I129: - | J129: 1 | K129: (3-3, 2-3) | L129: 2018
B130: 19 | C130: 8 | D130: 1995 | E130: Seinäjoen Maila-Jussit | F130: - | G130: Alajärven Ankkurit | H130: 1 | I130: - | J130: 0 | K130: (1-1, 2-0) | L130: 2745
B132: 13 | C132: 8 | D132: 1995 | E132: Kiteen Pallo-90 | F132: - | G132: Hyvinkään Tahko | H132: 1 | I132: - | J132: 0 | K132: (0-0, 1-0) | L132: 1641
B133: 16 | C133: 8 | D133: 1995 | E133: Hyvinkään Tahko | F133: - | G133: Kiteen Pallo-90 | H133: 2 | I133: - | J133: 1 | K133: (4-0, 0-2, 1-0) | L133: 2437
B134: 19 | C134: 8 | D134: 1995 | E134: Kiteen Pallo-90 | F134: - | G134: Hyvinkään Tahko | H134: 0 | I134: - | J134: 2 | K134: (1-5, 0-5) | L134: 1816
B135: 20 | C135: 8 | D135: 1995 | E135: Hyvinkään Tahko | F135: - | G135: Kiteen Pallo-90 | H135: 0 | I135: - | J135: 1 | K135: (0-7, 0-0) | L135: 3218
B136: 24 | C136: 8 | D136: 1995 | E136: Kiteen Pallo-90 | F136: - | G136: Hyvinkään Tahko | H136: 0 | I136: - | J136: 2 | K136: (0-2, 0-2) | L136: 3034
K137: Yhteensä | L137: =SUM(L120:L136) -> 30446
K138: Keskiarvo | L138: =PRODUCT(L137/14) -> 2175
B141: 17 | C141: 8 | D141: 1996 | E141: Jyväskylän Kiri | G141: Siilinjärven Pesis | H141: 2 | I141: - | J141: 0 | K141: (6-1, 5-4) | L141: 1482
B142: 18 | C142: 8 | D142: 1996 | E142: Siilinjärven Pesis | G142: Jyväskylän Kiri | H142: 2 | I142: - | J142: 0 | K142: (3-2, 8-3) | L142: 1573
B143: 21 | C143: 8 | D143: 1996 | E143: Jyväskylän Kiri | G143: Siilinjärven Pesis | H143: 1 | I143: - | J143: 2 | K143: (1-2, 7-0, 0-1) | L143: 2018
B144: 24 | C144: 8 | D144: 1996 | E144: Siilinjärven Pesis | G144: Jyväskylän Kiri | H144: 0 | I144: - | J144: 2 | K144: (1-3, 2-4) | L144: 2036
B145: 25 | C145: 8 | D145: 1996 | E145: Jyväskylän Kiri | G145: Siilinjärven Pesis | H145: 2 | I145: - | J145: 0 | K145: (8-0, 6-3) | L145: 2418
B147: 17 | C147: 8 | D147: 1996 | E147: Sotkamon Jymy | F147: - | G147: Loimaan Palloilijat | H147: 2 | I147: - | J147: 0 | K147: (7-0, 7-1) | L147: 2006
B148: 18 | C148: 8 | D148: 1996 | E148: Loimaan Palloilijat | F148: - | G148: Sotkamon Jymy | H148: 0 | I148: - | J148: 1 | K148: (4-5, 1-1) | L148: 1714
B149: 21 | C149: 8 | D149: 1996 | E149: Sotkamon Jymy | F149: - | G149: Loimaan Palloilijat | H149: 1 | I149: - | J149: 0 | K149: (7-1, 1-1) | L149: 1658
B151: 17 | C151: 8 | D151: 1996 | E151: Seinäjoen Maila-Jussit | F151: - | G151: Oulun Lippo | H151: 2 | I151: - | J151: 0 | K151: (7-2, 6-4) | L151: 2732
B152: 18 | C152: 8 | D152: 1996 | E152: Oulun Lippo | F152: - | G152: Seinäjoen Maila-Jussit | H152: 0 | I152: - | J152: 1 | K152: (1-3, 2-2) | L152: 3218
B153: 21 | C153: 8 | D153: 1996 | E153: Seinäjoen Maila-Jussit | F153: - | G153: Oulun Lippo | H153: 0 | I153: - | J153: 2 | K153: (0-3, 2-4) | L153: 3261
B154: 24 | C154: 8 | D154: 1996 | E154: Oulun Lippo | G154: Seinäjoen Maila-Jussit | H154: 0 | J154: 2 | K154: (3-6, 2-6) | L154: 3065
B156: 17 | C156: 8 | D156: 1996 | E156: Hyvinkään Tahko | F156: - | G156: Kiteen Pallo-90 | H156: 1 | I156: - | J156: 0 | K156: (1-1, 11-3) | L156: 1886
B157: 18 | C157: 8 | D157: 1996 | E157: Kiteen Pallo-90 | F157: - | G157: Hyvinkään Tahko | H157: 0 | I157: - | J157: 1 | K157: (1-2, 2-2) | L157: 1522
B158: 21 | C158: 8 | D158: 1996 | E158: Hyvinkään Tahko | F158: - | G158: Kiteen Pallo-90 | H158: 1 | I158: - | J158: 0 | K158: (2-2, 6-4) | L158: 2793
K159: Yhteensä | L159: =SUM(L141:L158) -> 33382
K160: Keskiarvo | L160: =PRODUCT(L159/15) -> 2225
B163: 19 | C163: 8 | D163: 1997 | E163: Kiteen Pallo-90 | F163: - | G163: Siilinjärven Pesis | H163: 1 | I163: - | J163: 0 | K163: (2-0, 0-0) | L163: 2590
B164: 21 | C164: 8 | D164: 1997 | E164: Siilinjärven Pesis | F164: - | G164: Kiteen Pallo-90 | H164: 0 | I164: - | J164: 2 | K164: (1-3, 2-5) | L164: 2641
B165: 23 | C165: 8 | D165: 1997 | E165: Kiteen Pallo-90 | F165: - | G165: Siilinjärven Pesis | H165: 2 | I165: - | J165: 0 | K165: (9-0, 6-2) | L165: 2110
B167: 19 | C167: 8 | D167: 1997 | E167: Kaisaniemen Tiikerit | F167: - | G167: Hyvinkään Tahko | H167: 1 | I167: - | J167: 2 | K167: (5-1, 1-3, 1-1, 0-2) | L167: 2250
B168: 23 | C168: 8 | D168: 1997 | E168: Kaisaniemen Tiikerit | G168: Hyvinkään Tahko | H168: 2 | I168: - | J168: 0 | K168: (4-2, 6-3) | L168: 2350
B169: 24 | C169: 8 | D169: 1997 | E169: Hyvinkään Tahko | F169: - | G169: Kaisaniemen Tiikerit | H169: 1 | I169: - | J169: 0 | K169: (6-2, 4-4) | L169: 2592
B170: 25 | C170: 8 | D170: 1997 | E170: Hyvinkään Tahko | F170: - | G170: Kaisaniemen Tiikerit | H170: 2 | I170: - | J170: 1 | K170: (2-5, 2-0, 1-0) | L170: 2168
B172: 19 | C172: 8 | D172: 1997 | E172: Sotkamon Jymy | F172: - | G172: Loimaan Palloilijat | H172: 2 | I172: - | J172: 1 | K172: (0-2, 3-1, 1-0) | L172: 2150
B173: 21 | C173: 8 | D173: 1997 | E173: Loimaan Palloilijat | F173: - | G173: Sotkamon Jymy | H173: 0 | I173: - | J173: 1 | K173: (0-1, 2-2) | L173: 1351
B174: 23 | C174: 8 | D174: 1997 | E174: Sotkamon Jymy | F174: - | G174: Loimaan Palloilijat | H174: 2 | I174: - | J174: 0 | K174: (4-0, 4-1) | L174: 2445
B176: 19 | C176: 8 | D176: 1997 | E176: Seinäjoen Maila-Jussit | F176: - | G176: Oulun Lippo | H176: 1 | I176: - | J176: 0 | K176: (4-0, 1-1) | L176: 3113
B177: 21 | C177: 8 | D177: 1997 | E177: Oulun Lippo | F177: - | G177: Seinäjoen Maila-Jussit | H177: 2 | I177: - | J177: 1 | K177: (1-2, 2-1, 2-0) | L177: 4015
B178: 23 | C178: 8 | D178: 1997 | E178: Seinäjoen Maila-Jussit | F178: - | G178: Oulun Lippo | H178: 0 | I178: - | J178: 1 | K178: (1-2, 0-0) | L178: 2716
B179: 24 | C179: 8 | D179: 1997 | E179: Oulun Lippo | F179: - | G179: Seinäjoen Maila-Jussit | H179: 0 | I179: - | J179: 2 | K179: (0-3, 1-8) | L179: 4079
B180: 26 | C180: 8 | D180: 1997 | E180: Seinäjoen Maila-Jussit | F180: - | G180: Oulun Lippo | H180: 1 | I180: - | J180: 0 | K180: (5-3, 1-1) | L180: 4256
K181: Yhteensä | L181: =SUM(L163:L180) -> 40826
K182: Keskiarvo | L182: =PRODUCT(L181/15) -> 2722
B185: 18 | C185: 8 | D185: 1998 | E185: Oulun Lippo | F185: - | G185: Kankaanpään Maila | H185: 2 | I185: - | J185: 0 | K185: (12-1, 12-2) | L185: 2015
B186: 20 | C186: 8 | D186: 1998 | E186: Kankaanpään Maila | F186: - | G186: Oulun Lippo | H186: 2 | I186: - | J186: 1 | K186: (1-7, 3-2, 0-0, 2-0) | L186: 1070
B187: 22 | C187: 8 | D187: 1998 | E187: Oulun Lippo | F187: - | G187: Kankaanpään Maila | H187: 2 | I187: - | J187: 0 | K187: (12-1, 4-1) | L187: 1231
B188: 23 | C188: 8 | D188: 1998 | E188: Kankaanpään Maila | F188: - | G188: Oulun Lippo | H188: 0 | I188: - | J188: 2 | K188: (3-4, 1-3) | L188: 1080
B190: 18 | C190: 8 | D190: 1998 | E190: Kaisaniemen Tiikerit | F190: - | G190: Pattijoen Urheilijat | H190: 1 | I190: - | J190: 0 | K190: (4-0, 1-1) | L190: 873
B191: 20 | C191: 8 | D191: 1998 | E191: Pattijoen Urheilijat | F191: - | G191: Kaisaniemen Tiikerit | H191: 0 | I191: - | J191: 2 | K191: (3-5, 0-5) | L191: 1903
B192: 22 | C192: 8 | D192: 1998 | E192: Kaisaniemen Tiikerit | F192: - | G192: Pattijoen Urheilijat | H192: 2 | I192: - | J192: 0 | K192: (2-1, 8-0) | L192: 632
B194: 18 | C194: 8 | D194: 1998 | E194: Kiteen Pallo-90 | F194: - | G194: Seinäjoen Maila-Jussit | H194: 2 | I194: - | J194: 0 | K194: (9-0, 6-0) | L194: 3031
B195: 20 | C195: 8 | D195: 1998 | E195: Seinäjoen Maila-Jussit | F195: - | G195: Kiteen Pallo-90 | H195: 1 | I195: - | J195: 2 | K195: (1-3, 2-1, 1-2) | L195: 2352
B196: 22 | C196: 8 | D196: 1998 | E196: Kiteen Pallo-90 | F196: - | G196: Seinäjoen Maila-Jussit | H196: 2 | I196: - | J196: 1 | K196: (4-1, 0-1, 1-0) | L196: 2837
B198: 18 | C198: 8 | D198: 1998 | E198: Sotkamon Jymy | F198: - | G198: Jyväskylän Kiri | H198: 2 | I198: - | J198: 0 | K198: (5-2, 7-1) | L198: 2250
B199: 20 | C199: 8 | D199: 1998 | E199: Jyväskylän Kiri | F199: - | G199: Sotkamon Jymy | H199: 1 | I199: - | J199: 0 | K199: (3-3, 3-2) | L199: 1380
B200: 22 | C200: 8 | D200: 1998 | E200: Sotkamon Jymy | F200: - | G200: Jyväskylän Kiri | H200: 2 | I200: - | J200: 0 | K200: (3-1, 4-2) | L200: 1802
B201: 23 | C201: 8 | D201: 1998 | E201: Jyväskylän Kiri | F201: - | G201: Sotkamon Jymy | H201: 0 | I201: - | J201: 2 | K201: (0-1, 1-5) | L201: 1000
K202: Yhteensä | L202: =SUM(L184:L201) -> 23456
K203: Keskiarvo | L203: =PRODUCT(L202/14) -> 1675
B206: 12 | C206: 8 | D206: 1999 | E206: Sotkamon Jymy | F206: - | G206: Pattijoen Urheilijat | H206: 2 | I206: - | J206: 0 | K206: (4-1, 8-2) | L206: 1612
B207: 14 | C207: 8 | D207: 1999 | E207: Pattijoen Urheilijat | F207: - | G207: Sotkamon Jymy | H207: 2 | I207: - | J207: 0 | K207: (5-1, 1-0) | L207: 1280
B208: 15 | C208: 8 | D208: 1999 | E208: Sotkamon Jymy | F208: - | G208: Pattijoen Urheilijat | H208: 0 | I208: - | J208: 1 | K208: (3-4, 1-1) | L208: 1672
B209: 17 | C209: 8 | D209: 1999 | E209: Pattijoen Urheilijat | F209: - | G209: Sotkamon Jymy | H209: 2 | I209: - | J209: 1 | K209: (4-0, 0-3, 1-0) | L209: 3098
B211: 12 | C211: 8 | D211: 1999 | E211: Kiteen Pallo-90 | F211: - | G211: Kankaanpään Maila | H211: 1 | I211: - | J211: 0 | K211: 10-2, 1-1) | L211: 1503
B212: 14 | C212: 8 | D212: 1999 | E212: Kankaanpään Maila | F212: - | G212: Kiteen Pallo-90 | H212: 1 | I212: - | J212: 2 | K212: (1-2, 3-2, 0-0, 3-4) | L212: 2358
B213: 15 | C213: 8 | D213: 1999 | E213: Kiteen Pallo-90 | F213: - | G213: Kankaanpään Maila | H213: 2 | I213: - | J213: 0 | K213: (4-1, 4-1) | L213: 1817
B215: 12 | C215: 8 | D215: 1999 | E215: Hyvinkään Tahko | F215: - | G215: Oulun Lippo | H215: 2 | I215: - | J215: 1 | K215: (1-0, 1-2, 1-0) | L215: 2166
B216: 14 | C216: 8 | D216: 1999 | E216: Oulun Lippo | F216: - | G216: Hyvinkään Tahko | H216: 0 | I216: - | J216: 1 | K216: (2-8, 2-2) | L216: 2007
B217: 15 | C217: 8 | D217: 1999 | E217: Hyvinkään Tahko | F217: - | G217: Oulun Lippo | H217: 2 | I217: - | J217: 1 | K217: (2-3, 3-2, 0-0, 3-2) | L217: 2909
B219: 12 | C219: 8 | D219: 1999 | E219: Jyväskylän Kiri | F219: - | G219: Koskenkorvan Urheilijat | H219: 1 | I219: - | J219: 0 | K219: (7-3, 3-3) | L219: 1031
B220: 14 | C220: 8 | D220: 1999 | E220: Koskenkorvan Urheilijat | F220: - | G220: Jyväskylän Kiri | H220: 0 | I220: - | J220: 2 | K220: (3-4, 1-7) | L220: 1029
B221: 15 | C221: 8 | D221: 1999 | E221: Jyväskylän Kiri | F221: - | G221: Koskenkorvan Urheilijat | H221: 1 | I221: - | J221: 2 | K221: (2-1, 2-3, 0-0, 1-2) | L221: 1250
B222: 17 | C222: 8 | D222: 1999 | E222: Koskenkorvan Urheilijat | F222: - | G222: Jyväskylän Kiri | H222: 2 | I222: - | J222: 1 | K222: (1-3, 5-2, 0-0, 4-2) | L222: 1526
B223: 19 | C223: 8 | D223: 1999 | E223: Jyväskylän Kiri | F223: - | G223: Koskenkorvan Urheilijat | H223: 2 | I223: - | J223: 0 | K223: (4-1, 11-5) | L223: 2301
K224: Yhteensä | L224: =SUM(L206:L223) -> 27559
K225: Keskiarvo | L225: =PRODUCT(L224/15) -> 1837
B228: 16 | C228: 8 | D228: 2000 | E228: Kiteen Pallo-90 | F228: - | G228: Koskenkorvan Urheilijat | H228: 2 | I228: - | J228: 0 | K228: (5-1, 4-0) | L228: 2340
B229: 18 | C229: 8 | D229: 2000 | E229: Koskenkorvan Urheilijat | F229: - | G229: Kiteen Pallo-90 | H229: 0 | I229: - | J229: 2 | K229: (1-4, 2-8) | L229: 1342
B230: 19 | C230: 8 | D230: 2000 | E230: Kiteen Pallo-90 | F230: - | G230: Koskenkorvan Urheilijat | H230: 2 | I230: - | J230: 0 | K230: (3-1, 4-2) | L230: 1780
B232: 16 | C232: 8 | D232: 2000 | E232: Pattijoen Urheilijat | F232: - | G232: Oulun Lippo | H232: 1 | I232: - | J232: 0 | K232: (2-2, 2-1) | L232: 2356
B233: 18 | C233: 8 | D233: 2000 | E233: Oulun Lippo | F233: - | G233: Pattijoen Urheilijat | H233: 2 | I233: - | J233: 1 | K233: (7-4, 2-3, 1-0) | L233: 3031
B234: 19 | C234: 8 | D234: 2000 | E234: Pattijoen Urheilijat | F234: - | G234: Oulun Lippo | H234: 0 | I234: - | J234: 1 | K234: (11-11, 1-2) | L234: 1725
B235: 21 | C235: 8 | D235: 2000 | E235: Oulun Lippo | F235: - | G235: Pattijoen Urheilijat | H235: 2 | I235: - | J235: 0 | K235: (4-3, 7-2) | L235: 4213
B237: 16 | C237: 8 | D237: 2000 | E237: Hyvinkään Tahko | F237: - | G237: Ulvilan Pesä-Veikot | H237: 2 | I237: - | J237: 1 | K237: (2-5, 6-1, 1-0) | L237: 1322
... 362 more rows

Sheet Välierät
B1: VÄLIERÄT 1987 – 2025 | V1: SUURIMMAT VÄLIERÄVOITOT
N2: VÄLIERÄSARJAT | O2: vuodet | P2: voitot | Q2: tappiot | R2: V-% | T2: 23 | V2: 20 | W2: 8 | X2: 2013 | Y2: Vimpelin Veto | Z2: - | AA2: Pattijoen Urheilijat | AB2: 25 | AC2: - | AD2: 2 | AE2: 2-0 | AF2: 2970
B3: 19 | C3: 8 | D3: 1987 | E3: Alajärven Ankkurit | F3: - | G3: Hyvinkään Tahko | H3: 4 | I3: - | J3: 5 | L3: 1828 | N3: Sotkamon Jymy | O3: 34 | P3: 28 | Q3: 6 | R3: =PRODUCT(P3/O3) -> 82.4 % | T3: 17 | V3: 27 | W3: 8 | X3: 2013 | Y3: Vimpelin Veto | Z3: - | AA3: Pattijoen Urheilijat | AB3: 17 | AC3: - | AD3: 0 | AE3: 2-0 | AF3: 3462
B4: 23 | C4: 8 | D4: 1987 | E4: Hyvinkään Tahko | F4: - | G4: Alajärven Ankkurit | H4: 3 | I4: - | J4: 5 | L4: 3265 | N4: Vimpelin Veto | O4: 16 | P4: 10 | Q4: 6 | R4: =PRODUCT(P4/O4) -> 62.5 % | T4: 16 | V4: 27 | W4: 8 | X4: 1995 | Y4: Sotkamon Jymy | Z4: - | AA4: Seinäjoen Maila-Jussit | AB4: 19 | AC4: - | AD4: 3 | AE4: 2-0 | AF4: 2297
N5: Kiteen Pallo-90 | O5: 8 | P5: 6 | Q5: 2 | R5: =PRODUCT(P5/O5) -> 75.0 % | T5: 15 | V5: 28 | W5: 8 | X5: 2015 | Y5: Vimpelin Veto | Z5: - | AA5: Jyväskylän Kiri | AB5: 17 | AC5: - | AD5: 2 | AE5: 2-0 | AF5: 2179
B6: 19 | C6: 8 | D6: 1987 | E6: Imatran Pallo-Veikot | F6: - | G6: Seinäjoen Maila-Jussit | H6: 2 | I6: - | J6: 6 | L6: 3192 | N6: Kouvolan Pallonlyöjät | O6: 12 | P6: 5 | Q6: 7 | R6: =PRODUCT(P6/O6) -> 41.7 % | T6: 15 | V6: 31 | W6: 8 | X6: 2015 | Y6: Vimpelin Veto | Z6: - | AA6: Jyväskylän Kiri | AB6: 18 | AC6: - | AD6: 3 | AE6: 2-0 | AF6: 1882
B7: 23 | C7: 8 | D7: 1987 | E7: Seinäjoen Maila-Jussit | F7: - | G7: Imatran Pallo-Veikot | H7: 7 | I7: - | J7: 1 | L7: 3330 | N7: Hyvinkään Tahko | O7: 18 | P7: 5 | Q7: 13 | R7: =PRODUCT(P7/O7) -> 27.8 % | T7: 15 | V7: 7 | W7: 9 | X7: 2002 | Y7: Koskenkorvan Urheilijat | Z7: - | AA7: Sotkamon Jymy | AB7: 3 | AC7: - | AD7: 18 | AE7: 0-2 | AF7: 2488
K8: Yhteensä | L8: =SUM(L3:L7) -> 11615 | N8: Imatran Pallo-Veikot | O8: 5 | P8: 4 | Q8: 1 | R8: =PRODUCT(P8/O8) -> 80.0 %
K9: Keskiarvo | L9: =PRODUCT(L8/4) -> 2904 | N9: Manse PP Edustus | O9: 5 | P9: 4 | Q9: 1 | R9: =PRODUCT(P9/O9) -> 80.0 %
N10: Alajärven Ankkurit | O10: 6 | P10: 3 | Q10: 3 | R10: =PRODUCT(P10/O10) -> 50.0 %
N11: Oulun Lippo | O11: 7 | P11: 3 | Q11: 4 | R11: =PRODUCT(P11/O11) -> 42.9 %
B12: 13 | C12: 8 | D12: 1988 | E12: Kankaanpään Maila | F12: - | G12: Alajärven Ankkurit | H12: 4 | I12: - | J12: 10 | L12: 2870 | N12: Pattijoen Urheilijat | O12: 10 | P12: 3 | Q12: 7 | R12: =PRODUCT(P12/O12) -> 30.0 %
B13: 14 | C13: 8 | D13: 1988 | E13: Alajärven Ankkurit | F13: - | G13: Kankaanpään Maila | H13: 5 | I13: - | J13: 2 | L13: 1925 | N13: Seinäjoen Maila-Jussit | O13: 7 | P13: 2 | Q13: 5 | R13: =PRODUCT(P13/O13) -> 28.6 %
N14: Joensuun Maila | O14: 10 | P14: 2 | Q14: 8 | R14: =PRODUCT(P14/O14) -> 20.0 %
B15: 13 | C15: 8 | D15: 1988 | E15: Seinäjoen Maila-Jussit | F15: - | G15: Kiteen Urheilijat | H15: 7 | I15: - | J15: 2 | L15: 3175 | N15: Kinnarin Pesis | O15: 1 | P15: 1 | Q15: 0 | R15: =PRODUCT(P15/O15) -> 100.0 %
B16: 14 | C16: 8 | D16: 1988 | E16: Kiteen Urheilijat | F16: - | G16: Seinäjoen Maila-Jussit | H16: 6 | I16: - | J16: 5 | L16: 2820 | N16: Kaisaniemen Tiikerit | O16: 1 | P16: 1 | Q16: 0 | R16: =PRODUCT(P16/O16) -> 100.0 %
B17: 17 | C17: 8 | D17: 1988 | E17: Seinäjoen Maila-Jussit | F17: - | G17: Kiteen Urheilijat | H17: 8 | I17: - | J17: 7 | L17: 4120 | N17: Nurmon Jymy | O17: 3 | P17: 1 | Q17: 2 | R17: =PRODUCT(P17/O17) -> 33.3 %
K18: Yhteensä | L18: =SUM(L12:L17) -> 14910 | N18: Jyväskylän Kiri | O18: 3 | P18: 0 | Q18: 3 | R18: =PRODUCT(P18/O18) -> 0.0 %
K19: Keskiarvo | L19: =PRODUCT(L18/5) -> 2982 | N19: Koskenkorvan Urheilijat | O19: 3 | P19: 0 | Q19: 3 | R19: =PRODUCT(P19/O19) -> 0.0 %
N20: Kankaanpään Maila | O20: 2 | P20: 0 | Q20: 2 | R20: =PRODUCT(P20/O20) -> 0.0 %
N21: Kempeleen Kiri | O21: 2 | P21: 0 | Q21: 2 | R21: =PRODUCT(P21/O21) -> 0.0 %
N22: Kiteen Urheilijat | O22: 1 | P22: 0 | Q22: 1 | R22: =PRODUCT(P22/O22) -> 0.0 %
B23: 23 | C23: 8 | D23: 1989 | E23: Imatran Pallo-Veikot | F23: - | G23: Vaasan Maila | H23: 13 | I23: - | J23: 8 | L23: 3400 | N23: Puijon Pesis | O23: 1 | P23: 0 | Q23: 1 | R23: =PRODUCT(P23/O23) -> 0.0 %
B24: 26 | C24: 8 | D24: 1989 | E24: Vaasan Maila | F24: - | G24: Imatran Pallo-Veikot | H24: 2 | I24: - | J24: 3 | L24: 2840 | N24: Vaasan Maila | O24: 1 | P24: 0 | Q24: 1 | R24: =PRODUCT(P24/O24) -> 0.0 %
N25: Yhteensä | O25: =SUM(O3:O24) -> 156 | P25: =SUM(P3:P24) -> 78 | Q25: =SUM(Q3:Q24) -> 78
B26: 23 | C26: 8 | D26: 1989 | E26: Alajärven Ankkurit | F26: - | G26: Hyvinkään Tahko | H26: 4 | I26: - | J26: 2 | L26: 1712
B27: 26 | C27: 8 | D27: 1989 | E27: Hyvinkään Tahko | F27: - | G27: Alajärven Ankkurit | H27: 4 | I27: - | J27: 6 | L27: 2179
K28: Yhteensä | L28: =SUM(L23:L27) -> 10131 | N28: TOP-5 YLEISÖMÄÄRÄT
K29: Keskiarvo | L29: =PRODUCT(L28/4) -> 2533 | N29: ViVe – PattU | O29: 2009 | P29: 3106
N30: JoMa – PattU | O30: 2013 | P30: 2709
N31: KiPa – SoJy | O31: 1998 | P31: 2644
B32: 22 | C32: 8 | D32: 1990 | E32: Sotkamon Jymy | F32: - | G32: Hyvinkään Tahko | H32: 4 | I32: - | J32: 6 | L32: 3593 | N32: KPL – KeKi | O32: 2024 | P32: 2612
B33: 25 | C33: 8 | D33: 1990 | E33: Hyvinkään Tahko | F33: - | G33: Sotkamon Jymy | H33: 9 | I33: - | J33: 11 | L33: 4737 | N33: Lippo – AA | O33: 1993 | P33: 2552
B34: 26 | C34: 8 | D34: 1990 | E34: Sotkamon Jymy | F34: - | G34: Hyvinkään Tahko | H34: 12 | I34: - | J34: 6 | L34: 4662
B36: 22 | C36: 8 | D36: 1990 | E36: Imatran Pallo-Veikot | F36: - | G36: Kankaanpään Maila | H36: 4 | I36: - | J36: 0 | L36: 3695 | N36: Pattijoen Urheilijat | O36: 10 | P36: 35 | Q36: 11 | R36: =PRODUCT(Q36/P36) -> 31.4 %
B37: 25 | C37: 8 | D37: 1990 | E37: Kankaanpään Maila | F37: - | G37: Imatran Pallo-Veikot | H37: 1 | I37: - | J37: 8 | L37: 2537 | N37: Joensuun Maila | O37: 10 | P37: 32 | Q37: 9 | R37: =PRODUCT(Q37/P37) -> 28.1 %
K38: Yhteensä | L38: =SUM(L32:L37) -> 19224 | N38: Imatran Pallo-Veikot | O38: 5 | P38: 11 | Q38: 8 | R38: =PRODUCT(Q38/P38) -> 72.7 %
K39: Keskiarvo | L39: =PRODUCT(L38/5) -> 3845 | N39: Seinäjoen Maila-Jussit | O39: 7 | P39: 23 | Q39: 8 | R39: =PRODUCT(Q39/P39) -> 34.8 %
N40: Nurmon Jymy | O40: 3 | P40: 15 | Q40: 7 | R40: =PRODUCT(Q40/P40) -> 46.7 %
N41: Alajärven Ankkurit | O41: 6 | P41: 13 | Q41: 6 | R41: =PRODUCT(Q41/P41) -> 46.2 %
N42: Kinnarin Pesis | O42: 1 | P42: 6 | Q42: 4 | R42: =PRODUCT(Q42/P42) -> 66.7 %
B43: 21 | C43: 8 | D43: 1991 | E43: Seinäjoen Maila-Jussit | F43: - | G43: Imatran Pallo-Veikot | H43: 6 | I43: - | J43: 10 | L43: 4857 | N43: Kaisaniemen Tiikerit | O43: 1 | P43: 4 | Q43: 3 | R43: =PRODUCT(Q43/P43) -> 75.0 %
B44: 24 | C44: 8 | D44: 1991 | E44: Imatran Pallo-Veikot | F44: - | G44: Seinäjoen Maila-Jussit | H44: 4 | I44: - | J44: 2 | L44: 3457 | N44: Koskenkorvan Urheilijat | O44: 3 | P44: 13 | Q44: 3 | R44: =PRODUCT(Q44/P44) -> 23.1 %
N45: Puijon Pesis | O45: 1 | P45: 5 | Q45: 2 | R45: =PRODUCT(Q45/P45) -> 40.0 %
B46: 21 | C46: 8 | D46: 1991 | E46: Hyvinkään Tahko | F46: - | G46: Sotkamon Jymy | H46: 10 | I46: - | J46: 9 | L46: 3623 | N46: Jyväskylän Kiri | O46: 3 | P46: 11 | Q46: 2 | R46: =PRODUCT(Q46/P46) -> 18.2 %
B47: 24 | C47: 8 | D47: 1991 | E47: Sotkamon Jymy | F47: - | G47: Hyvinkään Tahko | H47: 10 | I47: - | J47: 2 | L47: 3153 | N47: Kiteen Urheilijat | O47: 1 | P47: 3 | Q47: 1 | R47: =PRODUCT(Q47/P47) -> 33.3 %
B48: 25 | C48: 8 | D48: 1991 | E48: Sotkamon Jymy | F48: - | G48: Hyvinkään Tahko | H48: 7 | I48: - | J48: 1 | L48: 3397 | N48: Kempeleen Kiri | O48: 2 | P48: 7 | Q48: 1 | R48: =PRODUCT(Q48/P48) -> 14.3 %
K49: Yhteensä | L49: =SUM(L43:L48) -> 18487 | N49: Kankaanpään Maila | O49: 2 | P49: 4 | Q49: 0 | R49: =PRODUCT(Q49/P49) -> 0.0 %
K50: Keskiarvo | L50: =PRODUCT(L49/5) -> 3697 | N50: Vaasan Maila | O50: 1 | P50: 2 | Q50: 0 | R50: =PRODUCT(Q50/P50) -> 0.0 %
N51: Yhteensä | O51: =SUM(O29:O50) -> 10093 | P51: =SUM(P29:P50) -> 13807 | Q51: =SUM(Q29:Q50) -> 65
B53: 19 | C53: 8 | D53: 1992 | E53: Oulun Lippo | F53: - | G53: Sotkamon Jymy | H53: 5 | I53: - | J53: 9 | L53: 4780 | O53: YLEISÖMÄÄRÄT
B54: 22 | C54: 8 | D54: 1992 | E54: Sotkamon Jymy | F54: - | G54: Oulun Lippo | H54: 5 | I54: - | J54: 1 | L54: 3825 | O54: Vuosi | P54: otteluja | Q54: yleisö | R54: ka
O55: 1987 | P55: 4 | Q55: 11615 | R55: =PRODUCT(Q55/P55) -> 2904
B56: 19 | C56: 8 | D56: 1992 | E56: Hyvinkään Tahko | F56: - | G56: Alajärven Ankkurit | H56: 10 | I56: - | J56: 3 | L56: 3389 | O56: 1988 | P56: 5 | Q56: 14910 | R56: =PRODUCT(Q56/P56) -> 2982
B57: 22 | C57: 8 | D57: 1992 | E57: Alajärven Ankkurit | F57: - | G57: Hyvinkään Tahko | H57: 5 | I57: - | J57: 8 | L57: 2314 | O57: 1989 | P57: 4 | Q57: 10131 | R57: =PRODUCT(Q57/P57) -> 2533
K58: Yhteensä | L58: =SUM(L53:L57) -> 14308 | O58: 1990 | P58: 5 | Q58: 19224 | R58: =PRODUCT(Q58/P58) -> 3845
K59: Keskiarvo | L59: =PRODUCT(L58/4) -> 3577 | O59: 1991 | P59: 5 | Q59: 18487 | R59: =PRODUCT(Q59/P59) -> 3697
O60: 1992 | P60: 4 | Q60: 14308 | R60: =PRODUCT(Q60/P60) -> 3577
O61: 1993 | P61: 6 | Q61: 17924 | R61: =PRODUCT(Q61/P61) -> 2987
B62: 2 | C62: 9 | D62: 1993 | E62: Oulun Lippo | F62: - | G62: Sotkamon Jymy | H62: 5 | I62: - | J62: 4 | L62: 4311 | O62: 1994 | P62: 4 | Q62: 13712 | R62: =PRODUCT(Q62/P62) -> 3428
B63: 4 | C63: 9 | D63: 1993 | E63: Sotkamon Jymy | F63: - | G63: Oulun Lippo | H63: 9 | I63: - | J63: 8 | L63: 2734 | O63: 1995 | P63: 7 | Q63: 18632 | R63: =PRODUCT(Q63/P63) -> 2662
B64: 5 | C64: 9 | D64: 1993 | E64: Sotkamon Jymy | F64: - | G64: Oulun Lippo | H64: 5 | I64: - | J64: 0 | L64: 4059 | O64: 1996 | P64: 7 | Q64: 17684 | R64: =PRODUCT(Q64/P64) -> 2526
O65: 1997 | P65: 8 | Q65: 29198 | R65: =PRODUCT(Q65/P65) -> 3650
B66: 2 | C66: 9 | D66: 1993 | E66: Imatran Pallo-Veikot | F66: - | G66: Alajärven Ankkurit | H66: 12 | I66: - | J66: 3 | L66: 1653 | O66: 1998 | P66: 7 | Q66: 27385 | R66: =PRODUCT(Q66/P66) -> 3912
B67: 4 | C67: 9 | D67: 1993 | E67: Alajärven Ankkurit | F67: - | G67: Imatran Pallo-Veikot | H67: 4 | I67: - | J67: 1 | L67: 2251 | O67: 1999 | P67: 7 | Q67: 14709 | R67: =PRODUCT(Q67/P67) -> 2101
B68: 5 | C68: 9 | D68: 1993 | E68: Alajärven Ankkurit | F68: - | G68: Imatran Pallo-Veikot | H68: 2 | I68: - | J68: 12 | L68: 2916 | O68: 2000 | P68: 9 | Q68: 23933 | R68: =PRODUCT(Q68/P68) -> 2659
K69: Yhteensä | L69: =SUM(L62:L68) -> 17924 | O69: 2001 | P69: 6 | Q69: 15538 | R69: =PRODUCT(Q69/P69) -> 2590
K70: Keskiarvo | L70: =PRODUCT(L69/6) -> 2987 | O70: 2002 | P70: 7 | Q70: 14635 | R70: =PRODUCT(Q70/P70) -> 2091
O71: 2003 | P71: 10 | Q71: 15104 | R71: =PRODUCT(Q71/P71) -> 1510
O72: 2004 | P72: 8 | Q72: 12963 | R72: =PRODUCT(Q72/P72) -> 1620
B73: 28 | C73: 8 | D73: 1994 | E73: Hyvinkään Tahko | F73: - | G73: Sotkamon Jymy | H73: 2 | I73: - | J73: 1 | K73: (3-4, 9-2, 2-1) | L73: 3700 | O73: 2005 | P73: 10 | Q73: 23472 | R73: =PRODUCT(Q73/P73) -> 2347
B74: 3 | C74: 9 | D74: 1994 | E74: Sotkamon Jymy | F74: - | G74: Hyvinkään Tahko | H74: 1 | I74: - | J74: 2 | K74: (3-2, 3-4, 0-2) | L74: 3286 | O74: 2006 | P74: 8 | Q74: 14250 | R74: =PRODUCT(Q74/P74) -> 1781
O75: 2007 | P75: 8 | Q75: 13184 | R75: =PRODUCT(Q75/P75) -> 1648
B76: 28 | C76: 8 | D76: 1994 | E76: Alajärven Ankkurit | F76: - | G76: Oulun Lippo | H76: 0 | I76: - | J76: 2 | K76: (1-5, 3-5) | L76: 2611 | O76: 2008 | P76: 8 | Q76: 14718 | R76: =PRODUCT(Q76/P76) -> 1840
B77: 3 | C77: 9 | D77: 1994 | E77: Oulun Lippo | F77: - | G77: Alajärven Ankkurit | H77: 2 | I77: - | J77: 0 | K77: (4-3, 5-1) | L77: 4115 | O77: 2009 | P77: 6 | Q77: 16339 | R77: =PRODUCT(Q77/P77) -> 2723
K78: Yhteensä | L78: =SUM(L72:L77) -> 13712 | O78: 2010 | P78: 7 | Q78: 20574 | R78: =PRODUCT(Q78/P78) -> 2939
K79: Keskiarvo | L79: =PRODUCT(L78/4) -> 3428 | O79: 2011 | P79: 6 | Q79: 17651 | R79: =PRODUCT(Q79/P79) -> 2942
O80: 2012 | P80: 7 | Q80: 15175 | R80: 2168
O81: 2013 | P81: 8 | Q81: 21225 | R81: 2653
B82: 26 | C82: 8 | D82: 1995 | E82: Oulun Lippo | F82: - | G82: Hyvinkään Tahko | H82: 2 | I82: - | J82: 1 | K82: (2-3, 3-1, 1-0) | L82: 1713 | O82: 2014 | P82: 7 | Q82: 13183 | R82: =PRODUCT(Q82/P82) -> 1883
B83: 30 | C83: 8 | D83: 1995 | E83: Hyvinkään Tahko | F83: - | G83: Oulun Lippo | H83: 1 | I83: - | J83: 2 | K83: (0-1, 2-0, 0-1) | L83: 2586 | O83: 2015 | P83: 6 | Q83: 11990 | R83: =PRODUCT(Q83/P83) -> 1998
B84: 2 | C84: 9 | D84: 1995 | E84: Oulun Lippo | F84: - | G84: Hyvinkään Tahko | H84: 2 | I84: - | J84: 0 | K84: (8-1, 7-2) | L84: 3115 | O84: 2016 | P84: 6 | Q84: 11272 | R84: =PRODUCT(Q84/P84) -> 1879
O85: 2017 | P85: 8 | Q85: 18089 | R85: =PRODUCT(Q85/P85) -> 2261
B86: 27 | C86: 8 | D86: 1995 | E86: Sotkamon Jymy | F86: - | G86: Seinäjoen Maila-Jussit | H86: 2 | I86: - | J86: 0 | K86: (3-0, 16-3) | L86: 2297 | O86: 2018 | P86: 8 | Q86: 22299 | R86: =PRODUCT(Q86/P86) -> 2787
B87: 30 | C87: 8 | D87: 1995 | E87: Seinäjoen Maila-Jussit | F87: - | G87: Sotkamon Jymy | H87: 1 | I87: - | J87: 0 | K87: (3-2, 2-2) | L87: 2213 | O87: 2019 | P87: 8 | Q87: 22023 | R87: =PRODUCT(Q87/P87) -> 2753
B88: 2 | C88: 9 | D88: 1995 | E88: Sotkamon Jymy | F88: - | G88: Seinäjoen Maila-Jussit | H88: 2 | I88: - | J88: 0 | K88: (4-3, 1-0) | L88: 2858 | O88: 2020 | P88: 5 | Q88: 8448 | R88: =PRODUCT(Q88/P88) -> 1690
B89: 3 | C89: 9 | D89: 1995 | E89: Seinäjoen Maila-Jussit | F89: - | G89: Sotkamon Jymy | H89: 0 | I89: - | J89: 2 | K89: (1-5, 2-7) | L89: 3850 | O89: 2021 | P89: 7 | Q89: 12259 | R89: =PRODUCT(Q89/P89) -> 1751
K90: Yhteensä | L90: =SUM(L82:L89) -> 18632 | O90: 2022 | P90: 7 | Q90: 16311 | R90: =PRODUCT(Q90/P90) -> 2330
K91: Keskiarvo | L91: =PRODUCT(L90/7) -> 2662 | O91: 2023 | P91: 8 | Q91: 18131 | R91: =PRODUCT(Q91/P91) -> 2266
O92: 2024 | P92: 7 | Q92: 15212 | R92: =PRODUCT(Q92/P92) -> 2173
O93: 2025 | P93: 8 | Q93: 17999 | R93: =PRODUCT(Q93/P93) -> 2250
B94: 27 | C94: 8 | D94: 1996 | E94: Jyväskylän Kiri | F94: - | G94: Hyvinkään Tahko | H94: 0 | I94: - | J94: 1 | K94: (0-0, 0-1) | L94: 1548 | O94: YHT | P94: =SUM(P55:P93) -> 266 | Q94: =SUM(Q55:Q93) -> 653896 | R94: =PRODUCT(Q94/P94) -> 2458
B95: 29 | C95: 8 | D95: 1996 | E95: Hyvinkään Tahko | F95: - | G95: Jyväskylän Kiri | H95: 0 | I95: - | J95: 2 | K95: (0-3, 1-6) | L95: 4110
B96: 31 | C96: 8 | D96: 1996 | E96: Jyväskylän Kiri | F96: - | G96: Hyvinkään Tahko | H96: 1 | I96: - | J96: 2 | K96: (1-6, 14-0, 0-4) | L96: 1913
B97: 1 | C97: 9 | D97: 1996 | E97: Hyvinkään Tahko | F97: - | G97: Jyväskylän Kiri | H97: 2 | I97: - | J97: 1 | K97: (3-2, 1-6, 1-0) | L97: 3118
B99: 27 | C99: 8 | D99: 1996 | E99: Sotkamon Jymy | F99: - | G99: Seinäjoen Maila-Jussit | H99: 2 | I99: - | J99: 0 | K99: (5-0, 7-3) | L99: 2422
B100: 29 | C100: 8 | D100: 1996 | E100: Seinäjoen Maila-Jussit | F100: - | G100: Sotkamon Jymy | H100: 0 | I100: - | J100: 2 | K100: (1-2, 0-3) | L100: 1743
B101: 31 | C101: 8 | D101: 1996 | E101: Sotkamon Jymy | F101: - | G101: Seinäjoen Maila-Jussit | H101: 2 | I101: - | J101: 0 | K101: (6-2, 4-0) | L101: 2830
K102: Yhteensä | L102: =SUM(L94:L101) -> 17684
K103: Keskiarvo | L103: =PRODUCT(L102/7) -> 2526
B106: 28 | C106: 8 | D106: 1997 | E106: Kiteen Pallo-90 | F106: - | G106: Hyvinkään Tahko | H106: 2 | I106: - | J106: 0 | K106: (3-0, 7-3) | L106: 3325
B107: 30 | C107: 8 | D107: 1997 | E107: Hyvinkään Tahko | F107: - | G107: Kiteen Pallo-90 | H107: 0 | I107: - | J107: 1 | K107: (3-3, 0-1) | L107: 2865
B108: 31 | C108: 8 | D108: 1997 | E108: Kiteen Pallo-90 | F108: - | G108: Hyvinkään Tahko | H108: 2 | I108: - | J108: 0 | K108: (6-2, 3-0) | L108: 4334
B110: 28 | C110: 8 | D110: 1997 | E110: Sotkamon Jymy | F110: - | G110: Seinäjoen Maila-Jussit | H110: 2 | I110: - | J110: 0 | K110: (2-1, 4-0) | L110: 2715
B111: 30 | C111: 8 | D111: 1997 | E111: Seinäjoen Maila-Jussit | F111: - | G111: Sotkamon Jymy | H111: 1 | I111: - | J111: 0 | K111: (6-4, 2-2) | L111: 2884
B112: 31 | C112: 8 | D112: 1997 | E112: Sotkamon Jymy | F112: - | G112: Seinäjoen Maila-Jussit | H112: 1 | I112: - | J112: 2 | K112: (3-2, 2-4, 0-1) | L112: 2925
B113: 2 | C113: 9 | D113: 1997 | E113: Seinäjoen Maila-Jussit | F113: - | G113: Sotkamon Jymy | H113: 1 | I113: - | J113: 2 | K113: (1-4, 7-1, 0-0, 5-7) | L113: 6130
B114: 4 | C114: 9 | D114: 1997 | E114: Sotkamon Jymy | F114: - | G114: Seinäjoen Maila-Jussit | H114: 2 | I114: - | J114: 0 | K114: (1-0, 5-1) | L114: 4020
K115: Yhteensä | L115: =SUM(L106:L114) -> 29198
K116: Keskiarvo | L116: =PRODUCT(L115/8) -> 3650
B119: 27 | C119: 8 | D119: 1998 | E119: Oulun Lippo | F119: - | G119: Sotkamon Jymy | H119: 2 | I119: - | J119: 0 | K119: (4-1, 4-2) | L119: 5273
B120: 29 | C120: 8 | D120: 1998 | E120: Sotkamon Jymy | F120: - | G120: Oulun Lippo | H120: 0 | I120: - | J120: 1 | K120: (2-4, 1-1) | L120: 3065
B121: 30 | C121: 8 | D121: 1998 | E121: Oulun Lippo | F121: - | G121: Sotkamon Jymy | H121: 2 | I121: - | J121: 0 | K121: (4-3, 5-3) | L121: 5831
B123: 27 | C123: 8 | D123: 1998 | E123: Kaisaniemen Tiikerit | F123: - | G123: Kiteen Pallo-90 | H123: 0 | I123: - | J123: 1 | K123: (1-1, 3-3, 1-2) | L123: 2801
B124: 29 | C124: 8 | D124: 1998 | E124: Kiteen Pallo-90 | F124: - | G124: Kaisaniemen Tiikerit | H124: 1 | I124: - | J124: 2 | K124: (1-2, 7-0, 0-0, 1-2) | L124: 4394
B125: 30 | C125: 8 | D125: 1998 | E125: Kaisaniemen Tiikerit | F125: - | G125: Kiteen Pallo-90 | H125: 1 | I125: - | J125: 0 | K125: (1-1, 1-0) | L125: 2005
B126: 1 | C126: 9 | D126: 1998 | E126: Kiteen Pallo-90 | F126: - | G126: Kaisaniemen Tiikerit | H126: 1 | I126: - | J126: 2 | K126: (0-6, 1-0, 0-1) | L126: 4016
K127: Yhteensä | L127: =SUM(L119:L126) -> 27385
K128: Keskiarvo | L128: =PRODUCT(L127/7) -> 3912
B131: 22 | C131: 8 | D131: 1999 | E131: Kiteen Pallo-90 | F131: - | G131: Pattijoen Urheilijat | H131: 1 | I131: - | J131: 0 | K131: (1-1, 7-1) | L131: 2873
B132: 24 | C132: 8 | D132: 1999 | E132: Pattijoen Urheilijat | F132: - | G132: Kiteen Pallo-90 | H132: 0 | I132: - | J132: 2 | K132: (1-9, 4-10) | L132: 2482
B133: 26 | C133: 8 | D133: 1999 | E133: Kiteen Pallo-90 | F133: - | G133: Pattijoen Urheilijat | H133: 2 | I133: - | J133: 0 | K133: (4-2, 5-4) | L133: 2627
B135: 22 | C135: 8 | D135: 1999 | E135: Hyvinkään Tahko | F135: - | G135: Jyväskylän Kiri | H135: 0 | I135: - | J135: 1 | K135: (1-1, 1-2) | L135: 2126
B136: 24 | C136: 8 | D136: 1999 | E136: Jyväskylän Kiri | F136: - | G136: Hyvinkään Tahko | H136: 0 | I136: - | J136: 2 | K136: (0-1, 1-7) | L136: 1586
B137: 26 | C137: 8 | D137: 1999 | E137: Hyvinkään Tahko | F137: - | G137: Jyväskylän Kiri | H137: 1 | I137: - | J137: 0 | K137: (5-3, 3-3) | L137: 2114
B138: 28 | C138: 8 | D138: 1999 | E138: Jyväskylän Kiri | F138: - | G138: Hyvinkään Tahko | H138: 0 | I138: - | J138: 2 | K138: (0-1, 0-3) | L138: 901
K139: Yhteensä | L139: =SUM(L131:L138) -> 14709
K140: Keskiarvo | L140: =PRODUCT(L139/7) -> 2101
B143: 26 | C143: 8 | D143: 2000 | E143: Kiteen Pallo-90 | F143: - | G143: Oulun Lippo | H143: 1 | I143: - | J143: 2 | K143: (1-0, 4-6, 0-0, 2-3) | L143: 2530
B144: 30 | C144: 8 | D144: 2000 | E144: Oulun Lippo | F144: - | G144: Kiteen Pallo-90 | H144: 1 | I144: - | J144: 2 | K144: (1-5, 3-1, 0-0, 0-1) | L144: 2138
B145: 1 | C145: 9 | D145: 2000 | E145: Kiteen Pallo-90 | F145: - | G145: Oulun Lippo | H145: 0 | I145: - | J145: 1 | K145: (2-5, 1-1) | L145: 2780
B146: 2 | C146: 9 | D146: 2000 | E146: Oulun Lippo | F146: - | G146: Kiteen Pallo-90 | H146: 1 | I146: - | J146: 2 | K146: (2-5, 4-2, 0-1) | L146: 3613
B147: 5 | C147: 9 | D147: 2000 | E147: Kiteen Pallo-90 | F147: - | G147: Oulun Lippo | H147: 1 | I147: - | J147: 0 | K147: (2-2, 4-3) | L147: 3560
B149: 26 | C149: 8 | D149: 2000 | E149: Hyvinkään Tahko | F149: - | G149: Sotkamon Jymy | H149: 0 | I149: - | J149: 2 | K149: (4-9, 3-4) | L149: 2487
B150: 30 | C150: 8 | D150: 2000 | E150: Sotkamon Jymy | F150: - | G150: Hyvinkään Tahko | H150: 2 | I150: - | J150: 0 | K150: (3-2, 7-1) | L150: 2437
B151: 1 | C151: 9 | D151: 2000 | E151: Hyvinkään Tahko | F151: - | G151: Sotkamon Jymy | H151: 2 | I151: - | J151: 0 | K151: (3-1, 13-4) | L151: 1768
B152: 2 | C152: 9 | D152: 2000 | E152: Sotkamon Jymy | F152: - | G152: Hyvinkään Tahko | H152: 1 | I152: - | J152: 0 | K152: (2-0, 2-2) | L152: 2620
K153: Yhteensä | L153: =SUM(L143:L152) -> 23933
K154: Keskiarvo | L154: =PRODUCT(L153/9) -> 2659
B157: 26 | C157: 8 | D157: 2001 | E157: Sotkamon Jymy | F157: - | G157: Pattijoen Urheilijat | H157: 2 | I157: - | J157: 0 | K157: (6-2, 4-1) | L157: 2485
B158: 30 | C158: 8 | D158: 2001 | E158: Pattijoen Urheilijat | F158: - | G158: Sotkamon Jymy | H158: 0 | I158: - | J158: 1 | K158: (1-2, 4-4) | L158: 2235
B159: 1 | C159: 9 | D159: 2001 | E159: Sotkamon Jymy | F159: - | G159: Pattijoen Urheilijat | H159: 2 | I159: - | J159: 1 | K159: (1-7, 5-1, 1-0) | L159: 2205
B161: 26 | C161: 8 | D161: 2001 | E161: Hyvinkään Tahko | F161: - | G161: Kiteen Pallo-90 | H161: 0 | I161: - | J161: 1 | K161: (5-18, 5-5) | L161: 3168
B162: 30 | C162: 8 | D162: 2001 | E162: Kiteen Pallo-90 | F162: - | G162: Hyvinkään Tahko | H162: 1 | I162: - | J162: 0 | K162: (8-0, 1-1) | L162: 3249
B163: 1 | C163: 9 | D163: 2001 | E163: Hyvinkään Tahko | F163: - | G163: Kiteen Pallo-90 | H163: 0 | I163: - | J163: 2 | K163: (3-4, 0-8) | L163: 2196
K164: Yhteensä | L164: =SUM(L157:L163) -> 15538
K165: Keskiarvo | L165: =PRODUCT(L164/6) -> 2590
B168: 1 | C168: 9 | D168: 2002 | E168: Sotkamon Jymy | F168: - | G168: Koskenkorvan Urheilijat | H168: 2 | I168: - | J168: 0 | K168: (3-1, 8-1) | L168: 2162
B169: 3 | C169: 9 | D169: 2002 | E169: Koskenkorvan Urheilijat | F169: - | G169: Sotkamon Jymy | H169: 1 | I169: - | J169: 0 | K169: (3-2, 1-1) | L169: 2121
B170: 5 | C170: 9 | D170: 2002 | E170: Sotkamon Jymy | F170: - | G170: Koskenkorvan Urheilijat | H170: 2 | I170: - | J170: 0 | K170: (7-2, 3-1) | L170: 2202
B171: 7 | C171: 9 | D171: 2002 | E171: Koskenkorvan Urheilijat | F171: - | G171: Sotkamon Jymy | H171: 0 | I171: - | J171: 2 | K171: (1-6, 2-12) | L171: 2488
B173: 1 | C173: 9 | D173: 2002 | E173: Pattijoen Urheilijat | F173: - | G173: Hyvinkään Tahko | H173: 1 | I173: - | J173: 0 | K173: (2-2, 1-1, 0-0, 2-1) | L173: 1728
B174: 3 | C174: 9 | D174: 2002 | E174: Hyvinkään Tahko | F174: - | G174: Pattijoen Urheilijat | H174: 0 | I174: - | J174: 2 | K174: (1-4, 3-7) | L174: 2035
B175: 5 | C175: 9 | D175: 2002 | E175: Pattijoen Urheilijat | F175: - | G175: Hyvinkään Tahko | H175: 2 | I175: - | J175: 0 | K175: (5-1, 8-1) | L175: 1899
K176: Yhteensä | L176: =SUM(L168:L175) -> 14635
K177: Keskiarvo | L177: =PRODUCT(L176/7) -> 2091
B180: 26 | C180: 8 | D180: 2003 | E180: Sotkamon Jymy | F180: - | G180: Pattijoen Urheilijat | H180: 2 | I180: - | J180: 0 | K180: (5-1, 4-1) | L180: 1671
B181: 28 | C181: 8 | D181: 2003 | E181: Pattijoen Urheilijat | F181: - | G181: Sotkamon Jymy | H181: 0 | I181: - | J181: 1 | K181: (1-1, 0-6) | L181: 1222
B182: 30 | C182: 8 | D182: 2003 | E182: Sotkamon Jymy | F182: - | G182: Pattijoen Urheilijat | H182: 2 | I182: - | J182: 0 | K182: (3-0, 8-0) | L182: 1442
B183: 31 | C183: 8 | D183: 2003 | E183: Pattijoen Urheilijat | F183: - | G183: Sotkamon Jymy | H183: 0 | I183: - | J183: 1 | K183: (0-1, 1-1) | L183: 853
B185: 26 | C185: 8 | D185: 2003 | E185: Kinnarin Pesis | F185: - | G185: Koskenkorvan Urheilijat | H185: 2 | I185: - | J185: 0 | K185: (4-1, 6-5) | L185: 1946
B186: 28 | C186: 8 | D186: 2003 | E186: Koskenkorvan Urheilijat | F186: - | G186: Kinnarin Pesis | H186: 2 | I186: - | J186: 0 | K186: (3-1, 2-1) | L186: 1219
B187: 30 | C187: 8 | D187: 2003 | E187: Kinnarin Pesis | F187: - | G187: Koskenkorvan Urheilijat | H187: 2 | I187: - | J187: 0 | K187: (8-6, 2-1) | L187: 1653
B188: 31 | C188: 8 | D188: 2003 | E188: Koskenkorvan Urheilijat | F188: - | G188: Kinnarin Pesis | H188: 0 | I188: - | J188: 2 | K188: (1-5, 4-5) | L188: 1479
B189: 2 | C189: 9 | D189: 2003 | E189: Kinnarin Pesis | F189: - | G189: Koskenkorvan Urheilijat | H189: 0 | I189: - | J189: 2 | K189: (0-2, 0-5) | L189: 2013
B190: 4 | C190: 9 | D190: 2003 | E190: Koskenkorvan Urheilijat | F190: - | G190: Kinnarin Pesis | H190: 0 | I190: - | J190: 1 | K190: (4-6, 7-7) | L190: 1606
K191: Yhteensä | L191: =SUM(L180:L190) -> 15104
K192: Keskiarvo | L192: =PRODUCT(L191/10) -> 1510
B195: 28 | C195: 8 | D195: 2004 | E195: Sotkamon Jymy | F195: - | G195: Hyvinkään Tahko | H195: 0 | I195: - | J195: 2 | K195: (3-5, 4-5) | L195: 1302
B196: 29 | C196: 8 | D196: 2004 | E196: Hyvinkään Tahko | F196: - | G196: Sotkamon Jymy | H196: 1 | I196: - | J196: 2 | K196: (1-2, 3-2, 0-2) | L196: 2070
B197: 1 | C197: 9 | D197: 2004 | E197: Sotkamon Jymy | F197: - | G197: Hyvinkään Tahko | H197: 2 | I197: - | J197: 0 | K197: (4-3, 9-2) | L197: 1715
B198: 4 | C198: 9 | D198: 2004 | E198: Hyvinkään Tahko | F198: - | G198: Sotkamon Jymy | H198: 0 | I198: - | J198: 2 | K198: (0-4, 1-6) | L198: 1871
B200: 28 | C200: 8 | D200: 2004 | E200: Kiteen Pallo-90 | F200: - | G200: Seinäjoen Maila-Jussit | H200: 1 | I200: - | J200: 0 | K200: (3-0, 2-2) | L200: 1713
B201: 29 | C201: 8 | D201: 2004 | E201: Seinäjoen Maila-Jussit | F201: - | G201: Kiteen Pallo-90 | H201: 1 | I201: - | J201: 0 | K201: (3-3, 7-3) | L201: 1215
B202: 1 | C202: 9 | D202: 2004 | E202: Kiteen Pallo-90 | F202: - | G202: Seinäjoen Maila-Jussit | H202: 2 | I202: - | J202: 0 | K202: (2-1, 3-0) | L202: 1935
B203: 4 | C203: 9 | D203: 2004 | E203: Seinäjoen Maila-Jussit | F203: - | G203: Kiteen Pallo-90 | H203: 0 | I203: - | J203: 1 | K203: (1-1, 2-6) | L203: 1142
K204: Yhteensä | L204: =SUM(L195:L203) -> 12963
K205: Keskiarvo | L205: =PRODUCT(L204/8) -> 1620
B208: 23 | C208: 8 | D208: 2005 | E208: Sotkamon Jymy | F208: - | G208: Nurmon Jymy | H208: 1 | I208: - | J208: 0 | K208: (1-0, 2-2) | L208: 1761
B209: 25 | C209: 8 | D209: 2005 | E209: Nurmon Jymy | F209: - | G209: Sotkamon Jymy | H209: 2 | I209: - | J209: 1 | K209: (2-1, 3-4, 1-0) | L209: 1821
B210: 26 | C210: 8 | D210: 2005 | E210: Sotkamon Jymy | F210: - | G210: Nurmon Jymy | H210: 1 | I210: - | J210: 2 | K210: (1-6, 3-2, 0-1) | L210: 1511
B211: 28 | C211: 8 | D211: 2005 | E211: Nurmon Jymy | F211: - | G211: Sotkamon Jymy | H211: 0 | I211: - | J211: 2 | K211: (1-2, 0-6) | L211: 2821
B212: 31 | C212: 8 | D212: 2005 | E212: Sotkamon Jymy | F212: - | G212: Nurmon Jymy | H212: 1 | I212: - | J212: 2 | K212: (1-3, 2-0, 0-1) | L212: 2780
B214: 23 | C214: 8 | D214: 2005 | E214: Kiteen Pallo-90 | F214: - | G214: Hyvinkään Tahko | H214: 0 | I214: - | J214: 1 | K214: (1-1, 1-2) | L214: 2278
B215: 25 | C215: 8 | D215: 2005 | E215: Hyvinkään Tahko | F215: - | G215: Kiteen Pallo-90 | H215: 0 | I215: - | J215: 1 | K215: (2-4, 1-1) | L215: 3275
B216: 27 | C216: 8 | D216: 2005 | E216: Kiteen Pallo-90 | F216: - | G216: Hyvinkään Tahko | H216: 2 | I216: - | J216: 0 | K216: (5-2, 6-0) | L216: 2618
B217: 28 | C217: 8 | D217: 2005 | E217: Hyvinkään Tahko | F217: - | G217: Kiteen Pallo-90 | H217: 1 | I217: - | J217: 0 | K217: (1-1, 3-3, 4-0) | L217: 1540
B218: 31 | C218: 8 | D218: 2005 | E218: Kiteen Pallo-90 | F218: - | G218: Hyvinkään Tahko | H218: 1 | I218: - | J218: 0 | K218: (0-0, 1-1, 0-0, 3-2) | L218: 3067
K219: Yhteensä | L219: =SUM(L208:L218) -> 23472
K220: Keskiarvo | L220: =PRODUCT(L219/10) -> 2347
B223: 29 | C223: 8 | D223: 2006 | E223: Sotkamon Jymy | F223: - | G223: Kiteen Pallo-90 | H223: 2 | I223: - | J223: 0 | K223: (2-1, 9-1) | L223: 1680
B224: 31 | C224: 8 | D224: 2006 | E224: Kiteen Pallo-90 | F224: - | G224: Sotkamon Jymy | H224: 0 | I224: - | J224: 1 | K224: (0-0, 1-5) | L224: 2014
B225: 2 | C225: 9 | D225: 2006 | E225: Sotkamon Jymy | F225: - | G225: Kiteen Pallo-90 | H225: 2 | I225: - | J225: 0 | K225: (4-2, 2-1) | L225: 1671
B227: 29 | C227: 8 | D227: 2006 | E227: Puijon Pesis | F227: - | G227: Pattijoen Urheilijat | H227: 1 | I227: - | J227: 0 | K227: (4-0, 2-2) | L227: 2091
B228: 31 | C228: 8 | D228: 2006 | E228: Pattijoen Urheilijat | F228: - | G228: Puijon Pesis | H228: 2 | I228: - | J228: 1 | K228: (1-4, 2-1, 1-0) | L228: 1446
B229: 2 | C229: 9 | D229: 2006 | E229: Puijon Pesis | F229: - | G229: Pattijoen Urheilijat | H229: 2 | I229: - | J229: 0 | K229: (1-0, 2-1) | L229: 1617
B230: 3 | C230: 9 | D230: 2006 | E230: Pattijoen Urheilijat | F230: - | G230: Puijon Pesis | H230: 2 | I230: - | J230: 0 | K230: (4-3, 5-4) | L230: 1096
B231: 7 | C231: 9 | D231: 2006 | E231: Puijon Pesis | F231: - | G231: Pattijoen Urheilijat | H231: 1 | I231: - | J231: 2 | K231: (0-1, 4-0, 0-1) | L231: 2635
K232: Yhteensä | L232: =SUM(L223:L231) -> 14250
K233: Keskiarvo | L233: =PRODUCT(L232/8) -> 1781
... 173 more rows

Sheet Pronssi
B1: PRONSSIOTTELUT 1987 – 2025
N2: PRONSSISARJAT | O2: vuosia | P2: voitot | Q2: tappiot | R2: V-%
B3: 29 | C3: 8 | D3: 1987 | E3: Hyvinkään Tahko | F3: - | G3: Imatran Pallo-Veikot | H3: 5 | I3: - | J3: 4 | L3: 1236 | N3: Joensuun Maila | O3: 8 | P3: 6 | Q3: 2 | R3: =PRODUCT(P3/O3) -> 75.0 %
N4: Seinäjoen Maila-Jussit | O4: 5 | P4: 5 | Q4: 0 | R4: =PRODUCT(P4/O4) -> 100.0 %
N5: Vimpelin Veto | O5: 6 | P5: 4 | Q5: 2 | R5: =PRODUCT(P5/O5) -> 66.7 %
B6: 27 | C6: 8 | D6: 1988 | E6: Kiteen Urheilijat | F6: - | G6: Kankaanpään Maila | H6: 0 | I6: - | J6: 6 | L6: 2075 | N6: Hyvinkään Tahko | O6: 13 | P6: 4 | Q6: 9 | R6: =PRODUCT(P6/O6) -> 30.8 %
B7: 28 | C7: 8 | D7: 1988 | E7: Kankaanpään Maila | F7: - | G7: Kiteen Urheilijat | H7: 6 | I7: - | J7: 3 | L7: 2260 | N7: Sotkamon Jymy | O7: 6 | P7: 3 | Q7: 3 | R7: =PRODUCT(P7/O7) -> 50.0 %
N8: Pattijoen Urheilijat | O8: 7 | P8: 3 | Q8: 4 | R8: =PRODUCT(P8/O8) -> 42.9 %
N9: Kouvolan Pallonlyöjät | O9: 7 | P9: 3 | Q9: 4 | R9: =PRODUCT(P9/O9) -> 42.9 %
B10: 2 | C10: 9 | D10: 1989 | E10: Vaasan Maila | F10: - | G10: Hyvinkään Tahko | H10: 6 | I10: - | J10: 11 | L10: 2402 | N10: Koskenkorvan Urheilijat | O10: 3 | P10: 2 | Q10: 1 | R10: =PRODUCT(P10/O10) -> 66.7 %
B11: 3 | C11: 9 | D11: 1989 | E11: Hyvinkään Tahko | F11: - | G11: Vaasan Maila | H11: 18 | I11: - | J11: 3 | L11: 1844 | N11: Oulun Lippo | O11: 4 | P11: 2 | Q11: 2 | R11: =PRODUCT(P11/O11) -> 50.0 %
N12: Puijon Pesis | O12: 1 | P12: 1 | Q12: 0 | R12: =PRODUCT(P12/O12) -> 100.0 %
N13: Kempeleen Kiri | O13: 2 | P13: 1 | Q13: 1 | R13: =PRODUCT(P13/O13) -> 50.0 %
B14: 1 | C14: 9 | D14: 1990 | E14: Hyvinkään Tahko | F14: - | G14: Kankaanpään Maila | H14: 11 | I14: - | J14: 7 | L14: 1945 | N14: Kankaanpään Maila | O14: 2 | P14: 1 | Q14: 1 | R14: =PRODUCT(P14/O14) -> 50.0 %
B15: 2 | C15: 9 | D15: 1990 | E15: Kankaanpään Maila | F15: - | G15: Hyvinkään Tahko | H15: 6 | I15: - | J15: 3 | L15: 1941 | N15: Nurmon Jymy | O15: 2 | P15: 1 | Q15: 1 | R15: =PRODUCT(P15/O15) -> 50.0 %
N16: Kiteen Pallo-90 | O16: 2 | P16: 1 | Q16: 1 | R16: =PRODUCT(P16/O16) -> 50.0 %
N17: Alajärven Ankkurit | O17: 3 | P17: 1 | Q17: 2 | R17: =PRODUCT(P17/O17) -> 33.3 %
B18: 31 | C18: 8 | D18: 1991 | E18: Seinäjoen Maila-Jussit | F18: - | G18: Hyvinkään Tahko | H18: 4 | I18: - | J18: 7 | L18: 2247 | N18: Jyväskylän Kiri | O18: 3 | P18: 1 | Q18: 2 | R18: =PRODUCT(P18/O18) -> 33.3 %
B19: 1 | C19: 9 | D19: 1991 | E19: Hyvinkään Tahko | F19: - | G19: Seinäjoen Maila-Jussit | H19: 4 | I19: - | J19: 20 | L19: 2299 | N19: Kiteen Urheilijat | O19: 1 | P19: 0 | Q19: 1 | R19: =PRODUCT(P19/O19) -> 0.0 %
N20: Vaasan Maila | O20: 1 | P20: 0 | Q20: 1 | R20: =PRODUCT(P20/O20) -> 0.0 %
N21: Imatran Pallo-Veikot | O21: 1 | P21: 0 | Q21: 1 | R21: =PRODUCT(P21/O21) -> 0.0 %
B22: 29 | C22: 8 | D22: 1992 | E22: Oulun Lippo | F22: - | G22: Alajärven Ankkurit | H22: 4 | I22: - | J22: 5 | L22: 2315 | N22: Manse PP Edustus | O22: 1 | P22: 0 | Q22: 1 | R22: =PRODUCT(P22/O22) -> 0.0 %
B23: 30 | C23: 8 | D23: 1992 | E23: Alajärven Ankkurit | F23: - | G23: Oulun Lippo | H23: 4 | I23: - | J23: 2 | L23: 2231 | O23: =SUM(O3:O22) -> 78 | P23: =SUM(P3:P22) -> 39 | Q23: =SUM(Q3:Q22) -> 39
B26: 11 | C26: 9 | D26: 1993 | E26: Oulun Lippo | F26: - | G26: Alajärven Ankkurit | H26: 12 | I26: - | J26: 4 | L26: 2552 | N26: TOP-5 YLEISÖMÄÄRÄT
B27: 12 | C27: 9 | D27: 1993 | E27: Alajärven Ankkurit | F27: - | G27: Oulun Lippo | H27: 4 | I27: - | J27: 2 | L27: 1211 | N27: ViVe – PattU | O27: 2009 | P27: 3106
N28: JoMa – PattU | O28: 2013 | P28: 2709
N29: KiPa – SoJy | O29: 1998 | P29: 2644
B30: 11 | C30: 9 | D30: 1994 | E30: Alajärven Ankkurit | F30: - | G30: Sotkamon Jymy | H30: 0 | I30: - | J30: 2 | K30: (0-5, 3-4) | L30: 1485 | N30: KPL – KeKi | O30: 2024 | P30: 2612
B31: 17 | C31: 9 | D31: 1994 | E31: Sotkamon Jymy | F31: - | G31: Alajärven Ankkurit | H31: 2 | I31: - | J31: 0 | K31: (3-2, 9-3) | L31: 1350 | N31: Lippo – AA | O31: 1993 | P31: 2552
B34: 10 | C34: 9 | D34: 1995 | E34: Seinäjoen Maila-Jussit | F34: - | G34: Hyvinkään Tahko | H34: 2 | I34: - | J34: 1 | K34: (1-4, 1-0, 1-0) | L34: 1998 | N34: YLEISÖMÄÄRÄT
B35: 16 | C35: 9 | D35: 1995 | E35: Hyvinkään Tahko | F35: - | G35: Seinäjoen Maila-Jussit | H35: 0 | I35: - | J35: 2 | K35: (0-3, 0-1) | L35: 1509 | N35: Vuosi | O35: otteluja | P35: yleisö | Q35: ka
N36: 1987 | O36: 1 | P36: 1236 | Q36: =PRODUCT(P36/O36) -> 1236
N37: 1988 | O37: 2 | P37: 4335 | Q37: =PRODUCT(P37/O37) -> 2168
B38: 7 | C38: 9 | D38: 1996 | E38: Seinäjoen Maila-Jussit | F38: - | G38: Jyväskylän Kiri | H38: 1 | I38: - | J38: 0 | K38: (2-2, 2-1) | L38: 1254 | N38: 1989 | O38: 2 | P38: 4246 | Q38: =PRODUCT(P38/O38) -> 2123
B39: 8 | C39: 9 | D39: 1996 | E39: Jyväskylän Kiri | F39: - | G39: Seinäjoen Maila-Jussit | H39: 0 | I39: - | J39: 2 | K39: (0-1, 2-3) | L39: 873 | N39: 1990 | O39: 2 | P39: 3889 | Q39: =PRODUCT(P39/O39) -> 1945
N40: 1991 | O40: 2 | P40: 4541 | Q40: =PRODUCT(P40/O40) -> 2271
N41: 1992 | O41: 2 | P41: 4646 | Q41: =PRODUCT(P41/O41) -> 2323
B42: 6 | C42: 9 | D42: 1997 | E42: Seinäjoen Maila-Jussit | F42: - | G42: Hyvinkään Tahko | H42: 1 | I42: - | J42: 0 | K42: (4-1, 3-3) | L42: 1256 | N42: 1993 | O42: 2 | P42: 3763 | Q42: =PRODUCT(P42/O42) -> 1882
B43: 7 | C43: 9 | D43: 1997 | E43: Hyvinkään Tahko | F43: - | G43: Seinäjoen Maila-Jussit | H43: 1 | I43: - | J43: 0 | K43: (8-4, 5-5) | L43: 1477 | N43: 1994 | O43: 2 | P43: 2835 | Q43: =PRODUCT(P43/O43) -> 1418
B44: 14 | C44: 9 | D44: 1997 | E44: Seinäjoen Maila-Jussit | F44: - | G44: Hyvinkään Tahko | H44: 2 | I44: - | J44: 0 | K44: (3-1, 4-1) | L44: 2171 | N44: 1995 | O44: 2 | P44: 3507 | Q44: =PRODUCT(P44/O44) -> 1754
N45: 1996 | O45: 2 | P45: 2127 | Q45: =PRODUCT(P45/O45) -> 1064
N46: 1997 | O46: 3 | P46: 4904 | Q46: =PRODUCT(P46/O46) -> 1635
B47: 5 | C47: 9 | D47: 1998 | E47: Kiteen Pallo-90 | F47: - | G47: Sotkamon Jymy | H47: 2 | I47: - | J47: 1 | K47: (2-3, 5-3, 1-0) | L47: 2644 | N47: 1998 | O47: 2 | P47: 5145 | Q47: =PRODUCT(P47/O47) -> 2573
B48: 6 | C48: 9 | D48: 1998 | E48: Sotkamon Jymy | F48: - | G48: Kiteen Pallo-90 | H48: 1 | I48: - | J48: 2 | K48: (1-3, 5-3, 0-1) | L48: 2501 | N48: 1999 | O48: 3 | P48: 3940 | Q48: =PRODUCT(P48/O48) -> 1313
N49: 2000 | O49: 3 | P49: 4187 | Q49: =PRODUCT(P49/O49) -> 1396
N50: 2001 | O50: 2 | P50: 2598 | Q50: =PRODUCT(P50/O50) -> 1299
B51: 4 | C51: 9 | D51: 1999 | E51: Jyväskylän Kiri | F51: - | G51: Pattijoen Urheilijat | H51: 0 | I51: - | J51: 2 | K51: (2-4, 0-1) | L51: 420 | N51: 2002 | O51: 2 | P51: 2253 | Q51: =PRODUCT(P51/O51) -> 1127
B52: 5 | C52: 9 | D52: 1999 | E52: Pattijoen Urheilijat | F52: - | G52: Jyväskylän Kiri | H52: 1 | I52: - | J52: 2 | K52: (2-5, 3-1, 0-2) | L52: 2020 | N52: 2003 | O52: 3 | P52: 3563 | Q52: =PRODUCT(P52/O52) -> 1188
B53: 11 | C53: 9 | D53: 1999 | E53: Jyväskylän Kiri | F53: - | G53: Pattijoen Urheilijat | H53: 2 | I53: - | J53: 0 | K53: (3-0, 3-2) | L53: 1500 | N53: 2004 | O53: 3 | P53: 2367 | Q53: =PRODUCT(P53/O53) -> 789
N54: 2005 | O54: 2 | P54: 2224 | Q54: =PRODUCT(P54/O54) -> 1112
N55: 2006 | O55: 1 | P55: 2108 | Q55: =PRODUCT(P55/O55) -> 2108
B56: 8 | C56: 9 | D56: 2000 | E56: Hyvinkään Tahko | F56: - | G56: Oulun Lippo | H56: 2 | I56: - | J56: 0 | K56: (3-2, 2-1) | L56: 1288 | N56: 2007 | O56: 2 | P56: 2287 | Q56: =PRODUCT(P56/O56) -> 1144
B57: 9 | C57: 9 | D57: 2000 | E57: Oulun Lippo | F57: - | G57: Hyvinkään Tahko | H57: 2 | I57: - | J57: 0 | K57: (4-3, 4-1) | L57: 1619 | N57: 2008 | O57: 2 | P57: 2868 | Q57: =PRODUCT(P57/O57) -> 1434
B58: 15 | C58: 9 | D58: 2000 | E58: Hyvinkään Tahko | F58: - | G58: Oulun Lippo | H58: 0 | I58: - | J58: 2 | K58: (1-2, 0-2) | L58: 1280 | N58: 2009 | O58: 2 | P58: 4239 | Q58: =PRODUCT(P58/O58) -> 2120
N59: 2010 | O59: 3 | P59: 5462 | Q59: =PRODUCT(P59/O59) -> 1821
N60: 2011 | O60: 3 | P60: 4076 | Q60: =PRODUCT(P60/O60) -> 1359
B61: 5 | C61: 9 | D61: 2001 | E61: Hyvinkään Tahko | F61: - | G61: Pattijoen Urheilijat | H61: 1 | I61: - | J61: 2 | K61: (0-5, 4-2, 0-2) | L61: 1092 | N61: 2012 | O61: 2 | P61: 2699 | Q61: =PRODUCT(P61/O61) -> 1350
